Workbook

Sheet Nota
B2: Ces documents sont les fruits : | U2: Modèle FF-4
B3: de mon expérience et des utilitaires de la restauration collective | U3: Collectivité avec macro.xlsm
B4: de documents mis sur le net par des passionnés | U4: FF= Fiches de fabrication
B5: Je les mets à disposition des professionnels et des jeunes cuisiniers en formation . | U5: dernière mise à jour : 14 Décembre 2021
B6: A chacun de faire évoluer ces documents et de les modifier pour son utilisation....... | U6: annule ou remplace les versions précédentes
B8: CONTENU DU FICHIER | U8: ="Page "&_xlfn.SHEET()&" sur "&_xlfn.SHEETS() -> Page 1 sur 18
B9: NOTA
B10: Mode d'emploi
B11: FF.4.collectivité vierge
B12: FF.4.exemple collectivite : Haricot de mouton
B13: FF.4.Paysage.modèle
B14: FF.4.Paysage : Salade au Roquefort
B15: FF.4.Portrait.modèle
B16: FF.4.Portrait : Salade au Roquefort
B17: 2 fois la meme recette pour comparer la mise en page
B18: Estimation des contenants
B19: Important : Cuisiniers : PESEZ
B20: VOCABULAIRE PROFESSIONNEL
B21: Classement simplifié
B22: Code couleurs : Palette de couleurs, Excel
B23: Si vous devez saisir un de vos produit à la pièce
B24: ( exemple 1 saucisse ) utilisez les fiches à la portion
B25: sinon excel comprendra 1 Kg et non 1 pièce
B27: Quelques polices de caractères utilisées | Q27: Quelques formats utilisés
C28: Arial | E28: Calibri | G28: Rockwell | J28: Verdana | Q28: 15.5 > | S28: 15.5 | U28: 15.5 | W28: 15.5
C29: ARIAL | E29: CALIBRI | G29: ROCKWELL | J29: VERDANA | Q29: personnalisés > | S29: 0.000" Kg" | U29: 0" %" | W29: Monétaire
B31: Autres polices à découvrir
C32: ARIAL NARROW Arial Narrow | H32: COMIC SANS MF Comic Sans MF | P32: GIL SANS MT Gill Sans MT | V32: PALATINO LINOTYPE Palatino Linotype
C33: TAHOMA Tahoma | H33: TIMES NEW ROMAN Times New Roman | P33: TRBUCHET MF Trébuchet MF | V33: TW CEN MT Tw Cen MT
C34: VRINDA Vrinda
B35: Une numérotation avec couleur de police modifiable
C36: ❶ | D36: ❷ | E36: ❸ | F36: ❹ | G36: ❺ | H36: ❻ | I36: ❼ | J36: ❽ | K36: ❾ | L36: ❿ | M36: ⓫ | N36: ⓬ | O36: ⓭ | P36: ⓮ | Q36: ⓯ | R36: ⓰ | S36: ⓱ | T36: ⓲ | U36: ⓳ | V36: ⓴
C38: ❶ | D38: ❷ | E38: ❸ | F38: ❹ | G38: ❺ | H38: ❻ | I38: ❼ | J38: ❽ | K38: ❾ | L38: ❿ | M38: ⓫ | N38: ⓬ | O38: ⓭ | P38: ⓮ | Q38: ⓯ | R38: ⓰ | S38: ⓱ | T38: ⓲ | U38: ⓳ | V38: ⓴
C40: 1 | D40: 2 | E40: 3 | F40: 4 | G40: 5 | H40: 6 | I40: 7 | J40: 8 | K40: 9 | L40: 10 | M40: 11 | N40: 12 | O40: 13 | P40: 14 | Q40: 15 | R40: 16 | S40: 17 | T40: 18 | U40: 19 | V40: 20
C42: 1 | D42: 2 | E42: 3 | F42: 4 | G42: 5 | H42: 6 | I42: 7 | J42: 8 | K42: 9 | L42: 10 | M42: 11 | N42: 12 | O42: 13 | P42: 14 | Q42: 15 | R42: 16 | S42: 17 | T42: 18 | U42: 19 | V42: 20
C44: ⓪①②③④⑤⑥⑦⑧⑨⑩⑪⑫⑬⑭⑮⑯⑰⑱⑲⑳ | L44: couleur de police blanc sur fond gris à modifier pour vos documents
C45: cliquez sur la colonne C et sélectionnez dans la barre le numéro qui vous intéresse
C46: ⓿❶❷❸❹❺❻❼❽❾❿⓫⓬⓭⓮⓯⓰⓱⓲⓳⓴
B48: des caractères spéciaux
B49: ! | C49: " | D49: # | E49: $ | F49: % | G49: & | H49: @ | I49: ‰ | J49: ≈ | K49: ± | L49: » | M49: ¼ | N49: ½ | O49: ¾ | P49: ø | Q49: ► | R49: ◄ | S49: ▲ | T49: ▼ | U49: Φ
C51: 0.00\ " cm³" | F51: Format | cellule | personnalisé | 0" cm³"
C52: 3
H53: ou copier-coller | N53: X | O53: t | P53: u
C54: le ² se fait en tapant alt+0178 | H54: m² | I54: M² | J54: cm² | K54: ² | N54: Police Wingdings 3
C55: le ³ se fait en tapant alt+0179 | H55: m³ | I55: M³ | J55: cm³ | K55: ³ | N55: Z | O55: q | P55: p
C59: lien > | D59: Les unités pifométriques
C60: Je remercie chaleureusement les internautes passionnés qui élaborent et proposent des formules et fonctions imbriquées
B61: Transmettez votre savoir et votre savoir faire peu importe qui le récupère; pourvu qu'un plus grand nombre puisse en bénéficier.
B62: Joël LEBOUCHER …Octobre 2015
B63: un lien rompu ou devenu obsolète…..pas de panique…Google saura vous retrouver un document équivalent
B65: Site à découvrir
B66: SPACE pour Suivi et Programmation d'ACtivités en Equipe est un outil destiné à permettre un suivi exhaustif des activités d'une équipe.
A67: lien > | C67: Fil de discussion dédié à ce programme
A68: > | B68: http://www.excel-downloads.com/remository/Download/Professionnels/Planification-et-gestion-de-projets/SPACE.html

Sheet différence Portion et Poids
B2: DIFFÉRENCE ENTRE SERVICE A LA PORTION ET SERVICE AU POIDS
A8: ICI | B8: NOM DE LA RECETTE | K8: SERVICE A LA PORTION Explication | T8: ICI | U8: Comment remplir cette fiche en respectant un ordre logique
A10: fiche de fabrication SERVICE A LA PORTION | B10: recette de qui ? | D10: SERVICE A LA PORTION | I10: 1 | L10: Simplissime : | T10: fiche de fabrication SERVICE A LA PORTION | U10: ? | V10: AVANT de saisir quoique ce soit dans une cellule vérifiez bien qu'il n'y ait pas de formule en cliquant dessus
B11: Portions Auteur | G11: Dupliquée pour | L11: Vous pouvez saisir ce que vous voulez un poids
B12: 6 | G12: 7 | H12: Portions | I12: =B8 -> NOM DE LA RECETTE | M12: un nombre de cuillères ou de branches de thym | U12: ① | V12: Matière d'œuvre | X12: 1 - saisir les Denrées
B13: Portions | M13: une poignée etc…tout cela n'a pas d'incidence
C14: Quoi | D14: Denrées | E14: Quantité | L14: Parce que : | U14: ② | V14: Quantités | W14: 2 - saisir les quantités de la recette dans cette colonne
B15: ② | C15: ① | E15: ③ | N15: l'Auteur à pensé sa recette pour | O15: =B12 -> 6 | P15: Portions | S15: u | W15: Convertissez tout de suite les volumes en poids sur la base de 1L = 1Kg
B16: 1.8 | C16: à saisir | D16: =IF(B16="","",IF(ISTEXT(B16),B16,(B16/B12)*G12)) -> 2.1 | E16: g | F16: Procédure | N16: Vous voulez la dupliquer pour | O16: =G12 -> 7 | P16: Portions | S16: u Police Wingdings 3 | W16: ¼ de botte de fines herbes - allez expliquer cela à Excel (0.25)
B17: 2 | D17: =IF(B17="","",IF(ISTEXT(B17),B17,(B17/B12)*G12)) -> 2.333333333 | L17: Formule :
D18: =IF(B18="","",IF(ISTEXT(B18),B18,(B18/B12)*G12)) ->  | L18: Quantité de chaque produit | O18: X par le nombre de portions que vous voulez dupliquer | U18: ③ | V18: Unités | W18: Kg | X18: L | Y18: g | Z18: C a C | AA18: cuillère a café | AC18: C à S | AD18: cuillère a soupe
B19: 3 | D19: =IF(B19="","",IF(ISTEXT(B19),B19,(B19/B12)*G12)) -> 3.5 | L19: Nombre de portions de l'Auteur
B20: 8 | D20: =IF(B20="","",IF(ISTEXT(B20),B20,(B20/B12)*G12)) -> 9.333333333 | K20: Astuce : | L20: si vous estimez que les portions sont trop importantes pour vos convives : | V20: 10 | W20: Dupliquée pour : | Y20: à vous de saisir la quantité à fabriquer en fonction de votre utilisation
B21: 1 | D21: =IF(B21="","",IF(ISTEXT(B21),B21,(B21/B12)*G12)) -> 1.166666667 | L21: augmentez le nombre de portion prévues par l'Auteur cela diminuera vos quantités par personne | Y21: Portions | AA21: Kg | AC21: Tartes | AE21: Etc….
D22: =IF(B22="","",IF(ISTEXT(B22),B22,(B22/B12)*G12)) ->  | L22: si vous estimez que les portions ne sont pas assez copieuses : | U22: Portions Auteur
D23: =IF(B23="","",IF(ISTEXT(B23),B23,(B23/B12)*G12)) ->  | L23: diminuez le nombre de portion prévues par l'Auteur cela augmentera vos quantités | U23: 10 | V23: ? - - n'oubliez pas d'indiquer pour combien de portion ou quel nombre de couverts était prévue la recette que vous avez saisie
B24: =SUM(B16:B23) -> 15.8 | C24: si vous voulez refaire la | D24: =SUM(D16:D23) -> 18.43333333 | G24: Recette de l'Auteur saisissez la valeur de la cellule | H24: =ADDRESS(ROW(B12),COLUMN(B12),4) -> B12
B25: 10.71 | C25: 10.71 | D25: 18 | E25: 10.71 | F25: 10.71 | G25: 10.71 | H25: 10.71
A27: ICI | B27: NOM DE LA RECETTE | K27: SERVICE AU POIDS Explication | U27: QU'EST-CE QU'UNE FICHE DE FABRICATION DE TYPE "POSTIT"©
U28: Tel un Postit © c'est une fiche Excel autonome facilement copiable et transposable dans n'importe quelle feuille
A29: fiche de fabrication SERVICE AU POIDS | B29: recette de qui ? | D29: SERVICE AU POIDS | I29: 2 | L29: Cela demande un peu plus d'attention que pour le service à la portion | U29: Lien > | V29: Mettez la collaboration au coeur de votre environnement de travail
B30: Poids Auteur | G30: Dupliquée pour | L30: les poids - les cuillères à café le nombre de pièces : tout est mélangé | U30: "POSTIT" QUEL INTÉRÊT
B31: 1.8 | G31: 5 | H31: Kg | I31: =B27 -> NOM DE LA RECETTE | N31: si bien que vous obtenez un poids total de | O31: =B43 -> 16.2 | P31: cellule | Q31: =C43 -> si vous voulez refaire la | U31: Chaque postit étant indépendant vous pouvez le copier et le coller dans n'importe quelle feuille Excel
B32: Kg | L32: si vous n'aviez que des poids vous pourriez saisir ce total dans la cellule Poids Auteur | U32: pour vous constituer un répertoire
C33: Quoi | D33: Denrées | E33: Quantité | G33: d'agneau | L33: mais si vous souhaitez dupliquer cette recette pour un poids d'agneau saisir ce poids d'agneau | U33: Vous pouvez assembler plusieurs postit(s) sur une même feuille pour créer votre recette
B34: ② | C34: ① | E34: ③ | U34: Exemple : pour une recette de gateau…allez chercher dans vos répertoires la recette du biscuit qui vous convient
B35: 1.8 | C35: à saisir | D35: =IF(B35="","",IF(ISTEXT(B35),B35,(B35/B31)*G31)) -> 5 | E35: g | F35: Procédure | L35: vous auriez très bien pu dupliquer cette recette pour un poids de haricots coco | U35: le mieux ajoutez une ou deux crèmes qui vont bien et terminez en ajoutant un postit éléments de décor
B36: 2 | D36: =IF(B36="","",IF(ISTEXT(B36),B36,(B36/B31)*G31)) -> 5.555555556 | U36: Idem pour des recettes de cuisine faites des répertoires :
D37: =IF(B37="","",IF(ISTEXT(B37),B37,(B37/B31)*G31)) ->  | L37: Formule : | U37: de garnitures aromatiques de cuisson
B38: 3 | D38: =IF(B38="","",IF(ISTEXT(B38),B38,(B38/B31)*G31)) -> 8.333333333 | L38: Quantité de chaque produit | O38: X par le poids que vous voulez dupliquer | U38: de sauces diverses et variées
B39: 8 | D39: =IF(B39="","",IF(ISTEXT(B39),B39,(B39/B31)*G31)) -> 22.22222222 | L39: Poids de l'Auteur | U39: de garnitures de finitions ou de décor
B40: 1 | D40: =IF(B40="","",IF(ISTEXT(B40),B40,(B40/B31)*G31)) -> 2.777777778 | U40: Faites "votre marché" dans vos répertoires et assemblez le tout sur une même feuille Excel
B41: 0.2 | D41: =IF(B41="","",IF(ISTEXT(B41),B41,(B41/B$31)*G$31)) -> 0.5555555556 | P41: si dans votre recette vous n'avez saisi que des poids alors saisissez le total | Q41: =B43 -> 16.2 | U41: comment copier un "Postit" : cliquez sur la cellule ICI dans l'angle gauche puis déportez la souris vers la droit le postit
B42: 0.2 | D42: =IF(B42="","",IF(ISTEXT(B42),B42,(B42/B$31)*G$31)) -> 0.5555555556 | P42: de la cellule | Q42: =C43 -> si vous voulez refaire la | U42: est sélectionné il ne vous reste plus qu'a le copier et le coller dans votre répertoire
B43: =SUM(B35:B42) -> 16.2 | C43: si vous voulez refaire la | D43: =SUM(D35:D42) -> 45 | G43: Recette de l'Auteur saisissez la valeur de la cellule | H43: =ADDRESS(ROW(B31),COLUMN(B31),4) -> B31 | AD43: ne sont "postit" que les fiches avec cellule | AE43: ICI | AF43: ICI
U44: Bonne utilisation. A vous de faire évoluer ces documents…et n'hésitez pas à tramsmettre vos savoirs faire……
U45: pour aider les jeunes en formation ou donner des idées à vos collègues des métiers de bouche
A46: 2.86 | B46: 8 | C46: 25 | D46: 8 | E46: 8 | F46: 18 | G46: 18 | H46: 18 | I46: 2.86 | J46: Largeurs de colonnes | U46: Joël Leboucher
U47: Adaptation 2016 : Joël Leboucher..UPRT "Union des Personnels de la Restauration Territoriale" membre du réseau RESTAU'CO

Sheet Mode d'emploi
A2: Mode d'emploi Fiches de fabrications FF.4.Collectivité
B3: =CELL("nomfichier") -> E:\0-UPRT\1-UPRT.FR-SITE-WEB\ff-fiches-fabrications\ff-fiches-fabrication-maj-08-2020\[ff-4-collectivite-avec-macro.xlsm]Formats-Formules-Fonctions
E6: MODE D'EMPLOI FICHES DE FABRICATIONS Modèles A3 rebatisées FF.4 en 2020-crées en 1998 à la Cuisine Centrale de Clamart et adaptées en 2007 UPRT : Union des Personnels de la Restauration Territoriale
B7: Objectif du document : | F7: MODÈLES
G8: FF.4.Collectivité | H8: Exemple AVEC macro seulement pour les couleurs
G9: FF=Fiche de Fabrication
B12: Formats | E12: Vous pouvez personnaliser vos documents en choisissant une police de caractère proposée taille de 8 à 12 en fonction de la place diponible dans les cellules
E13: CHARTE GRAPHIQUE | F13: CHARTE GRAPHIQUE
H14: Couleurs d'encres
H15: Interdit d'écrire Noir | I15: ou Blanc sur fond noir | M15: ou noir sur fond gris
G16: NOIR ou sur fond NOIR , ces cellules contiennent des formules
H17: A renseigner souvent ROUGE VIF | I17: ou Blanc sur fond rouge
F18: Mise à jour BLEU ou BLANC sur BLEU ou BLEU sur fond ivoire ou rouge
H19: Paramètres personnels MARRON | I19: ou Blanc sur fond marron | L19: ou VERT | M19: VERT
B22: Format et zone d'impression | E22: Vous pouvez supprimer autant de lignes que nécessaire
E23: SAUF LES LIGNES AVEC MOTIF ROUGE
E24: ( les 5 premières et la dernière du tableau)
E25: Avantage :pour une même recette vous pouvez faire plusieurs fiches séparées. Une avec la cuisson une avec la farce une avec la garniture de finition.
E26: Ce qui vous permet d'archiver des copies par thèmes. La recette de farce peut très bien servir dans une autre recette par exemple etc..
E27: sur une feuille Excel vous avez à peu près 6000 lignes donc vous pouvez collez autant de recettes que vous le souhaitez
E28: Mais si vous voulez utiliser la recherche de recettes colonnes AB AG avec la fonction "Données Filtre Filtre automatique" ne supprimez pas les 2 lignes d'entête
E29: ATTENTION avec le filtre aucune cellule ne doit rester vide entre chaque recettes saisissez des 0 zéro s'il ny en a pas .Le vide pertube le fonctionnement d'Excel
E30: pour retrouver une recette utilisez donc cette fonction filtre automatique dans les colonnes à droite
E31: Pour dupliquer une recette vierge : sélectionnez les N° de ligne à gauche de l'écran puis copiez -
E32: Placez vous à la fin du dernier document cliquez sur le N° à gauche de l'écran puis collez
E33: Avant de saisir une nouvelle recette; vérifiez qu'il vous reste un modèle vierge sous la feuille que vous utilisez
E34: VERIFIEZ votre zone d'impression qui dépend défois de votre imprimante en cliquant sur Affichage Apperçu des sauts de page; et modifiez si nécessaire
B37: Comment remplir une fiche | E37: Colonne unités: litresKg pièces pommemorceaux tranches etc.…
E38: Colonne poids saisissez les quantités utilisées par l'auteur. Ces quantités sont souvent dans le texte des ingrédients.Essayez de n'utiliser que des poids si possible.
E39: Il est impossible de faire comprendre à Excel que 12 œufs ne font pas 12 kg si on ne l'aide pas. (12 oeufs X 0,05 kg = 0,600Kg)
E40: Colonne pourcentages de perte : posez vous la question : ce produit perdra combien au parage ou à l'épluchage : 10 / 20 % -
E41: ce produit perdra combien au rissolage à la cuisson -ou au conditionnement
E42: Exp. : 1Kg d'oignons frais perdra 10 % à l'épluchage plus 50% en cuisson
E43: 1Kg de bœuf en bourguignon perdra 40% en cuisson
B46: Utilisation détournée de la fiche recette
G47: Cellule F5 ou F2 | I47: Cellule I5 ou I2
G48: 1 | I48: 10 | K48: Net Auteur
F49: Cellule F6 ou F3 | G49: Kg | K49: =IF(SUM(K50:K114)=0,1,SUM(K50:K114)) -> 1 | L49: G8 ou G5 selon modèle
E51: Si vous saisissez cellules F5-2 -F7-3 que la recette à été prévue pour le total net de la cellule G8-5
E52: Vous saisissez le poids total que vous avez besoin cellule I5-2 et la recette sera établie pour ce pods total terminé
E54: Si vous saisissez cellules F5-2 -F7-3 que la recette à été prévue 10.5 Kg de carottes de la colonne G
E55: et que vous n'en avez que 8 Kg ; la recette sera donc recalculée pour pour ces 8 Kg
B58: La cuisine de collectivité | E58: ATTENTION lorsque vous formulez une recette type bourguignon "Cuisine de référence" Michel Maincent
E59: Faut-il encore enseigner la formulation des recettes de cette façon ?
E60: 179 Litres de vin rouge + 191 Litres de fond brun + 40% soit 153 l d'exsudat de viande + 20% d'exsudat des légumes. Que faire de tout ce liquide?
E61: J'aurai besoin d'un maximum de 145 Litres de sauce pour 2945 couverts. Que faire du reste de cuisson soit au minimum 370 Litres
E62: Pensez au surcoût et au nombre de sauteuses nécessaires pour respecter cette recette
E63: La farine est-elle un liant ou liant aromatisant à raison de 20% de farine torréfiée plus un amidon industriel (contenu dans les fonds)
E64: Est -il raisonnable d'élaborer une recette avec 50% de vin. Le vin peut-il être considéré comme aromatisant à 20%
B67: Compteur de caractères | E67: 255 CARACTÈRES MAXI PAR CELLULE pour l'organisation raisonnée
E68: Au delà de 255 carctères par cellules Excel tronque le texte (en suppime une partie) donc si vous avez un texte plus long que prévu scindez le en fonction du compteur
E69: Collez votre texte dans la cellule blanche
F70: NB. : Au sens du présent document, on parlera de cuisson par le consommateur, avec effet de "sanitation», lorsque le consommateur doit effectuer un traitement thermique avant consommation permettant d'atteindre au moins 70°C à cœur pendant 2 minutes. Les conditions d'utilisation mentionnées sur l'emballage par le fabricant doivent être fixées en conséquence. Autrement, on parle de "réchauffage». | G70: =LEN(F70) -> 398 | H70: Caractères | I70: =IF(LEN(F70)>255," STOP 255 caractères maxi "&(LEN(F70)-255)&" caractères de trop.","") -> STOP 255 caractères maxi 143 caractères de trop.
H71: =IF(G70<255,"","répartissez votre texte sur") -> répartissez votre texte sur | I71: =IF(G70<255,"OK moins de 255",G70/255) -> 1.560784314 | K71: =IF(G70<255,"","lignes différentes") -> lignes différentes
E73: TEXTE RECTIFIÉ
F74: NB. : Au sens du présent document, on parlera de cuisson par le consommateur, avec effet de "sanitation», lorsque le consommateur doit effectuer un traitement thermique avant consommation permettant d'atteindre au moins 70°C à cœur pendant 2 minutes. | G74: =LEN(F74) -> 251 | H74: Caractères | I74: =IF(LEN(F74)>255," STOP 255 caractères maxi "&(LEN(F74)-255)&" caractères de trop.","") -> 
H75: =IF(G74<255,"","répartissez votre texte sur") ->  | I75: =IF(G74<255,"OK moins de 255",G74/255) -> OK moins de 255 | K75: =IF(G74<255,"","lignes différentes") -> 
B78: A diffuser largement | E78: Bonne utilisation; à diffuser largement si vous jugez ce document utile
E79: Salutations
E80: Joël LEBOUCHER
B83: Remerciements | E83: Le graphisme de ce document d'aide à pu être réalisé grace à Fabrice JACOB et David AUBERT qui ont édité SPACEe; je vous invite à visiter leur site en cliquant sur le lien
E84: Description:
E85: SPACE pour Suivi et Programmation d'ACtivités en Equipe est un outil destiné à permettre un suivi exhaustif des activités d'une équipe.
F86: Fil de discussion dédié à ce programme
E88: http://www.excel-downloads.com/remository/Download/Professionnels/Planification-et-gestion-de-projets/SPACE.html

Sheet FF.4_collectivité vierge
B1: ICI | C1: LES PLATS COMPLETS | D1: Mode de cuisson | O1: NOM DE L'AUTEUR cellule O1 | P1: =C1 -> LES PLATS COMPLETS | V1: Hauteurs de lignes
B2: =CELL("nomfichier") -> E:\0-UPRT\1-UPRT.FR-SITE-WEB\ff-fiches-fabrications\ff-fiches-fabrication-maj-08-2020\[ff-4-collectivite-avec-macro.xlsm]Formats-Formules-Fonctions | P2: =O1 -> NOM DE L'AUTEUR cellule O1 | V2: 36
N3: NOM DE VOTRE PLAT | O3: N°12 | P3: =N3 -> NOM DE VOTRE PLAT | T3: =O3 -> N°12 | V3: 20.25
B4: Adresse WEB | C4: Collez à la place de ce texte l'adresse internet de votre recette.Puis positionnez vous à la fin de HTM et cliquez sur entrée pour valider cette adresse | V4: 21
B5: Modèle | E5: La recette a été prévue pour: | F5: 100 | G5: Vous voulez la dupliquer pour: | I5: 3500 | J5: 0 | K5: 0 | L5: 0 | M5: Recette éditée le : | P5: RECETTE DUPLIQUÉE POUR: | R5: =I5 -> 3500 | S5: =F6 -> couverts | V5: 32.25
B6: FF.4 | E6: Unités : couverts -Kglitre Produit etc.. | F6: couverts | J6: 0 | K6: 0 | L6: 0 | M6: =NOW() -> 2021-12-15T11:26:41.450 | V6: 25.5
B7: =MID(CELL("filename",B7),FIND("[",CELL("filename",B7)),300) -> [ff-4-collectivite-avec-macro.xlsm]FF.4_collectivité vierge | D7: Poids | E7: UNITE | F7: % Perte | G7: Net Auteur | H7: NET à fabriquer | I7: Net Arrondi | J7: Masquer les colonnes | L7: 0 | M7: BRUT | N7: Prix unitaire | O7: Prix de Revient | V7: 24.75 | X7: A LIRE
B8: % | C8: PRODUITS | D8: =SUM(D9:D65) -> 0 | E8: 0 | F8: =IF(M8=0,0,(M8-I8)/M8*100) -> 0 | G8: =IF(SUM(G9:G65)=0,1,SUM(G9:G65)) -> 1 | H8: =SUM(H9:H65) -> 0 | I8: =SUM(I9:I65) -> 0 | J8: =F5 -> 100 | K8: =I5 -> 3500 | L8: 0 | M8: =SUM(M9:M65) -> 0 | N8: =O8/I5 -> 0 | O8: =SUM(O9:O65) -> 0 | P8: 0 | Q8: ORGANISATION RAISONNÉE DU TRAVAIL ET HACCP | V8: 18 | X8: Pour COLLER du texte ou des formules dans cette feuille:
B9: =IF(I8=0,0,I9/I8) -> 0 | C9: POUR 100 COUVERTS | F9: 0 | G9: =D9-(D9*F9%) -> 0 | H9: =IF(G9=0,0,(G9/J9)*K9) -> 0 | I9: =ROUNDUP(H9,1) -> 0 | J9: =J8 -> 100 | K9: =K8 -> 3500 | L9: 0 | M9: =ROUNDUP(IF(H9=0,0,H9/(100-F9)*100),1) -> 0 | N9: 0 | O9: =N9*M9 -> 0 | P9: 1 | V9: 15.75 | X9: bloquez l'activation des macro (seulement pour coller)
B10: =IF(I8=0,0,I10/I8) -> 0 | G10: 0 | H10: 0 | I10: 0 | J10: =J8 -> 100 | K10: =K8 -> 3500 | L10: 0 | M10: 0 | N10: 1 | O10: 0 | P10: 2 | V10: 15.75 | X10: Cliquez sur
B11: =IF(I8=0,0,I11/I8) -> 0 | G11: 0 | H11: 0 | I11: 0 | J11: =J8 -> 100 | K11: =K8 -> 3500 | L11: 0 | M11: 0 | N11: 0 | O11: 0 | P11: 3 | V11: 15.75 | X11: 1 -Outils
B12: =IF(I8=0,0,I12/I8) -> 0 | G12: 0 | H12: 0 | I12: 0 | J12: =J8 -> 100 | K12: =K8 -> 3500 | L12: 0 | M12: 0 | N12: 1 | O12: 0 | P12: 4 | V12: 15.75 | X12: 2 -Macro
B13: =IF(I8=0,0,I13/I8) -> 0 | G13: 0 | H13: 0 | I13: 0 | J13: =J8 -> 100 | K13: =K8 -> 3500 | L13: 0 | M13: 0 | N13: 1 | O13: 0 | P13: 5 | V13: 15.75 | X13: 3 -Sécurité
B14: =IF(I8=0,0,I14/I8) -> 0 | G14: 0 | H14: 0 | I14: 0 | J14: =J8 -> 100 | K14: =K8 -> 3500 | L14: 0 | M14: 0 | N14: 1 | O14: 0 | P14: 6 | V14: 15.75 | X14: 4 Niveau de sécurité très élevé
B15: =IF(I8=0,0,I15/I8) -> 0 | G15: 0 | H15: 0 | I15: 0 | J15: =J8 -> 100 | K15: =K8 -> 3500 | L15: 0 | M15: 0 | N15: 1 | O15: 0 | P15: 7 | V15: 15.75 | Y15: Enregistrez -
B16: =IF(I8=0,0,I16/I8) -> 0 | G16: 0 | H16: 0 | I16: 0 | J16: =J8 -> 100 | K16: =K8 -> 3500 | L16: 0 | M16: 0 | N16: 1 | O16: 0 | P16: 8 | V16: 15.75 | Y16: fermez le classeur
B17: =IF(I8=0,0,I17/I8) -> 0 | G17: 0 | H17: 0 | I17: 0 | J17: =J8 -> 100 | K17: =K8 -> 3500 | L17: 0 | M17: 0 | N17: 1 | O17: 0 | P17: 9 | V17: 15.75 | Y17: puis ouvrez le pour travailler
B18: =IF(I8=0,0,I18/I8) -> 0 | G18: 0 | H18: 0 | I18: 0 | J18: =J8 -> 100 | K18: =K8 -> 3500 | L18: 0 | M18: 0 | N18: 1 | O18: 0 | P18: 10 | V18: 15.75 | X18: Lorsque vous avez fini
B19: =IF(I8=0,0,I19/I8) -> 0 | G19: 0 | H19: 0 | I19: 0 | J19: =J8 -> 100 | K19: =K8 -> 3500 | L19: 0 | M19: 0 | N19: 0 | O19: 0 | P19: 11 | V19: 15.75 | Y19: 1 -Outils
B20: =IF(I8=0,0,I20/I8) -> 0 | F20: 0 | G20: 0 | H20: 0 | I20: 0 | J20: =J8 -> 100 | K20: =K8 -> 3500 | L20: 0 | M20: 0 | N20: 0 | O20: 0 | P20: 12 | V20: 15.75 | Y20: 2 -Macro
B21: =IF(I8=0,0,I21/I8) -> 0 | G21: 0 | H21: 0 | I21: 0 | J21: =J8 -> 100 | K21: =K8 -> 3500 | L21: 0 | M21: 0 | N21: 0 | O21: 0 | P21: 13 | V21: 15.75 | Y21: 3 -Sécurité
B22: =IF(I8=0,0,I22/I8) -> 0 | G22: 0 | H22: 0 | I22: 0 | J22: =J8 -> 100 | K22: =K8 -> 3500 | L22: 0 | M22: 0 | N22: 1 | O22: 0 | P22: 14 | V22: 15.75 | Y22: 4 Niveau de sécurité moyen
B23: =IF(I8=0,0,I23/I8) -> 0 | G23: 0 | H23: 0 | I23: 0 | J23: =J8 -> 100 | K23: =K8 -> 3500 | L23: 0 | M23: 0 | N23: 1 | O23: 0 | P23: 15 | V23: 15.75 | X23: Enregistrez -
B24: =IF(I8=0,0,I24/I8) -> 0 | G24: 0 | H24: 0 | I24: 0 | J24: =J8 -> 100 | K24: =K8 -> 3500 | L24: 0 | M24: 0 | N24: 1 | O24: 0 | P24: 16 | V24: 15.75 | X24: fermez le classeur
B25: =IF(I8=0,0,I25/I8) -> 0 | G25: 0 | H25: 0 | I25: 0 | J25: =J8 -> 100 | K25: =K8 -> 3500 | L25: 0 | M25: 0 | N25: 1 | O25: 0 | P25: 17 | V25: 15.75 | X25: puis ouvrez le pour l'utilisation
B26: =IF(I8=0,0,I26/I8) -> 0 | G26: 0 | H26: 0 | I26: 0 | J26: =J8 -> 100 | K26: =K8 -> 3500 | L26: 0 | M26: 0 | N26: 0 | O26: 0 | P26: 18 | V26: 15.75 | X26: en cliquant sur Activer les macros
B27: =IF(I8=0,0,I27/I8) -> 0 | G27: 0 | H27: 0 | I27: 0 | J27: =J8 -> 100 | K27: =K8 -> 3500 | L27: 0 | M27: 0 | N27: 0 | O27: 0 | P27: 19 | V27: 15.75
B28: =IF(I8=0,0,I28/I8) -> 0 | G28: 0 | H28: 0 | I28: 0 | J28: =J8 -> 100 | K28: =K8 -> 3500 | L28: 0 | M28: 0 | N28: 1 | O28: 0 | P28: 20 | V28: 15.75 | X28: ATTENTION : enregistrer sous xlsx supprime les mises en formes conditionnelles et les macrox
B29: =IF(I8=0,0,I29/I8) -> 0 | G29: 0 | H29: 0 | I29: 0 | J29: =J8 -> 100 | K29: =K8 -> 3500 | L29: 0 | M29: 0 | N29: 0 | O29: 0 | P29: 21 | V29: 15.75
B30: =IF(I8=0,0,I30/I8) -> 0 | G30: 0 | H30: 0 | I30: 0 | J30: =J8 -> 100 | K30: =K8 -> 3500 | L30: 0 | M30: 0 | N30: 1 | O30: 0 | P30: 22 | V30: 15.75 | X30: Différence entre un fichier XLS et XLSX (ou XLSM)
B31: =IF(I8=0,0,I31/I8) -> 0 | G31: 0 | H31: 0 | I31: 0 | J31: =J8 -> 100 | K31: =K8 -> 3500 | L31: 0 | M31: 0 | N31: 1 | O31: 0 | P31: 23 | V31: 15.75
B32: =IF(I8=0,0,I32/I8) -> 0 | G32: 0 | H32: 0 | I32: 0 | J32: =J8 -> 100 | K32: =K8 -> 3500 | L32: 0 | M32: 0 | N32: 1 | O32: 0 | P32: 24 | V32: 15.75
B33: =IF(I8=0,0,I33/I8) -> 0 | G33: 0 | H33: 0 | I33: 0 | J33: =J8 -> 100 | K33: =K8 -> 3500 | L33: 0 | M33: 0 | N33: 1 | O33: 0 | P33: 25 | V33: 15.75
B34: =IF(I8=0,0,I34/I8) -> 0 | G34: 0 | H34: 0 | I34: 0 | J34: =J8 -> 100 | K34: =K8 -> 3500 | L34: 0 | M34: 0 | N34: 1 | O34: 0 | P34: 26 | V34: 15.75
B35: =IF(I8=0,0,I35/I8) -> 0 | G35: 0 | H35: 0 | I35: 0 | J35: =J8 -> 100 | K35: =K8 -> 3500 | L35: 0 | M35: 0 | N35: 1 | O35: 0 | P35: 27 | V35: 15.75
B36: =IF(I8=0,0,I36/I8) -> 0 | G36: 0 | H36: 0 | I36: 0 | J36: =J8 -> 100 | K36: =K8 -> 3500 | L36: 0 | M36: 0 | N36: 1 | O36: 0 | P36: 28 | V36: 15.75
B37: =IF(I8=0,0,I37/I8) -> 0 | G37: 0 | H37: 0 | I37: 0 | J37: =J8 -> 100 | K37: =K8 -> 3500 | L37: 0 | M37: 0 | N37: 1 | O37: 0 | P37: 29 | V37: 15.75
B38: =IF(I8=0,0,I38/I8) -> 0 | G38: 0 | H38: 0 | I38: 0 | J38: =J8 -> 100 | K38: =K8 -> 3500 | L38: 0 | M38: 0 | N38: 1 | O38: 0 | P38: 30 | V38: 15.75
B39: =IF(I8=0,0,I39/I8) -> 0 | G39: 0 | H39: 0 | I39: 0 | J39: =J8 -> 100 | K39: =K8 -> 3500 | L39: 0 | M39: 0 | N39: 0 | O39: 0 | P39: 31 | V39: 15.75
B40: =IF(I8=0,0,I40/I8) -> 0 | G40: 0 | H40: 0 | I40: 0 | J40: =J8 -> 100 | K40: =K8 -> 3500 | L40: 0 | M40: 0 | N40: 0 | O40: 0 | P40: 32 | V40: 15.75
B41: =IF(I8=0,0,I41/I8) -> 0 | G41: =D41-(D41*F41%) -> 0 | H41: =IF(G41=0,0,(G41/J41)*K41) -> 0 | I41: =ROUNDUP(H41,1) -> 0 | J41: =J8 -> 100 | K41: =K8 -> 3500 | L41: 0 | M41: =ROUNDUP(IF(H41=0,0,H41/(100-F41)*100),1) -> 0 | N41: 0 | O41: =N41*M41 -> 0 | P41: 33 | V41: 15.75
B42: =IF(I8=0,0,I42/I8) -> 0 | G42: 0 | H42: 0 | I42: 0 | J42: =J8 -> 100 | K42: =K8 -> 3500 | L42: 0 | M42: 0 | N42: 0 | O42: 0 | P42: 34 | V42: 15.75
B43: =IF(I8=0,0,I43/I8) -> 0 | G43: 0 | H43: 0 | I43: 0 | J43: =J8 -> 100 | K43: =K8 -> 3500 | L43: 0 | M43: 0 | N43: 0 | O43: 0 | P43: 35 | V43: 15.75
B44: =IF(I8=0,0,I44/I8) -> 0 | G44: 0 | H44: 0 | I44: 0 | J44: =J8 -> 100 | K44: =K8 -> 3500 | L44: 0 | M44: 0 | N44: 0 | O44: 0 | P44: 36 | V44: 15.75
B45: =IF(I8=0,0,I45/I8) -> 0 | G45: 0 | H45: 0 | I45: 0 | J45: =J8 -> 100 | K45: =K8 -> 3500 | L45: 0 | M45: 0 | N45: 0 | O45: 0 | P45: 37 | V45: 15.75
B46: =IF(I8=0,0,I46/I8) -> 0 | G46: 0 | H46: 0 | I46: 0 | J46: =J8 -> 100 | K46: =K8 -> 3500 | L46: 0 | M46: 0 | N46: 0 | O46: 0 | P46: 38 | V46: 15.75
B47: =IF(I8=0,0,I47/I8) -> 0 | G47: 0 | H47: 0 | I47: 0 | J47: =J8 -> 100 | K47: =K8 -> 3500 | L47: 0 | M47: 0 | N47: 0 | O47: 0 | P47: 39 | V47: 15.75
B48: =IF(I8=0,0,I48/I8) -> 0 | G48: 0 | H48: 0 | I48: 0 | J48: =J8 -> 100 | K48: =K8 -> 3500 | L48: 0 | M48: 0 | N48: 0 | O48: 0 | P48: 40 | V48: 15.75
B49: =IF(I8=0,0,I49/I8) -> 0 | G49: 0 | H49: 0 | I49: 0 | J49: =J8 -> 100 | K49: =K8 -> 3500 | L49: 0 | M49: 0 | N49: 0 | O49: 0 | P49: 41 | V49: 15.75
B50: =IF(I8=0,0,I50/I8) -> 0 | G50: 0 | H50: 0 | I50: 0 | J50: =J8 -> 100 | K50: =K8 -> 3500 | L50: 0 | M50: 0 | N50: 0 | O50: 0 | P50: 42 | V50: 15.75
B51: =IF(I8=0,0,I51/I8) -> 0 | G51: 0 | H51: 0 | I51: 0 | J51: =J8 -> 100 | K51: =K8 -> 3500 | L51: 0 | M51: 0 | N51: 0 | O51: 0 | P51: 43 | V51: 15.75
B52: =IF(I8=0,0,I52/I8) -> 0 | G52: 0 | H52: 0 | I52: 0 | J52: =J8 -> 100 | K52: =K8 -> 3500 | L52: 0 | M52: 0 | N52: 0 | O52: 0 | P52: 44 | V52: 15.75
B53: =IF(I8=0,0,I53/I8) -> 0 | G53: 0 | H53: 0 | I53: 0 | J53: =J8 -> 100 | K53: =K8 -> 3500 | L53: 0 | M53: 0 | N53: 0 | O53: 0 | P53: 45 | V53: 15.75
B54: =IF(I8=0,0,I54/I8) -> 0 | G54: 0 | H54: 0 | I54: 0 | J54: =J8 -> 100 | K54: =K8 -> 3500 | L54: 0 | M54: 0 | N54: 0 | O54: 0 | P54: 46 | V54: 15.75
B55: =IF(I8=0,0,I55/I8) -> 0 | G55: 0 | H55: 0 | I55: 0 | J55: =J8 -> 100 | K55: =K8 -> 3500 | L55: 0 | M55: 0 | N55: 0 | O55: 0 | P55: 47 | V55: 15.75
B56: =IF(I8=0,0,I56/I8) -> 0 | G56: 0 | H56: 0 | I56: 0 | J56: =J8 -> 100 | K56: =K8 -> 3500 | L56: 0 | M56: 0 | N56: 0 | O56: 0 | P56: 48 | V56: 15.75
B57: =IF(I8=0,0,I57/I8) -> 0 | G57: 0 | H57: 0 | I57: 0 | J57: =J8 -> 100 | K57: =K8 -> 3500 | L57: 0 | M57: 0 | N57: 0 | O57: 0 | P57: 49 | V57: 15.75
B58: =IF(I8=0,0,I58/I8) -> 0 | G58: 0 | H58: 0 | I58: 0 | J58: =J8 -> 100 | K58: =K8 -> 3500 | L58: 0 | M58: 0 | N58: 0 | O58: 0 | P58: 50 | V58: 15.75
B59: =IF(I8=0,0,I59/I8) -> 0 | G59: 0 | H59: 0 | I59: 0 | J59: =J8 -> 100 | K59: =K8 -> 3500 | L59: 0 | M59: 0 | N59: 0 | O59: 0 | P59: 51 | V59: 15.75
B60: =IF(I8=0,0,I60/I8) -> 0 | G60: 0 | H60: 0 | I60: 0 | J60: =J8 -> 100 | K60: =K8 -> 3500 | L60: 0 | M60: 0 | N60: 0 | O60: 0 | P60: 52 | V60: 15.75
B61: =IF(I8=0,0,I61/I8) -> 0 | G61: 0 | H61: 0 | I61: 0 | J61: =J8 -> 100 | K61: =K8 -> 3500 | L61: 0 | M61: 0 | N61: 0 | O61: 0 | P61: 53 | V61: 15.75
B62: =IF(I8=0,0,I62/I8) -> 0 | G62: 0 | H62: 0 | I62: 0 | J62: =J8 -> 100 | K62: =K8 -> 3500 | L62: 0 | M62: 0 | N62: 0 | O62: 0 | P62: 54 | V62: 15.75
B63: =IF(I8=0,0,I63/I8) -> 0 | G63: 0 | H63: 0 | I63: 0 | J63: =J8 -> 100 | K63: =K8 -> 3500 | L63: 0 | M63: 0 | N63: 0 | O63: 0 | P63: 55 | Q63: 0 | V63: 15.75
B64: =IF(I8=0,0,I64/I8) -> 0 | G64: 0 | H64: 0 | I64: 0 | J64: =J8 -> 100 | K64: =K8 -> 3500 | L64: 0 | M64: 0 | N64: 0 | O64: 0 | P64: 56 | Q64: 0 | V64: 15.75
B65: =SUM(B9:B64) -> 0 | D65: 0 | E65: 0 | F65: 0 | G65: 0 | H65: 0 | I65: 0 | J65: =J8 -> 100 | K65: =K8 -> 3500 | L65: 0 | M65: =IF(H65=0,0,H65/(100-F65)*100) -> 0 | O65: 0 | P65: 0 | Q65: 0 | R65: Contenances | S65: 1Gastro 1/1 | T65: 1 Sauteuse | V65: 15.75
B66: NOM DE VOTRE RESTAURANT ICI | P66: 0 | Q66: 0 | R66: Produit de base recette | S66: 0 | T66: 0 | V66: 15.75
B67: OBSERVATIONS ou principales étapes de fabrication adaptées à votre organisation | P67: 0 | Q67: 0 | R67: Sauce ou garniture | S67: 0 | T67: 0 | V67: 15.75
B68: 1 | C68: 0 | P68: 0 | Q68: 0 | R68: Total dans 1 contenant | S68: 0 | T68: 0 | V68: 15.75
B69: 2 | C69: 0 | P69: 0 | Q69: 0 | R69: Dans 1 four ou sauteuse | S69: 0 | T69: 0 | V69: 15.75
B70: 3 | C70: 0 | P70: 0 | Q70: 0 | R70: Température | S70: Temps | T70: Mode fonction | V70: 15.75
B71: 4 | C71: 0 | P71: 0 | Q71: Rissolage | R71: 0 | S71: 0 | T71: 0 | V71: 15.75
B72: 5 | C72: 0 | P72: 0 | Q72: Cuisson 1 | R72: 0 | S72: 0 | T72: 0 | V72: 15.75
B73: 6 | C73: 0 | P73: 0 | Q73: Cuisson 2 | R73: 0 | S73: 0 | T73: 0 | V73: 15.75
B74: 7 | C74: 0 | P74: 0 | Q74: Cuisson 3 | R74: 0 | S74: 0 | T74: 0 | V74: 15.75
B75: 8 | C75: 0 | P75: 0 | Q75: A Cœur | R75: 0 | S75: Liaison froide | T75: 1 | V75: 15.75
B76: 9 | C76: 0 | O76: impression Portrait | P76: 0 | Q76: A Cœur | R76: 0 | S76: Liaison Chaude | T76: impression Portrait | V76: 24
B77: GUIDE DE CUISSON et Remise en température ( R.E.T.) | P77: CONSEILS HYGIÈNE | V77: 23.75
B78: Phase | C78: Actions | D78: Mode de Fonctionnement | F78: Température du four | G78: % Humidité | H78: Temps | I78: A Cœur du produit liaison froide 1 / chaude 2 | K78: % perte | L78: 0 | M78: Observations | P78: Les points à risque | S78: Les mesures préventives | V78: 36.75
B79: N° 1 | C79: Préchauffage | D79: 0 | F79: 0 | G79: 0 | H79: 00:00:00 | I79: 0 | J79: 0 | K79: 0 | L79: 0 | M79: 00:00:00 | P79: 0 | S79: 0 | V79: 15
B80: N° 2 | C80: Cuisson | D80: 0 | F80: 0 | G80: 0 | H80: 00:00:00 | I80: 0 | J80: 0 | K80: 0 | L80: 0 | M80: 00:00:00 | P80: 0 | S80: 0 | V80: 15
B81: N° 3 | C81: Cuisson | D81: 0 | F81: 0 | G81: 0 | H81: 00:00:00 | I81: 0 | J81: 0 | K81: 0 | L81: 0 | M81: 00:00:00 | P81: 0 | S81: 0 | V81: 15
B82: N° 4 | C82: Régénération banquet | D82: 0 | F82: 0 | G82: 0 | H82: 00:00:00 | I82: 0 | J82: 0 | K82: 0 | L82: 0 | M82: 00:00:00 | P82: 0 | S82: 0 | V82: 15
C83: Conseils et suggestions : | D83: Préchauffage: 30 à 50° au dessus de la température de cuisson selon la quantité enfournée | P83: 0 | S83: 0 | V83: 17.25
C84: L'Auteur à prévu sa recette pour : | D84: 0 | F84: Portion Auteur | G84: =G8/B85 -> 0.01 | I84: Net à fabriquer | J84: =(G86*G85)+(H86*H85)+(I86*I85)+(M86*M85) -> 114 | O84: 0 | P84: 0 | S84: 0 | V84: 17.25
B85: =+F5 -> 100 | C85: =F6 -> couverts | F85: Saisissez vos effectifs | G85: 120 | H85: 500 | I85: 150 | J85: Masquer les colonnes | L85: 0 | M85: 13 | N85: =SUM(G85:M85) -> 783 | P85: 0 | S85: 0 | V85: 17.25
C86: Avec vos effectifs et grammages | F86: et vos grammages | G86: 0.12 | H86: 0.14 | I86: 0.18 | J86: 0 | K86: 0 | L86: 0 | M86: 0.2 | N86: 0 | O86: 0 | P86: 0 | S86: 0 | V86: 17.25
C87: Dupliquez la recette de l' Auteur par : | D87: 0 | E87: 0 | F87: 0 | G87: Mater | H87: Prim | I87: Adultes | J87: 0 | K87: 0 | L87: 0 | M87: Adultes + | N87: % de perte | O87: 35 | P87: 0 | S87: 0 | V87: 17.25
B88: 0 | C88: =J84/G84 -> 11400 | D88: 0 | F88: Net à servir : | G88: =G86*G85 -> 14.4 | H88: =H86*H85 -> 70 | I88: =I86*I85 -> 27 | J88: 0 | K88: 0 | L88: 0 | M88: =M86*M85 -> 2.6 | N88: BRUT A COMMANDER | P88: 0 | S88: 0 | V88: 17.25
B89: Perte: | C89: =N89-J84 -> 61.38461538 | F89: Brut à Commander | G89: =G88/(100-O87)*100 -> 22.15384615 | H89: =H88/(100-O87)*100 -> 107.6923077 | I89: =I88/(100-O87)*100 -> 41.53846154 | L89: 0 | M89: =M88/(100-O87)*100 -> 4 | N89: =J84/(100-O87)*100 -> 175.3846154 | V89: 17.25
C90: 0 | D90: 0 | E90: 0 | F90: 0 | G90: 0 | H90: 0 | I90: 0 | J90: 0 | K90: 0 | L90: 0 | M90: 0 | N90: 0 | O90: impression Portrait | P90: 0 | Q90: 0 | R90: 0 | S90: 0 | T90: impression Portrait | V90: 17.25
B92: 6.14 | C92: 30 | D92: 6.57 | E92: 9 | F92: 11 | G92: 8.86 | H92: 10.29 | I92: 9.57 | J92: 4.86 | K92: 4.86 | L92: 1.14 | M92: 8 | N92: 7.86 | O92: 9.43 | P92: 4 | Q92: 26.57 | R92: 24 | S92: 24.43 | T92: 17 | V92: 17
C93: Bonne utilisation
C94: Joel Leboucher Cuisine Centrale de Rochefort sur mer

Sheet FF.4_Exemple collectivité
B1: ICI | C1: LES PLATS COMPLETS | D1: Mode de cuisson | O1: Grosmann et Le franc la cuisine de collectivité BPI 2007 | P1: =C1 -> LES PLATS COMPLETS | V1: Hauteurs de lignes
B2: =CELL("nomfichier") -> E:\0-UPRT\1-UPRT.FR-SITE-WEB\ff-fiches-fabrications\ff-fiches-fabrication-maj-08-2020\[ff-4-collectivite-avec-macro.xlsm]Formats-Formules-Fonctions | P2: =O1 -> Grosmann et Le franc la cuisine de collectivité BPI 2007 | V2: 36
N3: HARICOT DE MOUTON OU CASSOULET TOULOUSAIN | O3: N°12 | P3: =N3 -> HARICOT DE MOUTON OU CASSOULET TOULOUSAIN | T3: =O3 -> N°12 | V3: 20.25
B4: Adresse WEB | C4: Collez à la place de ce texte l'adresse internet de votre recette.Puis positionnez vous à la fin de HTM et cliquez sur entrée pour valider cette adresse | V4: 21
B5: Modèle | E5: La recette a été prévue pour: | F5: 100 | G5: Vous voulez la dupliquer pour: | I5: 3500 | J5: 0 | K5: 0 | L5: 0 | M5: Recette éditée le : | P5: RECETTE DUPLIQUÉE POUR: | R5: =I5 -> 3500 | S5: =F6 -> couverts | V5: 32.25
B6: FF.4 | E6: Unités : couverts -Kglitre Produit etc.. | F6: couverts | J6: 0 | K6: 0 | L6: 0 | M6: =NOW() -> 2021-12-15T11:26:41.450 | V6: 25.5
B7: =MID(CELL("filename",B7),FIND("[",CELL("filename",B7)),300) -> [ff-4-collectivite-avec-macro.xlsm]FF.4_Exemple collectivité | D7: Poids | E7: UNITE | F7: % Perte | G7: Net Auteur | H7: NET à fabriquer | I7: Net Arrondi | J7: Masquer les colonnes | L7: 0 | M7: BRUT | N7: Prix unitaire | O7: Prix de Revient | V7: 24.75 | X7: A LIRE
B8: % | C8: PRODUITS | D8: =SUM(D9:D65) -> 78.365 | E8: 0 | F8: =IF(M8=0,0,(M8-I8)/M8*100) -> 19.46115425 | G8: =IF(SUM(G9:G65)=0,1,SUM(G9:G65)) -> 63.115 | H8: =SUM(H9:H65) -> 2209.025 | I8: =SUM(I9:I65) -> 2209.1 | J8: =F5 -> 100 | K8: =I5 -> 3500 | L8: 0 | M8: =SUM(M9:M65) -> 2742.9 | N8: =O8/I5 -> 0.6736857143 | O8: =SUM(O9:O65) -> 2357.9 | P8: 0 | Q8: ORGANISATION RAISONNÉE DU TRAVAIL ET HACCP | V8: 18 | X8: Pour COLLER du texte ou des formules dans cette feuille:
B9: =IF(I8=0,0,I9/I8) -> 0 | C9: POUR 100 COUVERTS | F9: 0 | G9: =D9-(D9*F9%) -> 0 | H9: =IF(G9=0,0,(G9/J9)*K9) -> 0 | I9: =ROUNDUP(H9,1) -> 0 | J9: =J8 -> 100 | K9: =K8 -> 3500 | L9: 0 | M9: =ROUNDUP(IF(H9=0,0,H9/(100-F9)*100),1) -> 0 | N9: 0 | O9: =N9*M9 -> 0 | P9: 1 | Q9: 1 Mise en place du poste de travail | V9: 15.75 | X9: bloquez l'activation des macro (seulement pour coller)
B10: =IF(I8=0,0,I10/I8) -> 0.1330858721 | C10: Navarin d'agneau 14 kg | D10: 14 | E10: kg | F10: 40 | G10: 8.4 | H10: 294 | I10: 294 | J10: =J8 -> 100 | K10: =K8 -> 3500 | L10: 0 | M10: 490 | N10: 1 | O10: 490 | P10: 2 | Q10: Vérifier les D.L.C., peser les denrées, sélectionner le matériel nécessaire. | V10: 15.75 | X10: Cliquez sur
B11: =IF(I8=0,0,I11/I8) -> 0 | C11: Éléments pour la cuisson du navarin | D11: 0 | E11: 0 | F11: 0 | G11: 0 | H11: 0 | I11: 0 | J11: =J8 -> 100 | K11: =K8 -> 3500 | L11: 0 | M11: 0 | N11: 0 | O11: 0 | P11: 3 | Q11: Laver et désinfecter le matériel et le poste de travail en suivant les protocoles. | V11: 15.75 | X11: 1 -Outils
B12: =IF(I8=0,0,I12/I8) -> 0.0316871124 | C12: Oignons 4 kg | D12: 4 | E12: kg | F12: 50 | G12: 2 | H12: 70 | I12: 70 | J12: =J8 -> 100 | K12: =K8 -> 3500 | L12: 0 | M12: 140 | N12: 1 | O12: 140 | P12: 4 | Q12: 2 Préparations préliminaires | V12: 15.75 | X12: 2 -Macro
B13: =IF(I8=0,0,I13/I8) -> 0.0158435562 | C13: Concentré de tomate 1 bte 4/4 | D13: 1 | E13: boite | F13: 0 | G13: 1 | H13: 35 | I13: 35 | J13: =J8 -> 100 | K13: =K8 -> 3500 | L13: 0 | M13: 35 | N13: 1 | O13: 35 | P13: 5 | Q13: La veille : faire tremper les haricots. | V13: 15.75 | X13: 3 -Sécurité
B14: =IF(I8=0,0,I14/I8) -> 0.00316871124 | C14: Ail haché surgelé 200 g | D14: 0.2 | E14: kg | F14: 0 | G14: 0.2 | H14: 7 | I14: 7 | J14: =J8 -> 100 | K14: =K8 -> 3500 | L14: 0 | M14: 7 | N14: 1 | O14: 7 | P14: 6 | Q14: Déconditionner les dés de tomates surgelés suivant la procédure. Réserver. | V14: 15.75 | X14: 4 Niveau de sécurité très élevé
B15: =IF(I8=0,0,I15/I8) -> 0.0079217781 | C15: Farine 500 g | D15: 0.5 | E15: kg | F15: 0 | G15: 0.5 | H15: 17.5 | I15: 17.5 | J15: =J8 -> 100 | K15: =K8 -> 3500 | L15: 0 | M15: 17.5 | N15: 1 | O15: 17.5 | P15: 7 | Q15: Laver et désinfecter les végétaux, suivant la procédure. Réserver au froid. | V15: 15.75 | Y15: Enregistrez -
B16: =IF(I8=0,0,I16/I8) -> 0.0158435562 | C16: Bouquet garni 1 | D16: 1 | E16: pièce | F16: 0 | G16: 1 | H16: 35 | I16: 35 | J16: =J8 -> 100 | K16: =K8 -> 3500 | L16: 0 | M16: 35 | N16: 1 | O16: 35 | P16: 8 | Q16: confectionner un bouquet garni, Piquer un oignon avec les clous de girofle | V16: 15.75 | Y16: fermez le classeur
B17: =IF(I8=0,0,I17/I8) -> 0.1901226744 | C17: Fond brun clair de veau .121. | D17: 12 | E17: litres | F17: 0 | G17: 12 | H17: 420 | I17: 420 | J17: =J8 -> 100 | K17: =K8 -> 3500 | L17: 0 | M17: 420 | N17: 1 | O17: 420 | P17: 9 | Q17: Hacher les 4 kg d'oignons. Réserver. | V17: 15.75 | Y17: puis ouvrez le pour travailler
B18: =IF(I8=0,0,I18/I8) -> 0.0158435562 | C18: Haricots blancs (coco) 1 kg | D18: 1 | E18: kg | F18: 0 | G18: 1 | H18: 35 | I18: 35 | J18: =J8 -> 100 | K18: =K8 -> 3500 | L18: 0 | M18: 35 | N18: 1 | O18: 35 | P18: 10 | Q18: Détailler en lardons la poitrine fraîche. Réserver au froid. | V18: 15.75 | X18: Lorsque vous avez fini
B19: =IF(I8=0,0,I19/I8) -> 0 | D19: 0 | E19: 0 | F19: 0 | G19: 0 | H19: 0 | I19: 0 | J19: =J8 -> 100 | K19: =K8 -> 3500 | L19: 0 | M19: 0 | N19: 0 | O19: 0 | P19: 11 | Q19: Trancher le saucisson à l'ail en rondelles. Réserver au froid. | V19: 15.75 | Y19: 1 -Outils
B20: =IF(I8=0,0,I20/I8) -> 0 | C20: Éléments de la garniture aromatique des | F20: 0 | G20: 0 | H20: 0 | I20: 0 | J20: =J8 -> 100 | K20: =K8 -> 3500 | L20: 0 | M20: 0 | N20: 0 | O20: 0 | P20: 12 | Q20: 3 Marquer la cuisson du navarin | V20: 15.75 | Y20: 2 -Macro
B21: =IF(I8=0,0,I21/I8) -> 0 | C21: haricots | D21: 0 | E21: 0 | F21: 0 | G21: 0 | H21: 0 | I21: 0 | J21: =J8 -> 100 | K21: =K8 -> 3500 | L21: 0 | M21: 0 | N21: 0 | O21: 0 | P21: 13 | Q21: Marquer la cuisson du navarin en se référant à la fiche technique de fabrication au | V21: 15.75 | Y21: 3 -Sécurité
B22: =IF(I8=0,0,I22/I8) -> 0.0079217781 | C22: Oignons 1 kg | D22: 1 | E22: kg | F22: 50 | G22: 0.5 | H22: 17.5 | I22: 17.5 | J22: =J8 -> 100 | K22: =K8 -> 3500 | L22: 0 | M22: 35 | N22: 1 | O22: 35 | P22: 14 | Q22: chapitre des viandes. | V22: 15.75 | Y22: 4 Niveau de sécurité moyen
B23: =IF(I8=0,0,I23/I8) -> 0.01267484496 | C23: Carottes 1 kg | D23: 1 | E23: kg | F23: 20 | G23: 0.8 | H23: 28 | I23: 28 | J23: =J8 -> 100 | K23: =K8 -> 3500 | L23: 0 | M23: 35 | N23: 1 | O23: 35 | P23: 15 | Q23: 4 Marquer la cuisson des haricots | V23: 15.75 | X23: Enregistrez -
B24: =IF(I8=0,0,I24/I8) -> 0.0158435562 | C24: Bouquet garni 1 | D24: 1 | E24: pièces | F24: 0 | G24: 1 | H24: 35 | I24: 35 | J24: =J8 -> 100 | K24: =K8 -> 3500 | L24: 0 | M24: 35 | N24: 1 | O24: 35 | P24: 16 | Q24: Prévoir de faire tremper les haricots dans la marmite de cuisson le temps nécessaire | V24: 15.75 | X24: fermez le classeur
B25: =IF(I8=0,0,I25/I8) -> 0.1901226744 | C25: Clous de girofle ...12 pièces | D25: 12 | E25: pièces | F25: 0 | G25: 12 | H25: 420 | I25: 420 | J25: =J8 -> 100 | K25: =K8 -> 3500 | L25: 0 | M25: 420 | N25: 1 | O25: 420 | P25: 17 | Q25: Avant la cuisson, rincer plusieurs fois les haricots, en éliminant l'eau par la bonde | V25: 15.75 | X25: puis ouvrez le pour l'utilisation
B26: =IF(I8=0,0,I26/I8) -> 0 | D26: 0 | E26: 0 | F26: 0 | G26: 0 | H26: 0 | I26: 0 | J26: =J8 -> 100 | K26: =K8 -> 3500 | L26: 0 | M26: 0 | N26: 0 | O26: 0 | P26: 18 | Q26: du robinet. | V26: 15.75 | X26: en cliquant sur Activer les macros
B27: =IF(I8=0,0,I27/I8) -> 0 | C27: Éléments de la garniture du cassoulet | G27: 0 | H27: 0 | I27: 0 | J27: =J8 -> 100 | K27: =K8 -> 3500 | L27: 0 | M27: 0 | N27: 0 | O27: 0 | P27: 19 | Q27: Couvrir largement d'eau froide les haricots. Porter à ébullition. | V27: 15.75
B28: =IF(I8=0,0,I28/I8) -> 0.03802453488 | C28: Poitrine fraîche . .4 kg | D28: 4 | E28: kg | F28: 40 | G28: 2.4 | H28: 84 | I28: 84 | J28: =J8 -> 100 | K28: =K8 -> 3500 | L28: 0 | M28: 140 | N28: 1 | O28: 140 | P28: 20 | Q28: Écumer à l'aide d'une écumoire. Ajouter la garniture aromatique. Écumer à nouveau | V28: 15.75
B29: =IF(I8=0,0,I29/I8) -> 0 | C29: Saucisson à l'ail | D29: 0 | E29: 0 | F29: 0 | G29: 0 | H29: 0 | I29: 0 | J29: =J8 -> 100 | K29: =K8 -> 3500 | L29: 0 | M29: 0 | N29: 0 | O29: 0 | P29: 21 | Q29: Cuire doucement. Saler aux 3/4 de la cuisson. Vérifier la cuisson. | V29: 15.75
B30: =IF(I8=0,0,I30/I8) -> 0.05069937984 | C30: ou saucisse de Toulouse ...4 kg | D30: 4 | E30: 0 | F30: 20 | G30: 3.2 | H30: 112 | I30: 112 | J30: =J8 -> 100 | K30: =K8 -> 3500 | L30: 0 | M30: 140 | N30: 1 | O30: 140 | P30: 22 | V30: 15.75
B31: =IF(I8=0,0,I31/I8) -> 0.0316871124 | C31: Oignons 4 kg | D31: 4 | E31: 0 | F31: 50 | G31: 2 | H31: 70 | I31: 70 | J31: =J8 -> 100 | K31: =K8 -> 3500 | L31: 0 | M31: 140 | N31: 1 | O31: 140 | P31: 23 | V31: 15.75
B32: =IF(I8=0,0,I32/I8) -> 0.0396088905 | C32: Dés de tomates surgelés 5 kg | D32: 5 | E32: 0 | F32: 50 | G32: 2.5 | H32: 87.5 | I32: 87.5 | J32: =J8 -> 100 | K32: =K8 -> 3500 | L32: 0 | M32: 175 | N32: 1 | O32: 175 | P32: 24 | Q32: 5 Assaisonner les haricots | V32: 15.75
B33: =IF(I8=0,0,I33/I8) -> 0.00633742248 | C33: Tomate concentrée 400 g | D33: 0.4 | E33: 0 | F33: 0 | G33: 0.4 | H33: 14 | I33: 14 | J33: =J8 -> 100 | K33: =K8 -> 3500 | L33: 0 | M33: 14 | N33: 1 | O33: 14 | P33: 25 | Q33: Dans la sauteuse, à l'huile, faire revenir les oignons hachés et les lardons. | V33: 15.75
B34: =IF(I8=0,0,I34/I8) -> 0.00316871124 | C34: Ail haché surgelé ........... 250 g | D34: 0.25 | E34: 0 | F34: 20 | G34: 0.2 | H34: 7 | I34: 7 | J34: =J8 -> 100 | K34: =K8 -> 3500 | L34: 0 | M34: 8.8 | N34: 1 | O34: 8.8 | P34: 26 | Q34: Ajouter les dés de tomates surgelés, la tomate concentrée, l'ail haché et l'assai- | V34: 15.75
B35: =IF(I8=0,0,I35/I8) -> 0.0002716038206 | C35: Herbes de Provence 15 g | D35: 0.015 | E35: 0 | F35: 0 | G35: 0.015 | H35: 0.525 | I35: 0.6 | J35: =J8 -> 100 | K35: =K8 -> 3500 | L35: 0 | M35: 0.6 | N35: 1 | O35: 0.6 | P35: 27 | Q35: sonnement. | V35: 15.75
B36: =IF(I8=0,0,I36/I8) -> 0 | C36: Sel quantités suffisantes | D36: 0 | E36: 0 | F36: 0 | G36: 0 | H36: 0 | I36: 0 | J36: =J8 -> 100 | K36: =K8 -> 3500 | L36: 0 | M36: 0 | N36: 1 | O36: 0 | P36: 28 | Q36: Éventuellement, ajouter un peu de fond de cuisson des haricots. | V36: 15.75
B37: =IF(I8=0,0,I37/I8) -> 0 | C37: Poivre quantités suffisantes | D37: 0 | E37: 0 | F37: 0 | G37: 0 | H37: 0 | I37: 0 | J37: =J8 -> 100 | K37: =K8 -> 3500 | L37: 0 | M37: 0 | N37: 1 | O37: 0 | P37: 29 | Q37: Laisser cuire et réduire à feu doux afin d'obtenir la consistance d'une fondue. | V37: 15.75
B38: =IF(I8=0,0,I38/I8) -> 0.0158435562 | C38: Chapelure 1 kg | D38: 1 | E38: 0 | F38: 0 | G38: 1 | H38: 35 | I38: 35 | J38: =J8 -> 100 | K38: =K8 -> 3500 | L38: 0 | M38: 35 | N38: 1 | O38: 35 | P38: 30 | Q38: Dans la sauteuse, ajouter les haricots à la fondue de tomates. Mélanger et lier l'en- | V38: 15.75
B39: =IF(I8=0,0,I39/I8) -> 0 | D39: 0 | E39: 0 | F39: 0 | G39: 0 | H39: 0 | I39: 0 | J39: =J8 -> 100 | K39: =K8 -> 3500 | L39: 0 | M39: 0 | N39: 0 | O39: 0 | P39: 31 | Q39: semble. Rectifier l'assaisonnement. | V39: 15.75
B40: =IF(I8=0,0,I40/I8) -> 0 | C40: MATÉRIELS UTILISÉS | D40: 0 | E40: 0 | F40: 0 | G40: 0 | H40: 0 | I40: 0 | J40: =J8 -> 100 | K40: =K8 -> 3500 | L40: 0 | M40: 0 | N40: 0 | O40: 0 | P40: 32 | Q40: 6 Mélanger le navarin aux haricots | V40: 15.75
B41: =IF(I8=0,0,I41/I8) -> 0.0158435562 | C41: 1 bac GN 1/1 H 100 perforé | D41: 1 | E41: 0 | F41: 0 | G41: 1 | H41: 35 | I41: 35 | J41: =J8 -> 100 | K41: =K8 -> 3500 | L41: 0 | M41: 35 | N41: 0 | O41: 0 | P41: 33 | Q41: Dans la sauteuse, ajouter le navarin d'agneau aux haricots. Mélanger délicate- | V41: 15.75
B42: =IF(I8=0,0,I42/I8) -> 0 | C42: 1 spatule | E42: 0 | F42: 0 | G42: 0 | H42: 0 | I42: 0 | J42: =J8 -> 100 | K42: =K8 -> 3500 | L42: 0 | M42: 0 | N42: 0 | O42: 0 | P42: 34 | Q42: ment les deux éléments à l'aide d'une écumoire. | V42: 15.75
B43: =IF(I8=0,0,I43/I8) -> 0 | C43: 1 écumoire | E43: 0 | F43: 0 | G43: 0 | H43: 0 | I43: 0 | J43: =J8 -> 100 | K43: =K8 -> 3500 | L43: 0 | M43: 0 | N43: 0 | O43: 0 | P43: 35 | Q43: Pour la cuisson du navarin au four en bacs GN 1/1, ajouter directement les haricots | V43: 15.75
B44: =IF(I8=0,0,I44/I8) -> 0 | C44: 2 calottes | E44: 0 | F44: 0 | G44: 0 | H44: 0 | I44: 0 | J44: =J8 -> 100 | K44: =K8 -> 3500 | L44: 0 | M44: 0 | N44: 0 | O44: 0 | P44: 36 | Q44: au navarin cuit dans leurs bacs de cuisson. | V44: 15.75
B45: =IF(I8=0,0,I45/I8) -> 0 | C45: 1 sauteuse | E45: 0 | F45: 0 | G45: 0 | H45: 0 | I45: 0 | J45: =J8 -> 100 | K45: =K8 -> 3500 | L45: 0 | M45: 0 | N45: 0 | O45: 0 | P45: 37 | Q45: Agiter les bacs GN d'un mouvement circulaire pour lier tous les éléments. | V45: 15.75
B46: =IF(I8=0,0,I46/I8) -> 0 | C46: 1 four | D46: 0 | E46: 0 | F46: 0 | G46: 0 | H46: 0 | I46: 0 | J46: =J8 -> 100 | K46: =K8 -> 3500 | L46: 0 | M46: 0 | N46: 0 | O46: 0 | P46: 38 | Q46: 7 Terminer la préparation du cassoulet | V46: 15.75
B47: =IF(I8=0,0,I47/I8) -> 0.079217781 | C47: 5 bacs GN 1 /1 H 100 | D47: 5 | E47: 0 | F47: 0 | G47: 5 | H47: 175 | I47: 175 | J47: =J8 -> 100 | K47: =K8 -> 3500 | L47: 0 | M47: 175 | N47: 0 | O47: 0 | P47: 39 | Q47: Répartir dans les bacs de cassoulet, les rondelles de saucisson à l'ail ou les saucisses | V47: 15.75
B48: =IF(I8=0,0,I48/I8) -> 0.079217781 | C48: 5 couvercles GN 1/1 | D48: 5 | E48: 0 | F48: 0 | G48: 5 | H48: 175 | I48: 175 | J48: =J8 -> 100 | K48: =K8 -> 3500 | L48: 0 | M48: 175 | N48: 0 | O48: 0 | P48: 40 | Q48: de Toulouse préalablement grillées (on peut aussi les chauffer et griller cette garni- | V48: 15.75
B49: =IF(I8=0,0,I49/I8) -> 0 | C49: 0 | D49: 0 | E49: 0 | F49: 0 | G49: 0 | H49: 0 | I49: 0 | J49: =J8 -> 100 | K49: =K8 -> 3500 | L49: 0 | M49: 0 | N49: 0 | O49: 0 | P49: 41 | Q49: ture à part et les réserver en bacs GN, pour faciliter le tri lors du service). | V49: 15.75
B50: =IF(I8=0,0,I50/I8) -> 0 | C50: 0 | D50: 0 | E50: 0 | F50: 0 | G50: 0 | H50: 0 | I50: 0 | J50: =J8 -> 100 | K50: =K8 -> 3500 | L50: 0 | M50: 0 | N50: 0 | O50: 0 | P50: 42 | Q50: Saupoudrer la surface des bacs de cassoulet avec la chapelure. | V50: 15.75
B51: =IF(I8=0,0,I51/I8) -> 0 | C51: 0 | D51: 0 | E51: 0 | F51: 0 | G51: 0 | H51: 0 | I51: 0 | J51: =J8 -> 100 | K51: =K8 -> 3500 | L51: 0 | M51: 0 | N51: 0 | O51: 0 | P51: 43 | Q51: Étager les bacs garnis en les espaçant sur l'échelle de cuisson. | V51: 15.75
B52: =IF(I8=0,0,I52/I8) -> 0 | C52: 0 | D52: 0 | E52: 0 | F52: 0 | G52: 0 | H52: 0 | I52: 0 | J52: =J8 -> 100 | K52: =K8 -> 3500 | L52: 0 | M52: 0 | N52: 0 | O52: 0 | P52: 44 | Q52: Préchauffer le four en position chaleur sèche à la température de + 175 °C. | V52: 15.75
B53: =IF(I8=0,0,I53/I8) -> 0 | C53: 0 | D53: 0 | E53: 0 | F53: 0 | G53: 0 | H53: 0 | I53: 0 | J53: =J8 -> 100 | K53: =K8 -> 3500 | L53: 0 | M53: 0 | N53: 0 | O53: 0 | P53: 45 | Q53: Enfourner. Gratiner. Respecter la procédure de fin de cuisson. Couvrir. | V53: 15.75
B54: =IF(I8=0,0,I54/I8) -> 0 | C54: 0 | D54: 0 | E54: 0 | F54: 0 | G54: 0 | H54: 0 | I54: 0 | J54: =J8 -> 100 | K54: =K8 -> 3500 | L54: 0 | M54: 0 | N54: 0 | O54: 0 | P54: 46 | Q54: Stocker en armoire chaude et maintenir à + 63 °C à coeur, en attente de consom- | V54: 15.75
B55: =IF(I8=0,0,I55/I8) -> 0 | C55: 0 | D55: 0 | E55: 0 | F55: 0 | G55: 0 | H55: 0 | I55: 0 | J55: =J8 -> 100 | K55: =K8 -> 3500 | L55: 0 | M55: 0 | N55: 0 | O55: 0 | P55: 47 | Q55: mation. | V55: 15.75
B56: =IF(I8=0,0,I56/I8) -> 0 | C56: 0 | D56: 0 | E56: 0 | F56: 0 | G56: 0 | H56: 0 | I56: 0 | J56: =J8 -> 100 | K56: =K8 -> 3500 | L56: 0 | M56: 0 | N56: 0 | O56: 0 | P56: 48 | Q56: 8 Servir | V56: 15.75
B57: =IF(I8=0,0,I57/I8) -> 0 | C57: 0 | D57: 0 | E57: 0 | F57: 0 | G57: 0 | H57: 0 | I57: 0 | J57: =J8 -> 100 | K57: =K8 -> 3500 | L57: 0 | M57: 0 | N57: 0 | O57: 0 | P57: 49 | Q57: Servir le cassoulet en prenant soin de mettre en évidence la viande du navarin, la | V57: 15.75
B58: =IF(I8=0,0,I58/I8) -> 0 | C58: 0 | D58: 0 | E58: 0 | F58: 0 | G58: 0 | H58: 0 | I58: 0 | J58: =J8 -> 100 | K58: =K8 -> 3500 | L58: 0 | M58: 0 | N58: 0 | O58: 0 | P58: 50 | Q58: saucisse ou le saucisson. | V58: 15.75
B59: =IF(I8=0,0,I59/I8) -> 0 | C59: 0 | D59: 0 | E59: 0 | F59: 0 | G59: 0 | H59: 0 | I59: 0 | J59: =J8 -> 100 | K59: =K8 -> 3500 | L59: 0 | M59: 0 | N59: 0 | O59: 0 | P59: 51 | Q59: 9 Historique | V59: 15.75
B60: =IF(I8=0,0,I60/I8) -> 0 | C60: 0 | D60: 0 | E60: 0 | F60: 0 | G60: 0 | H60: 0 | I60: 0 | J60: =J8 -> 100 | K60: =K8 -> 3500 | L60: 0 | M60: 0 | N60: 0 | O60: 0 | P60: 52 | Q60: Le halicot de mouton, dont on a fait à tort le haricot de mouton, était un ragoût de | V60: 15.75
B61: =IF(I8=0,0,I61/I8) -> 0 | C61: 0 | D61: 0 | E61: 0 | F61: 0 | G61: 0 | H61: 0 | I61: 0 | J61: =J8 -> 100 | K61: =K8 -> 3500 | L61: 0 | M61: 0 | N61: 0 | O61: 0 | P61: 53 | Q61: mouton aux fèves. | V61: 15.75
B62: =IF(I8=0,0,I62/I8) -> 0 | C62: 0 | D62: 0 | E62: 0 | F62: 0 | G62: 0 | H62: 0 | I62: 0 | J62: =J8 -> 100 | K62: =K8 -> 3500 | L62: 0 | M62: 0 | N62: 0 | O62: 0 | P62: 54 | Q62: Dans le cassoulet de Toulouse, on peut y ajouter du confit de canard ou d'oie. | V62: 15.75
B63: =IF(I8=0,0,I63/I8) -> 0 | C63: 0 | D63: 0 | E63: 0 | F63: 0 | G63: 0 | H63: 0 | I63: 0 | J63: =J8 -> 100 | K63: =K8 -> 3500 | L63: 0 | M63: 0 | N63: 0 | O63: 0 | P63: 55 | Q63: 0 | V63: 15.75
B64: =IF(I8=0,0,I64/I8) -> 0 | C64: 0 | D64: 0 | E64: 0 | F64: 0 | G64: 0 | H64: 0 | I64: 0 | J64: =J8 -> 100 | K64: =K8 -> 3500 | L64: 0 | M64: 0 | N64: 0 | O64: 0 | P64: 56 | Q64: 0 | V64: 15.75
B65: =SUM(B9:B64) -> 1 | D65: 0 | E65: 0 | F65: 0 | G65: 0 | H65: 0 | I65: 0 | J65: =J8 -> 100 | K65: =K8 -> 3500 | L65: 0 | M65: =IF(H65=0,0,H65/(100-F65)*100) -> 0 | O65: 0 | P65: 0 | Q65: 0 | R65: Contenances | S65: 1Gastro 1/1 | T65: 1 Sauteuse | V65: 15.75
B66: UPRT : Union des Personnels de la Restauration Territoriale | P66: 0 | Q66: 0 | R66: Produit de base recette | S66: 0 | T66: 0 | V66: 15.75
B67: OBSERVATIONS ou principales étapes de fabrication adaptées à votre organisation | P67: 0 | Q67: 0 | R67: Sauce ou garniture | S67: 0 | T67: 0 | V67: 15.75
B68: 1 | C68: 0 | P68: 0 | Q68: 0 | R68: Total dans 1 contenant | S68: 0 | T68: 0 | V68: 15.75
B69: 2 | C69: 0 | P69: 0 | Q69: 0 | R69: Dans 1 four ou sauteuse | S69: 0 | T69: 0 | V69: 15.75
B70: 3 | C70: 0 | P70: 0 | Q70: 0 | R70: Température | S70: Temps | T70: Mode fonction | V70: 15.75
B71: 4 | C71: 0 | P71: 0 | Q71: Rissolage | R71: 0 | S71: 0 | T71: 0 | V71: 15.75
B72: 5 | C72: 0 | P72: 0 | Q72: Cuisson 1 | R72: 0 | S72: 0 | T72: 0 | V72: 15.75
B73: 6 | C73: 0 | P73: 0 | Q73: Cuisson 2 | R73: 0 | S73: 0 | T73: 0 | V73: 15.75
B74: 7 | C74: 0 | P74: 0 | Q74: Cuisson 3 | R74: 0 | S74: 0 | T74: 0 | V74: 15.75
B75: 8 | C75: 0 | P75: 0 | Q75: A Cœur | R75: 0 | S75: Liaison froide | T75: 1 | V75: 15.75
B76: 9 | C76: 0 | O76: impression Portrait | P76: 0 | Q76: A Cœur | R76: 0 | S76: Liaison Chaude | T76: impression Portrait | V76: 24
B77: GUIDE DE CUISSON et Remise en température ( R.E.T.) | P77: CONSEILS HYGIÈNE | V77: 23.75
B78: Phase | C78: Actions | D78: Mode de Fonctionnement | F78: Température du four | G78: % Humidité | H78: Temps | I78: A Cœur du produit liaison froide 1 / chaude 2 | K78: % perte | L78: 0 | M78: Observations | P78: Les points à risque | S78: Les mesures préventives | V78: 36.75
B79: N° 1 | C79: Préchauffage | D79: 0 | F79: 0 | G79: 0 | H79: 00:00:00 | I79: 0 | J79: 0 | K79: 0 | L79: 0 | M79: 00:00:00 | P79: 0 | S79: 0 | V79: 15
B80: N° 2 | C80: Cuisson | D80: 0 | F80: 0 | G80: 0 | H80: 00:00:00 | I80: 0 | J80: 0 | K80: 0 | L80: 0 | M80: 00:00:00 | P80: 0 | S80: 0 | V80: 15
B81: N° 3 | C81: Cuisson | D81: 0 | F81: 0 | G81: 0 | H81: 00:00:00 | I81: 0 | J81: 0 | K81: 0 | L81: 0 | M81: 00:00:00 | P81: 0 | S81: 0 | V81: 15
B82: N° 4 | C82: Régénération banquet | D82: 0 | F82: 0 | G82: 0 | H82: 00:00:00 | I82: 0 | J82: 0 | K82: 0 | L82: 0 | M82: 00:00:00 | P82: 0 | S82: 0 | V82: 15
C83: Conseils et suggestions : | D83: Préchauffage: 30 à 50° au dessus de la température de cuisson selon la quantité enfournée | P83: 0 | S83: 0 | V83: 17.25
C84: L'Auteur à prévu sa recette pour : | D84: 0 | F84: Portion Auteur | G84: =G8/B85 -> 0.63115 | I84: Net à fabriquer | J84: =(G86*G85)+(H86*H85)+(I86*I85)+(M86*M85) -> 114 | O84: 0 | P84: 0 | S84: 0 | V84: 17.25
B85: =+F5 -> 100 | C85: =F6 -> couverts | F85: Saisissez vos effectifs | G85: 120 | H85: 500 | I85: 150 | J85: Masquer les colonnes | L85: 0 | M85: 13 | N85: =SUM(G85:M85) -> 783 | P85: 0 | S85: 0 | V85: 17.25
C86: Avec vos effectifs et grammages | F86: et vos grammages | G86: 0.12 | H86: 0.14 | I86: 0.18 | J86: 0 | K86: 0 | L86: 0 | M86: 0.2 | N86: 0 | O86: 0 | P86: 0 | S86: 0 | V86: 17.25
C87: Dupliquez la recette de l' Auteur par : | D87: 0 | E87: 0 | F87: 0 | G87: Mater | H87: Prim | I87: Adultes | J87: 0 | K87: 0 | L87: 0 | M87: Adultes + | N87: % de perte | O87: 35 | P87: 0 | S87: 0 | V87: 17.25
B88: 0 | C88: =J84/G84 -> 180.6226729 | D88: 0 | F88: Net à servir : | G88: =G86*G85 -> 14.4 | H88: =H86*H85 -> 70 | I88: =I86*I85 -> 27 | J88: 0 | K88: 0 | L88: 0 | M88: =M86*M85 -> 2.6 | N88: BRUT A COMMANDER | P88: 0 | S88: 0 | V88: 17.25
B89: Perte: | C89: =N89-J84 -> 61.38461538 | F89: Brut à Commander | G89: =G88/(100-O87)*100 -> 22.15384615 | H89: =H88/(100-O87)*100 -> 107.6923077 | I89: =I88/(100-O87)*100 -> 41.53846154 | L89: 0 | M89: =M88/(100-O87)*100 -> 4 | N89: =J84/(100-O87)*100 -> 175.3846154 | V89: 17.25
C90: 0 | D90: 0 | E90: 0 | F90: 0 | G90: 0 | H90: 0 | I90: 0 | J90: 0 | K90: 0 | L90: 0 | M90: 0 | N90: 0 | O90: impression Portrait | P90: 0 | Q90: 0 | R90: 0 | S90: 0 | T90: impression Portrait | V90: 17.25
B92: 6.14 | C92: 30 | D92: 6.57 | E92: 9 | F92: 11 | G92: 8.86 | H92: 10.29 | I92: 9.57 | J92: 4.86 | K92: 4.86 | L92: 1.14 | M92: 8 | N92: 7.86 | O92: 9.43 | P92: 4 | Q92: 26.57 | R92: 24 | S92: 24.43 | T92: 17 | V92: 17
C93: Bonne utilisation
C94: Joel Leboucher Cuisine Centrale de Rochefort sur mer
B95: UPRT : Union des Personnels de la Restauration Territoriale | C95: UPRT : Union des Personnels de la Restauration Territoriale

Sheet FF.4-Paysage.modele
N1: NOM DE LA RECETTE ICI | O1: EF1 | Q1: NOM DE L'AUTEUR cellule Q1
B2: Modèle | E2: La recette a été prévue pour: | F2: 10 | G2: Vous voulez la dupliquer pour: | I2: 100 | J2: 0 | K2: 0 | L2: 0 | M2: Recette éditée le : | Q2: =CELL("filename",A1) -> E:\0-UPRT\1-UPRT.FR-SITE-WEB\ff-fiches-fabrications\ff-fiches-fabrication-maj-08-2020\[ff-4-collectivite-avec-macro.xlsm]FF.4-Paysage.modele
B3: FF-4.Paysage | E3: Unités : couverts -Kglitre Produit etc.. | F3: Adultes | J3: 0 | K3: 0 | L3: 0 | M3: =NOW() -> 2021-12-15T11:26:41.450 | R3: MÉTHODE D'EXÉCUTION
B4: =MID(CELL("filename",A1),FIND("]",CELL("filename",A1))+1,32) -> FF.4-Paysage.modele | D4: Poids | E4: UNITE | F4: % Perte | G4: Net Auteur | H4: NET à fabriquer | I4: Net Arrondi | J4: Masquer les colonnes | L4: 0 | M4: BRUT | N4: Prix unitaire | O4: Prix de Revient | Q4: 1 | R4: 0
B5: % | C5: PRODUITS | D5: =SUM(D7:D33) -> 0 | E5: 0 | F5: =IF(M5=0,0,(M5-I5)/M5*100) -> 0 | G5: =IF(SUM(G7:G33)=0,1,SUM(G7:G33)) -> 1 | H5: =SUM(H7:H33) -> 0 | I5: =SUM(I7:I33) -> 0 | J5: =F2 -> 10 | K5: =I2 -> 100 | L5: 0 | M5: =SUM(M7:M33) -> 0 | N5: =O5/I2 -> 0 | O5: =SUM(O7:O33) -> 0 | Q5: 2 | U5: A LIRE
B6: =B33 -> 0 | C6: L'Auteur à prévu cette recette pour | D6: =F2 -> 10 | E6: =F3 -> Adultes | G6: Vous la dupliquez pour | H6: =I2 -> 100 | I6: =F3 -> Adultes | J6: =J5 -> 10 | K6: =K5 -> 100 | L6: 0 | Q6: 3 | U6: Pour COLLER du texte ou des formules dans cette feuille:
B7: =IF(I5=0,0,I7/I5) -> 0 | E7: kg | G7: =IF(ISTEXT(D7),0,D7-(D7*F7%)) -> 0 | H7: =IF(G7=0,0,(G7/J7)*K7) -> 0 | I7: =ROUNDUP(H7,1) -> 0 | J7: =J5 -> 10 | K7: =K5 -> 100 | L7: 0 | M7: =ROUNDUP(IF(H7=0,0,H7/(100-F7)*100),1) -> 0 | O7: =N7*M7 -> 0 | Q7: 4 | U7: bloquez l'activation des macro (seulement pour coller)
B8: =IF(I5=0,0,I8/I5) -> 0 | E8: pce | G8: 0 | H8: 0 | I8: 0 | J8: =J5 -> 10 | K8: =K5 -> 100 | L8: 0 | M8: 0 | O8: 0 | Q8: 5 | U8: Cliquez sur
B9: =IF(I5=0,0,I9/I5) -> 0 | E9: kg | G9: 0 | H9: 0 | I9: 0 | J9: =J5 -> 10 | K9: =K5 -> 100 | L9: 0 | M9: 0 | O9: 0 | Q9: 6 | U9: 1 -Outils
B10: =IF(I5=0,0,I10/I5) -> 0 | E10: pm | G10: 0 | H10: 0 | I10: 0 | J10: =J5 -> 10 | K10: =K5 -> 100 | L10: 0 | M10: 0 | O10: 0 | Q10: 7 | U10: 2 -Macro
B11: =IF(I5=0,0,I11/I5) -> 0 | G11: 0 | H11: 0 | I11: 0 | J11: =J5 -> 10 | K11: =K5 -> 100 | L11: 0 | M11: 0 | O11: 0 | Q11: 8 | U11: 3 -Sécurité
B12: =IF(I5=0,0,I12/I5) -> 0 | G12: 0 | H12: 0 | I12: 0 | J12: =J5 -> 10 | K12: =K5 -> 100 | L12: 0 | M12: 0 | O12: 0 | Q12: 9 | U12: 4 Niveau de sécurité très élevé
B13: =IF(I5=0,0,I13/I5) -> 0 | G13: 0 | H13: 0 | I13: 0 | J13: =J5 -> 10 | K13: =K5 -> 100 | L13: 0 | M13: 0 | O13: 0 | Q13: 10 | R13: 0 | V13: Enregistrez -
B14: =IF(I5=0,0,I14/I5) -> 0 | G14: 0 | H14: 0 | I14: 0 | J14: =J5 -> 10 | K14: =K5 -> 100 | L14: 0 | M14: 0 | O14: 0 | Q14: 11 | R14: 0 | V14: fermez le classeur
B15: =IF(I5=0,0,I15/I5) -> 0 | G15: 0 | H15: 0 | I15: 0 | J15: =J5 -> 10 | K15: =K5 -> 100 | L15: 0 | M15: 0 | O15: 0 | Q15: 12 | R15: 0 | V15: puis ouvrez le pour travailler
B16: =IF(I5=0,0,I16/I5) -> 0 | G16: 0 | H16: 0 | I16: 0 | J16: =J5 -> 10 | K16: =K5 -> 100 | L16: 0 | M16: 0 | O16: 0 | Q16: 13 | R16: 0 | U16: Lorsque vous avez fini
B17: =IF(I5=0,0,I17/I5) -> 0 | F17: 0 | G17: 0 | H17: 0 | I17: 0 | J17: =J5 -> 10 | K17: =K5 -> 100 | L17: 0 | M17: 0 | O17: 0 | Q17: 14 | R17: 0 | V17: 1 -Outils
B18: =IF(I5=0,0,I18/I5) -> 0 | G18: 0 | H18: 0 | I18: 0 | J18: =J5 -> 10 | K18: =K5 -> 100 | L18: 0 | M18: 0 | O18: 0 | Q18: 15 | R18: 0 | V18: 2 -Macro
B19: =IF(I5=0,0,I19/I5) -> 0 | C19: 0 | D19: 0 | G19: 0 | H19: 0 | I19: 0 | J19: =J5 -> 10 | K19: =K5 -> 100 | L19: 0 | M19: 0 | O19: 0 | Q19: 16 | R19: Durée moyenne de préparation : | V19: 3 -Sécurité
B20: =IF(I5=0,0,I20/I5) -> 0 | C20: 0 | D20: 0 | E20: 0 | G20: 0 | H20: 0 | I20: 0 | J20: =J5 -> 10 | K20: =K5 -> 100 | L20: 0 | M20: 0 | O20: 0 | Q20: 17 | R20: 0 | V20: 4 Niveau de sécurité moyen
B21: =IF(I5=0,0,I21/I5) -> 0 | C21: 0 | D21: 0 | E21: 0 | G21: 0 | H21: 0 | I21: 0 | J21: =J5 -> 10 | K21: =K5 -> 100 | L21: 0 | M21: 0 | O21: 0 | Q21: 18 | R21: Cuisson : | U21: Enregistrez -
B22: =IF(I5=0,0,I22/I5) -> 0 | C22: 0 | D22: 0 | E22: 0 | G22: 0 | H22: 0 | I22: 0 | J22: =J5 -> 10 | K22: =K5 -> 100 | L22: 0 | M22: 0 | O22: 0 | Q22: 19 | R22: 0 | U22: fermez le classeur
B23: =IF(I5=0,0,I23/I5) -> 0 | C23: 0 | D23: 0 | E23: 0 | G23: 0 | H23: 0 | I23: 0 | J23: =J5 -> 10 | K23: =K5 -> 100 | L23: 0 | M23: 0 | O23: 0 | R23: TECHNIQUES MISES EN ŒUVRE | U23: puis ouvrez le pour l'utilisation
B24: =IF(I5=0,0,I24/I5) -> 0 | C24: 0 | D24: 0 | E24: 0 | G24: 0 | H24: 0 | I24: 0 | J24: =J5 -> 10 | K24: =K5 -> 100 | L24: 0 | M24: 0 | O24: 0 | Q24: A | U24: en cliquant sur Activer les macros
B25: =IF(I5=0,0,I25/I5) -> 0 | C25: 0 | D25: 0 | E25: 0 | G25: 0 | H25: 0 | I25: 0 | J25: =J5 -> 10 | K25: =K5 -> 100 | L25: 0 | M25: 0 | O25: 0 | Q25: B
B26: =IF(I5=0,0,I26/I5) -> 0 | C26: 0 | D26: 0 | E26: 0 | G26: 0 | H26: 0 | I26: 0 | J26: =J5 -> 10 | K26: =K5 -> 100 | L26: 0 | M26: 0 | O26: 0 | Q26: C | R26: 0
B27: =IF(I5=0,0,I27/I5) -> 0 | C27: 0 | D27: 0 | E27: 0 | G27: 0 | H27: 0 | I27: 0 | J27: =J5 -> 10 | K27: =K5 -> 100 | L27: 0 | M27: 0 | O27: 0 | Q27: D | R27: 0
B28: =IF(I5=0,0,I28/I5) -> 0 | C28: 0 | D28: 0 | E28: 0 | G28: 0 | H28: 0 | I28: 0 | J28: =J5 -> 10 | K28: =K5 -> 100 | L28: 0 | M28: 0 | O28: 0 | Q28: E | R28: 0
B29: =IF(I5=0,0,I29/I5) -> 0 | C29: 0 | D29: 0 | E29: 0 | G29: 0 | H29: 0 | I29: 0 | J29: =J5 -> 10 | K29: =K5 -> 100 | L29: 0 | M29: 0 | O29: 0 | Q29: F | R29: 0
B30: =IF(I5=0,0,I30/I5) -> 0 | C30: 0 | D30: 0 | E30: 0 | G30: 0 | H30: 0 | I30: 0 | J30: =J5 -> 10 | K30: =K5 -> 100 | L30: 0 | M30: 0 | O30: 0 | Q30: G | R30: 0
B31: =IF(I5=0,0,I31/I5) -> 0 | C31: 0 | D31: 0 | E31: 0 | G31: 0 | H31: 0 | I31: 0 | J31: =J5 -> 10 | K31: =K5 -> 100 | L31: 0 | M31: 0 | O31: 0 | Q31: H | R31: 0
B32: =IF(I5=0,0,I32/I5) -> 0 | C32: 0 | D32: 0 | E32: 0 | G32: 0 | H32: 0 | I32: 0 | J32: =J5 -> 10 | K32: =K5 -> 100 | L32: 0 | M32: 0 | O32: 0 | Q32: I | R32: 0
B33: =SUM(B7:B32) -> 0 | D33: 0 | E33: 0 | F33: 0 | G33: =D33-(D33*F33%) -> 0 | H33: 0 | I33: 0 | J33: =J5 -> 10 | K33: =K5 -> 100 | L33: 0 | M33: =IF(H33=0,0,H33/(100-F33)*100) -> 0 | O33: 0
B34: CUISINE CENTRALE DE ROCHEFORT SUR MER Aide à la prévision | Q34: Observations :
B35: MÉTHODE D'EXÉCUTION | G35: TECHNIQUES MISES EN ŒUVRE | M35: PLATS SIMILAIRES
C36: Laver et desinfecter les légumes | G36: a | M36: 1
C37: Eplucher, émincer et mettre à dégorger les concombres dans le gros sel 1 heure | G37: b | M37: 2
C38: Mélanger les concombres avec la crème et la moutarde, rectifier l'assaisonnement | G38: c | M38: 3
C39: Mettre en saladier, décorer avec tomates et persil | G39: dd | M39: 4
C40: Prendre la température et réserver au froid | G40: e | M40: 5
C41: 6 | G41: f | M41: 6
C42: 7 | G42: g | M42: LÉGUMES CONSEILLÉS
C43: 8 | G43: h | M43: 0
C44: 9 | G44: i | M44: 0
C45: 10 | G45: j | M45: 0
C46: 11 | G46: k | M46: 0
C47: 12 | G47: l | M47: 0
C48: 13 | G48: 0 | H48: 0 | M48: 0
C49: 14 | G49: 0 | M49: 0
C50: L'Auteur à prévu sa recette pour : | D50: 0 | F50: Portion Net Auteur | G50: =G5/B51 -> 0.1 | I50: Net à fabriquer | J50: =(G52*G51)+(H52*H51)+(I52*I51)+(M52*M51) -> 0 | O50: 0
B51: =+F2 -> 10 | C51: =F3 -> Adultes | F51: Saisissez vos effectifs | G51: 0 | H51: 0 | I51: 0 | J51: Masquer les colonnes | L51: 0 | M51: 0 | N51: =SUM(G51:M51) -> 0 | O51: Effectif Total
C52: Avec vos effectifs et grammages | F52: et vos grammages | G52: 0 | H52: 0 | I52: 0 | J52: 0 | K52: 0 | L52: 0 | M52: 0 | N52: 0 | O52: 0
C53: Dupliquez la recette de l' Auteur par : | D53: 0 | E53: 0 | F53: 0 | G53: Mater | H53: Prim | I53: Adultes | J53: 0 | K53: 0 | L53: 0 | M53: Adultes + | N53: % perte | O53: 5
B54: 0 | C54: =J50/G50 -> 0 | D54: 0 | F54: Net à servir : | G54: =G52*G51 -> 0 | H54: =H52*H51 -> 0 | I54: =I52*I51 -> 0 | J54: 0 | K54: 0 | L54: 0 | M54: =M52*M51 -> 0 | N54: BRUT A COMMANDER
B55: Perte: | C55: =N55-J50 -> 0 | F55: Brut à Commander | G55: =G54/(100-O53)*100 -> 0 | H55: =H54/(100-O53)*100 -> 0 | I55: =I54/(100-O53)*100 -> 0 | L55: 0 | M55: =M54/(100-O53)*100 -> 0 | N55: =J50/(100-O53)*100 -> 0
B56: Conception 1998 Cuisine centrale de Clamart Joël Leboucher Adaptation 2009 Cuisine Centrale de Rochefort sur mer sur un document avec macro..de D.DEMILLY | O56: http://www.uprt.fr/copier_documents.html
B58: 6.14 | C58: 30 | D58: 6.57 | E58: 9 | F58: 11 | G58: 8.86 | H58: 10.29 | I58: 9.57 | J58: 4.86 | K58: 4.86 | L58: 1.14 | M58: 8 | N58: 7.86 | O58: 9.43 | P58: Largeurs de colonnes

Sheet FF.4-Paysage
N1: SALADE AU ROQUEFORT | O1: EF1 | Q1: Recettes A.F.P.A St Nazaire / Jean-Marc CATTEAUAgents de Restauration
B2: Modèle | E2: La recette a été prévue pour: | F2: 10 | G2: Vous voulez la dupliquer pour: | I2: 100 | J2: 0 | K2: 0 | L2: 0 | M2: Recette éditée le : | Q2: =CELL("filename",A1) -> E:\0-UPRT\1-UPRT.FR-SITE-WEB\ff-fiches-fabrications\ff-fiches-fabrication-maj-08-2020\[ff-4-collectivite-avec-macro.xlsm]FF.4-Paysage
B3: FF-4 | E3: Unités : couverts -Kglitre Produit etc.. | F3: Adultes | J3: 0 | K3: 0 | L3: 0 | M3: =NOW() -> 2021-12-15T11:26:41.450 | R3: MÉTHODE D'EXÉCUTION
B4: =MID(CELL("filename",A1),FIND("]",CELL("filename",A1))+1,32) -> FF.4-Paysage | D4: Poids | E4: UNITE | F4: % Perte | G4: Net Auteur | H4: NET à fabriquer | I4: Net Arrondi | J4: Masquer les colonnes | L4: 0 | M4: BRUT | N4: Prix unitaire | O4: Prix de Revient | Q4: 1 | R4: 0
B5: % | C5: PRODUITS | D5: =SUM(D7:D33) -> 3.75 | E5: 0 | F5: =IF(M5=0,0,(M5-I5)/M5*100) -> 0 | G5: =IF(SUM(G7:G33)=0,1,SUM(G7:G33)) -> 3.75 | H5: =SUM(H7:H33) -> 37.5 | I5: =SUM(I7:I33) -> 37.5 | J5: =F2 -> 10 | K5: =I2 -> 100 | L5: 0 | M5: =SUM(M7:M33) -> 37.5 | N5: =O5/I2 -> 0.2 | O5: =SUM(O7:O33) -> 20 | Q5: 2 | R5: Laver et éplucher les légumes | U5: A LIRE
B6: =B33 -> 1 | C6: L'Auteur à prévu cette recette pour | D6: =F2 -> 10 | E6: =F3 -> Adultes | G6: Vous la dupliquez pour | H6: =I2 -> 100 | I6: =F3 -> Adultes | J6: =J5 -> 10 | K6: =K5 -> 100 | L6: 0 | Q6: 3 | R6: Cuire les pommes de terre | U6: Pour COLLER du texte ou des formules dans cette feuille:
B7: =IF(I5=0,0,I7/I5) -> 0.2666666667 | C7: Pommes de terre BF 15 | D7: 1 | E7: kg | G7: =IF(ISTEXT(D7),0,D7-(D7*F7%)) -> 1 | H7: =IF(G7=0,0,(G7/J7)*K7) -> 10 | I7: =ROUNDUP(H7,1) -> 10 | J7: =J5 -> 10 | K7: =K5 -> 100 | L7: 0 | M7: =ROUNDUP(IF(H7=0,0,H7/(100-F7)*100),1) -> 10 | O7: =N7*M7 -> 0 | Q7: 4 | R7: Ciseler les échalotes | U7: bloquez l'activation des macro (seulement pour coller)
B8: =IF(I5=0,0,I8/I5) -> 0.5333333333 | C8: Sal. verte | D8: 2 | E8: pce | G8: 2 | H8: 20 | I8: 20 | J8: =J5 -> 10 | K8: =K5 -> 100 | L8: 0 | M8: 20 | N8: 1 | O8: 20 | Q8: 5 | R8: Confectionner la vinaigrette | U8: Cliquez sur
B9: =IF(I5=0,0,I9/I5) -> 0.02666666667 | C9: Roquefort | D9: 0.1 | E9: kg | G9: 0.1 | H9: 1 | I9: 1 | J9: =J5 -> 10 | K9: =K5 -> 100 | L9: 0 | M9: 1 | O9: 0 | Q9: 6 | R9: Ajouter le vin blanc et les échalotes | U9: 1 -Outils
B10: =IF(I5=0,0,I10/I5) -> 0.02666666667 | C10: Echalote | D10: 0.1 | E10: kg | G10: 0.1 | H10: 1 | I10: 1 | J10: =J5 -> 10 | K10: =K5 -> 100 | L10: 0 | M10: 1 | O10: 0 | Q10: 7 | R10: Mélanger les pommes de terre, la sauce et le roquefort | U10: 2 -Macro
B11: =IF(I5=0,0,I11/I5) -> 0.02666666667 | C11: Noix | D11: 0.1 | E11: kg | G11: 0.1 | H11: 1 | I11: 1 | J11: =J5 -> 10 | K11: =K5 -> 100 | L11: 0 | M11: 1 | O11: 0 | Q11: 8 | R11: Dresser sur un lit de salade | U11: 3 -Sécurité
B12: =IF(I5=0,0,I12/I5) -> 0.02666666667 | C12: Tomate | D12: 0.1 | E12: kg | G12: 0.1 | H12: 1 | I12: 1 | J12: =J5 -> 10 | K12: =K5 -> 100 | L12: 0 | M12: 1 | O12: 0 | Q12: 9 | R12: Décorer avec les noix, les tomates et le persil | U12: 4 Niveau de sécurité très élevé
B13: =IF(I5=0,0,I13/I5) -> 0 | C13: Persil | D13: pm | E13: Bqt | G13: 0 | H13: 0 | I13: 0 | J13: =J5 -> 10 | K13: =K5 -> 100 | L13: 0 | M13: 0 | O13: 0 | Q13: 10 | R13: 0 | V13: Enregistrez -
B14: =IF(I5=0,0,I14/I5) -> 0 | C14: 0 | D14: 0 | E14: 0 | G14: 0 | H14: 0 | I14: 0 | J14: =J5 -> 10 | K14: =K5 -> 100 | L14: 0 | M14: 0 | O14: 0 | Q14: 11 | R14: 0 | V14: fermez le classeur
B15: =IF(I5=0,0,I15/I5) -> 0.06666666667 | C15: Huile | D15: 0.25 | E15: l | G15: 0.25 | H15: 2.5 | I15: 2.5 | J15: =J5 -> 10 | K15: =K5 -> 100 | L15: 0 | M15: 2.5 | O15: 0 | Q15: 12 | R15: 0 | V15: puis ouvrez le pour travailler
B16: =IF(I5=0,0,I16/I5) -> 0.02133333333 | C16: Vinaigre | D16: 0.08 | E16: l | G16: 0.08 | H16: 0.8 | I16: 0.8 | J16: =J5 -> 10 | K16: =K5 -> 100 | L16: 0 | M16: 0.8 | O16: 0 | Q16: 13 | R16: 0 | U16: Lorsque vous avez fini
B17: =IF(I5=0,0,I17/I5) -> 0.005333333333 | C17: Vin blanc sec | D17: 0.02 | E17: l | F17: 0 | G17: 0.02 | H17: 0.2 | I17: 0.2 | J17: =J5 -> 10 | K17: =K5 -> 100 | L17: 0 | M17: 0.2 | O17: 0 | Q17: 14 | R17: 0 | V17: 1 -Outils
B18: =IF(I5=0,0,I18/I5) -> 0 | C18: Sel, poivre | D18: pm | E18: Pm | G18: 0 | H18: 0 | I18: 0 | J18: =J5 -> 10 | K18: =K5 -> 100 | L18: 0 | M18: 0 | O18: 0 | Q18: 15 | R18: 0 | V18: 2 -Macro
B19: =IF(I5=0,0,I19/I5) -> 0 | C19: 0 | D19: 0 | E19: 0 | G19: 0 | H19: 0 | I19: 0 | J19: =J5 -> 10 | K19: =K5 -> 100 | L19: 0 | M19: 0 | O19: 0 | Q19: 16 | R19: Durée moyenne de préparation : | V19: 3 -Sécurité
B20: =IF(I5=0,0,I20/I5) -> 0 | C20: 0 | D20: 0 | E20: 0 | G20: 0 | H20: 0 | I20: 0 | J20: =J5 -> 10 | K20: =K5 -> 100 | L20: 0 | M20: 0 | O20: 0 | Q20: 17 | R20: 0 | V20: 4 Niveau de sécurité moyen
B21: =IF(I5=0,0,I21/I5) -> 0 | C21: 0 | D21: 0 | E21: 0 | G21: 0 | H21: 0 | I21: 0 | J21: =J5 -> 10 | K21: =K5 -> 100 | L21: 0 | M21: 0 | O21: 0 | Q21: 18 | R21: Cuisson : | U21: Enregistrez -
B22: =IF(I5=0,0,I22/I5) -> 0 | C22: 0 | D22: 0 | E22: 0 | G22: 0 | H22: 0 | I22: 0 | J22: =J5 -> 10 | K22: =K5 -> 100 | L22: 0 | M22: 0 | O22: 0 | Q22: 19 | R22: 0 | U22: fermez le classeur
B23: =IF(I5=0,0,I23/I5) -> 0 | C23: 0 | D23: 0 | E23: 0 | G23: 0 | H23: 0 | I23: 0 | J23: =J5 -> 10 | K23: =K5 -> 100 | L23: 0 | M23: 0 | O23: 0 | R23: TECHNIQUES MISES EN ŒUVRE | U23: puis ouvrez le pour l'utilisation
B24: =IF(I5=0,0,I24/I5) -> 0 | C24: 0 | D24: 0 | E24: 0 | G24: 0 | H24: 0 | I24: 0 | J24: =J5 -> 10 | K24: =K5 -> 100 | L24: 0 | M24: 0 | O24: 0 | Q24: A | R24: Traitement des p. de terre | U24: en cliquant sur Activer les macros
B25: =IF(I5=0,0,I25/I5) -> 0 | C25: 0 | D25: 0 | E25: 0 | G25: 0 | H25: 0 | I25: 0 | J25: =J5 -> 10 | K25: =K5 -> 100 | L25: 0 | M25: 0 | O25: 0 | Q25: B | R25: Variante de vinaigrette
B26: =IF(I5=0,0,I26/I5) -> 0 | C26: 0 | D26: 0 | E26: 0 | G26: 0 | H26: 0 | I26: 0 | J26: =J5 -> 10 | K26: =K5 -> 100 | L26: 0 | M26: 0 | O26: 0 | Q26: C | R26: 0
B27: =IF(I5=0,0,I27/I5) -> 0 | C27: 0 | D27: 0 | E27: 0 | G27: 0 | H27: 0 | I27: 0 | J27: =J5 -> 10 | K27: =K5 -> 100 | L27: 0 | M27: 0 | O27: 0 | Q27: D | R27: 0
B28: =IF(I5=0,0,I28/I5) -> 0 | C28: 0 | D28: 0 | E28: 0 | G28: 0 | H28: 0 | I28: 0 | J28: =J5 -> 10 | K28: =K5 -> 100 | L28: 0 | M28: 0 | O28: 0 | Q28: E | R28: 0
B29: =IF(I5=0,0,I29/I5) -> 0 | C29: 0 | D29: 0 | E29: 0 | G29: 0 | H29: 0 | I29: 0 | J29: =J5 -> 10 | K29: =K5 -> 100 | L29: 0 | M29: 0 | O29: 0 | Q29: F | R29: 0
B30: =IF(I5=0,0,I30/I5) -> 0 | C30: 0 | D30: 0 | E30: 0 | G30: 0 | H30: 0 | I30: 0 | J30: =J5 -> 10 | K30: =K5 -> 100 | L30: 0 | M30: 0 | O30: 0 | Q30: G | R30: 0
B31: =IF(I5=0,0,I31/I5) -> 0 | C31: 0 | D31: 0 | E31: 0 | G31: 0 | H31: 0 | I31: 0 | J31: =J5 -> 10 | K31: =K5 -> 100 | L31: 0 | M31: 0 | O31: 0 | Q31: H | R31: 0
B32: =IF(I5=0,0,I32/I5) -> 0 | C32: 0 | D32: 0 | E32: 0 | G32: 0 | H32: 0 | I32: 0 | J32: =J5 -> 10 | K32: =K5 -> 100 | L32: 0 | M32: 0 | O32: 0 | Q32: I | R32: 0
B33: =SUM(B7:B32) -> 1 | D33: 0 | E33: 0 | F33: 0 | G33: =D33-(D33*F33%) -> 0 | H33: 0 | I33: 0 | J33: =J5 -> 10 | K33: =K5 -> 100 | L33: 0 | M33: =IF(H33=0,0,H33/(100-F33)*100) -> 0 | O33: 0
B34: CUISINE CENTRALE DE ROCHEFORT SUR MER Aide à la prévision | Q34: Observations :
B35: MÉTHODE D'EXÉCUTION | G35: TECHNIQUES MISES EN ŒUVRE | M35: PLATS SIMILAIRES
C36: Laver et desinfecter les légumes | G36: a | M36: 1
C37: Eplucher, émincer et mettre à dégorger les concombres dans le gros sel 1 heure | G37: b | M37: 2
C38: Mélanger les concombres avec la crème et la moutarde, rectifier l'assaisonnement | G38: c | M38: 3
C39: Mettre en saladier, décorer avec tomates et persil | G39: dd | M39: 4
C40: Prendre la température et réserver au froid | G40: e | M40: 5
C41: 6 | G41: f | M41: 6
C42: 7 | G42: g | M42: LÉGUMES CONSEILLÉS
C43: 8 | G43: h | M43: 0
C44: 9 | G44: i | M44: 0
C45: 10 | G45: j | M45: 0
C46: 11 | G46: k | M46: 0
C47: 12 | G47: l | M47: 0
C48: 13 | G48: 0 | H48: 0 | M48: 0
C49: 14 | G49: 0 | M49: 0
C50: L'Auteur à prévu sa recette pour : | D50: 0 | F50: Portion Net Auteur | G50: =G5/B51 -> 0.375 | I50: Net à fabriquer | J50: =(G52*G51)+(H52*H51)+(I52*I51)+(M52*M51) -> 0 | O50: 0
B51: =+F2 -> 10 | C51: =F3 -> Adultes | F51: Saisissez vos effectifs | G51: 0 | H51: 0 | I51: 0 | J51: Masquer les colonnes | L51: 0 | M51: 0 | N51: =SUM(G51:M51) -> 0 | O51: Effectif Total
C52: Avec vos effectifs et grammages | F52: et vos grammages | G52: 0 | H52: 0 | I52: 0 | J52: 0 | K52: 0 | L52: 0 | M52: 0 | N52: 0 | O52: 0
C53: Dupliquez la recette de l' Auteur par : | D53: 0 | E53: 0 | F53: 0 | G53: Mater | H53: Prim | I53: Adultes | J53: 0 | K53: 0 | L53: 0 | M53: Adultes + | N53: % perte | O53: 5
B54: 0 | C54: =J50/G50 -> 0 | D54: 0 | F54: Net à servir : | G54: =G52*G51 -> 0 | H54: =H52*H51 -> 0 | I54: =I52*I51 -> 0 | J54: 0 | K54: 0 | L54: 0 | M54: =M52*M51 -> 0 | N54: BRUT A COMMANDER
B55: Perte: | C55: =N55-J50 -> 0 | F55: Brut à Commander | G55: =G54/(100-O53)*100 -> 0 | H55: =H54/(100-O53)*100 -> 0 | I55: =I54/(100-O53)*100 -> 0 | L55: 0 | M55: =M54/(100-O53)*100 -> 0 | N55: =J50/(100-O53)*100 -> 0
B56: Conception 1998 Cuisine centrale de Clamart Joël Leboucher Adaptation 2009 Cuisine Centrale de Rochefort sur mer sur un document avec macro..de D.DEMILLY | O56: http://www.uprt.fr/copier_documents.html
B58: 6.14 | C58: 30 | D58: 6.57 | E58: 9 | F58: 11 | G58: 8.86 | H58: 10.29 | I58: 9.57 | J58: 4.86 | K58: 4.86 | L58: 1.14 | M58: 8 | N58: 7.86 | O58: 9.43 | P58: Largeurs de colonnes

Sheet FF.4_Portrait.modele
N1: NOM DE VOTRE RECETTE ICI | O1: FF.2
B2: Modèle | E2: La recette a été prévue pour: | F2: 10 | G2: Vous voulez la dupliquer pour: | I2: 100 | J2: 0 | K2: 0 | L2: 0 | M2: Recette éditée le :
B3: FF.4_Portrait | E3: Unités : couverts -Kglitre Produit etc.. | F3: Adultes | J3: 0 | K3: 0 | L3: 0 | M3: =NOW() -> 2021-12-15T11:26:41.450
B4: =MID(CELL("filename",A1),FIND("]",CELL("filename",A1))+1,32) -> FF.4_Portrait.modele | D4: Poids | E4: UNITE | F4: % Perte | G4: Net Auteur | H4: NET à fabriquer | I4: Net Arrondi | J4: Masquer les colonnes | L4: 0 | M4: BRUT | N4: Prix unitaire | O4: Prix de Revient
B5: % | C5: PRODUITS | D5: =SUM(D7:D33) -> 0 | E5: 0 | F5: =IF(M5=0,0,(M5-I5)/M5*100) -> 0 | G5: =IF(SUM(G7:G33)=0,1,SUM(G7:G33)) -> 1 | H5: =SUM(H7:H33) -> 0 | I5: =SUM(I7:I33) -> 0 | J5: =F2 -> 10 | K5: =I2 -> 100 | L5: 0 | M5: =SUM(M7:M33) -> 0 | N5: =O5/I2 -> 0 | O5: =SUM(O7:O33) -> 0
B6: =B33 -> 0 | C6: L'Auteur à prévu cette recette pour | D6: =F2 -> 10 | E6: =F3 -> Adultes | G6: Vous la dupliquez pour | H6: =I2 -> 100 | I6: =F3 -> Adultes | J6: =J5 -> 10 | K6: =K5 -> 100 | L6: 0
B7: =IF(I5=0,0,I7/I5) -> 0 | E7: kg | G7: =IF(ISTEXT(D7),0,D7-(D7*F7%)) -> 0 | H7: =IF(G7=0,0,(G7/J7)*K7) -> 0 | I7: =ROUNDUP(H7,1) -> 0 | J7: =J5 -> 10 | K7: =K5 -> 100 | L7: 0 | M7: =ROUNDUP(IF(H7=0,0,H7/(100-F7)*100),1) -> 0 | O7: =N7*M7 -> 0
B8: =IF(I5=0,0,I8/I5) -> 0 | E8: pce | G8: 0 | H8: 0 | I8: 0 | J8: =J5 -> 10 | K8: =K5 -> 100 | L8: 0 | M8: 0 | O8: 0 | R8: A LIRE
B9: =IF(I5=0,0,I9/I5) -> 0 | E9: pm | G9: 0 | H9: 0 | I9: 0 | J9: =J5 -> 10 | K9: =K5 -> 100 | L9: 0 | M9: 0 | O9: 0 | R9: Pour COLLER du texte ou des formules dans cette feuille:
B10: =IF(I5=0,0,I10/I5) -> 0 | G10: 0 | H10: 0 | I10: 0 | J10: =J5 -> 10 | K10: =K5 -> 100 | L10: 0 | M10: 0 | O10: 0 | R10: bloquez l'activation des macro (seulement pour coller)
B11: =IF(I5=0,0,I11/I5) -> 0 | G11: 0 | H11: 0 | I11: 0 | J11: =J5 -> 10 | K11: =K5 -> 100 | L11: 0 | M11: 0 | O11: 0 | R11: Cliquez sur
B12: =IF(I5=0,0,I12/I5) -> 0 | G12: 0 | H12: 0 | I12: 0 | J12: =J5 -> 10 | K12: =K5 -> 100 | L12: 0 | M12: 0 | O12: 0 | R12: 1 -Outils
B13: =IF(I5=0,0,I13/I5) -> 0 | G13: 0 | H13: 0 | I13: 0 | J13: =J5 -> 10 | K13: =K5 -> 100 | L13: 0 | M13: 0 | O13: 0 | R13: 2 -Macro
B14: =IF(I5=0,0,I14/I5) -> 0 | G14: 0 | H14: 0 | I14: 0 | J14: =J5 -> 10 | K14: =K5 -> 100 | L14: 0 | M14: 0 | O14: 0 | R14: 3 -Sécurité
B15: =IF(I5=0,0,I15/I5) -> 0 | G15: 0 | H15: 0 | I15: 0 | J15: =J5 -> 10 | K15: =K5 -> 100 | L15: 0 | M15: 0 | O15: 0 | R15: 4 Niveau de sécurité très élevé
B16: =IF(I5=0,0,I16/I5) -> 0 | G16: 0 | H16: 0 | I16: 0 | J16: =J5 -> 10 | K16: =K5 -> 100 | L16: 0 | M16: 0 | O16: 0 | S16: Enregistrez -
B17: =IF(I5=0,0,I17/I5) -> 0 | F17: 0 | G17: 0 | H17: 0 | I17: 0 | J17: =J5 -> 10 | K17: =K5 -> 100 | L17: 0 | M17: 0 | O17: 0 | S17: fermez le classeur
B18: =IF(I5=0,0,I18/I5) -> 0 | G18: 0 | H18: 0 | I18: 0 | J18: =J5 -> 10 | K18: =K5 -> 100 | L18: 0 | M18: 0 | O18: 0 | S18: puis ouvrez le pour travailler
B19: =IF(I5=0,0,I19/I5) -> 0 | C19: 0 | D19: 0 | E19: 0 | G19: 0 | H19: 0 | I19: 0 | J19: =J5 -> 10 | K19: =K5 -> 100 | L19: 0 | M19: 0 | O19: 0 | R19: Lorsque vous avez fini
B20: =IF(I5=0,0,I20/I5) -> 0 | C20: 0 | D20: 0 | E20: 0 | G20: 0 | H20: 0 | I20: 0 | J20: =J5 -> 10 | K20: =K5 -> 100 | L20: 0 | M20: 0 | O20: 0 | S20: 1 -Outils
B21: =IF(I5=0,0,I21/I5) -> 0 | C21: 0 | D21: 0 | E21: 0 | G21: 0 | H21: 0 | I21: 0 | J21: =J5 -> 10 | K21: =K5 -> 100 | L21: 0 | M21: 0 | O21: 0 | S21: 2 -Macro
B22: =IF(I5=0,0,I22/I5) -> 0 | C22: 0 | D22: 0 | E22: 0 | G22: 0 | H22: 0 | I22: 0 | J22: =J5 -> 10 | K22: =K5 -> 100 | L22: 0 | M22: 0 | O22: 0 | S22: 3 -Sécurité
B23: =IF(I5=0,0,I23/I5) -> 0 | C23: 0 | D23: 0 | E23: 0 | G23: 0 | H23: 0 | I23: 0 | J23: =J5 -> 10 | K23: =K5 -> 100 | L23: 0 | M23: 0 | O23: 0 | S23: 4 Niveau de sécurité moyen
B24: =IF(I5=0,0,I24/I5) -> 0 | C24: 0 | D24: 0 | E24: 0 | G24: 0 | H24: 0 | I24: 0 | J24: =J5 -> 10 | K24: =K5 -> 100 | L24: 0 | M24: 0 | O24: 0 | R24: Enregistrez -
B25: =IF(I5=0,0,I25/I5) -> 0 | C25: 0 | D25: 0 | E25: 0 | G25: 0 | H25: 0 | I25: 0 | J25: =J5 -> 10 | K25: =K5 -> 100 | L25: 0 | M25: 0 | O25: 0 | R25: fermez le classeur
B26: =IF(I5=0,0,I26/I5) -> 0 | C26: 0 | D26: 0 | E26: 0 | G26: 0 | H26: 0 | I26: 0 | J26: =J5 -> 10 | K26: =K5 -> 100 | L26: 0 | M26: 0 | O26: 0 | R26: puis ouvrez le pour l'utilisation
B27: =IF(I5=0,0,I27/I5) -> 0 | C27: 0 | D27: 0 | E27: 0 | G27: 0 | H27: 0 | I27: 0 | J27: =J5 -> 10 | K27: =K5 -> 100 | L27: 0 | M27: 0 | O27: 0 | R27: en cliquant sur Activer les macros
B28: =IF(I5=0,0,I28/I5) -> 0 | C28: 0 | D28: 0 | E28: 0 | G28: 0 | H28: 0 | I28: 0 | J28: =J5 -> 10 | K28: =K5 -> 100 | L28: 0 | M28: 0 | O28: 0
B29: =IF(I5=0,0,I29/I5) -> 0 | C29: 0 | D29: 0 | E29: 0 | G29: 0 | H29: 0 | I29: 0 | J29: =J5 -> 10 | K29: =K5 -> 100 | L29: 0 | M29: 0 | O29: 0
B30: =IF(I5=0,0,I30/I5) -> 0 | C30: 0 | D30: 0 | E30: 0 | G30: 0 | H30: 0 | I30: 0 | J30: =J5 -> 10 | K30: =K5 -> 100 | L30: 0 | M30: 0 | O30: 0
B31: =IF(I5=0,0,I31/I5) -> 0 | C31: 0 | D31: 0 | E31: 0 | G31: 0 | H31: 0 | I31: 0 | J31: =J5 -> 10 | K31: =K5 -> 100 | L31: 0 | M31: 0 | O31: 0
B32: =IF(I5=0,0,I32/I5) -> 0 | C32: 0 | D32: 0 | E32: 0 | G32: 0 | H32: 0 | I32: 0 | J32: =J5 -> 10 | K32: =K5 -> 100 | L32: 0 | M32: 0 | O32: 0
B33: =SUM(B7:B32) -> 0 | D33: 0 | E33: 0 | F33: 0 | G33: =D33-(D33*F33%) -> 0 | H33: 0 | I33: 0 | J33: =J5 -> 10 | K33: =K5 -> 100 | L33: 0 | M33: =IF(H33=0,0,H33/(100-F33)*100) -> 0 | O33: 0
B34: NOM DE L'AUTEUR cellule B34
B35: =CELL("filename",A1) -> E:\0-UPRT\1-UPRT.FR-SITE-WEB\ff-fiches-fabrications\ff-fiches-fabrication-maj-08-2020\[ff-4-collectivite-avec-macro.xlsm]FF.4_Portrait.modele
B36: MÉTHODE D'EXÉCUTION | G36: TECHNIQUES MISES EN ŒUVRE | M36: PLATS SIMILAIRES
C37: 0 | M37: 0
M38: 0
G39: 0 | M39: 0
G40: 0 | M40: 0
G41: 0 | M41: 0
G42: 0 | M42: 0
G43: 0 | M43: LÉGUMES CONSEILLÉS
G44: 0 | M44: 0
G45: 0 | M45: 0
C46: 0 | G46: 0 | M46: 0
C47: 0 | G47: 0 | M47: 0
C48: 0 | G48: 0 | M48: 0
C49: 0 | G49: 0 | H49: 0 | M49: 0
C50: 0 | G50: 0 | M50: 0
B51: UPRT : Union des Personnels de la Restauration Territoriale Aide à la prévision
C52: L'Auteur à prévu sa recette pour : | D52: 0 | F52: Portion Net Auteur | G52: =G5/B53 -> 0.1 | I52: Net à fabriquer | J52: =(G54*G53)+(H54*H53)+(I54*I53)+(M54*M53) -> 0 | O52: 0
B53: =+F2 -> 10 | C53: =F3 -> Adultes | F53: Saisissez vos effectifs | G53: 0 | H53: 0 | I53: 0 | J53: Masquer les colonnes | L53: 0 | M53: 0 | N53: =SUM(G53:M53) -> 0 | O53: Effectif Total
C54: Avec vos effectifs et grammages | F54: et vos grammages | G54: 0 | H54: 0 | I54: 0 | J54: 0 | K54: 0 | L54: 0 | M54: 0 | N54: 0 | O54: 0
C55: Dupliquez la recette de l' Auteur par : | D55: 0 | E55: 0 | F55: 0 | G55: Mater | H55: Prim | I55: Adultes | J55: 0 | K55: 0 | L55: 0 | M55: Adultes + | N55: % perte | O55: 5
B56: 0 | C56: =J52/G52 -> 0 | D56: 0 | F56: Net à servir : | G56: =G54*G53 -> 0 | H56: =H54*H53 -> 0 | I56: =I54*I53 -> 0 | J56: 0 | K56: 0 | L56: 0 | M56: =M54*M53 -> 0 | N56: BRUT A COMMANDER
B57: Perte: | C57: =N57-J52 -> 0 | F57: Brut à Commander | G57: =G56/(100-O55)*100 -> 0 | H57: =H56/(100-O55)*100 -> 0 | I57: =I56/(100-O55)*100 -> 0 | L57: 0 | M57: =M56/(100-O55)*100 -> 0 | N57: =J52/(100-O55)*100 -> 0
B58: Conception 1998 Cuisine centrale de Clamart Joël Leboucher Adaptation 2009 Cuisine Centrale de Rochefort sur mer sur un document avec macro..de D.DEMILLY | O58: http://www.uprt.fr/copier_documents.html
B60: 6.14 | C60: 30 | D60: 6.57 | E60: 9 | F60: 11 | G60: 8.86 | H60: 10.29 | I60: 9.57 | J60: 4.86 | K60: 4.86 | L60: 1.14 | M60: 8 | N60: 7.86 | O60: 9.43 | P60: Largeurs de colonnes

Sheet FF.4_Portrait
N1: SALADE AU ROQUEFORT | O1: EF1
B2: Modèle | E2: La recette a été prévue pour: | F2: 10 | G2: Vous voulez la dupliquer pour: | I2: 100 | J2: 0 | K2: 0 | L2: 0 | M2: Recette éditée le :
B3: FF.4.Portrait | E3: Unités : couverts -Kglitre Produit etc.. | F3: Adultes | J3: 0 | K3: 0 | L3: 0 | M3: =NOW() -> 2021-12-15T11:26:41.450
B4: =MID(CELL("filename",A1),FIND("]",CELL("filename",A1))+1,32) -> FF.4_Portrait | D4: Poids | E4: UNITE | F4: % Perte | G4: Net Auteur | H4: NET à fabriquer | I4: Net Arrondi | J4: Masquer les colonnes | L4: 0 | M4: BRUT | N4: Prix unitaire | O4: Prix de Revient
B5: % | C5: PRODUITS | D5: =SUM(D7:D33) -> 3.75 | E5: 0 | F5: =IF(M5=0,0,(M5-I5)/M5*100) -> 0 | G5: =IF(SUM(G7:G33)=0,1,SUM(G7:G33)) -> 3.75 | H5: =SUM(H7:H33) -> 37.5 | I5: =SUM(I7:I33) -> 37.5 | J5: =F2 -> 10 | K5: =I2 -> 100 | L5: 0 | M5: =SUM(M7:M33) -> 37.5 | N5: =O5/I2 -> 0.2 | O5: =SUM(O7:O33) -> 20
B6: =B33 -> 1 | C6: L'Auteur à prévu cette recette pour | D6: =F2 -> 10 | E6: =F3 -> Adultes | G6: Vous la dupliquez pour | H6: =I2 -> 100 | I6: =F3 -> Adultes | J6: =J5 -> 10 | K6: =K5 -> 100 | L6: 0
B7: =IF(I5=0,0,I7/I5) -> 0.2666666667 | C7: Pommes de terre BF 15 | D7: 1 | E7: kg | G7: =IF(ISTEXT(D7),0,D7-(D7*F7%)) -> 1 | H7: =IF(G7=0,0,(G7/J7)*K7) -> 10 | I7: =ROUNDUP(H7,1) -> 10 | J7: =J5 -> 10 | K7: =K5 -> 100 | L7: 0 | M7: =ROUNDUP(IF(H7=0,0,H7/(100-F7)*100),1) -> 10 | O7: =N7*M7 -> 0
B8: =IF(I5=0,0,I8/I5) -> 0.5333333333 | C8: Sal. verte | D8: 2 | E8: pce | G8: 2 | H8: 20 | I8: 20 | J8: =J5 -> 10 | K8: =K5 -> 100 | L8: 0 | M8: 20 | N8: 1 | O8: 20 | R8: A LIRE
B9: =IF(I5=0,0,I9/I5) -> 0.02666666667 | C9: Roquefort | D9: 0.1 | E9: kg | G9: 0.1 | H9: 1 | I9: 1 | J9: =J5 -> 10 | K9: =K5 -> 100 | L9: 0 | M9: 1 | O9: 0 | R9: Pour COLLER du texte ou des formules dans cette feuille:
B10: =IF(I5=0,0,I10/I5) -> 0.02666666667 | C10: Echalote | D10: 0.1 | E10: kg | G10: 0.1 | H10: 1 | I10: 1 | J10: =J5 -> 10 | K10: =K5 -> 100 | L10: 0 | M10: 1 | O10: 0 | R10: bloquez l'activation des macro (seulement pour coller)
B11: =IF(I5=0,0,I11/I5) -> 0.02666666667 | C11: Noix | D11: 0.1 | E11: kg | G11: 0.1 | H11: 1 | I11: 1 | J11: =J5 -> 10 | K11: =K5 -> 100 | L11: 0 | M11: 1 | O11: 0 | R11: Cliquez sur
B12: =IF(I5=0,0,I12/I5) -> 0.02666666667 | C12: Tomate | D12: 0.1 | E12: kg | G12: 0.1 | H12: 1 | I12: 1 | J12: =J5 -> 10 | K12: =K5 -> 100 | L12: 0 | M12: 1 | O12: 0 | R12: 1 -Outils
B13: =IF(I5=0,0,I13/I5) -> 0 | C13: Persil | D13: pm | E13: Bqt | G13: 0 | H13: 0 | I13: 0 | J13: =J5 -> 10 | K13: =K5 -> 100 | L13: 0 | M13: 0 | O13: 0 | R13: 2 -Macro
B14: =IF(I5=0,0,I14/I5) -> 0 | C14: 0 | D14: 0 | E14: 0 | G14: 0 | H14: 0 | I14: 0 | J14: =J5 -> 10 | K14: =K5 -> 100 | L14: 0 | M14: 0 | O14: 0 | R14: 3 -Sécurité
B15: =IF(I5=0,0,I15/I5) -> 0.06666666667 | C15: Huile | D15: 0.25 | E15: l | G15: 0.25 | H15: 2.5 | I15: 2.5 | J15: =J5 -> 10 | K15: =K5 -> 100 | L15: 0 | M15: 2.5 | O15: 0 | R15: 4 Niveau de sécurité très élevé
B16: =IF(I5=0,0,I16/I5) -> 0.02133333333 | C16: Vinaigre | D16: 0.08 | E16: l | G16: 0.08 | H16: 0.8 | I16: 0.8 | J16: =J5 -> 10 | K16: =K5 -> 100 | L16: 0 | M16: 0.8 | O16: 0 | S16: Enregistrez -
B17: =IF(I5=0,0,I17/I5) -> 0.005333333333 | C17: Vin blanc sec | D17: 0.02 | E17: l | F17: 0 | G17: 0.02 | H17: 0.2 | I17: 0.2 | J17: =J5 -> 10 | K17: =K5 -> 100 | L17: 0 | M17: 0.2 | O17: 0 | S17: fermez le classeur
B18: =IF(I5=0,0,I18/I5) -> 0 | C18: Sel, poivre | D18: pm | E18: Pm | G18: 0 | H18: 0 | I18: 0 | J18: =J5 -> 10 | K18: =K5 -> 100 | L18: 0 | M18: 0 | O18: 0 | S18: puis ouvrez le pour travailler
B19: =IF(I5=0,0,I19/I5) -> 0 | C19: 0 | D19: 0 | E19: 0 | G19: 0 | H19: 0 | I19: 0 | J19: =J5 -> 10 | K19: =K5 -> 100 | L19: 0 | M19: 0 | O19: 0 | R19: Lorsque vous avez fini
B20: =IF(I5=0,0,I20/I5) -> 0 | C20: 0 | D20: 0 | E20: 0 | G20: 0 | H20: 0 | I20: 0 | J20: =J5 -> 10 | K20: =K5 -> 100 | L20: 0 | M20: 0 | O20: 0 | S20: 1 -Outils
B21: =IF(I5=0,0,I21/I5) -> 0 | C21: 0 | D21: 0 | E21: 0 | G21: 0 | H21: 0 | I21: 0 | J21: =J5 -> 10 | K21: =K5 -> 100 | L21: 0 | M21: 0 | O21: 0 | S21: 2 -Macro
B22: =IF(I5=0,0,I22/I5) -> 0 | C22: 0 | D22: 0 | E22: 0 | G22: 0 | H22: 0 | I22: 0 | J22: =J5 -> 10 | K22: =K5 -> 100 | L22: 0 | M22: 0 | O22: 0 | S22: 3 -Sécurité
B23: =IF(I5=0,0,I23/I5) -> 0 | C23: 0 | D23: 0 | E23: 0 | G23: 0 | H23: 0 | I23: 0 | J23: =J5 -> 10 | K23: =K5 -> 100 | L23: 0 | M23: 0 | O23: 0 | S23: 4 Niveau de sécurité moyen
B24: =IF(I5=0,0,I24/I5) -> 0 | C24: 0 | D24: 0 | E24: 0 | G24: 0 | H24: 0 | I24: 0 | J24: =J5 -> 10 | K24: =K5 -> 100 | L24: 0 | M24: 0 | O24: 0 | R24: Enregistrez -
B25: =IF(I5=0,0,I25/I5) -> 0 | C25: 0 | D25: 0 | E25: 0 | G25: 0 | H25: 0 | I25: 0 | J25: =J5 -> 10 | K25: =K5 -> 100 | L25: 0 | M25: 0 | O25: 0 | R25: fermez le classeur
B26: =IF(I5=0,0,I26/I5) -> 0 | C26: 0 | D26: 0 | E26: 0 | G26: 0 | H26: 0 | I26: 0 | J26: =J5 -> 10 | K26: =K5 -> 100 | L26: 0 | M26: 0 | O26: 0 | R26: puis ouvrez le pour l'utilisation
B27: =IF(I5=0,0,I27/I5) -> 0 | C27: 0 | D27: 0 | E27: 0 | G27: 0 | H27: 0 | I27: 0 | J27: =J5 -> 10 | K27: =K5 -> 100 | L27: 0 | M27: 0 | O27: 0 | R27: en cliquant sur Activer les macros
B28: =IF(I5=0,0,I28/I5) -> 0 | C28: 0 | D28: 0 | E28: 0 | G28: 0 | H28: 0 | I28: 0 | J28: =J5 -> 10 | K28: =K5 -> 100 | L28: 0 | M28: 0 | O28: 0
B29: =IF(I5=0,0,I29/I5) -> 0 | C29: 0 | D29: 0 | E29: 0 | G29: 0 | H29: 0 | I29: 0 | J29: =J5 -> 10 | K29: =K5 -> 100 | L29: 0 | M29: 0 | O29: 0
B30: =IF(I5=0,0,I30/I5) -> 0 | C30: 0 | D30: 0 | E30: 0 | G30: 0 | H30: 0 | I30: 0 | J30: =J5 -> 10 | K30: =K5 -> 100 | L30: 0 | M30: 0 | O30: 0
B31: =IF(I5=0,0,I31/I5) -> 0 | C31: 0 | D31: 0 | E31: 0 | G31: 0 | H31: 0 | I31: 0 | J31: =J5 -> 10 | K31: =K5 -> 100 | L31: 0 | M31: 0 | O31: 0
B32: =IF(I5=0,0,I32/I5) -> 0 | C32: 0 | D32: 0 | E32: 0 | G32: 0 | H32: 0 | I32: 0 | J32: =J5 -> 10 | K32: =K5 -> 100 | L32: 0 | M32: 0 | O32: 0
B33: =SUM(B7:B32) -> 1 | D33: 0 | E33: 0 | F33: 0 | G33: =D33-(D33*F33%) -> 0 | H33: 0 | I33: 0 | J33: =J5 -> 10 | K33: =K5 -> 100 | L33: 0 | M33: =IF(H33=0,0,H33/(100-F33)*100) -> 0 | O33: 0
B34: Recettes A.F.P.A St Nazaire / Jean-Marc CATTEAU Formation : Agents de Restauration
B35: =CELL("filename",A1) -> E:\0-UPRT\1-UPRT.FR-SITE-WEB\ff-fiches-fabrications\ff-fiches-fabrication-maj-08-2020\[ff-4-collectivite-avec-macro.xlsm]FF.4_Portrait
B36: MÉTHODE D'EXÉCUTION | G36: TECHNIQUES MISES EN ŒUVRE | M36: PLATS SIMILAIRES
C37: 0 | G37: Traitement des p. de terre | M37: 0
C38: Laver et éplucher les légumes | G38: Variante de vinaigrette | M38: 0
C39: Cuire les pommes de terre | G39: 0 | M39: 0
C40: Ciseler les échalotes | G40: 0 | M40: 0
C41: Confectionner la vinaigrette | G41: 0 | M41: 0
C42: Ajouter le vin blanc et les échalotes | G42: 0 | M42: 0
C43: Mélanger les pommes de terre, la sauce et le roquefort | G43: 0 | M43: LÉGUMES CONSEILLÉS
C44: Dresser sur un lit de salade | G44: 0 | M44: 0
C45: Décorer avec les noix, les tomates et le persil | G45: 0 | M45: 0
C46: 0 | G46: 0 | M46: 0
C47: 0 | G47: 0 | M47: 0
C48: 0 | G48: 0 | M48: 0
C49: 0 | G49: 0 | H49: 0 | M49: 0
C50: 0 | G50: 0 | M50: 0
B51: UPRT : Union des Personnels de la Restauration Territoriale Aide à la prévision
C52: L'Auteur à prévu sa recette pour : | D52: 0 | F52: Portion Net Auteur | G52: =G5/B53 -> 0.375 | I52: Net à fabriquer | J52: =(G54*G53)+(H54*H53)+(I54*I53)+(M54*M53) -> 0 | O52: 0
B53: =+F2 -> 10 | C53: =F3 -> Adultes | F53: Saisissez vos effectifs | G53: 0 | H53: 0 | I53: 0 | J53: Masquer les colonnes | L53: 0 | M53: 0 | N53: =SUM(G53:M53) -> 0 | O53: Effectif Total
C54: Avec vos effectifs et grammages | F54: et vos grammages | G54: 0 | H54: 0 | I54: 0 | J54: 0 | K54: 0 | L54: 0 | M54: 0 | N54: 0 | O54: 0
C55: Dupliquez la recette de l' Auteur par : | D55: 0 | E55: 0 | F55: 0 | G55: Mater | H55: Prim | I55: Adultes | J55: 0 | K55: 0 | L55: 0 | M55: Adultes + | N55: % perte | O55: 5
B56: 0 | C56: =J52/G52 -> 0 | D56: 0 | F56: Net à servir : | G56: =G54*G53 -> 0 | H56: =H54*H53 -> 0 | I56: =I54*I53 -> 0 | J56: 0 | K56: 0 | L56: 0 | M56: =M54*M53 -> 0 | N56: BRUT A COMMANDER
B57: Perte: | C57: =N57-J52 -> 0 | F57: Brut à Commander | G57: =G56/(100-O55)*100 -> 0 | H57: =H56/(100-O55)*100 -> 0 | I57: =I56/(100-O55)*100 -> 0 | L57: 0 | M57: =M56/(100-O55)*100 -> 0 | N57: =J52/(100-O55)*100 -> 0
B58: Conception 1998 Cuisine centrale de Clamart Joël Leboucher Adaptation 2009 Cuisine Centrale de Rochefort sur mer sur un document avec macro..de D.DEMILLY | O58: http://www.uprt.fr/copier_documents.html
B60: 6.14 | C60: 30 | D60: 6.57 | E60: 9 | F60: 11 | G60: 8.86 | H60: 10.29 | I60: 9.57 | J60: 4.86 | K60: 4.86 | L60: 1.14 | M60: 8 | N60: 7.86 | O60: 9.43 | P60: Largeurs de colonnes

Sheet Contenants
C2: Les cellules réservées à la saisies de vos données sont à fond IVOIRE et les Produit encre bleue
C3: Combien de gastronormes devez vous utiliser pour la cuisson ou le service
B5: Gastronormes tableau N° 1 | T5: Estimation des contenants
B8: Partie du document réservée à la saisie | L8: En fonction des informations saisies : nombre de gasto à utiliser
B9: PRODUITS | E9: Contenance 1 Gastro | F9: Quoi? | G9: EFFECTIFS | L9: A conditionner | N9: Total gastronormes au choix
G10: Mater | H10: Prim | I10: Adultes | J10: Adultes + | K10: Ainés
G11: 1 | H11: 1 | I11: 1 | J11: 1 | K11: 1 | L11: Total Effectifs
G12: Quantité Grammage ou Nb de Mx ou tranche par convive | L12: =SUM(G11:K11) -> 5
T13: Service à la portion
B14: Poulet 4/4 Cuisses CRUES | E14: 16 | F14: Cuisses | G14: 0.5 | H14: 1 | I14: 1 | J14: 1 | K14: 1 | L14: =(G14*G11)+(H14*H11)+(I14*I11)+(J14*J11)+(K14*K11) -> 4.5 | M14: =F14 -> Cuisses | O14: =IF(L14=0,0,INT(L14/E14)) -> 0 | P14: =L14-(O14*E14) -> 4.5 | Q14: =IF(P14=0,0,F14) -> Cuisses | R14: =IF(P14=0,0,O14+1) -> 1 | S14: =IF(P14=0,0,L14-(R14*E14)) -> -11.5 | T14: =IF(S14=0,0,F14) -> Cuisses
B15: Poulet 4/4 Cuisses petites CUITES | E15: 24 | F15: Cuisses | G15: 0.5 | H15: 1 | I15: 1 | J15: 1 | K15: 1 | L15: =(G15*G11)+(H15*H11)+(I15*I11)+(J15*J11)+(K15*K11) -> 4.5 | M15: Cuisses | O15: 0 | P15: 4.5 | Q15: Cuisses | R15: 1 | S15: -19.5 | T15: Cuisses
B16: Poulet 4/4 Cuisses Grosses CUITES | E16: 20 | F16: Cuisses | G16: 1 | H16: 1 | I16: 1 | J16: 1 | K16: 1 | L16: =(G16*G11)+(H16*H11)+(I16*I11)+(J16*J11)+(K16*K11) -> 5 | M16: Cuisses | O16: 0 | P16: 5 | Q16: Cuisses | R16: 1 | S16: -15 | T16: Cuisses
B17: escalopes de volailles cuites 120g | E17: 25 | F17: escalopes | G17: 0.5 | H17: 1 | I17: 1 | J17: 1 | K17: 1 | L17: =(G17*G11)+(H17*H11)+(I17*I11)+(J17*J11)+(K17*K11) -> 4.5 | M17: escalopes | O17: 0 | P17: 4.5 | Q17: escalopes | R17: 1 | S17: -20.5 | T17: escalopes
B18: Paupiettes de dindes 120g | E18: 25 | F18: paupiettes | G18: 0.5 | H18: 1 | I18: 1 | J18: 1 | K18: 1 | L18: =(G18*G11)+(H18*H11)+(I18*I11)+(J18*J11)+(K18*K11) -> 4.5 | M18: paupiettes | O18: 0 | P18: 4.5 | Q18: paupiettes | R18: 1 | S18: -20.5 | T18: paupiettes
B19: Cuisses de canard cuites 200g GN 1/1 H65 | E19: 12 | F19: Cuisses | G19: 1 | H19: 1 | I19: 1 | J19: 1 | K19: 1 | L19: =(G19*G11)+(H19*H11)+(I19*I11)+(J19*J11)+(K19*K11) -> 5 | M19: Cuisses | O19: 0 | P19: 5 | Q19: Cuisses | R19: 1 | S19: -7 | T19: Cuisses
B20: Viande tranchée | E20: 60 | F20: tranches | G20: 1 | H20: 1.5 | I20: 2 | J20: 3 | K20: 2 | L20: =(G20*G11)+(H20*H11)+(I20*I11)+(J20*J11)+(K20*K11) -> 9.5 | M20: tranches | O20: 0 | P20: 9.5 | Q20: tranches | R20: 1 | S20: -50.5 | T20: tranches
B21: Tomates farcies | E21: 20 | F21: tomates | G21: 1 | H21: 1.5 | I21: 2 | J21: 3 | K21: 2 | L21: =(G21*G11)+(H21*H11)+(I21*I11)+(J21*J11)+(K21*K11) -> 9.5 | M21: tomates | O21: 0 | P21: 9.5 | Q21: tomates | R21: 1 | S21: -10.5 | T21: tomates
T22: Service au poids
B23: Sautés en morceaux | E23: 3 | F23: Kg | G23: 0.075 | H23: 0.09 | I23: 0.15 | J23: 0.18 | K23: 0.13 | L23: =(G23*G11)+(H23*H11)+(I23*I11)+(J23*J11)+(K23*K11) -> 0.625 | M23: =F23 -> Kg | O23: =IF(L23=0,0,INT(L23/E23)) -> 0 | P23: =L23-(O23*E23) -> 0.625 | Q23: =IF(P23=0,0,F23) -> Kg | R23: =IF(P23=0,0,O23+1) -> 1 | S23: =IF(P23=0,0,L23-(R23*E23)) -> -2.375 | T23: =IF(S23=0,0,F23) -> Kg
B24: Tartiflette GN 1/1 H65 | E24: 7.2 | F24: Kg | G24: 0.2 | H24: 0.25 | I24: 0.35 | J24: 0.45 | K24: 0.35 | L24: =(G24*G11)+(H24*H11)+(I24*I11)+(J24*J11)+(K24*K11) -> 1.6 | M24: Kg | O24: =IF(L24=0,0,INT(L24/E24)) -> 0 | P24: =L24-(O24*E24) -> 1.6 | Q24: =IF(P24=0,0,F24) -> Kg | R24: =IF(P24=0,0,O24+1) -> 1 | S24: =IF(P24=0,0,L24-(R24*E24)) -> -5.6 | T24: =IF(S24=0,0,F24) -> Kg
B25: Brandade de morue | E25: 4 | F25: Kg | G25: 0.2 | H25: 0.25 | I25: 0.35 | J25: 0.45 | K25: 0.35 | L25: =(G25*G11)+(H25*H11)+(I25*I11)+(J25*J11)+(K25*K11) -> 1.6 | M25: Kg | O25: =IF(L25=0,0,INT(L25/E25)) -> 0 | P25: =L25-(O25*E25) -> 1.6 | Q25: =IF(P25=0,0,F25) -> Kg | R25: =IF(P25=0,0,O25+1) -> 1 | S25: =IF(P25=0,0,L25-(R25*E25)) -> -2.4 | T25: =IF(S25=0,0,F25) -> Kg
B27: Hachis Parmentier | T27: Service au choix : au poids ou à la portion
F28: Poids standard d'une Portion Adulte | G28: 0.45 | H28: Kg | P28: Combien de portions standard dans un GN 1/1 H65 | Q28: 10 | R28: portions
G29: Mater | H29: Prim | I29: Adultes | J29: Adultes + | K29: Ainés
F30: Grammage à servir par personne | G30: 0.2 | H30: 0.25 | I30: 0.35 | J30: 0.45 | K30: 0.35 | L30: =(G30*G11)+(H30*H11)+(I30*I11)+(J30*J11)+(K30*K11) -> 1.6 | M30: =H28 -> Kg | N30: =G28*Q28 -> 4.5 | O30: =IF(L30=0,0,INT(L30/(G28*Q28))) -> 0 | P30: =L30-(O30*(G28*Q28)) -> 1.6 | Q30: =IF(P30=0,0,H28) -> Kg | R30: =IF(P30=0,0,O30+1) -> 1 | S30: =IF(P30=0,0,L30-(R30*N30)) -> -2.9 | T30: =IF(S30=0,0,H28) -> Kg
F31: Equivalence en nombre de portions standards | G31: =G30/G28 -> 0.4444444444 | H31: =H30/G28 -> 0.5555555556 | I31: =I30/G28 -> 0.7777777778 | J31: =J30/G28 -> 1 | K31: =K30/G28 -> 0.7777777778 | L31: =(G31*G11)+(H31*H11)+(I31*I11)+(J31*J11)+(K31*K11) -> 3.555555556 | M31: =R28 -> portions | O31: =IF(L31=0,0,INT(L31/Q28)) -> 0 | P31: =L31-(O31*Q28) -> 3.555555556 | Q31: =IF(P31=0,0,R28) -> portions | R31: =IF(P31=0,0,O31+1) -> 1 | S31: =IF(P31=0,0,L31-(R31*Q28)) -> -6.444444444 | T31: =IF(S31=0,0,R28) -> portions
B33: Gastronormes tableau N° 2 | T33: Estimation des contenants
B34: Conditionnement pour service ou cuisson | T34: A LA PORTION
B35: Partie du document réservée à la saisie | K35: En fonction des informations saisies : nombre de gasto à utiliser
B36: PRODUITS | F36: Contenance 1 Gastro | G36: Quoi? | I36: Quantité ou Grammage p.p. | J36: Effectif | K36: 1 Gastro pour : | L36: A conditionner | O36: Total gastronormes au choix
B37: Poulet 4/4 Cuisses | F37: 16 | G37: Cuisses | I37: 1 | J37: 1250 | K37: =F37/I37 -> 16 | L37: =I37*J37 -> 1250 | M37: =G37 -> Cuisses | O37: =IF(L37=0,0,INT(L37/F37)) -> 78 | P37: =L37-(O37*F37) -> 2 | Q37: =IF(P37=0,0,G37) -> Cuisses | R37: =IF(P37=0,0,O37+1) -> 79 | S37: =IF(P37=0,0,L37-(R37*F37)) -> -14 | T37: =IF(S37=0,0,G37) -> Cuisses
B40: Gastronormes tableau N° 3 | T40: Estimation des contenants
B41: Conditionnement pour service ou cuisson | T41: AU POIDS
B42: Partie du document réservée à la saisie | K42: En fonction des informations saisies : nombre de gasto à utiliser
B43: PRODUITS | F43: Contenance 1 Gastro | G43: Quoi? | H43: Combien de portions dans un gastro | J43: Effectif | K43: Quantité ou Grammage p.p. | M43: A conditionner | O43: Total gastronormes au choix
B44: Sautés en morceaux | F44: 3 | G44: Kg | H44: 23 | J44: 100 | K44: =F44/H44 -> 0.1304347826 | M44: =K44*J44 -> 13.04347826 | N44: =G44 -> Kg | O44: =IF(M44=0,0,INT(M44/F44)) -> 4 | P44: =M44-(O44*F44) -> 1.043478261 | Q44: =IF(P44=0,0,G44) -> Kg | R44: =IF(P44=0,0,O44+1) -> 5 | S44: =IF(P44=0,0,M44-(R44*F44)) -> -1.956521739 | T44: =IF(S44=0,0,G44) -> Kg
B48: FICHE DE CONDITIONNEMENT
B52: DATE : | C52: =NOW() -> 2021-12-15T11:26:41.450 | E52: NAVARIN D'AGNEAU PRINTANIER (JP.Domergues) | M52: FICHE : | N52: PC | O52: 1 | R52: Elément principal : AGNEAU : "Sauté d'agneau sans osépaule collier" Choux FleurPâte à choux etc….. OU Famille : Hors d'œuvre Plat Légume Dessert
B54: AGNEAU : Sauté d'agneau sans osépaule collier
R55: Saisissez vos valeurs dans les cellules fond jaune ou ivoire
B56: VIANDE NET A SERVIR ET BRUT A COMMANDER
B58: Famille de convives | C58: Effectif | D58: Poids NET p.p. | E58: Nb Mx p.p.. | F58: % Perte | G58: Poids BRUT 1 portion | I58: NET Total à servir / conditionner | K58: Total Brut à commander/conditionner | M58: Observations :
B61: M | C61: 100 | D61: 0.05 | E61: 1.2 | F61: 30 | G61: =(D61*E61)/(100-F61)*100 -> 0.08571428571 | H61: Kg | I61: =(D61*E61)*C61 -> 6 | J61: Kg | K61: =G61*C61 -> 8.571428571 | L61: Kg | R61: Hauteur de ligne = 18
B62: P | C62: 100 | D62: 0.07 | E62: 2 | F62: 30 | G62: 0.2 | H62: Kg | I62: 14 | J62: Kg | K62: 20 | L62: Kg
B63: A | C63: 100 | D63: 0.11 | E63: 2.5 | F63: 30 | G63: 0.3928571429 | H63: Kg | I63: 27.5 | J63: Kg | K63: 39.28571429 | L63: Kg
B64: A + | C64: 100 | D64: =(D63*M64%)+D63 -> 0.121 | E64: 3 | F64: 30 | G64: 0.5185714286 | H64: Kg | I64: 36.3 | J64: Kg | K64: 51.85714286 | L64: Kg | M64: 10 | N64: % pour A+
B65: PAM | C65: 8 | D65: 0.1 | E65: 2.5 | F65: 30 | G65: 0.3571428571 | H65: Kg | I65: 2 | J65: Kg | K65: 2.857142857 | L65: Kg | M65: Quel % supplémentaire ajoutez vous a une portion Adulte sédentaire pour un Adulte +
B66: PAS. | C66: 4 | D66: 0.07 | E66: 2 | F66: 30 | G66: 0.2 | H66: Kg | I66: 0.56 | J66: Kg | K66: 0.8 | L66: Kg
B67: POIDS DE VIANDE A SERVIR ET A COMMANDER
B68: TOTAUX | C68: =SUM(C61:C66) -> 412 | I68: =SUM(I61:I66) -> 86.36 | J68: Kg | K68: =SUM(K61:K66) -> 123.3714286 | L68: Kg
B70: CONTENANTS
B72: Saisissez le type de contenant et le poids BRUT par contenant si vous avez saisi des % de perte (si vous faites de la cuisson) ou poids NETS | C72: Effectif | D72: Type de contenant | E72: Cuisson Poids. Brut 1 cont.* | F72: Poids Net dans 1 contenant * | G72: Total NET à servir | H72: Total contenants * service au poids | K72: Nb Pce ou Mx dans 1 Cont | L72: Total Pce / Mx | M72: Total contenants * service a la pièce ou au morceaux
R73: Saisissez le type de contenant et le poids BRUT par contenant si vous avez saisi des % de perte (si vous faites de la cuisson) ou poids NETS
B79: M | C79: =C61 -> 100 | D79: Gastro 1/1 | E79: 5 | F79: =IF(C79=0,0,E79-(E79*F61%)) -> 3.5 | G79: =I61 -> 6 | H79: =IF(I61=0,0,INT(I61/F79)) -> 1 | I79: =I61-(F79*H79) -> 2.5 | J79: =IF(I79=0,0,"Kg") -> Kg | K79: 12 | L79: =C61*E61 -> 120 | M79: =IF(K79=0,0,INT(E61*C61/K79)) -> 10 | N79: =(C61*E61)-(M79*K79) -> 0 | O79: =IF(N79=0,0,"Pièce /Mx") -> 0 | R79: Saisissez vos valeurs dans les cellules fond jaune ou ivoire
B80: P | C80: 100 | D80: Gastro 1/1 | E80: 1.5 | F80: 1.05 | G80: 14 | H80: 13 | I80: 0.35 | J80: Kg | K80: 20 | L80: 200 | M80: 10 | N80: 0 | O80: 0
B81: A | C81: 100 | D81: Gastro 1/1 | E81: 1.5 | F81: 1.05 | G81: 27.5 | H81: 26 | I81: 0.2 | J81: Kg | K81: 20 | L81: 250 | M81: 12 | N81: 10 | O81: Pièce /Mx | R81: Hauteur de ligne = 18
B82: A + | C82: 100 | D82: Gastro 1/1 | E82: 1.5 | F82: 1.05 | G82: 36.3 | H82: 34 | I82: 0.6 | J82: Kg | K82: 20 | L82: 300 | M82: 15 | N82: 0 | O82: 0
B83: PAM | C83: 8 | D83: Gastro 1/1 | E83: 1.5 | F83: 1.05 | G83: 2 | H83: 1 | I83: 0.95 | J83: Kg | K83: 20 | L83: 20 | M83: 1 | N83: 0 | O83: 0
B84: PAS. | C84: 4 | D84: Gastro 1/1 | E84: 1.5 | F84: 1.05 | G84: 0.56 | H84: 0 | I84: 0.56 | J84: Kg | K84: 20 | L84: 8 | M84: 0 | N84: 8 | O84: Pièce /Mx
B85: TOTAL CONTENANTS A PRÉVOIR
B86: TOTAUX | C86: =SUM(C79:C84) -> 412 | F86: =SUM(G79:G84) -> 86.36 | G86: =+J79 -> Kg | H86: =SUM(H79:H84) -> 75 | I86: =SUM(I79:I84) -> 5.16 | J86: =IF(I86=0,0,"Kg") -> Kg | L86: =SUM(L79:L84) -> 898 | M86: =SUM(M79:M84) -> 48 | N86: =SUM(N79:N84) -> 18 | O86: =IF(N86=0,0,"Pièce /Mx") -> Pièce /Mx
B89: SAUCE | G89: Poids de sauce dans une louche | I89: 0.15
B91: Famille de convives | C91: Effectif | D91: Poids NET p.p. | E91: % Perte | F91: Poids BRUT 1 portion | H91: 1 louche pour | I91: Poids NET Total à servir / conditionner | K91: Total Brut à commander/conditionner | M91: Observations :
R92: Saisissez vos valeurs dans les cellules fond jaune ou ivoire
B93: M | C93: =C61 -> 100 | D93: 0.03 | E93: 2 | F93: =IF(C93=0,0,(D93/(100-E93)*100)) -> 0.0306122449 | G93: Kg | H93: =I89/D93 -> 5 | I93: =D93*C93 -> 3 | J93: Kg | K93: =F93*C93 -> 3.06122449 | L93: Kg
B94: P | C94: 100 | D94: 0.04 | E94: 2 | F94: 0.04081632653 | G94: Kg | H94: =I89/D94 -> 3.75 | I94: 4 | J94: Kg | K94: 4.081632653 | L94: Kg
B95: A | C95: 100 | D95: 0.06 | E95: 2 | F95: 0.0612244898 | G95: Kg | H95: =I89/D95 -> 2.5 | I95: 6 | J95: Kg | K95: 6.12244898 | L95: Kg
B96: A + | C96: 100 | D96: 0.07 | E96: 2 | F96: 0.07142857143 | G96: Kg | H96: =I89/D96 -> 2.142857143 | I96: 7 | J96: Kg | K96: 7.142857143 | L96: Kg | R96: Hauteur de ligne = 18
B97: PAM | C97: 8 | D97: 0.06 | E97: 2 | F97: 0.0612244898 | G97: Kg | H97: =I89/D97 -> 2.5 | I97: 0.48 | J97: Kg | K97: 0.4897959184 | L97: Kg
B98: PAS. | C98: 4 | D98: 0.05 | E98: 2 | F98: 0.05102040816 | G98: Kg | H98: =I89/D98 -> 3 | I98: 0.2 | J98: Kg | K98: 0.2040816327 | L98: Kg
B99: TOTAUX | C99: =SUM(C93:C98) -> 412 | I99: =SUM(I93:I98) -> 20.68 | J99: Kg | K99: =SUM(K93:K98) -> 21.10204082 | L99: Kg
B100: SAUCE POIDS NOMBRE DE GASTRO ET DE LOUCHES POUR LE SERVICE
B102: Saisissez le type de contenant et le poids BRUT par contenant si vous avez saisi des % de perte (si vous faites de la cuisson) ou poids NETS | C102: Effectif | D102: Type de contenant | E102: Poids Brut 1 cont.* | F102: Poids Net dans 1 contenant * | G102: Total NET à servir | H102: Total contenants * service au poids | K102: Nb de louches dans 1 Cont | L102: Total louches | M102: Total contenants * service a la louche | R102: Saisissez le type de contenant et le poids BRUT par contenant si vous avez saisi des % de perte (si vous faites de la cuisson) ou poids NETS
B106: M | C106: =C93 -> 100 | D106: Gastro 1/1 | E106: 2.5 | F106: =IF(C106=0,0,E106-(E106*E93%)) -> 2.45 | G106: =I93 -> 3 | H106: =IF(I93=0,0,INT(I93/F106)) -> 1 | I106: =I93-(F106*H106) -> 0.55 | J106: =IF(I106=0,0,"Kg") -> Kg | K106: 12 | L106: =C93/H93 -> 20 | M106: =IF(C93=0,0,INT(L106/K106)) -> 1 | N106: =(C93/H93)-(M106*K106) -> 8 | O106: =IF(N106=0,0,"Louches") -> Louches | R106: Saisissez vos valeurs dans les cellules fond jaune ou ivoire
B107: P | C107: 100 | D107: Gastro 1/1 | E107: 2.5 | F107: 2.45 | G107: 4 | H107: 1 | I107: 1.55 | J107: Kg | K107: 20 | L107: 26.66666667 | M107: 1 | N107: 6.666666667 | O107: Louches
B108: A | C108: 100 | D108: Gastro 1/1 | E108: 2.5 | F108: 2.45 | G108: 6 | H108: 2 | I108: 1.1 | J108: Kg | K108: 13 | L108: 40 | M108: 3 | N108: 1 | O108: Louches
B109: A + | C109: 100 | D109: Gastro 1/1 | E109: 2.5 | F109: 2.45 | G109: 7 | H109: 2 | I109: 2.1 | J109: Kg | K109: 20 | L109: 46.66666667 | M109: 2 | N109: 6.666666667 | O109: Louches | R109: Hauteur de ligne = 18
B110: PAM | C110: 8 | D110: Gastro 1/1 | E110: 2.5 | F110: 2.45 | G110: 0.48 | H110: 0 | I110: 0.48 | J110: Kg | K110: 7.5 | L110: 3.2 | M110: 0 | N110: 3.2 | O110: Louches
B111: PAS. | C111: 4 | D111: Gastro 1/1 | E111: 2.5 | F111: 2.45 | G111: 0.2 | H111: 0 | I111: 0.2 | J111: Kg | K111: 10 | L111: 1.333333333 | M111: 0 | N111: 1.333333333 | O111: Louches
B112: TOTAUX | C112: =SUM(C106:C111) -> 412 | G112: =SUM(G106:G111) -> 20.68 | H112: =SUM(H106:H111) -> 6 | I112: =SUM(I106:I111) -> 5.98 | J112: Kg | L112: =SUM(L106:L111) -> 137.8666667 | M112: =SUM(M106:M111) -> 7 | N112: =SUM(N106:N111) -> 26.86666667 | O112: Louches
B114: GARNITURE DE FINITION
B116: Famille de convives | C116: Effectif | D116: Poids NET p.p. | E116: Nb louche /Mx p.p | F116: % Perte | G116: Poids BRUT 1 portion | I116: Poids NET Total à servir / conditionner | K116: Total Brut à commander/conditionner | M116: Observations :
B118: M | C118: =C61 -> 100 | D118: 0.04 | E118: 1 | F118: 5 | G118: =IF(C118=0,0,(D118*E118)/(100-F118)*100) -> 0.04210526316 | I118: =(D118*E118)*C118 -> 4 | K118: =G118*C118 -> 4.210526316 | R118: Saisissez vos valeurs dans les cellules fond jaune ou ivoire
B119: P | C119: 100 | D119: 0.04 | E119: 1 | F119: 5 | G119: 0.04210526316 | I119: 4 | K119: 4.210526316
B120: A | C120: 100 | D120: 0.1 | E120: 1 | F120: 5 | G120: 0.1052631579 | I120: 10 | K120: 10.52631579
B121: A + | C121: 100 | D121: 0.09 | E121: 1 | F121: 5 | G121: 0.09473684211 | I121: 9 | K121: 9.473684211 | R121: Hauteur de ligne = 18
B122: PAM | C122: 8 | D122: 0.1 | E122: 1 | F122: 5 | G122: 0.1052631579 | I122: 0.8 | K122: 0.8421052632
B123: PAS. | C123: 4 | D123: 0.07 | E123: 1 | F123: 5 | G123: 0.07368421053 | I123: 0.28 | K123: 0.2947368421
B124: TOTAUX | C124: =SUM(C118:C123) -> 412 | I124: =SUM(I118:I123) -> 28.08 | K124: =SUM(K118:K123) -> 29.55789474
B125: GARNITURE DE FINITION POIDS NOMBRE DE GASTRO ET DE LOUCHES POUR LE SERVICE
B127: Saisissez le type de contenant et le poids BRUT par contenant si vous avez saisi des % de perte (si vous faites de la cuisson) ou poids NETS | C127: Effectif | D127: Type de contenant | E127: Poids Brut 1 cont.* | F127: Poids Net dans 1 contenant * | G127: Total NET à servir | H127: Total contenants * service au poids | K127: Nb louches/Mx dans 1 Cont | L127: Total louches | M127: Total contenants * service a la louche ou aux morceaux | R127: Saisissez le type de contenant et le poids BRUT par contenant si vous avez saisi des % de perte (si vous faites de la cuisson) ou poids NETS
B131: M | C131: =C118 -> 100 | D131: Gastro 1/1 | E131: 5 | F131: =IF(C131=0,0,E131-(E131*F118%)) -> 4.75 | G131: =I118 -> 4 | H131: =IF(I118=0,0,INT(I118/F131)) -> 0 | I131: =I118-(F131*H131) -> 4 | J131: kg | K131: 12 | L131: =C118*E118 -> 100 | M131: =IF(K131=0,0,INT(E118*C118/K131)) -> 8 | N131: =(C118*E118)-(M131*K131) -> 4 | O131: =IF(N131=0,0,"Louches/Mx") -> Louches/Mx
B132: P | C132: 100 | D132: Gastro 1/1 | E132: 1.5 | F132: 1.425 | G132: 4 | H132: 2 | I132: 1.15 | J132: kg | K132: 20 | L132: 100 | M132: 5 | N132: 0 | O132: 0 | R132: Saisissez vos valeurs dans les cellules fond jaune ou ivoire
B133: A | C133: 100 | D133: Gastro 1/1 | E133: 1.5 | F133: 1.425 | G133: 10 | H133: 7 | I133: 0.025 | J133: kg | K133: 20 | L133: 100 | M133: 5 | N133: 0 | O133: 0
B134: A + | C134: 100 | D134: Gastro 1/1 | E134: 1.5 | F134: 1.425 | G134: 9 | H134: 6 | I134: 0.45 | J134: kg | K134: 20 | L134: 100 | M134: 5 | N134: 0 | O134: 0 | R134: Hauteur de ligne = 18
B135: PAM | C135: 8 | D135: Gastro 1/1 | E135: 1.5 | F135: 1.425 | G135: 0.8 | H135: 0 | I135: 0.8 | J135: kg | K135: 20 | L135: 8 | M135: 0 | N135: 8 | O135: Louches/Mx
B136: PAS. | C136: 4 | D136: Gastro 1/1 | E136: 1.5 | F136: 1.425 | G136: 0.28 | H136: 0 | I136: 0.28 | J136: kg | K136: 20 | L136: 4 | M136: 0 | N136: 4 | O136: Louches/Mx
B137: TOTAUX | C137: =SUM(C131:C136) -> 412 | G137: =SUM(G131:G136) -> 28.08 | H137: =SUM(H131:H136) -> 15 | I137: =SUM(I131:I136) -> 6.705 | J137: kg | L137: =SUM(L131:L136) -> 412 | M137: =SUM(M131:M136) -> 23 | N137: =SUM(N131:N136) -> 16 | O137: Louches/Mx
B140: M. Enfants en maternelle | F140: A . Adolescents,adultes,personnes agées si portage à domicile | M140: Adultes +
B141: P. Enfants en classe élémentaire | F141: PAM. Personnes Agées en institution déjeuner Midi | L141: PAS. Personnes Agées en institution diner Soir
B142: Saisissez vos valeurs dans les cellules fond jaune ou ivoire
B143: =SUBSTITUTE(ADDRESS(1,COLUMN(),4),"1","") -> B | C143: =SUBSTITUTE(ADDRESS(1,COLUMN(),4),"1","") -> C | D143: D | E143: E | F143: F | G143: G | H143: H | I143: I | J143: J | K143: K | L143: L | M143: M | N143: N | O143: O | R143: Fonction N° de colonne Alpha =SUBSTITUE(ADRESSE(1;COLONNE();4);"1";"")
B144: FICHE DE CONDITIONNEMENT
B145: Adresse PC | C145: =CELL("nomfichier") -> E:\0-UPRT\1-UPRT.FR-SITE-WEB\ff-fiches-fabrications\ff-fiches-fabrication-maj-08-2020\[ff-4-collectivite-avec-macro.xlsm]Formats-Formules-Fonctions
B146: Mise à jour | C146: du 13-02-2017Annule et remplace les versions précédentes
B147: Adaptation : Joël Leboucher..UPRT "Union des Personnels de la Restauration Territoriale" membre du réseau RESTAU'CO
B150: DATE : | C150: =NOW() -> 2021-12-15T11:26:41.450 | D150: GRAMMAGES GEM/RCN | J150: FICHE : | K150: ? | L150: 1 | N150: Adultes + = GEM/RCN grammages (Adolescents Adultes) + %
N151: A vous de modifier les grammages en fonction des modifications futures ou de votre établissement
B152: ATTENTION ces tableaux n'ont pas le même nombre de colonnes que les fiches recettes . DONC évitez de coller les cellules dans vos fiches
N153: Fonction N° de colonne Alpha =SUBSTITUE(ADRESSE(1;COLONNE();4);"1";"")
B155: =SUBSTITUTE(ADDRESS(1,COLUMN(),4),"1","") -> B | C155: C | D155: D | E155: E | F155: F | G155: G | H155: H | I155: I | J155: J | K155: K | L155: L | P155: =SUBSTITUTE(ADDRESS(1,COLUMN(),4),"1","") -> P | Q155: Q | R155: R | S155: S | T155: T | U155: U | V155: V
B156: =CELL("nomfichier") -> E:\0-UPRT\1-UPRT.FR-SITE-WEB\ff-fiches-fabrications\ff-fiches-fabrication-maj-08-2020\[ff-4-collectivite-avec-macro.xlsm]Formats-Formules-Fonctions | P156: M. Maternelle Enfants en maternelle | Q156: P. Primaire Enfants en classe élémentaire | R156: A . Ado/Adult Adolescents,adultes,personnes agées si portage à domicile | S156: Adultes + | T156: PAM. Personnes Agées en institution déjeuner Midi | U156: PAS. Personnes Agées en institution diner Soir | V156: TOTAL
B157: PRODUITS prêts à consommer en Kg ou à la pièce | F157: M. Maternelle Enfants en maternelle | G157: P. Primaire Enfants en classe élémentaire | H157: A . Ado/Adult Adolescents,adultes,personnes agées si portage à domicile | I157: Adultes + | J157: PAM. Personnes Agées en institution déjeuner Midi | K157: PAS. Personnes Agées en institution diner Soir | L157: Adultes + = GEM/RCN grammages (Adolescents Adultes) + %
P163: Mater | Q163: Prim | R163: Adultes | S163: Adultes + | T163: PAM | U163: PAS | V163: TOTAL
B164: RECOMMANDATIONS RELATIVES A LA NUTRTION (N°J5-07DU 4 MAI 2007) approuvé par décision n° 2007-17 du comité exécutif de l'OEAP | F164: M | G164: P | H164: A | I164: A + | J164: PAM | K164: PAS | L164: % A+ | O164: Saisissez vos EFFECTIFS | P164: 253 | Q164: 829 | R164: 48 | S164: 13 | T164: 29 | U164: 17 | V164: =SUM(P164:U164) -> 1189
E165: PAIN | F165: 0.04 | G165: 0.05 | H165: 0.08 | I165: =(H165*L165%)+H165 -> 0.088 | J165: 0.05 | K165: 0.05 | L165: 10 | O165: =E165 -> PAIN | P165: =F165*P164 -> 10.12 | Q165: 41.45 | R165: 3.84 | S165: 1.144 | T165: 1.45 | U165: 0.85 | V165: =SUM(P165:U165) -> 58.854
C166: *CRUDITÉS sans assaisonnement | P166: =C166 -> *CRUDITÉS sans assaisonnement
C168: Avocat (à l'unité) | F168: 0.25 | G168: 0.5 | H168: 0.5 | I168: =(H168*L168%)+H168 -> 0.55 | J168: 0.5 | K168: 0.5 | L168: 10 | O168: =C168 -> Avocat (à l'unité) | P168: =F168*P164 -> 63.25 | Q168: 414.5 | R168: 24 | S168: 7.15 | T168: 14.5 | U168: 8.5 | V168: =SUM(P168:U168) -> 531.9
C169: Carottes, céleri et autres racines râpées | F169: 0.05 | G169: 0.07 | H169: 0.1 | I169: 0.11 | J169: 0.07 | K169: 0.07 | L169: 10 | O169: Carottes, céleri et autres racines râpées | P169: =F169*P164 -> 12.65 | Q169: 58.03 | R169: 4.8 | S169: 1.43 | T169: 2.03 | U169: 1.19 | V169: =SUM(P169:U169) -> 80.13
C170: Choux rouge et choux blanc émincé | F170: 0.04 | G170: 0.06 | H170: 0.1 | I170: 0.11 | J170: 0.08 | K170: 0.08 | L170: 10 | O170: Choux rouge et choux blanc émincé | P170: =F170*P164 -> 10.12 | Q170: 49.74 | R170: 4.8 | S170: 1.43 | T170: 2.32 | U170: 1.36 | V170: 69.77
C171: Concombre | F171: 0.06 | G171: 0.08 | H171: 0.1 | I171: 0.11 | J171: 0.09 | K171: 0.09 | L171: 10 | O171: Concombre | P171: =F171*P164 -> 15.18 | Q171: 66.32 | R171: 4.8 | S171: 1.43 | T171: 2.61 | U171: 1.53 | V171: 91.87
C172: Endive | F172: 0.02 | G172: 0.03 | H172: 0.1 | I172: 0.11 | J172: 0.08 | K172: 0.08 | L172: 10 | O172: Endive | P172: =F172*P164 -> 5.06 | Q172: 24.87 | R172: 4.8 | S172: 1.43 | T172: 2.32 | U172: 1.36 | V172: 39.84
C173: Melon, Pastèque | F173: 0.12 | G173: 0.15 | H173: 0.18 | I173: 0.198 | J173: 0.15 | K173: 0.15 | L173: 10 | O173: Melon, Pastèque | P173: =F173*P164 -> 30.36 | Q173: 124.35 | R173: 8.64 | S173: 2.574 | T173: 4.35 | U173: 2.55 | V173: 172.824
C174: Pamplemousse (à l'unité) | F174: 0.5 | G174: 0.5 | H174: 0.5 | I174: 0.55 | J174: 0.5 | K174: 0.5 | L174: 10 | O174: Pamplemousse (à l'unité) | P174: =F174*P164 -> 126.5 | Q174: 414.5 | R174: 24 | S174: 7.15 | T174: 14.5 | U174: 8.5 | V174: 595.15
C175: Radis | F175: 0.03 | G175: 0.05 | H175: 0.09 | I175: 0.099 | J175: 0.06 | K175: 0.06 | L175: 10 | O175: Radis | P175: =F175*P164 -> 7.59 | Q175: 41.45 | R175: 4.32 | S175: 1.287 | T175: 1.74 | U175: 1.02 | V175: 57.407
C176: Salade verte | F176: 0.025 | G176: 0.03 | H176: 0.05 | I176: 0.055 | J176: 0.03 | K176: 0.03 | L176: 10 | O176: Salade verte | P176: =F176*P164 -> 6.325 | Q176: 24.87 | R176: 2.4 | S176: 0.715 | T176: 0.87 | U176: 0.51 | V176: 35.69
C177: Tomate | F177: 0.06 | G177: 0.08 | H177: 0.11 | I177: 0.121 | J177: 0.08 | K177: 0.08 | L177: 10 | O177: Tomate | P177: =F177*P164 -> 15.18 | Q177: 66.32 | R177: 5.28 | S177: 1.573 | T177: 2.32 | U177: 1.36 | V177: 92.033
C178: Salade composée à base de crudités | F178: 0.04 | G178: 0.06 | H178: 0.09 | I178: 0.099 | J178: 0.08 | K178: 0.08 | L178: 10 | O178: Salade composée à base de crudités | P178: =F178*P164 -> 10.12 | Q178: 49.74 | R178: 4.32 | S178: 1.287 | T178: 2.32 | U178: 1.36 | V178: 69.147
C179: Champignons crus | F179: 0.04 | G179: 0.06 | H179: 0.09 | I179: 0.099 | J179: 0.08 | K179: 0.08 | L179: 10 | O179: Champignons crus | P179: =F179*P164 -> 10.12 | Q179: 49.74 | R179: 4.32 | S179: 1.287 | T179: 2.32 | U179: 1.36 | V179: 69.147
C180: Fenouil | F180: 0.04 | G180: 0.06 | H180: 0.09 | I180: 0.099 | J180: 0.08 | K180: 0.08 | L180: 10 | O180: Fenouil | P180: =F180*P164 -> 10.12 | Q180: 49.74 | R180: 4.32 | S180: 1.287 | T180: 2.32 | U180: 1.36 | V180: 69.147
C181: *CUIDITES sans assaisonnement | P181: =C181 -> *CUIDITES sans assaisonnement
C183: Potage à base de légumes (en litres/Kg) | F183: 0.125 | G183: 0.166 | H183: 0.25 | I183: =(H183*L183%)+H183 -> 0.275 | J183: 0.25 | K183: 0.25 | L183: 10 | O183: =C183 -> Potage à base de légumes (en litres/Kg) | P183: =F183*P164 -> 31.625 | Q183: 137.614 | R183: 12 | S183: 3.575 | T183: 7.25 | U183: 4.25 | V183: =SUM(P183:U183) -> 196.314
C184: Artichaut entier (à l'unité) | F184: 0.5 | G184: 0.5 | H184: 1 | I184: 1.1 | J184: 1 | K184: 1 | L184: 10 | O184: Artichaut entier (à l'unité) | P184: =F184*P164 -> 126.5 | Q184: 414.5 | R184: 48 | S184: 14.3 | T184: 29 | U184: 17 | V184: 649.3
C185: Fond d'artichaut | F185: 0.05 | G185: 0.07 | H185: 0.09 | I185: 0.099 | J185: 0.08 | K185: 0.08 | L185: 10 | O185: Fond d'artichaut | P185: =F185*P164 -> 12.65 | Q185: 58.03 | R185: 4.32 | S185: 1.287 | T185: 2.32 | U185: 1.36 | V185: 79.967
C186: Asperges | F186: 0.05 | G186: 0.07 | H186: 0.09 | I186: 0.099 | J186: 0.08 | K186: 0.08 | L186: 10 | O186: Asperges | P186: =F186*P164 -> 12.65 | Q186: 58.03 | R186: 4.32 | S186: 1.287 | T186: 2.32 | U186: 1.36 | V186: 79.967
C187: Betteraves | F187: 0.05 | G187: 0.07 | H187: 0.1 | I187: 0.11 | J187: 0.08 | K187: 0.08 | L187: 10 | O187: Betteraves | P187: =F187*P164 -> 12.65 | Q187: 58.03 | R187: 4.8 | S187: 1.43 | T187: 2.32 | U187: 1.36 | V187: 80.59
C188: Céleri | F188: 0.05 | G188: 0.07 | H188: 0.1 | I188: 0.11 | J188: 0.08 | K188: 0.08 | L188: 10 | O188: Céleri | P188: =F188*P164 -> 12.65 | Q188: 58.03 | R188: 4.8 | S188: 1.43 | T188: 2.32 | U188: 1.36 | V188: 80.59
C189: Champignons | F189: 0.05 | G189: 0.07 | H189: 0.11 | I189: 0.121 | J189: 0.08 | K189: 0.08 | L189: 10 | O189: Champignons | P189: =F189*P164 -> 12.65 | Q189: 58.03 | R189: 5.28 | S189: 1.573 | T189: 2.32 | U189: 1.36 | V189: 81.213
C190: Choux fleurs | F190: 0.05 | G190: 0.07 | H190: 0.1 | I190: 0.11 | J190: 0.08 | K190: 0.08 | L190: 10 | O190: Choux fleurs | P190: =F190*P164 -> 12.65 | Q190: 58.03 | R190: 4.8 | S190: 1.43 | T190: 2.32 | U190: 1.36 | V190: 80.59
C191: Cœurs de palmier | F191: 0.04 | G191: 0.06 | H191: 0.09 | I191: 0.099 | J191: 0.07 | K191: 0.07 | L191: 10 | O191: Cœurs de palmier | P191: =F191*P164 -> 10.12 | Q191: 49.74 | R191: 4.32 | S191: 1.287 | T191: 2.03 | U191: 1.19 | V191: 68.687
C192: Fenouil | F192: 0.04 | G192: 0.06 | H192: 0.09 | I192: 0.099 | J192: 0.07 | K192: 0.07 | L192: 10 | O192: Fenouil | P192: =F192*P164 -> 10.12 | Q192: 49.74 | R192: 4.32 | S192: 1.287 | T192: 2.03 | U192: 1.19 | V192: 68.687
C193: Haricots verts | F193: 0.05 | G193: 0.07 | H193: 0.11 | I193: 0.121 | J193: 0.08 | K193: 0.08 | L193: 10 | O193: Haricots verts | P193: =F193*P164 -> 12.65 | Q193: 58.03 | R193: 5.28 | S193: 1.573 | T193: 2.32 | U193: 1.36 | V193: 81.213
C194: Poireaux (blancs de poireaux) | F194: 0.05 | G194: 0.07 | H194: 0.11 | I194: 0.121 | J194: 0.08 | K194: 0.08 | L194: 10 | O194: Poireaux (blancs de poireaux) | P194: =F194*P164 -> 12.65 | Q194: 58.03 | R194: 5.28 | S194: 1.573 | T194: 2.32 | U194: 1.36 | V194: 81.213
C195: Salade composée à base de légumes cuits | F195: 0.05 | G195: 0.07 | H195: 0.11 | I195: 0.121 | J195: 0.08 | K195: 0.08 | L195: 10 | O195: Salade composée à base de légumes cuits | P195: =F195*P164 -> 12.65 | Q195: 58.03 | R195: 5.28 | S195: 1.573 | T195: 2.32 | U195: 1.36 | V195: 81.213
C196: Soja (germes de haricots mungo) | F196: 0.05 | G196: 0.07 | H196: 0.11 | I196: 0.121 | J196: 0.07 | K196: 0.07 | L196: 10 | O196: Soja (germes de haricots mungo) | P196: =F196*P164 -> 12.65 | Q196: 58.03 | R196: 5.28 | S196: 1.573 | T196: 2.03 | U196: 1.19 | V196: 80.753
C197: Terrine de légumes | F197: 0.03 | G197: 0.03 | H197: 0.04 | I197: 0.044 | J197: 0.03 | K197: 0.03 | L197: 10 | O197: Terrine de légumes | P197: =F197*P164 -> 7.59 | Q197: 24.87 | R197: 1.92 | S197: 0.572 | T197: 0.87 | U197: 0.51 | V197: 36.332
C198: *ENTRÉES DE FÉCULENT | P198: =C198 -> *ENTRÉES DE FÉCULENT
C200: Salades composées à base de P. de T., blé, riz, semoule ou pâtes | F200: 0.06 | G200: 0.08 | H200: 0.13 | I200: 0.143 | J200: 0.1 | K200: 0.1 | L200: 10 | P200: =F200*P164 -> 15.18 | Q200: 66.32 | R200: 6.24 | S200: 1.859 | T200: 2.9 | U200: 1.7 | V200: =SUM(P200:U200) -> 94.199
C201: *ENTREES PROTIDIQUES DIVERSES | P201: =C201 -> *ENTREES PROTIDIQUES DIVERSES
C203: Œuf dur (à l'unité) | F203: 0.5 | G203: 1 | H203: 1.25 | I203: =(H203*L203%)+H203 -> 1.375 | J203: 1 | K203: 1 | L203: 10 | O203: =C203 -> Œuf dur (à l'unité) | P203: =F203*P164 -> 126.5 | Q203: 829 | R203: 60 | S203: 17.875 | T203: 29 | U203: 17 | V203: =SUM(P203:U203) -> 1079.375
C204: Hareng/garniture | F204: 0 | G204: 0.04 | H204: 0.05 | I204: 0.055 | J204: 0.06 | K204: 0.06 | L204: 10 | O204: Hareng/garniture | P204: =F204*P164 -> 0 | Q204: 33.16 | R204: 2.4 | S204: 0.715 | T204: 1.74 | U204: 1.02 | V204: 39.035
C205: Maquereau | F205: 0.03 | G205: 0.03 | H205: 0.045 | I205: 0.0495 | J205: 0.05 | K205: 0.05 | L205: 10 | O205: Maquereau | P205: =F205*P164 -> 7.59 | Q205: 24.87 | R205: 2.16 | S205: 0.6435 | T205: 1.45 | U205: 0.85 | V205: 37.5635
C206: Sardines (à l'unité) sauf exception mentionnée | F206: 1 | G206: 1 | H206: 2 | I206: 2.2 | J206: 2 | K206: 2 | L206: 10 | O206: Sardines (à l'unité) sauf exception mentionnée | P206: =F206*P164 -> 253 | Q206: 829 | R206: 96 | S206: 28.6 | T206: 58 | U206: 34 | V206: 1298.6
C207: Thon au naturel | F207: 0.03 | G207: 0.03 | H207: 0.045 | I207: 0.0495 | J207: 0.05 | K207: 0.05 | L207: 10 | O207: Thon au naturel | P207: =F207*P164 -> 7.59 | Q207: 24.87 | R207: 2.16 | S207: 0.6435 | T207: 1.45 | U207: 0.85 | V207: 37.5635
C208: Jambon cru de pays | F208: 0.02 | G208: 0.03 | H208: 0.045 | I208: 0.0495 | J208: 0.05 | K208: 0.05 | L208: 10 | O208: Jambon cru de pays | P208: =F208*P164 -> 5.06 | Q208: 24.87 | R208: 2.16 | S208: 0.6435 | T208: 1.45 | U208: 0.85 | V208: 35.0335
C209: Jambon blanc | F209: 0.03 | G209: 0.4 | H209: 0.05 | I209: 0.055 | J209: 0.05 | K209: 0.05 | L209: 10 | O209: Jambon blanc | P209: =F209*P164 -> 7.59 | Q209: 331.6 | R209: 2.4 | S209: 0.715 | T209: 1.45 | U209: 0.85 | V209: 344.605
C210: Pâté, terrine , mousse | F210: 0.03 | G210: 0.03 | H210: 0.045 | I210: 0.0495 | J210: 0.05 | K210: 0.05 | L210: 10 | O210: Pâté, terrine , mousse | P210: =F210*P164 -> 7.59 | Q210: 24.87 | R210: 2.16 | S210: 0.6435 | T210: 1.45 | U210: 0.85 | V210: 37.5635
C211: Pâté en croûte | F211: 0.045 | G211: 0.045 | H211: 0.065 | I211: 0.0715 | J211: 0.05 | K211: 0.05 | L211: 10 | O211: Pâté en croûte | P211: =F211*P164 -> 11.385 | Q211: 37.305 | R211: 3.12 | S211: 0.9295 | T211: 1.45 | U211: 0.85 | V211: 55.0395
C212: Rillettes | F212: 0.03 | G212: 0.03 | H212: 0.045 | I212: 0.0495 | J212: 0.05 | K212: 0.05 | L212: 10 | O212: Rillettes | P212: =F212*P164 -> 7.59 | Q212: 24.87 | R212: 2.16 | S212: 0.6435 | T212: 1.45 | U212: 0.85 | V212: 37.5635
C213: Salami – Saucisson – Mortadelle | F213: 0.03 | G213: 0.03 | H213: 0.045 | I213: 0.0495 | J213: 0.05 | K213: 0.05 | L213: 10 | O213: Salami – Saucisson – Mortadelle | P213: =F213*P164 -> 7.59 | Q213: 24.87 | R213: 2.16 | S213: 0.6435 | T213: 1.45 | U213: 0.85 | V213: 37.5635
F214: 0 | G214: 0 | H214: 0 | I214: 0 | J214: 0 | K214: 0 | L214: 0 | O214: 0 | P214: =F214*P164 -> 0 | Q214: 0 | R214: 0 | S214: 0 | T214: 0 | U214: 0 | V214: 0
C215: *PREPARATIONS PATISSIERES SALEES | P215: =C215 -> *PREPARATIONS PATISSIERES SALEES
C217: Nems | F217: 0.05 | G217: 0.05 | H217: 0.1 | I217: =(H217*L217%)+H217 -> 0.11 | J217: 0.05 | K217: 0.05 | L217: 10 | O217: =C217 -> Nems | P217: =F217*P164 -> 12.65 | Q217: 41.45 | R217: 4.8 | S217: 1.43 | T217: 1.45 | U217: 0.85 | V217: =SUM(P217:U217) -> 62.63
C218: Crêpes | F218: 0.05 | G218: 0.05 | H218: 0.1 | I218: 0.11 | J218: 0.05 | K218: 0.05 | L218: 10 | O218: Crêpes | P218: =F218*P164 -> 12.65 | Q218: 41.45 | R218: 4.8 | S218: 1.43 | T218: 1.45 | U218: 0.85 | V218: 62.63
C219: Friand, feuilleté | F219: 0.065 | G219: 0.065 | H219: 0.1 | I219: 0.11 | J219: 0.07 | K219: 0.07 | L219: 10 | O219: Friand, feuilleté | P219: =F219*P164 -> 16.445 | Q219: 53.885 | R219: 4.8 | S219: 1.43 | T219: 2.03 | U219: 1.19 | V219: 79.78
C220: Pizza | F220: 0.07 | G220: 0.07 | H220: 0.09 | I220: 0.099 | J220: 0.07 | K220: 0.07 | L220: 10 | O220: Pizza | P220: =F220*P164 -> 17.71 | Q220: 58.03 | R220: 4.32 | S220: 1.287 | T220: 2.03 | U220: 1.19 | V220: 84.567
C221: Tarte salée | F221: 0.07 | G221: 0.07 | H221: 0.09 | I221: 0.099 | J221: 0.07 | K221: 0.07 | L221: 10 | O221: Tarte salée | P221: =F221*P164 -> 17.71 | Q221: 58.03 | R221: 4.32 | S221: 1.287 | T221: 2.03 | U221: 1.19 | V221: 84.567
C222: ASSAISONNEMENT HORS D'OEUVRE(poids de la matière grasse) | F222: 0.005 | G222: 0.007 | H222: 0.008 | I222: 0.0088 | J222: 0.008 | K222: 0.008 | L222: 10 | O222: ASSAISONNEMENT HORS D'OEUVRE(poids de la matière grasse) | P222: =F222*P164 -> 1.265 | Q222: 5.803 | R222: 0.384 | S222: 0.1144 | T222: 0.232 | U222: 0.136 | V222: 7.9344
C223: *VIANDES SANS SAUCE | P223: =C223 -> *VIANDES SANS SAUCE
C225: BŒUF | P225: =C225 -> BŒUF
C227: Bœuf braisé, bœuf sauté, bouilli de bœuf | F227: 0.05 | G227: 0.07 | H227: 0.11 | I227: =(H227*L227%)+H227 -> 0.121 | J227: 0.1 | K227: 0.07 | L227: 10 | O227: =C227 -> Bœuf braisé, bœuf sauté, bouilli de bœuf | P227: =F227*P164 -> 12.65 | Q227: 58.03 | R227: 5.28 | S227: 1.573 | T227: 2.9 | U227: 1.19 | V227: =SUM(P227:U227) -> 81.623
C228: Rôti de bœuf, steak | F228: 0.04 | G228: 0.06 | H228: 0.09 | I228: 0.099 | J228: 0.08 | K228: 0.06 | L228: 10 | O228: Rôti de bœuf, steak | P228: =F228*P164 -> 10.12 | Q228: 49.74 | R228: 4.32 | S228: 1.287 | T228: 2.32 | U228: 1.02 | V228: 68.807
C229: Steak haché | F229: 0.05 | G229: 0.07 | H229: 0.1 | I229: 0.11 | J229: 0.1 | K229: 0.07 | L229: 10 | O229: Steak haché | P229: =F229*P164 -> 12.65 | Q229: 58.03 | R229: 4.8 | S229: 1.43 | T229: 2.9 | U229: 1.19 | V229: 81
C230: Hamburger | F230: 0.05 | G230: 0.07 | H230: 0.1 | I230: 0.11 | J230: 0.1 | K230: 0.07 | L230: 10 | O230: Hamburger | P230: =F230*P164 -> 12.65 | Q230: 58.03 | R230: 4.8 | S230: 1.43 | T230: 2.9 | U230: 1.19 | V230: 81
C231: Boulettes de bœuf de 30g pièce crues (à l'unité) | F231: 2 | G231: 3 | H231: 4.5 | I231: 4.95 | J231: 4 | K231: 3 | L231: 10 | O231: Boulettes de bœuf de 30g pièce crues (à l'unité) | P231: =F231*P164 -> 506 | Q231: 2487 | R231: 216 | S231: 64.35 | T231: 116 | U231: 51 | V231: 3440.35
C232: Boulettes de bœuf de 30g pièce crues (au poids) | F232: 0.06 | G232: 0.09 | H232: 0.135 | I232: 0.1485 | J232: 0.12 | K232: 0.09 | L232: 10 | O232: Boulettes de bœuf de 30g pièce crues (au poids) | P232: =F232*P164 -> 15.18 | Q232: 74.61 | R232: 6.48 | S232: 1.9305 | T232: 3.48 | U232: 1.53 | V232: 103.2105
C233: Bolognaise viande | F233: 0.05 | G233: 0.07 | H233: 0.09 | I233: 0.099 | J233: 0.1 | K233: 0.07 | L233: 10 | O233: Bolognaise viande | P233: =F233*P164 -> 12.65 | Q233: 58.03 | R233: 4.32 | S233: 1.287 | T233: 2.9 | U233: 1.19 | V233: 80.377
C234: VEAU | P234: =C234 -> VEAU
C236: Sauté de veau ou blanquette (sans os) | F236: 0.05 | G236: 0.07 | H236: 0.11 | I236: =(H236*L236%)+H236 -> 0.121 | J236: 0.1 | K236: 0.07 | L236: 10 | O236: =C236 -> Sauté de veau ou blanquette (sans os) | P236: =F236*P164 -> 12.65 | Q236: 58.03 | R236: 5.28 | S236: 1.573 | T236: 2.9 | U236: 1.19 | V236: =SUM(P236:U236) -> 81.623
C237: Escalope de veau, rôti de veau | F237: 0.04 | G237: 0.06 | H237: 0.09 | I237: =(H237*L237%)+H237 -> 0.099 | J237: 0.1 | K237: 0.07 | L237: 10 | O237: =C237 -> Escalope de veau, rôti de veau | P237: =F237*P164 -> 10.12 | Q237: 49.74 | R237: 4.32 | S237: 1.287 | T237: 2.9 | U237: 1.19 | V237: =SUM(P237:U237) -> 69.557
C238: Steak haché de veau | F238: 0.05 | G238: 0.07 | H238: 0.09 | I238: =(H238*L238%)+H238 -> 0.099 | J238: 0.1 | K238: 0.07 | L238: 10 | O238: =C238 -> Steak haché de veau | P238: =F238*P164 -> 12.65 | Q238: 58.03 | R238: 4.32 | S238: 1.287 | T238: 2.9 | U238: 1.19 | V238: =SUM(P238:U238) -> 80.377
C239: Hamburger veau, Rissolette veau | F239: 0.05 | G239: 0.07 | H239: 0.09 | I239: =(H239*L239%)+H239 -> 0.099 | J239: 0.08 | K239: 0.06 | L239: 10 | O239: =C239 -> Hamburger veau, Rissolette veau | P239: =F239*P164 -> 12.65 | Q239: 58.03 | R239: 4.32 | S239: 1.287 | T239: 2.32 | U239: 1.02 | V239: =SUM(P239:U239) -> 79.627
C240: Paupiette de veau | F240: 0.05 | G240: 0.07 | H240: 0.11 | I240: =(H240*L240%)+H240 -> 0.121 | J240: 0.1 | K240: 0.07 | L240: 10 | O240: =C240 -> Paupiette de veau | P240: =F240*P164 -> 12.65 | Q240: 58.03 | R240: 5.28 | S240: 1.573 | T240: 2.9 | U240: 1.19 | V240: =SUM(P240:U240) -> 81.623
C241: AGNEAU-MOUTON | P241: =C241 -> AGNEAU-MOUTON
C243: Gigot | F243: 0.04 | G243: 0.06 | H243: 0.09 | I243: =(H243*L243%)+H243 -> 0.099 | J243: 0.08 | K243: 0.06 | L243: 10 | O243: =C243 -> Gigot | P243: =F243*P164 -> 10.12 | Q243: 49.74 | R243: 4.32 | S243: 1.287 | T243: 2.32 | U243: 1.02 | V243: =SUM(P243:U243) -> 68.807
C244: Sauté (sans os) | F244: 0.05 | G244: 0.07 | H244: 0.11 | I244: 0.121 | J244: 0.1 | K244: 0.07 | L244: 10 | O244: Sauté (sans os) | P244: =F244*P164 -> 12.65 | Q244: 58.03 | R244: 5.28 | S244: 1.573 | T244: 2.9 | U244: 1.19 | V244: 81.623
C245: Côte d'agneau avec os | F245: 0 | G245: 0.08 | H245: 0.11 | I245: 0.121 | J245: 0.1 | K245: 0.07 | L245: 10 | O245: Côte d'agneau avec os | P245: =F245*P164 -> 0 | Q245: 66.32 | R245: 5.28 | S245: 1.573 | T245: 2.9 | U245: 1.19 | V245: 77.263
C246: Boulettes d'agneau-mouton de 30g pièce crues (à l'unité ) | F246: 2 | G246: 3 | H246: 4.5 | I246: 4.95 | J246: 3 | K246: 2 | L246: 10 | O246: Boulettes d'agneau-mouton de 30g pièce crues (à l'unité ) | P246: =F246*P164 -> 506 | Q246: 2487 | R246: 216 | S246: 64.35 | T246: 87 | U246: 34 | V246: 3394.35
C247: Boulettes d'agneau-mouton de 30g pièce crues (au Kg ) | F247: 0.06 | G247: 0.09 | H247: 0.135 | I247: 0.1485 | J247: 0.09 | K247: 0.06 | L247: 10 | O247: Boulettes d'agneau-mouton de 30g pièce crues (au Kg ) | P247: =F247*P164 -> 15.18 | Q247: 74.61 | R247: 6.48 | S247: 1.9305 | T247: 2.61 | U247: 1.02 | V247: 101.8305
C248: Merguez de 50 g pièce crues (à l'unité) | F248: 1 | G248: 2 | H248: 2.5 | I248: 2.75 | J248: 2 | K248: 1.5 | L248: 10 | O248: Merguez de 50 g pièce crues (à l'unité) | P248: =F248*P164 -> 253 | Q248: 1658 | R248: 120 | S248: 35.75 | T248: 58 | U248: 25.5 | V248: 2150.25
C249: Merguez de 50 g pièce crues (au Kg) | F249: 0.05 | G249: 0.1 | H249: 0.125 | I249: 0.1375 | J249: 0.1 | K249: 0.75 | L249: 10 | O249: Merguez de 50 g pièce crues (au Kg) | P249: =F249*P164 -> 12.65 | Q249: 82.9 | R249: 6 | S249: 1.7875 | T249: 2.9 | U249: 12.75 | V249: 118.9875
C250: PORC | P250: =C250 -> PORC
C252: Rôti de porc, grillade (sans os) | F252: 0.04 | G252: 0.06 | H252: 0.09 | I252: =(H252*L252%)+H252 -> 0.099 | J252: 0.1 | K252: 0.07 | L252: 10 | O252: =C252 -> Rôti de porc, grillade (sans os) | P252: =F252*P164 -> 10.12 | Q252: 49.74 | R252: 4.32 | S252: 1.287 | T252: 2.9 | U252: 1.19 | V252: =SUM(P252:U252) -> 69.557
C253: Sauté (sans os) | F253: 0.05 | G253: 0.07 | H253: 0.11 | I253: 0.121 | J253: 0.1 | K253: 0.07 | L253: 10 | O253: Sauté (sans os) | P253: =F253*P164 -> 12.65 | Q253: 58.03 | R253: 5.28 | S253: 1.573 | T253: 2.9 | U253: 1.19 | V253: 81.623
C254: Côte de porc | F254: 0 | G254: 0.08 | H254: 0.11 | I254: 0.121 | J254: 0.1 | K254: 0.07 | L254: 10 | O254: Côte de porc | P254: =F254*P164 -> 0 | Q254: 66.32 | R254: 5.28 | S254: 1.573 | T254: 2.9 | U254: 1.19 | V254: 77.263
C255: Jambon DD, palette de porc | F255: 0.04 | G255: 0.06 | H255: 0.09 | I255: 0.099 | J255: 0.08 | K255: 0.07 | L255: 10 | O255: Jambon DD, palette de porc | P255: =F255*P164 -> 10.12 | Q255: 49.74 | R255: 4.32 | S255: 1.287 | T255: 2.32 | U255: 1.19 | V255: 68.977
C256: Andouillettes | F256: 0.05 | G256: 0.07 | H256: 0.11 | I256: 0.121 | J256: 0.1 | K256: 0.07 | L256: 10 | O256: Andouillettes | P256: =F256*P164 -> 12.65 | Q256: 58.03 | R256: 5.28 | S256: 1.573 | T256: 2.9 | U256: 1.19 | V256: 81.623
C257: Saucisse chipolatas de 50 g pièce crue ( à l'unité) | F257: 1 | G257: 2 | H257: 2.5 | I257: 2.75 | J257: 2 | K257: 1.5 | L257: 10 | O257: Saucisse chipolatas de 50 g pièce crue ( à l'unité) | P257: =F257*P164 -> 253 | Q257: 1658 | R257: 120 | S257: 35.75 | T257: 58 | U257: 25.5 | V257: 2150.25
C258: Saucisse chipolatas de 50 g pièce crue ( au Kg) | F258: 0.05 | G258: 0.1 | H258: 0.125 | I258: 0.1375 | J258: 0.1 | K258: 0.75 | L258: 10 | O258: Saucisse chipolatas de 50 g pièce crue ( au Kg) | P258: =F258*P164 -> 12.65 | Q258: 82.9 | R258: 6 | S258: 1.7875 | T258: 2.9 | U258: 12.75 | V258: 118.9875
C259: Saucisse de Francfort Strasbourg de 50 g pièce crue (à l'unité) | F259: 1 | G259: 2 | H259: 2.5 | I259: 2.75 | J259: 2 | K259: 1.5 | L259: 10 | O259: Saucisse de Francfort Strasbourg de 50 g pièce crue (à l'unité) | P259: =F259*P164 -> 253 | Q259: 1658 | R259: 120 | S259: 35.75 | T259: 58 | U259: 25.5 | V259: 2150.25
... 201 more rows

Sheet Classement simplifié
A1: 0 | B1: 0 | C1: 0 | D1: 0 | E1: 0 | F1: 0 | G1: 0 | H1: 0 | K1: 0 | M1: 0 | N1: 0 | O1: 0 | P1: 0 | Q1: 0 | R1: 0 | S1: 0 | T1: 0 | U1: 0 | V1: 0 | W1: 0 | X1: 0 | Y1: 0 | Z1: 0 | AA1: 0 | AB1: 0 | AC1: 0 | AD1: 0 | AE1: 0 | AF1: 0 | AG1: 0 | AH1: 0 | AI1: 0 | AJ1: 0 | AK1: 0 | AL1: 0 | AM1: 0 | AN1: 0 | AO1: 0 | AP1: 0 | AQ1: 0 | AR1: 0 | AS1: 0
A2: 0 | B2: Modèle | C2: FF.4 | D2: CLASSEMENT ET PRÉSENTATION pour fiches de fabrication FF.4: vous pouvez coller au choix l'une de ces lignes ou cellules dans les cellules correspondantes de la fiche recette.
A3: 0 | B3: 0 | C3: 0 | D3: 0 | E3: 0 | F3: 0 | G3: 0 | H3: 0 | K3: 0 | M3: Classement Famille | N3: 0 | O3: Codes ou N° | P3: 0 | Q3: 0 | R3: 0 | S3: 0 | T3: 0 | U3: 0 | V3: 0 | W3: 0 | X3: 0 | Y3: 0 | Z3: 0 | AA3: 0 | AB3: 0 | AC3: 0 | AD3: 0 | AE3: 0 | AF3: 0 | AG3: 0 | AH3: 0 | AI3: 0 | AJ3: 0 | AK3: 0 | AL3: 0 | AM3: 0 | AN3: 0 | AO3: 0 | AP3: 0 | AQ3: 0 | AR3: 0 | AS3: 0
A4: 0 | B4: Modèles de séparation pour présentation des recettes SAUF MODÈLE EUROPÉEN | K4: 0 | M4: coller cellule C2 | N4: 0 | O4: coller cellule O4 | P4: 0 | Q4: 0 | R4: produit de base recette peut se coller dans la cellule : Classement Famille | Y4: 0 | Z4: VOCABULAIRE PROFESSIONNEL " CUISINE DE COMPOSITION" | AI4: 0 | AJ4: VOCABULAIRE PROFESSIONNEL "La CUISINE DE REFERENCE" Michel MAINCENT | AS4: 0
A5: 0 | B5: 0 | C5: 0 | D5: 0 | E5: 0 | F5: 0 | K5: 0 | L5: Pour obtenir les couleurs au stabilo | M5: ENTRÉES | O5: ENT001 | P5: 0 | Q5: 0 | R5: Couleur diététique | S5: 0 | T5: Couleur diététique | U5: 0 | V5: Couleur diététique | W5: 0 | X5: Couleur diététique | Y5: 0 | AA5: A | AC5: E | AE5: P | AG5: R | AI5: 0 | AK5: A | AM5: D | AO5: H | AQ5: R | AS5: 0
A6: 0 | B6: Vous pouvez coller ces lignes sur votre fiche recette pour en améliorer la présentation à condition de ne rien coller dans les colonnes G et au delà | I6: coller les 2 cellules sur la fiche recette | M6: 0 | P6: 0 | Q6: 0 | R6: Protéines | S6: 0 | T6: Cuidités | U6: 0 | V6: Crudités | W6: 0 | X6: Féculent | Y6: 0 | AA6: Abaisser la temp. à coeur | AC6: Egrener | AE6: Parfumer | AG6: Respecter le délai de 2 H | AI6: 0 | AK6: Abaisser | AM6: Dépouiller | AO6: Habiller | AQ6: Réduire | AS6: 0
A7: 0 | B7: B | C7: C | D7: D | E7: E | F7: F | G7: 0 | H7: 0 | I7: Mode de cuisson | K7: 0 | M7: 0 | N7: 0 | O7: 0 | P7: 0 | Q7: 0 | R7: colonne C | S7: 0 | T7: colonne C | U7: 0 | V7: colonne C | W7: 0 | X7: colonne C | Y7: 0 | AA7: Accompagner | AC7: Eliminer | AE7: Parsemer | AG7: Retirer | AI7: 0 | AK7: Abricoter | AM7: Dérober | AO7: Hacher | AQ7: Relever | AS7: 0
A8: 0 | B8: % | C8: PRODUITS | D8: Poids bruts | F8: % Perte | G8: 0 | H8: 0 | I8: Braisé | K8: 0 | M8: POISSONS | O8: POI001 | P8: 0 | Q8: 0 | R8: Abats | S8: 0 | T8: Agrumes Pomme Pample.) | U8: 0 | V8: Agrumes Pomme Pample.) | W8: 0 | X8: Blé | Y8: 0 | AA8: Additionner | AC8: Enfourner | AE8: Peler | AG8: Retourner | AI8: 0 | AK8: Arroser | AM8: Désosser | AO8: Historier | AQ8: Remonter | AS8: 0
A9: 0 | B9: FORMAT A COPIER SUR LA FICHE TECHNIQUE COLONNES B à F | G9: 0 | H9: 0 | I9: Confit | K9: 0 | M9: 0 | P9: 0 | Q9: 0 | R9: Abattis | S9: 0 | T9: Artichaut | U9: 0 | V9: Avocat | W9: 0 | X9: Boulghour | Y9: 0 | AA9: Adjoindre | AB9: Nom de l'Auteur colonne G | AC9: Enfourner | AE9: Porter à ébullition | AG9: Rincer | AI9: 0 | AK9: Assaisonner | AM9: Dessécher | AO9: I | AQ9: Revenir | AS9: 0
A10: 0 | B10: 0 | C10: 0 | D10: 0 | E10: 0 | F10: 0 | G10: 0 | H10: 0 | I10: Frit | K10: 0 | M10: 0 | N10: 0 | O10: 0 | P10: 0 | Q10: 0 | R10: Agneau | S10: 0 | T10: Asperges | U10: 0 | V10: Betteraves | W10: 0 | X10: Féves | Y10: 0 | AA10: Agir rapidement | AB10: Nom de l'Auteur colonne G | AC10: Etaler | AE10: Préchauffer | AG10: S | AI10: 0 | AK10: B | AM10: Détendre | AO10: Inciser | AQ10: Rissoler | AS10: 0
A11: 0 | B11: ÉLÉMENTS DE BASE | G11: 0 | H11: 0 | I11: Fumé | K11: 0 | M11: VOLAILLES | O11: VOL001 | P11: 0 | Q11: 0 | R11: Bœuf | S11: 0 | T11: Betteraves | U11: 0 | V11: Carottes | W11: 0 | X11: Févettes | Y11: 0 | AA11: Ajouter | AB11: Nom de l'Auteur colonne G | AC11: F | AE11: Prélever | AG11: Saupoudrer | AI11: 0 | AK11: Barder | AM11: Dorer | AO11: L | AQ11: Rompre | AS11: 0
A12: 0 | B12: 0 | C12: 0 | D12: 0 | E12: 0 | F12: 0 | G12: 0 | H12: 0 | I12: Grillé | K12: 0 | M12: 0 | P12: 0 | Q12: 0 | R12: Cailles | S12: 0 | T12: Carottes | U12: 0 | V12: Céléri branche | W12: 0 | X12: H. Cocos | Y12: 0 | AA12: Aplatir | AB12: Nom de l'Auteur colonne G | AC12: Faire bouillir | AE12: Préparer | AG12: Servir | AI12: 0 | AK12: Beurrer | AM12: Dresser | AO12: Lier | AQ12: Rôtir | AS12: 0
A13: 0 | B13: GARNITURE AROMATIQUE | G13: 0 | H13: 0 | I13: Nature | K13: 0 | M13: 0 | N13: 0 | O13: 0 | P13: 0 | Q13: 0 | R13: Canard | S13: 0 | T13: Céléri branche | U13: 0 | V13: Céléri rave | W13: 0 | X13: H. Flageolets | Y13: 0 | AA13: B | AB13: Nom de l'Auteur colonne G | AC13: G | AE13: Protéger | AG13: Snacker | AI13: 0 | AK13: Blanchir | AM13: E | AO13: Limoner | AQ13: S | AS13: 0
A14: 0 | B14: 0 | C14: 0 | D14: 0 | E14: 0 | F14: 0 | G14: 0 | H14: 0 | I14: Papillotes | K14: 0 | M14: VIANDES | O14: VIA001 | P14: 0 | Q14: 0 | R14: Charcuteries | S14: 0 | T14: Céléri rave | U14: 0 | V14: Champignons | W14: 0 | X14: H. Noirs | Y14: 0 | AA14: Battre | AC14: Garnir | AE14: R | AG14: T | AI14: 0 | AK14: Blondir | AM14: Ebarber | AO14: Lisser | AQ14: Saigner | AS14: 0
A15: 0 | B15: SAUCE | G15: 0 | H15: 0 | I15: Poché | K15: 0 | M15: 0 | P15: 0 | Q15: 0 | R15: Coquillages | S15: 0 | T15: Champignons | U15: 0 | V15: Chou blanc | W15: 0 | X15: H. Rouges | Y15: 0 | AA15: C | AC15: I | AE15: Réaliser | AG15: Terminer | AI15: 0 | AK15: Bouler | AM15: Ecailler | AO15: Lustrer | AQ15: Saisir | AS15: 0
A16: 0 | B16: 0 | C16: 0 | D16: 0 | E16: 0 | F16: 0 | G16: 0 | H16: 0 | I16: Poellé | K16: 0 | M16: 0 | N16: 0 | O16: 0 | P16: 0 | Q16: 0 | R16: Crustacés | S16: 0 | T16: Chou blanc | U16: 0 | V16: Chou rouge | W16: 0 | X16: H. Soisson | Y16: 0 | AA16: Chauffer | AC16: Incorporer | AE16: Réchauffer en moins d'1 H | AG16: U | AI16: 0 | AK16: Braiser | AM16: Ecaler | AO16: M | AQ16: Sangler | AS16: 0
A17: 0 | B17: ASSAISONNEMENT | G17: 0 | H17: 0 | I17: Râgouts | K17: 0 | M17: PLATS COMPLETS | N17: 0 | O17: PLC001 | P17: 0 | Q17: 0 | R17: Dinde | S17: 0 | T17: Chou rouge | U17: 0 | V17: Choux Brocolis | W17: 0 | X17: H.Blancs | Y17: 0 | AA17: Conserver | AC17: Indications packaging | AE17: Recouvrir | AG17: Utiliser | AI17: 0 | AK17: Brider | AM17: Ecorcher | AO17: Macérer | AQ17: Sauter | AS17: 0
A18: 0 | B18: 0 | C18: 0 | D18: 0 | E18: 0 | F18: 0 | G18: 0 | H18: 0 | I18: Rôti | K18: 0 | M18: 0 | P18: 0 | Q18: 0 | R18: Farces | S18: 0 | T18: Choux Brocolis | U18: 0 | V18: Choux Chinois | W18: 0 | X18: Lentilles | Y18: 0 | AA18: Contrôler | AC18: J | AE18: Rectifier | AG18: V | AI18: 0 | AK18: C | AM18: Ecosser | AO18: Manchonner | AQ18: Serrer | AS18: 0
A19: 0 | B19: GARNITURE DE FINITION | G19: 0 | H19: 0 | I19: Saumuré | M19: 0 | N19: 0 | O19: 0 | P19: 0 | Q19: 0 | R19: Gibier à plumes | S19: 0 | T19: Choux Bruxelles | U19: 0 | V19: Choux fleur | W19: 0 | X19: Maïs | Y19: 0 | AA19: D | AC19: Jeter | AE19: Refroidir | AG19: Vérifier la temp. | AI19: 0 | AK19: Canneler | AM19: Ecumer | AO19: Marbrer | AQ19: Singer | AS19: 0
A20: 0 | B20: 0 | C20: 0 | D20: 0 | E20: 0 | F20: 0 | G20: 0 | H20: 0 | I20: Sauté avec Sauce | K20: 0 | M20: ACCOMPAGNEMENTS | O20: ACC001 | P20: 0 | Q20: 0 | R20: Gibier à poil | S20: 0 | T20: Choux Chinois | U20: 0 | V20: Choux Romanesco | W20: 0 | X20: P.Terre | Y20: 0 | AA20: Décorer | AC20: L | AE20: Réhydrater | AG20: Verser | AI20: 0 | AK20: Caraméliser | AM20: Effilandrer | AO20: Mariner | AQ20: Suer | AS20: 0
A21: 0 | B21: LÉGUMES | I21: Sauté sans Sauce | M21: 0 | P21: 0 | Q21: 0 | R21: Jus / Bouillon | S21: 0 | T21: Choux de Milan | U21: 0 | V21: Concombres | W21: 0 | X21: Pâtes | Y21: 0 | AA21: Délayer | AC21: Laver | AE21: Remonter en température | AI21: 0 | AK21: Châtrer | AM21: Effiler | AO21: Masquer | AQ21: T | AS21: 0
A22: 0 | B22: 0 | C22: 0 | D22: 0 | E22: 0 | F22: 0 | G22: 0 | H22: 0 | I22: Vapeur | K22: 0 | M22: 0 | N22: 0 | O22: 0 | P22: 0 | Q22: 0 | R22: Lapin | S22: 0 | T22: Choux fleur | U22: 0 | V22: Courgettes | W22: 0 | X22: Pois chiches | Y22: 0 | AA22: Disperser | AC22: M | AE22: Remplacer | AI22: 0 | AK22: Chaufroiter | AM22: Egermer | AO22: Masser | AQ22: Tailler | AS22: 0
A23: 0 | B23: 0 | C23: 0 | D23: 0 | G23: 0 | H23: 0 | K23: 0 | M23: PATISSERIES | O23: PAT001 | P23: 0 | Q23: 0 | R23: Mouton | S23: 0 | T23: Choux Romanesco | U23: 0 | V23: Endives | W23: 0 | X23: Polenta | Y23: 0 | AA23: Disposer | AC23: Maintenir en temp. sup à 63° | AE23: Remuer | AI23: 0 | AK23: Chemiser | AM23: Egoutter | AO23: Meringuer | AQ23: Tamiser | AS23: 0
A24: 0 | B24: 0 | C24: Bonne utilisation | M24: 0 | P24: 0 | Q24: 0 | R24: Œufs | S24: 0 | T24: Cœur de Palmier | U24: 0 | V24: Epinards | W24: 0 | X24: Riz | Y24: 0 | AC24: Manipuler | AE24: Répartir | AI24: 0 | AK24: Chiqueter | AM24: Egrapper | AO24: Mijoter | AQ24: Tamponner | AS24: 0
A25: 0 | B25: 0 | C25: Joel Leboucher Cuisine Centrale de Rochefort sur mer | M25: 0 | N25: 0 | O25: 0 | P25: 0 | Q25: 0 | R25: Poisson | S25: 0 | T25: Concombres | U25: 0 | V25: Fenouil | W25: 0 | X25: Rutabaga | Y25: 0 | AC25: Mélanger | AE25: Repasser | AI25: 0 | AK25: Ciseler | AM25: Egrener | AO25: Monder | AQ25: Tapisser | AS25: 0
A26: 0 | M26: PREPARATIONS CHAUDES | O26: CHAUD001 | P26: 0 | Q26: 0 | R26: Porc | S26: 0 | T26: Courge | U26: 0 | V26: Navets | W26: 0 | X26: Semoule | Y26: 0 | AC26: Mettre en cuisson | AI26: 0 | AK26: Citronner | AM26: Emincer | AO26: Monter | AQ26: Tourer | AS26: 0
A27: 0 | B27: 0 | C27: 0 | D27: 0 | G27: 0 | H27: 0 | K27: 0 | M27: 0 | P27: 0 | Q27: 0 | R27: Poule | S27: 0 | T27: Courgettes | U27: 0 | V27: Oignons | W27: 0 | X27: Topinambour | Y27: 0 | AC27: Mixer | AI27: 0 | AK27: Clarifier | AM27: Enrober | AO27: Mortifier | AQ27: Tourner | AS27: 0
A28: 0 | B28: 0 | C28: 0 | D28: 0 | G28: 0 | H28: 0 | K28: 0 | M28: 0 | N28: 0 | O28: 0 | P28: 0 | Q28: 0 | R28: Poulet | S28: 0 | T28: Crosne | U28: 0 | V28: Poivrons jaunes | W28: 0 | X28: 0 | Y28: 0 | AI28: 0 | AK28: Coller | AM28: Eplucher | AO28: Mouiller | AQ28: Travailler | AS28: 0
A29: 0 | B29: 0 | C29: 0 | D29: 0 | G29: 0 | H29: 0 | K29: 0 | L29: Pour obtenir les couleurs au stabilo | M29: PLAT PRINCIPAL | O29: PLA001 | P29: 0 | Q29: 0 | R29: Veau | S29: 0 | T29: Endives | U29: 0 | V29: Poivrons rouges | W29: 0 | X29: 0 | Y29: 0 | Z29: 0 | AA29: 0 | AB29: 0 | AC29: 0 | AD29: 0 | AE29: 0 | AF29: 0 | AG29: 0 | AH29: 0 | AI29: 0 | AK29: Compoter | AM29: Escaloper | AO29: N | AQ29: Tremper | AS29: 0
A30: 0 | B30: 0 | C30: 0 | D30: 0 | G30: 0 | H30: 0 | K30: 0 | M30: 0 | P30: 0 | Q30: 0 | S30: 0 | T30: Epinards | U30: 0 | V30: Poivrons verts | W30: 0 | X30: 0 | Y30: 0 | Z30: 0 | AA30: 0 | AB30: 0 | AC30: 0 | AD30: 0 | AE30: 0 | AF30: 0 | AG30: 0 | AH30: 0 | AI30: 0 | AK30: Concasser | AM30: Etuver | AO30: Nacrer | AQ30: Tronçonner | AS30: 0
A31: 0 | B31: 0 | C31: 0 | D31: 0 | G31: 0 | H31: 0 | K31: 0 | M31: 0 | N31: 0 | O31: 0 | P31: 0 | Q31: 0 | S31: 0 | T31: Fenouil | U31: 0 | V31: Radis noirs | W31: 0 | X31: 0 | Y31: 0 | Z31: 0 | AA31: 0 | AB31: 0 | AC31: 0 | AD31: 0 | AE31: 0 | AF31: 0 | AG31: 0 | AH31: 0 | AI31: 0 | AK31: Confire | AM31: Evider | AO31: Napper | AQ31: Trousser | AS31: 0
A32: 0 | B32: 0 | C32: 0 | D32: 0 | G32: 0 | H32: 0 | K32: 0 | L32: vert + bleu | M32: CRUDITES | O32: CRU001 | P32: 0 | Q32: 0 | S32: 0 | T32: Navets | U32: 0 | V32: Radis roses | W32: 0 | X32: 0 | Y32: 0 | Z32: 0 | AA32: 0 | AB32: 0 | AC32: 0 | AD32: 0 | AE32: 0 | AF32: 0 | AG32: 0 | AH32: 0 | AI32: 0 | AK32: Contiser | AM32: Exprimer | AQ32: Turbiner | AS32: 0
A33: 0 | B33: 0 | C33: 0 | D33: 0 | G33: 0 | H33: 0 | K33: 0 | L33: 0 | M33: 0 | P33: 0 | Q33: 0 | S33: 0 | T33: Oignons | U33: 0 | V33: Sal.Batavia | W33: 0 | X33: 0 | Y33: 0 | Z33: 0 | AA33: 0 | AB33: 0 | AC33: 0 | AD33: 0 | AE33: 0 | AF33: 0 | AG33: 0 | AH33: 0 | AI33: 0 | AK33: Corner | AM33: F | AO33: P | AS33: 0
A34: 0 | B34: 0 | C34: 0 | D34: 0 | G34: 0 | H34: 0 | K34: 0 | L34: 0 | M34: 0 | N34: 0 | O34: 0 | P34: 0 | Q34: 0 | S34: 0 | T34: Patisson | U34: 0 | V34: Sal.Chicorée | W34: 0 | X34: 0 | Y34: 0 | Z34: 0 | AA34: 0 | AB34: 0 | AC34: 0 | AD34: 0 | AE34: 0 | AF34: 0 | AG34: 0 | AH34: 0 | AI34: 0 | AK34: Corser | AM34: Farcir | AO34: Paner | AQ34: V | AS34: 0
A35: 0 | B35: 0 | C35: 0 | D35: 0 | G35: 0 | H35: 0 | K35: 0 | L35: vert + jaune | M35: CUIDITES | O35: CUI001 | P35: 0 | Q35: 0 | S35: 0 | T35: Poivrons jaunes | U35: 0 | V35: Sal.Cresson | W35: 0 | X35: 0 | Y35: 0 | Z35: 0 | AA35: 0 | AB35: 0 | AC35: 0 | AD35: 0 | AE35: 0 | AF35: 0 | AG35: 0 | AH35: 0 | AI35: 0 | AK35: Coucher | AM35: Festonner | AO35: Papilloter | AQ35: Vanner | AS35: 0
A36: 0 | B36: 0 | C36: 0 | D36: 0 | G36: 0 | H36: 0 | K36: 0 | L36: 0 | M36: 0 | P36: 0 | Q36: 0 | S36: 0 | T36: Poivrons rouges | U36: 0 | V36: Sal.Endive | W36: 0 | X36: 0 | Y36: 0 | Z36: 0 | AA36: 0 | AB36: 0 | AC36: 0 | AD36: 0 | AE36: 0 | AF36: 0 | AG36: 0 | AH36: 0 | AI36: 0 | AK36: Coucher | AM36: Flamber | AO36: Passer | AQ36: Videler | AS36: 0
A37: 0 | B37: 0 | C37: 0 | D37: 0 | G37: 0 | H37: 0 | K37: 0 | M37: 0 | N37: 0 | O37: 0 | P37: 0 | Q37: 0 | S37: 0 | T37: Poivrons verts | U37: 0 | V37: Sal.Feuille de chêne | W37: 0 | X37: 0 | Y37: 0 | Z37: 0 | AA37: 0 | AB37: 0 | AC37: 0 | AD37: 0 | AE37: 0 | AF37: 0 | AG37: 0 | AH37: 0 | AI37: 0 | AK37: Crémer | AM37: Flanquer | AO37: Persiller | AQ37: Voiler | AS37: 0
A38: 0 | B38: 0 | C38: 0 | D38: 0 | G38: 0 | H38: 0 | K38: 0 | L38: vert + rouge | M38: FECULENTS | O38: FEC001 | P38: 0 | Q38: 0 | S38: 0 | T38: Potiron | U38: 0 | V38: Sal.Frisée | W38: 0 | X38: 0 | Y38: 0 | Z38: 0 | AA38: 0 | AB38: 0 | AC38: 0 | AD38: 0 | AE38: 0 | AF38: 0 | AG38: 0 | AH38: 0 | AI38: 0 | AK38: Crever | AM38: Fleurer | AO38: Piler | AS38: 0
A39: 0 | B39: 0 | C39: 0 | D39: 0 | G39: 0 | H39: 0 | K39: 0 | M39: 0 | P39: 0 | Q39: 0 | S39: 0 | T39: Pousses de bambou | U39: 0 | V39: Sal.Iceberg | W39: 0 | X39: 0 | Y39: 0 | Z39: 0 | AA39: 0 | AB39: 0 | AC39: 0 | AD39: 0 | AE39: 0 | AF39: 0 | AG39: 0 | AH39: 0 | AI39: 0 | AK39: Cuire | AM39: Foisonner | AO39: Pincer | AQ39: Z | AS39: 0
A40: 0 | B40: 0 | C40: 0 | D40: 0 | E40: 0 | F40: 0 | G40: 0 | H40: 0 | K40: 0 | M40: 0 | N40: 0 | O40: 0 | P40: 0 | Q40: 0 | S40: 0 | T40: Radis noirs | U40: 0 | V40: Sal.Krisette | W40: 0 | X40: 0 | Y40: 0 | Z40: 0 | AA40: 0 | AB40: 0 | AC40: 0 | AD40: 0 | AE40: 0 | AF40: 0 | AG40: 0 | AH40: 0 | AI40: 0 | AK40: D | AM40: Foncer | AO40: Piquer | AQ40: Zester | AS40: 0
A41: 0 | B41: 0 | G41: 0 | H41: 0 | K41: 0 | M41: COMPOSES VERTS | O41: CVR001 | P41: 0 | Q41: 0 | S41: 0 | T41: Radis roses | U41: 0 | V41: Sal.Laitue | W41: 0 | X41: 0 | Y41: 0 | Z41: 0 | AA41: 0 | AB41: 0 | AC41: 0 | AD41: 0 | AE41: 0 | AF41: 0 | AG41: 0 | AH41: 0 | AI41: 0 | AK41: Décanter | AM41: Fondre | AO41: Pocher | AS41: 0
A42: 0 | B42: 0 | G42: 0 | H42: 0 | K42: 0 | M42: 0 | P42: 0 | Q42: 0 | S42: 0 | T42: Salade | U42: 0 | V42: Sal.Lola rosa | W42: 0 | X42: 0 | Y42: 0 | Z42: 0 | AA42: 0 | AB42: 0 | AC42: 0 | AD42: 0 | AE42: 0 | AF42: 0 | AG42: 0 | AH42: 0 | AI42: 0 | AK42: Décercler | AM42: Fouler | AO42: Poêler | AS42: 0
A43: 0 | B43: 0 | G43: 0 | H43: 0 | K43: 0 | M43: 0 | N43: 0 | O43: 0 | P43: 0 | Q43: 0 | S43: 0 | T43: Salsifis | U43: 0 | V43: Sal.Mâche | W43: 0 | X43: 0 | Y43: 0 | Z43: 0 | AA43: 0 | AB43: 0 | AC43: 0 | AD43: 0 | AE43: 0 | AF43: 0 | AG43: 0 | AH43: 0 | AI43: 0 | AK43: Décortiquer | AM43: Fraiser | AO43: Pousser | AS43: 0
A44: 0 | B44: 0 | E44: 0 | F44: 0 | G44: 0 | H44: 0 | K44: 0 | M44: LAITAGES FROMAGES | O44: LAI001 | P44: 0 | Q44: 0 | S44: 0 | T44: Soja | U44: 0 | V44: Sal.Mesclun | W44: 0 | X44: 0 | Y44: 0 | Z44: 0 | AA44: 0 | AB44: 0 | AC44: 0 | AD44: 0 | AE44: 0 | AF44: 0 | AG44: 0 | AH44: 0 | AI44: 0 | AK44: Décuire | AM44: Fileter | AO44: Puncher | AS44: 0
A45: 0 | B45: 0 | C45: 0 | D45: 0 | E45: 0 | F45: 0 | G45: 0 | H45: 0 | K45: 0 | M45: 0 | P45: 0 | Q45: 0 | S45: 0 | T45: Tomates cerises | U45: 0 | V45: Sal.Pissenlit | W45: 0 | X45: 0 | Y45: 0 | Z45: 0 | AA45: 0 | AB45: 0 | AC45: 0 | AD45: 0 | AE45: 0 | AF45: 0 | AG45: 0 | AH45: 0 | AI45: 0 | AK45: Déffilandrer | AM45: Frapper | AO45: Q | AS45: 0
A46: 0 | B46: 0 | K46: 0 | M46: 0 | N46: 0 | O46: 0 | P46: 0 | Q46: 0 | S46: 0 | T46: Tomates Marmande | U46: 0 | V46: Sal.Romaine | W46: 0 | X46: 0 | Y46: 0 | Z46: 0 | AA46: 0 | AB46: 0 | AC46: 0 | AD46: 0 | AE46: 0 | AF46: 0 | AG46: 0 | AH46: 0 | AI46: 0 | AK46: Déglacer | AM46: Frémir | AO46: Quadriller | AS46: 0
A47: 0 | B47: 0 | C47: 0 | D47: 0 | E47: 0 | F47: 0 | G47: 0 | H47: 0 | K47: 0 | M47: LAITAGES +FECULENTS | O47: LFC001 | P47: 0 | Q47: 0 | S47: 0 | T47: Tomates olivette | U47: 0 | V47: Sal.Scarole | W47: 0 | X47: 0 | Y47: 0 | Z47: 0 | AA47: 0 | AB47: 0 | AC47: 0 | AD47: 0 | AE47: 0 | AF47: 0 | AG47: 0 | AH47: 0 | AI47: 0 | AK47: Dégorger | AM47: Frire | AS47: 0
A48: 0 | B48: 0 | C48: 0 | D48: 0 | E48: 0 | F48: 0 | G48: 0 | H48: 0 | K48: 0 | M48: 0 | P48: 0 | Q48: 0 | S48: 0 | T48: Tomates Romaine | U48: 0 | V48: Sal.Trévise | W48: 0 | X48: 0 | Y48: 0 | Z48: 0 | AA48: 0 | AB48: 0 | AC48: 0 | AD48: 0 | AE48: 0 | AF48: 0 | AG48: 0 | AH48: 0 | AI48: 0 | AK48: Dégourdir | AM48: G | AO48: R | AS48: 0
A49: 0 | B49: 0 | C49: 0 | D49: 0 | E49: 0 | F49: 0 | G49: 0 | H49: 0 | K49: 0 | M49: 0 | N49: 0 | O49: 0 | P49: 0 | Q49: 0 | R49: 0 | S49: 0 | T49: 0 | U49: 0 | V49: Salade | W49: 0 | X49: 0 | Y49: 0 | Z49: 0 | AA49: 0 | AB49: 0 | AC49: 0 | AD49: 0 | AE49: 0 | AF49: 0 | AG49: 0 | AH49: 0 | AI49: 0 | AK49: Dégraisser | AM49: Glacer | AO49: Rabattre | AS49: 0
A50: 0 | B50: 0 | C50: 0 | D50: 0 | E50: 0 | F50: 0 | G50: 0 | H50: 0 | K50: 0 | M50: DESSERTS | O50: DES001 | P50: 0 | Q50: 0 | R50: 0 | S50: 0 | T50: 0 | U50: 0 | V50: Salades composées | W50: 0 | X50: 0 | Y50: 0 | Z50: 0 | AA50: 0 | AB50: 0 | AC50: 0 | AD50: 0 | AE50: 0 | AF50: 0 | AG50: 0 | AH50: 0 | AI50: 0 | AK50: Déhousser | AM50: Gommer | AO50: Rafraîchir | AS50: 0
A51: 0 | B51: 0 | C51: 0 | D51: 0 | E51: 0 | F51: 0 | G51: 0 | H51: 0 | K51: 0 | M51: 0 | P51: 0 | Q51: 0 | R51: 0 | S51: 0 | T51: 0 | U51: 0 | V51: Salsifis | W51: 0 | X51: 0 | Y51: 0 | Z51: 0 | AA51: 0 | AB51: 0 | AC51: 0 | AD51: 0 | AE51: 0 | AF51: 0 | AG51: 0 | AH51: 0 | AI51: 0 | AK51: Dénerver | AM51: Graisser | AO51: Raidir | AS51: 0
A52: 0 | B52: 0 | C52: 0 | D52: 0 | E52: 0 | F52: 0 | G52: 0 | H52: 0 | K52: 0 | M52: 0 | N52: 0 | O52: 0 | P52: 0 | Q52: 0 | R52: 0 | S52: 0 | T52: 0 | U52: 0 | V52: Soja | W52: 0 | X52: 0 | Y52: 0 | Z52: 0 | AA52: 0 | AB52: 0 | AC52: 0 | AD52: 0 | AE52: 0 | AF52: 0 | AG52: 0 | AH52: 0 | AI52: 0 | AK52: Dénoyauter | AM52: Gratiner | AO52: Rassir | AS52: 0
A53: 0 | B53: 0 | C53: 0 | D53: 0 | E53: 0 | F53: 0 | G53: 0 | H53: 0 | K53: 0 | M53: GOUTER | O53: GOU001 | P53: 0 | Q53: 0 | R53: 0 | S53: 0 | T53: 0 | U53: 0 | V53: Tomates | W53: 0 | X53: 0 | Y53: 0 | Z53: 0 | AA53: 0 | AB53: 0 | AC53: 0 | AD53: 0 | AE53: 0 | AF53: 0 | AG53: 0 | AH53: 0 | AI53: 0 | AK53: Denteler | AM53: Griller | AO53: Rayer | AS53: 0
A54: 0 | B54: 0 | C54: 0 | D54: 0 | E54: 0 | F54: 0 | G54: 0 | H54: 0 | K54: 0 | M54: 0 | P54: 0 | Q54: 0 | R54: 0 | S54: 0 | T54: 0 | U54: 0 | V54: Tomates cerises | W54: 0 | X54: 0 | Y54: 0 | Z54: 0 | AA54: 0 | AB54: 0 | AC54: 0 | AD54: 0 | AE54: 0 | AF54: 0 | AG54: 0 | AH54: 0 | AI54: 0 | AS54: 0
A55: 0 | B55: 0 | C55: 0 | D55: 0 | E55: 0 | F55: 0 | G55: 0 | H55: 0 | K55: 0 | M55: 0 | N55: 0 | O55: 0 | P55: 0 | Q55: 0 | R55: 0 | S55: 0 | T55: 0 | U55: 0 | V55: Tomates Marmande | W55: 0 | X55: 0 | Y55: 0 | Z55: 0 | AA55: 0 | AB55: 0 | AC55: 0 | AD55: 0 | AE55: 0 | AF55: 0 | AG55: 0 | AH55: 0 | AI55: 0 | AJ55: 0 | AK55: 0 | AL55: 0 | AM55: 0 | AN55: 0 | AO55: 0 | AP55: 0 | AQ55: 0 | AR55: 0 | AS55: 0
A56: 0 | B56: 0 | C56: 0 | D56: 0 | E56: 0 | F56: 0 | G56: 0 | H56: 0 | K56: 0 | M56: 0 | N56: 0 | O56: 0 | P56: 0 | Q56: 0 | R56: 0 | S56: 0 | T56: 0 | U56: 0 | V56: Tomates olivette | W56: 0 | X56: 0 | Y56: 0 | Z56: 0 | AA56: 0 | AB56: 0 | AC56: 0 | AD56: 0 | AE56: 0 | AF56: 0 | AG56: 0 | AH56: 0 | AI56: 0 | AJ56: 0 | AK56: 0 | AL56: 0 | AM56: 0 | AN56: 0 | AO56: 0 | AP56: 0 | AQ56: 0 | AR56: 0 | AS56: 0
A57: 0 | B57: 0 | C57: 0 | D57: 0 | E57: 0 | F57: 0 | G57: 0 | H57: 0 | K57: 0 | M57: Classement | N57: 0 | O57: Codes ou N° | P57: 0 | Q57: 0 | R57: 0 | S57: 0 | T57: 0 | U57: 0 | V57: Tomates Romaine | W57: 0 | X57: 0 | Y57: 0 | Z57: 0 | AA57: 0 | AB57: 0 | AC57: 0 | AD57: 0 | AE57: 0 | AF57: 0 | AG57: 0 | AH57: 0 | AI57: 0 | AJ57: 0 | AK57: 0 | AL57: 0 | AM57: 0 | AN57: 0 | AO57: 0 | AP57: 0 | AQ57: 0 | AR57: 0 | AS57: 0
A58: 0 | B58: 0 | C58: 0 | D58: 0 | E58: 0 | F58: 0 | G58: 0 | H58: 0 | K58: 0 | M58: 0 | N58: 0 | O58: 0 | P58: 0 | Q58: 0 | R58: 0 | S58: 0 | T58: 0 | U58: 0 | V58: 0 | W58: 0 | X58: 0 | Y58: 0 | Z58: 0 | AA58: 0 | AB58: 0 | AC58: 0 | AD58: 0 | AE58: 0 | AF58: 0 | AG58: 0 | AH58: 0 | AI58: 0 | AJ58: 0 | AK58: 0 | AL58: 0 | AM58: 0 | AN58: 0 | AO58: 0 | AP58: 0 | AQ58: 0 | AR58: 0 | AS58: 0
A59: 0 | B59: 0 | C59: 0 | D59: 0 | E59: 0 | F59: 0 | G59: 0 | H59: 0 | K59: 0 | M59: Accompagnement d'Apéritif | N59: 0 | O59: APÉ 001 | P59: 0 | Q59: 0 | R59: 0 | S59: 0 | T59: 0 | U59: 0 | V59: 0 | W59: 0 | X59: 0 | Y59: 0 | Z59: 0 | AA59: 0 | AB59: 0 | AC59: 0 | AD59: 0 | AE59: 0 | AF59: 0 | AG59: 0 | AH59: 0 | AI59: 0 | AJ59: 0 | AK59: 0 | AL59: 0 | AM59: 0 | AN59: 0 | AO59: 0 | AP59: 0 | AQ59: 0 | AR59: 0 | AS59: 0
M60: 0 | N60: 0
M61: 0 | N61: 0 | O61: 0
M62: Décor salé | N62: 0 | O62: DEC 001
M63: 0 | N63: 0
M64: 0 | N64: 0 | O64: 0
M65: Décor sucré | N65: 0 | O65: DEC 001
M66: 0 | N66: 0
M67: 0 | N67: 0 | O67: 0
M68: Desserts | N68: 0 | O68: DES 001
M69: 0 | N69: 0
M70: 0 | N70: 0 | O70: 0
M71: Entrées chaude | N71: 0 | O71: ENC 001
M72: 0 | N72: 0
M73: 0 | N73: 0 | O73: 0
M74: Entrée froide | N74: 0 | O74: ENF 001
M75: 0 | N75: 0
M76: 0 | N76: 0 | O76: 0
M77: Entrée Mixte Froide/Chaude | N77: 0 | O77: ENM 001
M78: 0 | N78: 0
M79: 0 | N79: 0 | O79: 0
M80: Garniture de cuisson | N80: 0 | O80: GAC 001
M81: 0 | N81: 0
M82: 0 | N82: 0 | O82: 0
M83: Garniture de finition | N83: 0 | O83: GAF 001
M84: 0 | N84: 0
M85: 0 | N85: 0 | O85: 0
M86: Gibier | N86: 0 | O86: GIB 001
M87: 0 | N87: 0
M88: 0 | N88: 0 | O88: 0
M89: H.O. Composition légumes Multiples | N89: 0 | O89: HCM 100
M90: 0 | N90: 0
M91: 0 | N91: 0 | O91: 0
M92: Jus nature | N92: 0 | O92: JUN 001
M93: 0 | N93: 0
M94: 0 | N94: 0 | O94: 0
M95: Laitages | N95: 0 | O95: LAI 001
M96: 0 | N96: 0
M97: 0 | N97: 0 | O97: 0
M98: Légumes | N98: 0 | O98: LEG 001
M99: 0 | N99: 0
M100: 0 | N100: 0 | O100: 0
M101: Poisson | N101: 0 | O101: POI 001
M102: 0 | N102: 0
M103: 0 | N103: 0 | O103: 0
M104: Sauce Blanche ou Blonde | N104: 0 | O104: SAB 001
M105: 0 | N105: 0
M106: 0 | N106: 0 | O106: 0
M107: Sauce Rouge ou Brune | N107: 0 | O107: SAR 001
M108: 0 | N108: 0
M109: 0 | N109: 0 | O109: 0
M110: Viande | N110: 0 | O110: VIA 001
M111: 0 | N111: 0
M112: 0 | N112: 0 | O112: 0
M113: Volaille | N113: 0 | O113: VOL 001
M114: 0 | N114: 0
M115: 0 | N115: 0 | O115: 0
B118: AU CHOIX : collez un de ces tableaux dans la fiche
B120: CUISINE CENTRALE DE ROCHEFORT SUR MER
B121: 0 | C121: OBSERVATIONS ou principales étapes de fabrication adaptées à votre organisation
B122: 1 | C122: 0
B123: 2 | C123: 0
B124: 3 | C124: 0
B125: 4 | C125: 0
B126: 5 | C126: 0
B127: 6 | C127: 0
B128: 7 | C128: 0
B129: 8 | C129: 0
B130: 9 | C130: 0
B131: 10 | C131: 0
B132: 11 | C132: 0
B133: 12 | C133: 0 | O133: impression Portrait
B135: CUISINE CENTRALE DE ROCHEFORT SUR MER
B136: 0 | C136: OBSERVATIONS ou principales étapes de fabrication adaptées à votre organisation
B137: 0 | D137: Contenances | E137: 1Gastro 1/1 | G137: 1 Sauteuse | I137: Photo ici
B138: 0 | D138: Produit de base recette | E138: 0 | F138: 0 | G138: 0 | H138: 0
B139: 0 | D139: Sauce ou garniture | E139: 0 | F139: 0 | G139: 0 | H139: 0
B140: 0 | D140: Total dans 1 contenant | E140: 0 | F140: 0 | G140: 0 | H140: 0
B141: 0 | D141: Dans 1 four ou sauteuse | E141: 0 | F141: 0 | G141: 0 | H141: 0
B142: 0 | D142: Température | F142: Temps | G142: Mode fonction
B143: 0 | C143: Rissolage | D143: 0 | E143: 0 | F143: 0 | G143: 0 | H143: 0
B144: 0 | C144: Cuisson 1 | D144: 0 | E144: 0 | F144: 0 | G144: 0 | H144: 0
B145: 0 | C145: Cuisson 2 | D145: 0 | E145: 0 | F145: 0 | G145: 0 | H145: 0
B146: 0 | C146: Cuisson 3 | D146: 0 | E146: 0 | F146: 0 | G146: 0 | H146: 0
B147: 0 | C147: A Cœur | D147: 0 | E147: 0 | F147: Liaison froide
B148: 0 | C148: A Cœur | D148: 0 | E148: 0 | F148: Liaison Chaude | O148: impression Portrait
B151: LA CUISINE COLLECTIVE Edi.BPI 2006 Grossmann et Le franc
B152: 0 | C152: OBSERVATIONS et matériels utilisés (attention valeur pour formule colonne L )
C153: Pour | D153: 100 | E153: couverts | H153: MATÉRIELS suite | I153: Photo ici | J153: =$J$6 -> 0 | K153: =$K$6 -> 0 | L153: =D153 -> 100
C154: Poids par personne | D154: 0.07 | E154: Kg | G154: 0 | J154: 0 | K154: 0 | L154: =L153 -> 100
B155: 0 | C155: Temps de préparation | D155: 0.03125 | G155: 0 | J155: 0 | K155: 0 | L155: =L153 -> 100
B156: 0 | C156: Temps de cuisson | D156: 0.03125 | G156: 0 | J156: 0 | K156: 0 | L156: =L153 -> 100
B157: 0 | C157: MATÉRIELS UTILISÉS pour: | D157: =L157 -> 100 | E157: =K157 -> 0 | F157: 500 | G157: 0 | J157: 0 | K157: 0 | L157: =L153 -> 100
B158: 1 | C158: 0 | D158: 2 | E158: =(D158/L158)*K158 -> 0 | F158: =(D158/L158)*F157 -> 10 | G158: 0 | J158: 0 | K158: 0 | L158: =L153 -> 100
B159: 2 | C159: 0 | D159: 3 | E159: =(D159/L159)*K159 -> 0 | F159: =(D159/L159)*F157 -> 15 | G159: 0 | J159: 0 | K159: 0 | L159: =L153 -> 100
B160: 3 | C160: 0 | D160: 4 | E160: 0 | F160: =(D160/L160)*F157 -> 20 | G160: 0 | J160: 0 | K160: 0 | L160: =L153 -> 100
B161: 4 | C161: 0 | D161: 5 | E161: 0 | F161: =(D161/L161)*F157 -> 25 | G161: 0 | J161: 0 | K161: 0 | L161: =L153 -> 100
B162: 5 | C162: 0 | D162: 6 | E162: 0 | F162: =(D162/L162)*F157 -> 30 | G162: 0 | J162: 0 | K162: 0 | L162: =L153 -> 100
B163: 6 | C163: 0 | D163: 7 | E163: 0 | F163: =(D163/L163)*F157 -> 35 | G163: 0 | J163: 0 | K163: 0 | L163: =L153 -> 100
B164: 7 | C164: 0 | D164: 8 | E164: 0 | F164: =(D164/L164)*F157 -> 40 | G164: 0 | J164: 0 | K164: 0 | L164: =L153 -> 100 | O164: impression Portrait
C166: Bonne utilisation
C167: Joel Leboucher Cuisine Centrale de Rochefort sur mer
C168: leboucher.joel@wanadoo.fr

Sheet Formats-Formules-Fonctions
A1: =CELL("largeur",A1) -> 15 | B1: 15 | C1: 15 | D1: 15 | E1: 15 | F1: 15 | G1: 15 | H1: 15 | I1: 15 | J1: 15 | K1: 15 | L1: 15 | M1: 15 | N1: 15 | O1: 15 | P1: 15 | Q1: 15 | R1: 15 | S1: 15 | T1: 15 | U1: 15 | V1: 15 | W1: 15 | X1: 15 | Y1: 15 | Z1: 15 | AA1: 15
B3: Quelques format - formules et fonctions | P3: Mise à jour du 14 Décembre 2021
B4: pour vous aider dans la conception de vos documents | P4: annule ou remplace les versions précédentes
C6: des fonctions
E7: à copier | G7: Fonction | L7: à copier | N7: Fonction
D8: N° de colonne | E8: =COLUMN() -> 5 | G8: =_xlfn.FORMULATEXT(E8) -> =COLONNE() | K8: Adresse de cellule | L8: =ADDRESS(ROW(),COLUMN(),4) -> L8 | N8: =_xlfn.FORMULATEXT(L8) -> =ADRESSE(LIGNE();COLONNE();4)
E9: à copier | G9: Fonction | L9: à copier | N9: Fonction
D10: N° de ligne | E10: =ROW() -> 10 | G10: =_xlfn.FORMULATEXT(E10) -> =LIGNE() | K10: largeur colonne | L10: =CELL("largeur",L10) -> 15 | N10: =_xlfn.FORMULATEXT(L10) -> =CELLULE("largeur";L10)
E11: à copier | G11: Fonction
D12: Adresse colonne | E12: =LEFT(ADDRESS(1,COLUMN(),4),LEN(ADDRESS(1,COLUMN(),4))-1) -> E | G12: =_xlfn.FORMULATEXT(E12) -> =GAUCHE(ADRESSE(1;COLONNE();4);NBCAR(ADRESSE(1;COLONNE();4))-1)
L13: ="Page "&_xlfn.SHEET()&" sur "&_xlfn.SHEETS() -> Page 12 sur 18 | N13: Page &FEUILLE()&" sur "&FEUILLES()
F14: à copier
C15: Adresse classeur > | F15: =CELL("nomfichier") -> E:\0-UPRT\1-UPRT.FR-SITE-WEB\ff-fiches-fabrications\ff-fiches-fabrication-maj-08-2020\[ff-4-collectivite-avec-macro.xlsm]Formats-Formules-Fonctions
F16: =_xlfn.FORMULATEXT(F15) -> =CELLULE("nomfichier")
F17: Fonction
B20: Pour récupérer des formules : 2 choix OU vous collez les 2 ou 3 lignes correspondantes dans votre feuille . OU vous cliquez dans la cellule de couleur , Copiez ...puis dans votre feuille : Collage spécial 1.2.3.Valeurs supprimez = Modifiez les Numéros de cellules dans la barre de formule PUIS CLIQUEZ A LA FIN DE LA FORMULE AVANT d'ajouter de nouveau = (ce qui modifie votre valeur en fonction) OU ajouter tout de suite = puis modifier les N° de cellules
C25: pour copier ou modifier une formule supprimez le signe = puis ajoutez le lorsque vous aurez terminé
C26: ce qui vous permettra de modifier en toute sécurité - sans ce signe = Excel considère que c'est du texte
C28: Adresses | D28: lien > | E28: http://www.mdf-xlpages.com/modules/publisher/item.php?itemid=91
Q31: Aide mémoire : sur une Équivalence litre / Kg
B32: Ligne | C32: Récupérer le nom du dossier (sans le chemin complet)
C33: =MID(LEFT(CELL("filename",A1),FIND("[",CELL("filename",A1))-2),SEARCH("µ",SUBSTITUTE(LEFT(CELL("filename",A1),FIND("[",CELL("filename",A1))-2),"\","µ",LEN(LEFT(CELL("filename",A1),FIND("[",CELL("filename",A1))-2))-LEN(SUBSTITUTE(LEFT(CELL("filename",A1),FIND("[",CELL("filename",A1))-2),"\",""))))+1,100) -> ff-fiches-fabrication-maj-08-2020 | Q33: sur la base eau : 1L = 1Kg | X33: Kg | Y33: hg | Z33: dag | AA33: gr
B34: =ROW() -> 34 | C34: =_xlfn.FORMULATEXT(C33) -> =STXT(GAUCHE(CELLULE("filename";A1);TROUVE("[";CELLULE("filename";A1))-2);CHERCHE("µ";SUBSTITUE(GAUCHE(CELLULE("filename";A1);TROUVE("[";CELLULE("filename";A1))-2);"\";"µ";NBCAR(GAUCHE(CELLULE("filename";A1);TROUVE("[";CELLULE("filename";A1))-2))-NBCAR(SUBSTITUE(GAUCHE(CELLULE("filename";A1);TROUVE("[";CELLULE("filename";A1))-2);"\";""))))+1;100) | O34: . | Q34: Litres (l.) | R34: Centilitres (cl.) | S34: Décilitres (dl.) | T34: Kilogrammes (kg.)
C35: Copiez la cellule jaune puis collage spécial Valeurs 1 2 3 dans votre cellule et conservez "A1" | U35: Kg | V35: cl | W35: ml | X35: L | Y35: dl | Z35: cl | AA35: ml
Q37: 1litre | R37: 100 cl | S37: 10 dl | T37: 1 kg | U37: 1 Kg | V37: 100 cl | W37: 1000 ml | X37: 1 | Y37: 5 | Z37: 0 | AA37: 0
B38: Ligne | C38: Pour avoir le nom de l'onglet
C39: =RIGHT(CELL("filename",A1),LEN(CELL("filename",A1))-SEARCH("]",CELL("filename",A1))) -> Formats-Formules-Fonctions | Q39: 1/2 litre | R39: 50 cl | S39: 5 dl | T39: 0,500 kg | U39: 0.1Kg | V39: 10 cl | W39: 100 ml | X39: 0 | Y39: 5 | Z39: 0 | AA39: 0
B40: =ROW() -> 40 | C40: =_xlfn.FORMULATEXT(C39) -> =DROITE(CELLULE("filename";A1);NBCAR(CELLULE("filename";A1))-CHERCHE("]";CELLULE("filename";A1)))
C41: Copiez la cellule jaune puis collage spécial Valeurs 1 2 3 dans votre cellule et conservez "A1" | Q41: 1/4 litre | R41: 25 cl | S41: 2,5 dl | T41: 0,250 kg | U41: 0.01Kg | V41: 1 cl | W41: 10ml | X41: 0 | Y41: 0 | Z41: 5 | AA41: 0
Q43: 1/8 litre | R43: 12, 5 c | S43: 1,25 dl | T43: 0,125 kg | U43: 0.001Kg | V43: 0.1 cl | W43: 1ml | X43: 0 | Y43: 0 | Z43: 0 | AA43: 5
B44: Ligne | C44: Pour avoir le nom du fichier
C45: =MID(CELL("filename",A1),SEARCH("[",CELL("filename",A1))+1,SEARCH("]",CELL("filename",A1))-SEARCH("[",CELL("filename",A1))-1) -> ff-4-collectivite-avec-macro.xlsm | Q45: Lien > | R45: http://www.cuisinealafrancaise.com/fr/2-poids-et-mesures
B46: =ROW() -> 46 | C46: =_xlfn.FORMULATEXT(C45) -> {=STXT(CELLULE("filename";A1);CHERCHE("[";CELLULE("filename";A1))+1;CHERCHE("]";CELLULE("filename";A1))-CHERCHE("[";CELLULE("filename";A1))-1)} | O46: .
C47: Copiez la cellule jaune puis collage spécial Valeurs 1 2 3 dans votre cellule et conservez "A1" | R47: 1 gr = 0.002Kg > 2 zéros après la virgule du Kg
B50: Ligne | C50: Pour avoir le nom de l'onglet et du fichier
C51: =RIGHT(CELL("filename",A1),LEN(CELL("filename",A1))-SEARCH("[",CELL("filename",A1))+1) -> [ff-4-collectivite-avec-macro.xlsm]Formats-Formules-Fonctions
B52: =ROW() -> 52 | C52: =_xlfn.FORMULATEXT(C51) -> =DROITE(CELLULE("filename";A1);NBCAR(CELLULE("filename";A1))-CHERCHE("[";CELLULE("filename";A1))+1)
C53: Copiez la cellule jaune puis collage spécial Valeurs 1 2 3 dans votre cellule et conservez "A1"
B56: Ligne | C56: Pour avoir le nom du répertoire:
C57: =LEFT(CELL("filename",A1),SEARCH("[",CELL("filename",A1))-1) -> E:\0-UPRT\1-UPRT.FR-SITE-WEB\ff-fiches-fabrications\ff-fiches-fabrication-maj-08-2020\
B58: =ROW() -> 58 | C58: =_xlfn.FORMULATEXT(C57) -> {=GAUCHE(CELLULE("filename";A1);CHERCHE("[";CELLULE("filename";A1))-1)}
C59: Copiez la cellule jaune puis collage spécial Valeurs 1 2 3 dans votre cellule et conservez "A1"
B62: Ligne | C62: Pour avoir le nom du répertoire et du fichier:
C63: =LEFT(CELL("filename",A1),SEARCH("]",CELL("filename",A1))) -> E:\0-UPRT\1-UPRT.FR-SITE-WEB\ff-fiches-fabrications\ff-fiches-fabrication-maj-08-2020\[ff-4-collectivite-avec-macro.xlsm]
B64: =ROW() -> 64 | C64: =_xlfn.FORMULATEXT(C63) -> {=GAUCHE(CELLULE("filename";A1);CHERCHE("]";CELLULE("filename";A1)))}
C65: Copiez la cellule jaune puis collage spécial Valeurs 1 2 3 dans votre cellule et conservez "A1"
B68: Ligne | C68: Afficher les formules avec une fonction
B69: =ROW() -> 69 | C69: FORMULETEXTE(B2)
C70: Copiez la cellule jaune puis collage spécial Valeurs 1 2 3 dans votre cellule et modifiez le N°de cellule
B76: Ligne | C76: pour s'assurer que le fichier est bien l'original, utiliser cette formule qui récupère le nom complet du fichier.
B77: =ROW() -> 77 | C77: =CELL("nomfichier") -> E:\0-UPRT\1-UPRT.FR-SITE-WEB\ff-fiches-fabrications\ff-fiches-fabrication-maj-08-2020\[ff-4-collectivite-avec-macro.xlsm]Formats-Formules-Fonctions | N77: .
C78: =_xlfn.FORMULATEXT(C77) -> =CELLULE("nomfichier")
C79: Copiez la cellule jaune puis collez la directement dans votre document
B82: Ligne | C82: pour marquer vos copies remplacez dans la formule les références en vert par les votres
B83: =ROW() -> 83 | C83: [ff-97-formats-formules-pourcentages.xlsx]sites";"";"ff-97-formats-formules-pourcentages COPIE"
C84: Copiez la cellule verte puis collez la directement dans votre document
B87: Ligne | C87: Si vous avez besoin de retirer les crochets vous pouvez utiliser la fonction SUBSTITUE():
C88: =SUBSTITUTE(SUBSTITUTE(RIGHT(CELL("filename",A1),LEN(CELL("filename",A1))-SEARCH("[",CELL("filename",A1))+1),"[",""),"]"," ") -> ff-4-collectivite-avec-macro.xlsm Formats-Formules-Fonctions
B89: =ROW() -> 89 | C89: =_xlfn.FORMULATEXT(C88) -> =SUBSTITUE(SUBSTITUE(DROITE(CELLULE("filename";A1);NBCAR(CELLULE("filename";A1))-CHERCHE("[";CELLULE("filename";A1))+1);"[";"");"]";" ")
C90: Copiez la cellule jaune puis collage spécial Valeurs 1 2 3 dans votre cellule et conservez "A1"
B93: Ligne | C93: Si vous souhaitez retirer les crochets:
C94: =SUBSTITUTE(SUBSTITUTE(LEFT(CELL("filename",A1),SEARCH("]",CELL("filename",A1))),"[",""),"]","") -> E:\0-UPRT\1-UPRT.FR-SITE-WEB\ff-fiches-fabrications\ff-fiches-fabrication-maj-08-2020\ff-4-collectivite-avec-macro.xlsm
B95: =ROW() -> 95 | C95: =_xlfn.FORMULATEXT(C94) -> =SUBSTITUE(SUBSTITUE(GAUCHE(CELLULE("filename";A1);CHERCHE("]";CELLULE("filename";A1)));"[";"");"]";"")
C96: Copiez la cellule jaune puis collage spécial Valeurs 1 2 3 dans votre cellule et conservez "A1"
B99: Ligne | C99: pour marquer vos documents
C100: =IF(CELL("nomfichier",C55)="\\rcg006bur\usei_cartographie\[ff-29-formats-formules-pourcentages.xlsx]sites","","ff-29-formats-formules-pourcentages COPIE") -> ff-29-formats-formules-pourcentages COPIE
B101: =ROW() -> 101 | C101: =_xlfn.FORMULATEXT(C100) -> =SI(CELLULE("nomfichier";C55)="\\rcg006bur\usei_cartographie\[ff-29-formats-formules-pourcentages.xlsx]sites";"";"ff-29-formats-formules-pourcentages COPIE")
C102: Copiez la cellule jaune puis collez la dans votre cellule ne changez pas le N° de cellule
C105: Inverser la position du nom et du prénom
B106: Ligne | C106: il ne doit y avoir qu'un espace dans la chaine de caractères pour que cela fonctionne
B107: =ROW() -> 107 | C107: legendre paul | E107: =RIGHT(C107,LEN(C107)-SEARCH(" ",C107))&" "&LEFT(C107,SEARCH(" ",C107)) -> paul legendre
E108: =_xlfn.FORMULATEXT(E107) -> =DROITE(C107;NBCAR(C107)-CHERCHE(" ";C107))&" "&GAUCHE(C107;CHERCHE(" ";C107))
E109: Copiez les 4 cellules encadrées puis collage dans votre feuille. Changez Nom et prénon dans la cellule fond noir
C112: afficher le classement de toutes les cellules de la plage
B113: Ligne
B114: =ROW() -> 114 | C114: 5 | D114: =RANK(C114,C114:C118,0) -> 3 | E114: =_xlfn.FORMULATEXT(D114) -> =RANG(C114;C114:C118;0)
C115: 8 | D115: =RANK(C115,C114:C118,0) -> 1 | E115: remplacer 1 par 0 pour avoir un ordre croissant
C116: 4 | D116: =RANK(C116,C114:C118,0) -> 4
C117: 1 | D117: =RANK(C117,C114:C118,0) -> 5
C118: 7 | D118: =RANK(C118,C114:C118,0) -> 2
B119: Collez l'ensemble de ces cellules dans votre document et ajoutez des lignes. N'oubliez pas de figer par votre plage
C122: indiquer de façon visuelle le rang d'un nombre dans une série
C123: la fonction Rang permet de déterminer la position d'un nombre dans une liste d'arguments
C124: mais vous pouvez aussi y associer les fonctions REPT et CAR afin de donner un aspect visuel au résultat
C125: si par exemple la série de nombre en colonne C
B126: Ligne
B127: =ROW() -> 127 | C127: 5 | D127: =REPT(CHAR(7),RANK(C127,C127:C131,1)) ->  | E127: =_xlfn.FORMULATEXT(D127) -> =REPT(CAR(7);RANG(C127;C127:C131;1))
C128: 8 | D128: =REPT(CHAR(7),RANK(C128,C127:C131,1)) -> 
C129: 4 | D129: =REPT(CHAR(7),RANK(C129,C127:C131,1)) -> 
C130: 1 | D130: =REPT(CHAR(7),RANK(C130,C127:C131,1)) -> 
C131: 7 | D131: =REPT(CHAR(7),RANK(C131,C127:C131,1)) -> 
B132: Collez l'ensemble de ces cellules dans votre document et ajoutez des lignes. N'oubliez pas de figer par votre plage
C135: Dates - heures
B136: Lignes
B137: =ROW() -> 137 | C137: =TODAY() -> 2021-12-15 | G137: =_xlfn.FORMULATEXT(C137) -> =AUJOURDHUI()
C138: Format de cellule > Nombre > Date
B140: =ROW() -> 140 | C140: =NOW() -> 2021-12-15T11:26:41.450 | G140: =_xlfn.FORMULATEXT(C140) -> =MAINTENANT()
C141: Format de cellule > Nombre > Date
B143: =ROW() -> 143 | C143: =NOW() -> 2021-12-15T11:26:41.450 | G143: =_xlfn.FORMULATEXT(C143) -> =MAINTENANT()
D144: Format de cellule > | E144: jjjj mm mmm aaaa - hh"H"mm
B146: =ROW() -> 146 | C146: =NOW() -> 44545.47687 | G146: =_xlfn.FORMULATEXT(C146) -> =MAINTENANT()
C147: Format de cellule > Nombre > Heure
B149: =ROW() -> 149 | C149: =TODAY() -> 2021-12-15 | G149: =_xlfn.FORMULATEXT(C149) -> =AUJOURDHUI()
C150: Format de cellule > Nombre > Date
C154: N° de semaine - collez les cellules vertes dans votre tableau
B155: Lignes | C155: collez les cellules vertes dans votre tableau
B156: =ROW() -> 156 | C156: =INT((C149-(DATE(YEAR(C149-WEEKDAY(C149-1)+4),1,3)-WEEKDAY(DATE(YEAR(C149 -WEEKDAY(C149-1)+4),1,3)))+5)/7) -> 50
C157: =_xlfn.FORMULATEXT(C156) -> =ENT((C149-(DATE(ANNEE(C149-JOURSEM(C149-1)+4);1;3)-JOURSEM(DATE(ANNEE(C149 -JOURSEM(C149-1)+4);1;3)))+5)/7)
B159: =ROW() -> 159 | C159: =C156 -> 50
C160: =_xlfn.FORMULATEXT(C159) -> =C156 | D160: Format de cellule > Personnalisée > Semaine N °0
C164: afficher ler dernier vendredi du mois, pour une date saisie dans une autre cellule
B165: Lignes | C165: collez les cellules vertes dans votre tableau
B166: =ROW() -> 166 | C166: 2020-11-05
B167: =ROW() -> 167 | C167: =DATE(YEAR(C166),MONTH(C166)+1,1)-WEEKDAY(DATE(YEAR(C166),MONTH(C166)+1,2)) -> 2020-11-27
C168: =_xlfn.FORMULATEXT(C167) -> =DATE(ANNEE(C166);MOIS(C166)+1;1)-JOURSEM(DATE(ANNEE(C166);MOIS(C166)+1;2))
B170: =ROW() -> 170 | C170: =DATE(YEAR(C166),MONTH(C166)+1,1)-WEEKDAY(DATE(YEAR(C166),MONTH(C166)+1,2)) -> 2020-11-27
C171: =_xlfn.FORMULATEXT(C170) -> =DATE(ANNEE(C166);MOIS(C166)+1;1)-JOURSEM(DATE(ANNEE(C166);MOIS(C166)+1;2))
C172: 1;1=samedi | E172: 1;5=mardi
C173: 1;2= vendredi | E173: 1;6=lundi
C174: 1;3=jeudi | E174: 1;7=dimanche
C175: 1;4=mercredi
B179: Lignes | C179: autre solution
B180: =ROW() -> 180 | C180: 2020-12-25
B181: =ROW() -> 181 | C181: =DATE(YEAR(C180),MONTH(C180)+1,1)-MOD(DATE(YEAR(C180),MONTH(C180)+1,1)+5,7)-3 -> 44190 | G181: =_xlfn.FORMULATEXT(C181) -> =DATE(ANNEE(C180);MOIS(C180)+1;1)-MOD(DATE(ANNEE(C180);MOIS(C180)+1;1)+5;7)-3
B182: =ROW() -> 182 | C182: =DATE(YEAR(C180),MONTH(C180)+1,1)-MOD(DATE(YEAR(C180),MONTH(C180)+1,1)+5,7)-3 -> 2020-12-25 | G182: =DATE(ANNEE(C180);MOIS(C180)+1;1)-MOD(DATE(ANNEE(C180);MOIS(C180)+1;1)+5;7)-3
C183: collez les cellules vertes dans votre tableau
C195: Pour une hauteur de 15 mm,vous pouvez donc régler sur 42,5.
C196: La largeur de colonne est mesurée en caractères standards. Valeur d'exemple par défaut, de 10,71 correspondant à 60 points.
C197: Vous pouvez donc régler : pour 50 mm => 25,29 ; pour 30 mm => 15,14 ; pour 10 mm => 5.
C198: Format pesonnalisé coller : +[bleu]Standard;-[rouge]Standard;"" ;Standard
K206: < = imprim écran avec Greenshot
K208: lien > | L208: https://www.clubic.com/telecharger-fiche189780-greenshot.html
B223: Transmettez votre savoir et votre savoir faire peu importe qui le récupère; pourvu qu'un plus grand nombre puisse en bénéficier.
B224: Joël LEBOUCHER …Octobre 2015
B226: un lien rompu ou devenu obsolète…..pas de panique…Google saura vous retrouver un document équivalent

Sheet Cuisiniers.Pesez
A1: =CELL("largeur",A1) -> 3 | B1: 15 | C1: 15 | D1: 15 | E1: 15 | F1: 15 | G1: 15 | H1: 15 | I1: 15 | J1: 15 | K1: 15 | L1: 15 | M1: 15 | N1: 15 | O1: 11 | P1: 16 | Q1: 11
B2: Cuisiniers : PESEZ …..Evitez les volumes , n'utilisez que les poids comme les pâtissiers
B3: Les cuisiniers "sont des artistes"……..ce qui ne doit pas les empêcher … d'UTILISEZ UNE BALANCE…...les résultats seront plus réguliers
B4: Cuisiniers : PESEZ …..même le sel…..on ne sale pas 50L de sauce à la "chichette" au "pif" ou à l'expérience
B5: la sauce crémée ne se sale pas comme la sauce tomatée etc…….
B6: lien > | C6: Les unités pifométriques
B8: Mise à jour du 16 décembre 2017 - Annule ou complète les versions précédentes lies liens sont parfois éphémères; pas de panique…..demandez à Google …il vous retrouvera un lien équivalent
B12: J'attire votre attention pour la saisie des quantités supposons qu'il y ait 400g de viande 2 œufs ou 2 pieds de veau et 5 cl de crème dans la recette …..Excel aura du mal à faire la différence
C14: ATTENTION : les saisies des poids unitaires se font en gramme
C16: Unités | D16: Quoi | E16: Poids Unitaire | F16: ❹ ingrédients | N16: quelques numérotation pour les process
C18: pour 1.050Kg saisissez 1050 la cellule est formatée pour ajouter g | N18: ❶
E19: 1050 | F19: bœuf | N19: ❷ | O19: Vous pouvez coller ces formes dans vos fiches
E20: 400 | F20: veau | N20: ❸
N21: ❹
C22: le poids UNITAIRE pour les RECETTES AU POIDS est indispensable | N22: ❺
C23: (pas le poids des 2 œufs "100g" mais le poids d'UN œuf de 50g par exemple) | N23: ❻
N24: ❼
C25: Unités | D25: Quoi | E25: Poids Unitaire | F25: ❹ ingrédients | N25: ❽
C26: 2 | D26: œufs | E26: 50 | F26: Œufs de 50 g | N26: ❾
C27: saisir QUOI pour les œufs n'est pas obligatoire | N27: ❿
C28: mais pour une pincée d'épices…une cuillère à café….une brindille c'est indispensable | N28: ⓫
N29: ⓬
C30: Recettes à la PORTION | N30: ⓭
C31: pour les recettes à la portion vous avez la possibilité de ne pas ajouter le poids unitaire de certains ingrédients | N31: ⓮
C32: si vous saisissez 2 œufs c'est possible; mais pas dans la même colonne cela fausserait le poids total | N32: ⓯
C33: Excel calculera 2 comme 2 Kg | N33: ⓰
C34: donc pour les produits à l'unité saisissez vos valeurs dans la première colonne | N34: ⓱
N35: ⓲
C36: Unités | D36: Quoi | E36: Poids Unitaire | F36: ❹ ingrédients | H36: FORMATS POUR LES FICHES AU Kg | K36: rapportez tout au Kg = 0,400 Kg de viande | N36: ⓳
C37: 2 | D37: œufs | F37: Œufs de 50 g | G37: 2 | H37: œufs | I37: 0.05 | J37: 2 | K37: œufs | L37: 0.05 | M37: Œufs de 50 g | N37: ⓴
C38: 5 | D38: C/C | F38: vinaigre | G38: 5 | H38: C/C | J38: 5 | K38: C/C | M38: vinaigre
C39: 1 | D39: pincée | F39: paprika | G39: 1 | H39: pincée | J39: 1 | K39: pincée | M39: paprika | O39: symbole diamètre
C40: 1 | D40: branche | F40: laurier | G40: 1 | H40: branche | J40: 1 | K40: branche | M40: laurier | O40: Ø
C41: 1 | D41: pied | F41: pied de veau | G41: 1 | H41: pied | J41: 1 | K41: pied | M41: pied de veau | O41: 
N42:  | O42: 
C43: les ¼ de botte de fines herbes en 0,25 les demi = 0.5 les 3/4 = 0.75
C44: idem pour les feuilles de gélatine les pieds de veau -les feuilles de basilic etc…. | M44: Avant de saisir quoi que ce soit dans une cellule cliquez dessus pour vérifier qu'il n'y ait pas de formule
C45: 0.5 | D45: feuilles | F45: gélatine | H45: C/C | I45: cuillère/Café
C46: 0.25 | D46: botte | F46: fines herbes | H46: C/P | I46: cuillère/Potage
C48: Convertissez tout de suite les volumes en poids sur la base de 1L = 1Kg
C49: 5 cl = 50g
C50: sauf cas exeptionnel pour recettes de précision
D51: Pour le lait entier, la densité donnée habituellement est de 1,030 par rapport à l'eau qui est de 1. | M51: Pour imprimer : sélectionnez les recettes qui vous conviennent : définir la zone d'impression -Mise à l'échelle : Ajuster la feuille à 1 page
D52: On peut donc considérer que les 0,030 corespondent à la graisse du lait entier.
D53: Pour le lait demi-écrémé, la graisse ne devrait représenter que 0,030/2, donc 0,015.
D54: Donc la masse d'un litre de lait demi-écrémé doit être de 1,015 Kg (1015 g).
C58: Poids des aliments sur internet
B59: lien > | C59: http://www.aliments.org/poids.htm | M59: les valeurs #DIV/0! indiquent seulement que les recettes sont "vierges" sur la feuille de saisie
B61: lien > | C61: http://www.nubel.be/fra/manual/liste_des_denrees_alimentaires.asp
C63: Tableau des calibres Fruits Frais | M63: si vous n'utilisez pas toutes les lignes vous pouvez masquer cette valeur par une couleur de police BLANC
B64: lien > | C64: http://www.crenoexpert.fr/flipbooks/expproduit/TABLEAUX-CALIBRES-FRUITS-2.pdf
B66: lien > | C66: ff-documents-apprentis-Patissiers.xlsx
B68: lien > | C68: ff-Croquis.xlsx | M68: POUR LES FICHES RECETTES A LA PORTION
M69: Nb de portions Si vous estimez que les grammages sont trop ou pas assez copieux pour vos convives : modifiez les sur ces tableaux les modifications se feront sur le tableau à imprimer
B70: lien > | C70: ff-qualiterecettes2007.xls
B72: lien > | C72: ff-tableau-cuisson.pdf
M73: Pas assez copieux : diminuez le nombre de portions cela augmentera les grammages à la portion sur le tableau à imprimer
B74: lien > | C74: PT-bonnes-pratiques.doc
B76: lien > | C76: Banque d'images pour agrémenter vos documents | M76: Trop copieux : augmentez le nombre de portions cela diminuera les grammages à la portion sur le tableau à imprimer
C82: Numérotation Format : Images pour compléter parce que les Symboles sont limités au N° 20
B86: formats personnalisés
B88: 0.00\ " cm³" | C88: 3 | E88: Dans caractères spéciaux => symboles => Nombres et symboles. Là tu descends (tu as d'abord une série de nombre entourés, puis des nombres sous fractions, ...) et enfin tu as deux lignes de 0 à 9 écrit petit, ceux sont eux, les exposants et les indices.
B90: le ³ se fait en tapant alt+0179
B92: le ² se fait en tapant alt+0178
F94: ou en copier-coller | G94: m² | H94: M² | I94: m³ | J94: M³ | K94: cm² | L94: cm³
B96: Format | cellule | personnalisé | 0" m²" | F96: ❶ | G96: ❷ | H96: ❸ | I96: ❹ | J96: ❺ | K96: X | L96: t
B98: ❻ | C98: ❼ | D98: ❽ | E98: ❾ | F98: ❿ | G98: ⓫ | H98: ⓬ | I98: ⓭ | J98: ⓮ | K98: Z | L98: q
D100: N° de colonne | E100: =COLUMN() -> 5 | G100: Adresse de cellule | H100: =ADDRESS(ROW(),COLUMN(),4) -> H100 | K100: u | L100: p
D102: Fonction : Adresse colonne | E102: =LEFT(ADDRESS(1,COLUMN(),4),LEN(ADDRESS(1,COLUMN(),4))-1) -> E | G102: N° de ligne | H102: =ROW() -> 102 | J102: le ³ se fait en tapant alt+0179
C104: Adresse PC | D104: =CELL("nomfichier") -> E:\0-UPRT\1-UPRT.FR-SITE-WEB\ff-fiches-fabrications\ff-fiches-fabrication-maj-08-2020\[ff-4-collectivite-avec-macro.xlsm]Formats-Formules-Fonctions
B107: A | C107: TEST POLICE DE CARACTERES
B108: B | C108: Saisir une ou des lettres / nombres ou une phrase cellule C jaune
B109: C | C109: Saisir ICI
C110: Sélectionnez toute les cellules ci-dessous et changez de police de caractère pour voir
B111: C | C111: =C109 -> Saisir ICI
B114: A | C114: =+C107 -> TEST POLICE DE CARACTERES
B117: B | C117: =+C108 -> Saisir une ou des lettres / nombres ou une phrase cellule C jaune
C124: Tables des caractères Unicode - Alphanumériques cerclés
B125: lien > | C125: caractères Alphanumériques cerclés
B127: lien > | C127: http://unicode.org/
B129: lien > | C129: visualiseur d'Emoji et de symboles
C131: Sélection de polices pour l'école
B132: lien > | C132: https://pragmatice.net/kitinstit/3_installer_produire_polices_selection.htm
B134: lien > | C134: http://www.philing.net/
C136: Petites leçons de Typographie
B137: lien > | C137: http://jacques-andre.fr/faqtypo/lessons.pdf
C139: Document à télécharger
B140: lien > | C140: Mémo caractères spéciaux sous Windows
C142: Polices de Caractères à Télécharger
B143: lien > | C143: http://fr.fontriver.com/
B145: lien > | C145: http://fr.fonts2u.com/category.html?id=21
C147: Retrouver une police utilisée - TechTour : Démo
B148: lien > | C148: https://www.youtube.com/watch?v=wMgBzUHzKvM
B151: 3 sites à conserver pour vos recherches de formules Excel
C152: https://web.archive.org/web/20150919082310/http://www.excelabo.net/
C154: http://www.mdf-xlpages.com/modules/publisher/
C156: Excel Québec : Formules et fonctions Excel
C158: https://www.excel-downloads.com/resources/
B160: Utilitaire pour supprimer les espace vides dans une phrase
D161: exemple de texte avec espaces (83 caractères en comptant les espaces)
D162: •Contamination microbiologique (B) •Multiplication des germes (B)
D163: •Contaminationmicrobiologique(B)•Multiplicationdesgermes(B) | I163: 59 caractères en comptant les points
B164: Collez votre texte avec espaces dans la cellule blanche
D165: =LEN(F165) -> 58 | E165: Caractères | F165: Utilitaire pour supprimer les espace vides dans une phrase
B167: Récupérez votre texte dans la cellule verte
D168: =LEN(F168) -> 50 | E168: Caractères | F168: =SUBSTITUTE(F165," ","") -> Utilitairepoursupprimerlesespacevidesdansunephrase
C169: cliquez sur la cellule verte puis sur sur Copier
C170: placez vous dans votre document :
C171: puis collage spécial Valeur pour ne pas copier la formule
C173: la formule utilisée : | D173: SUBSTITUE(G525;" ";"")
D176: Excel Québec : Formules et fonctions Excel
C178: Quelques fonctions d'excel | I178: Publié le | J178: Vues
C179: Rechercher une Fonction | I179: 2013-05-28 | J179: 4416
C180: T() - Tester et renvoyer du texte | I180: 2012-07-02 | J180: 14900
C181: EPURAGE() - Supprimer certains caractères indésirables | I181: 2012-06-02 | J181: 36257
C182: REMPLACER() - Echanger une chaîne de caractères par une autre | I182: 2012-06-02 | J182: 14390
C183: CTXT() - Convertir un nombre en texte | I183: 2012-05-23 | J183: 48910
C184: REPT() - Répéter des caractères un certain nombre de fois | I184: 2012-04-26 | J184: 14751
C185: L'Assistant Somme Conditionnelle | I185: 2011-11-01 | J185: 10084
C186: CELLULE() - Nom de l'onglet, du fichier ou du répertoire dans une cellule | I186: 2010-10-03 | J186: 45222
C187: EXACT() - Comparer deux chaînes de texte | I187: 2010-04-26 | J187: 65784
C188: Purgez les espaces inutiles ! | I188: 2010-04-05 | J188: 96965
C189: SUPPRESPACE() - Supprimer les espaces inutiles dans une cellule | I189: 2010-04-05 | J189: 45902
C190: STXT() - Extraire une chaîne de caractères au sein d'une autre | I190: 2010-03-13 | J190: 122444
C191: CHERCHE() TROUVE() - Retourne la position d'une chaîne de caractères | I191: 2010-01-04 | J191: 100241
C192: NBCAR() - Compter les caractères d'une chaîne de texte ou d'une plage de cellules | I192: 2009-11-21 | J192: 23956
C193: SUBSTITUE() - Remplacer une chaîne de texte par une autre | I193: 2009-11-08 | J193: 113684
C194: CAR() - CODE() : Utilisation des codes caractères | I194: 2009-10-25 | J194: 27154
C195: CONCATENER() - Assembler plusieurs chaînes de texte en une seule. | I195: 2009-10-10 | J195: 25774
C196: TEXTE() - Convertir une valeur numérique en texte formaté | I196: 2009-09-29 | J196: 79344
C197: DROITE() - GAUCHE() : Extraire les premiers ou derniers caractères d'une chaîne. | I197: 2009-09-12 | J197: 145176
C198: MAJUSCULE() - MINUSCULE() - NOMPROPRE(): Modifier la casse d'un texte | I198: 2009-08-23 | J198: 7657
C199: CNUM() - Convertir une chaîne en valeur numérique | I199: 2009-08-19 | J199: 45164
C200: DATEDIF() : Calculer la différence entre deux dates | I200: 2009-07-26 | J200: 105218
C201: Nommer une Plage Dynamique | I201: 2008-12-06 | J201: 59780
C202: Nommer une Plage de Cellules | I202: 2008-12-05 | J202: 75563
C203: Références Relatives & Absolues | I203: 2008-12-05 | J203: 15781
C204: Formule pour Nombres Premiers
C206: UN EXEMPLE DE GRAPHIQUE - cliquez dessus pour le modifier
A219: 1 | B219: TABLEAUX DIVERS A COPIER / COLLER DANS VOS DOCUMENTS
B220: Certains tableaux ont à peu près les mêmes fonctions pour vous laisser le libre choix en fonction de votre utilisation
B222: LIENS INTERNET POUR RECHERCHE DE FORMULES
B223: http://matoumatheux.ac-rennes.fr/sommaire.php?niv=6 | G223: Le sirop de menthe | K223: Le gâteau de riz | O223: Les rubans
B224: http://matoumatheux.ac-rennes.fr/admin/capture/chargement.htm | G224: Le cocktail mi-raisin | K224: Le far breton | O224: L'aire d'un disque
B225: http://matoumatheux.ac-rennes.fr/accueil.htm | G225: Le cocktail verger | K225: La boulangerie | O225: Le rayon d'un disque
B226: http://matoumatheux.ac-rennes.fr/divers/general/accueil.htm | G226: Le cocktail banane | K226: http://matoumatheux.ac-rennes.fr/geom/unite/accueil6.htm | O226: L'aire d'une couronne
B227: http://matoumatheux.ac-rennes.fr/divers/liens/liens.htm | G227: Le cocktail rouge | O227: L'aire latérale d'un cylindre
B228: La multiplication avec les doigts | G228: Le sirop de menthe | K228: Conversions d'unités de longueur | O228: Le volume d'un cylindre
B229: Classer des questions | G229: Rectangle ou disque | K229: Conversion d'unités de masse | O229: Le volume d'un cylindre
B230: Les seringues | G230: Segment | K230: Attaché à un piquet | O230: Le mille-feuille
B231: Les étiquettes | G231: Colorier un poisson | K231: Attaché à un piquet (1) | O231: L'aire d'un rectangle
B232: Le verre mesureur | G232: La crème pâtissière | K232: Le chien fait le tour de son domaine | O232: Le gâteau
O233: La casserole
G235: 177 vidéos dans cette partie
B236: http://webtv.ac-versailles.fr/restauration/Patisserie | G236: http://webtv.ac-versailles.fr/restauration/Patisserie | K236: http://chefsimon.lemonde.fr/recettes/tag/dessert | O236: https://www.google.fr/webhp?sourceid=chrome-instant&ion=1&espv=2&ie=UTF-8#q=RECETTES+PATISSERIE
B239: Vous recherchez un décor > | E239: cake design | G239: wedding cake photos | J239: wedding cake youtube | M239: FAIRE UN GÂTEAU VÉGÉTAL AVEC LES FLEURS DU JARDIN
A243: ICI | B243: Différentes formules pour calculer l'Aire ou surface du cercle | I243: CONVERSIONS
A244: Différentes formules pour calculer l'Aire ou surface du cercle | I244: 1m2 = 10.000 cm2 | L244: 1 cm = 0,01 m donc
I245: ou | L245: 1 cm² = 0,01 x 0,01 = 0,0001 m² = 10^-4 m²
B246: ❶ | C246: PI()*(Rayon^2) | I246: 1cm2=1/10.000 m2
B247: ❷ | C247: PI()*(Rayon*Rayon) | I247: 1cm^2=0.0001m^2 | L247: Pour passer de m² en cm² il faut faire l'inverse
B248: ❸ | C248: PI()*(Diamètre/2)*(Diamètre/2) | I248: 17 cm²=0.0017 m². | L248: 1 m = 100 cm
L249: 1 m² = 100 x 100 = 10 000 cm²
B251: Différentes formules pour calculer le volume d'un entremet | I251: 10 000 cm2 = 100 dm2 = 1 m2 | L251: copier/coller
I252: 1 cm2 = 0.001 dm2 = 0.00001 m2 | L252: 0 | M252: 0 | N252: 0 | O252: 0
B253: ❶ | C253: ((PI()*(Rayon^2)*Hauteur))
B254: ❷ | C254: (PI()*(Rayon*Rayon)*Hauteur)
B255: ❸ | C255: ((Diamètre/2)*(Diamètre/2)*3.1416)*Hauteur | I255: Nombre de parts et poids d'une portion
I256: Poids Total | J256: 8.35 | K256: poids d'1 portion | M256: 0.25 | N256: =IF(ISBLANK(M257),I260,M257) -> 33.4 | O256: parts
B257: L'aire d'un cercle de 22cm est égale à 3,14 x (11x11) = 379,94 cm2 | F257: =3.14*(11*11) -> 379.94
B258: L'aire d'un cercle de 22cm est égale à PI() x (11x11) = 380.13 cm2 | F258: PI()*(11*11) | K258: Nb de parts | M258: 70 | N258: =J256/M258 -> 0.1192857143 | O258: la portion
B259: Nb de cercles | C259: Diamètre | E259: rayon | F259: Aire ou Surface
B260: 1 | C260: 22 | E260: =C260/2 -> 11 | F260: =PI()*(E260^2) -> 380.1327111 | I260: =IF(ISBLANK(M256),0,J256/M256) -> 33.4
I261: Saisissez les valeurs dans les cellules fond jaune encre rouge
I262: Adaptation : Joël Leboucher..UPRT "Union des Personnels de la Restauration Territoriale" membre du réseau RESTAU'CO
B263: 1 | C263: 22 | E263: =C263/2 -> 11 | F263: =PI()*(E263^2) -> 380.1327111
B265: Pour intégrer ce tableau sous des documents Modèle B3-B -2015 réduisez la largeur des colonnes à 9 | I265: Transférer des cercles dans des cadres
B266: Sinon : Pour une meilleure lisibilité vous pouvez élargir les colonnes à 15 -ou Affichage Zoom 125%
B267: Adaptation : Joël Leboucher..UPRT "Union des Personnels de la Restauration Territoriale" membre du réseau RESTAU'CO | I267: CERCLES A TRANSFÉRER
I269: Nb de cercles | J269: Diamètre | K269: rayon | L269: Poids crème liquide | M269: Volume | N269: Coeff.
A270: ICI | B270: Gastro Norm
A271: Gastro Norm | B271: https://fr.wikipedia.org/wiki/Gastro_Norm | I271: 1 | J271: 22 | K271: =J271/2 -> 11 | L271: 0.15 | M271: =(PI()*(K271^2)*I271) -> 380.1327111 | N271: =N275 -> 1.57839613
B273: Le format de base est le GN 1/1, qui fait 530 x 325 mm. Les autres sont des multiples ou des sous-multiples de ce module de base. Les formats généralement rencontrés chez les professionnels sont1 : | I273: dans des moules et caisses rectangles
I275: 1 | J275: 30 | K275: 20 | L275: =(L271*N271)*I271 -> 0.2367594195 | M275: =(J275*K275)*I275 -> 600 | N275: =M275/M271 -> 1.57839613
I277: Nb de moules | J277: Longueur | K277: Largeur | L277: Poids crème liquide | M277: Volume | N277: Coeff.
I279: Saisissez vos valeurs dans les cellules fond jaune encre rouge
I280: Lien Auteur: | J280: http://www.cestmafournee.com/2013/06/quelles-quantites-pour-mon-moule.html
I281: Adaptation : Joël Leboucher..UPRT "Union des Personnels de la Restauration Territoriale" membre du réseau RESTAU'CO
I284: Différentes formules pour calculer le volume d'un cylindre (cercle à tarte)
B287: Les profondeurs les plus courantes sont 20, 40, 65, 100, 150 et 200 mm. | I287: Nb de cercles | J287: Diamètre | K287: rayon | L287: Hauteur | M287: Volume
I289: 1 | J289: 22 | K289: =J289/2 -> 11 | L289: 1 | M289: =((PI()*(K289^2)*L289))*I289 -> 380.1327111
B291: Calculez le volume des moules et cadres rectangles | I291: Nb de cercles | J291: Diamètre | K291: Hauteur | M291: Volume
B293: Nb de moules | C293: Longueur | D293: Largeur | E293: Hauteur | F293: Volume | I293: 1 | J293: 22 | K293: 1 | M293: =(((J293/2)*(J293/2)*3.1416)*K293)*I293 -> 380.1336
B295: 1 | C295: 30 | D295: 20 | E295: 1 | F295: =((C295*D295)*E295)*B295 -> 600 | I295: Nb de cercles | J295: Diamètre | K295: Hauteur | L295: Nb de parts | M295: Volume
B297: Saisissez vos valeurs dans les cellules fond jaune encre rouge | I297: 1 | J297: 22 | K297: 1 | L297: 3 | M297: =(((J297/2)*(J297/2)*PI()*K297)*I297)/L297 -> 126.7109037
B298: Adaptation : Joël Leboucher..UPRT "Union des Personnels de la Restauration Territoriale" membre du réseau RESTAU'CO
I299: Saisissez vos valeurs dans les cellules fond jaune encre rouge
I300: Adaptation : Joël Leboucher..UPRT "Union des Personnels de la Restauration Territoriale" membre du réseau RESTAU'CO
B303: Quel poids de pâte ou de liquide faut-il dans un ou des cercle (s)
B305: QUE VOULEZ VOUS FAIRE
... 412 more rows

Sheet Vocabulaire
B1: Mise à jour du 14 Décembre 2021 | I1: ="Page "&_xlfn.SHEET()&" sur "&_xlfn.SHEETS() -> Page 14 sur 18
W2: VOCABULAIRE PROFESSIONNEL un verbe…une action | AP2: Le vocabulaire professionnel en pâtisserie
B3: VOCABULAIRE PROFESSIONNEL " CUISINE DE COMPOSITION" | L3: VOCABULAIRE PROFESSIONNEL "La CUISINE DE REFERENCE" Michel MAINCENT | W3: En complément vous avez des liens en bas de page | AH3: Quelques verbes d'action complémentaires | AR3: faire court …1 verbe = 1 action | AV3: EXEMPLE UN PEU PLUS LONG :
C4: A | E4: E | G4: P | I4: R | M4: A | O4: D | Q4: H | S4: R | W4: A | Y4: D | AA4: F | AC4: M | AE4: R | AG4: T | AH4: 1 | AI4: accomplir | AK4: =AH59+1 -> 57 | AL4: générer | AO4: Lien > | AP4: http://www.juliemyrtille.com/lexique_du_patissier/ | AR4: PHASES ESSENTIELLES DE PROGRESSION | AV4: PHASES ESSENTIELLES DE PROGRESSION
B5: 1 | C5: Abaisser la temp. à coeur | D5: =B22+1 -> 16 | E5: Egrener | F5: =D26+1 -> 32 | G5: Parfumer | H5: =F24+1 -> 51 | I5: Respecter le délai de 2 H | L5: 1 | M5: Abaisser | N5: =L52+1 -> 46 | O5: Dépouiller | P5: =N52+1 -> 91 | Q5: Habiller | R5: =P52+1 -> 130 | S5: Réduire | V5: 1 | W5: Abaisser | X5: =V62+1 -> 56 | Y5: Dauber | Z5: =X63+1 -> 113 | AA5: Façonner | AB5: =Z62+1 -> 163 | AC5: Macérer | AD5: =AB62+1 -> 217 | AE5: Rabattre | AF5: =AD57+1 -> 268 | AG5: Tabler | AH5: =LARGE(AH4:AH4,1)+1 -> 2 | AI5: acheter | AK5: =LARGE(AK4:AK4,1)+1 -> 58 | AL5: gérer | AP5: A | AS5: Exemple pour un filet de sole Duglére | AW5: Exemple pour une brandade de morue Bénédictine
B6: =LARGE(B5:B5,1)+1 -> 2 | C6: Accompagner | D6: =LARGE(D5:D5,1)+1 -> 17 | E6: Eliminer | F6: =LARGE(F5:F5,1)+1 -> 33 | G6: Parsemer | H6: =LARGE(H5:H5,1)+1 -> 52 | I6: Retirer | L6: =LARGE(L5:L5,1)+1 -> 2 | M6: Abricoter | N6: =LARGE(N5:N5,1)+1 -> 47 | O6: Dérober | P6: =LARGE(P5:P5,1)+1 -> 92 | Q6: Hacher | R6: =LARGE(R5:R5,1)+1 -> 131 | S6: Relever | V6: =LARGE(V5:V5,1)+1 -> 2 | W6: Abaisser la temp. à coeur | X6: =LARGE(X5:X5,1)+1 -> 57 | Y6: Décanter | Z6: =LARGE(Z5:Z5,1)+1 -> 114 | AA6: Faire bouillir | AB6: =LARGE(AB5:AB5,1)+1 -> 164 | AC6: Maintenir en temp. sup à 63° | AD6: =LARGE(AD5:AD5,1)+1 -> 218 | AE6: Raccourcir | AF6: =LARGE(AF5:AF5,1)+1 -> 269 | AG6: Tailler | AH6: =LARGE(AH4:AH5,1)+1 -> 3 | AI6: achever | AK6: =LARGE(AK4:AK5,1)+1 -> 59 | AL6: identifier | AP6: Abaisse : morceau de pâte que l’on étale au rouleau à une épaisseur voulue | AR6: 1 | AS6: habiller les soles
B7: =LARGE(B5:B6,1)+1 -> 3 | C7: Additionner | D7: =LARGE(D5:D6,1)+1 -> 18 | E7: Enfourner | F7: =LARGE(F5:F6,1)+1 -> 34 | G7: Peler | H7: =LARGE(H5:H6,1)+1 -> 53 | I7: Retourner | L7: =LARGE(L5:L6,1)+1 -> 3 | M7: Arroser | N7: =LARGE(N5:N6,1)+1 -> 48 | O7: Désosser | P7: =LARGE(P5:P6,1)+1 -> 93 | Q7: Historier | R7: =LARGE(R5:R6,1)+1 -> 132 | S7: Remonter | V7: =LARGE(V5:V6,1)+1 -> 3 | W7: Abricoter | X7: =LARGE(X5:X6,1)+1 -> 58 | Y7: Décercler | Z7: =LARGE(Z5:Z6,1)+1 -> 115 | AA7: Farcir | AB7: =LARGE(AB5:AB6,1)+1 -> 165 | AC7: Manchonner | AD7: =LARGE(AD5:AD6,1)+1 -> 219 | AE7: Rafraîchir | AF7: =LARGE(AF5:AF6,1)+1 -> 270 | AG7: Tamiser | AH7: =LARGE(AH4:AH6,1)+1 -> 4 | AI7: activer | AK7: =LARGE(AK4:AK6,1)+1 -> 60 | AL7: imaginer | AP7: Abaisser : étaler une pâte au rouleau à une épaisseur voulue. | AR7: 2 | AS7: les dépouiller | AV7: ❶ | AW7: Mise en place du poste de travail
B8: =LARGE(B5:B7,1)+1 -> 4 | C8: Adjoindre | D8: =LARGE(D5:D7,1)+1 -> 19 | E8: Enfourner | F8: =LARGE(F5:F7,1)+1 -> 35 | G8: Porter à ébullition | H8: =LARGE(H5:H7,1)+1 -> 54 | I8: Rincer | L8: =LARGE(L5:L7,1)+1 -> 4 | M8: Assaisonner | N8: =LARGE(N5:N7,1)+1 -> 49 | O8: Dessécher | Q8: I | R8: =LARGE(R5:R7,1)+1 -> 133 | S8: Revenir | V8: =LARGE(V5:V7,1)+1 -> 4 | W8: Accoler | X8: =LARGE(X5:X7,1)+1 -> 59 | Y8: Décorer | Z8: =LARGE(Z5:Z7,1)+1 -> 116 | AA8: Farder | AB8: =LARGE(AB5:AB7,1)+1 -> 166 | AC8: Manier | AD8: =LARGE(AD5:AD7,1)+1 -> 220 | AE8: Raidir | AF8: =LARGE(AF5:AF7,1)+1 -> 271 | AG8: Tamponner | AH8: =LARGE(AH4:AH7,1)+1 -> 5 | AI8: agrandir | AK8: =LARGE(AK4:AK7,1)+1 -> 61 | AL8: inscrire | AP8: Abricoter : étendre une confiture d’abricot à l’aide d’un pinceau sur un entremets, sur une tarte ou une préparation pour la rendre brillante et la protéger en surface en limitant les risques de dessèchement et de brunissement enzymatique. | AR8: 3 | AS8: les mettre en filet | AV8: 1 | AW8: verifier les DLC
B9: =LARGE(B5:B8,1)+1 -> 5 | C9: Agir rapidement | D9: =LARGE(D5:D8,1)+1 -> 20 | E9: Etaler | F9: =LARGE(F5:F8,1)+1 -> 36 | G9: Préchauffer | I9: S | M9: B | N9: =LARGE(N5:N8,1)+1 -> 50 | O9: Détendre | P9: =LARGE(P5:P8,1)+1 -> 94 | Q9: Inciser | R9: =LARGE(R5:R8,1)+1 -> 134 | S9: Rissoler | V9: =LARGE(V5:V8,1)+1 -> 5 | W9: Accompagner | X9: =LARGE(X5:X8,1)+1 -> 60 | Y9: Décortiquer | Z9: =LARGE(Z5:Z8,1)+1 -> 117 | AA9: Fariner | AB9: =LARGE(AB5:AB8,1)+1 -> 167 | AC9: Manipuler | AD9: =LARGE(AD5:AD8,1)+1 -> 221 | AE9: Rassir | AF9: =LARGE(AF5:AF8,1)+1 -> 272 | AG9: Tapisser | AH9: =LARGE(AH4:AH8,1)+1 -> 6 | AI9: ajuster | AK9: =LARGE(AK4:AK8,1)+1 -> 62 | AL9: insérer | AP9: Accoler : réunir, rassembler deux ou plusieurs éléments pour constituer un gâteau, un élément de fabrication ou autre. | AR9: 4 | AS9: dégorger le tout 1/2 heure à l'eau fraiche | AV9: 2 | AW9: peser les denrées
B10: =LARGE(B5:B9,1)+1 -> 6 | C10: Ajouter | E10: F | F10: =LARGE(F5:F9,1)+1 -> 37 | G10: Prélever | H10: =LARGE(H5:H9,1)+1 -> 55 | I10: Saupoudrer | L10: =LARGE(L5:L9,1)+1 -> 5 | M10: Barder | N10: =LARGE(N5:N9,1)+1 -> 51 | O10: Dorer | Q10: L | R10: =LARGE(R5:R9,1)+1 -> 135 | S10: Rompre | V10: =LARGE(V5:V9,1)+1 -> 6 | W10: Additionner | X10: =LARGE(X5:X9,1)+1 -> 61 | Y10: Décuire | Z10: =LARGE(Z5:Z9,1)+1 -> 118 | AA10: Festonner | AB10: =LARGE(AB5:AB9,1)+1 -> 168 | AC10: Marbrer | AD10: =LARGE(AD5:AD9,1)+1 -> 222 | AE10: Rayer | AF10: =LARGE(AF5:AF9,1)+1 -> 273 | AG10: Terminer | AH10: =LARGE(AH4:AH9,1)+1 -> 7 | AI10: améliorer | AK10: =LARGE(AK4:AK9,1)+1 -> 63 | AL10: inspecter | AP10: Appareil : mélange de différentes substances alimentaires entrant dans la composition d’une préparation de pâtisserie. | AR10: 5 | AS10: hacher finement oignons et échalotes | AV10: 3 | AW10: sélectionner le matériel
B11: =LARGE(B5:B10,1)+1 -> 7 | C11: Aplatir | D11: =LARGE(D5:D10,1)+1 -> 21 | E11: Faire bouillir | F11: =LARGE(F5:F10,1)+1 -> 38 | G11: Préparer | H11: =LARGE(H5:H10,1)+1 -> 56 | I11: Servir | L11: =LARGE(L5:L10,1)+1 -> 6 | M11: Beurrer | N11: =LARGE(N5:N10,1)+1 -> 52 | O11: Dresser | P11: =LARGE(P5:P10,1)+1 -> 95 | Q11: Lier | R11: =LARGE(R5:R10,1)+1 -> 136 | S11: Rôtir | V11: =LARGE(V5:V10,1)+1 -> 7 | W11: Adjoindre | X11: =LARGE(X5:X10,1)+1 -> 62 | Y11: Déffilandrer | Z11: =LARGE(Z5:Z10,1)+1 -> 119 | AA11: Fileter | AB11: =LARGE(AB5:AB10,1)+1 -> 169 | AC11: Mariner | AD11: =LARGE(AD5:AD10,1)+1 -> 223 | AE11: Réaliser | AF11: =LARGE(AF5:AF10,1)+1 -> 274 | AG11: Tomber | AH11: =LARGE(AH4:AH10,1)+1 -> 8 | AI11: aménager | AK11: =LARGE(AK4:AK10,1)+1 -> 64 | AL11: installer | AP11: Apprêt : technique survenant après le façonnage d’une pâte levée fermentée (pain, brioche…), pour assurer le développement des pièces par la fermentation avant la cuisson. | AR11: 6 | AS11: monder épépiner concasser les tomates | AV11: 4 | AW11: désinfecter le matériel et le poste de travail suivant la procédure
C12: B | E12: G | F12: =LARGE(F5:F11,1)+1 -> 39 | G12: Protéger | H12: =LARGE(H5:H11,1)+1 -> 57 | I12: Snacker | L12: =LARGE(L5:L11,1)+1 -> 7 | M12: Blanchir | O12: E | P12: =LARGE(P5:P11,1)+1 -> 96 | Q12: Limoner | S12: S | V12: =LARGE(V5:V11,1)+1 -> 8 | W12: Agir rapidement | X12: =LARGE(X5:X11,1)+1 -> 63 | Y12: Déglacer | Z12: =LARGE(Z5:Z11,1)+1 -> 120 | AA12: Fixer | AB12: =LARGE(AB5:AB11,1)+1 -> 170 | AC12: Marquer | AD12: =LARGE(AD5:AD11,1)+1 -> 224 | AE12: Réchauffer en moins d'1 H | AF12: =LARGE(AF5:AF11,1)+1 -> 275 | AG12: Torréfier | AH12: =LARGE(AH4:AH11,1)+1 -> 9 | AI12: analyser | AK12: =LARGE(AK4:AK11,1)+1 -> 65 | AL12: inventer | AP12: Aromatiser : incorporer un arôme ou un aromate à une préparation. | AR12: 7 | AS12: concasser le persil
B13: =LARGE(B5:B12,1)+1 -> 8 | C13: Battre | D13: =LARGE(D5:D12,1)+1 -> 22 | E13: Garnir | G13: R | I13: T | L13: =LARGE(L5:L12,1)+1 -> 8 | M13: Blondir | N13: =LARGE(N5:N12,1)+1 -> 53 | O13: Ebarber | P13: =LARGE(P5:P12,1)+1 -> 97 | Q13: Lisser | R13: =LARGE(R5:R12,1)+1 -> 137 | S13: Saigner | V13: =LARGE(V5:V12,1)+1 -> 9 | W13: Ajouter | X13: =LARGE(X5:X12,1)+1 -> 64 | Y13: Dégorger | Z13: =LARGE(Z5:Z12,1)+1 -> 121 | AA13: Flamber | AB13: =LARGE(AB5:AB12,1)+1 -> 171 | AC13: Masquer | AD13: =LARGE(AD5:AD12,1)+1 -> 225 | AE13: Recouvrir | AF13: =LARGE(AF5:AF12,1)+1 -> 276 | AG13: Tourer | AH13: =LARGE(AH4:AH12,1)+1 -> 10 | AI13: appliquer | AK13: =LARGE(AK4:AK12,1)+1 -> 66 | AL13: inventorier | AP13: B | AR13: 8 | AS13: pocher les filets pliés à très court mouillement
C14: C | E14: I | F14: =LARGE(F5:F13,1)+1 -> 40 | G14: Réaliser | H14: =LARGE(H5:H13,1)+1 -> 58 | I14: Terminer | L14: =LARGE(L5:L13,1)+1 -> 9 | M14: Bouler | N14: =LARGE(N5:N13,1)+1 -> 54 | O14: Ecailler | P14: =LARGE(P5:P13,1)+1 -> 98 | Q14: Lustrer | R14: =LARGE(R5:R13,1)+1 -> 138 | S14: Saisir | V14: =LARGE(V5:V13,1)+1 -> 10 | W14: Aplatir | X14: =LARGE(X5:X13,1)+1 -> 65 | Y14: Dégourdir | Z14: =LARGE(Z5:Z13,1)+1 -> 122 | AA14: Flanquer | AB14: =LARGE(AB5:AB13,1)+1 -> 172 | AC14: Masser | AD14: =LARGE(AD5:AD13,1)+1 -> 226 | AE14: Rectifier | AF14: =LARGE(AF5:AF13,1)+1 -> 277 | AG14: Tourner | AH14: =LARGE(AH4:AH13,1)+1 -> 11 | AI14: approuver | AK14: =LARGE(AK4:AK13,1)+1 -> 67 | AL14: localiser | AP14: Beurrer : | AS14: sur toute cette garniture avec un peu de vin blanc | AV14: ❷ | AW14: Préparations préliminaires
B15: =LARGE(B5:B14,1)+1 -> 9 | C15: Chauffer | D15: =LARGE(D5:D14,1)+1 -> 23 | E15: Incorporer | F15: =LARGE(F5:F14,1)+1 -> 41 | G15: Réchauffer en moins d'1 H | I15: U | L15: =LARGE(L5:L14,1)+1 -> 10 | M15: Braiser | N15: =LARGE(N5:N14,1)+1 -> 55 | O15: Ecaler | Q15: M | R15: =LARGE(R5:R14,1)+1 -> 139 | S15: Sangler | V15: =LARGE(V5:V14,1)+1 -> 11 | W15: Aromatiser | X15: =LARGE(X5:X14,1)+1 -> 66 | Y15: Dégraisser | Z15: =LARGE(Z5:Z14,1)+1 -> 123 | AA15: Fleurer | AB15: =LARGE(AB5:AB14,1)+1 -> 173 | AC15: Mélanger | AD15: =LARGE(AD5:AD14,1)+1 -> 227 | AE15: Réduire | AF15: =LARGE(AF5:AF14,1)+1 -> 278 | AG15: Travailler | AH15: =LARGE(AH4:AH14,1)+1 -> 12 | AI15: archiver | AK15: =LARGE(AK4:AK14,1)+1 -> 68 | AL15: maintenir | AP15: – ajouter de beurre à une sauce | AR15: 9 | AS15: cuire 4 à 6 mn | AV15: 1 | AW15: La veille, décongeler les filets de morue suivant la procédure.
B16: =LARGE(B5:B15,1)+1 -> 10 | C16: Conserver | D16: =LARGE(D5:D15,1)+1 -> 24 | E16: Indications packaging | F16: =LARGE(F5:F15,1)+1 -> 42 | G16: Recouvrir | H16: =LARGE(H5:H15,1)+1 -> 59 | I16: Utiliser | L16: =LARGE(L5:L15,1)+1 -> 11 | M16: Brider | N16: =LARGE(N5:N15,1)+1 -> 56 | O16: Ecorcher | P16: =LARGE(P5:P15,1)+1 -> 99 | Q16: Macérer | R16: =LARGE(R5:R15,1)+1 -> 140 | S16: Sauter | V16: =LARGE(V5:V15,1)+1 -> 12 | W16: Arroser | X16: =LARGE(X5:X15,1)+1 -> 67 | Y16: Déhousser | Z16: =LARGE(Z5:Z15,1)+1 -> 124 | AA16: Foisonner | AB16: =LARGE(AB5:AB15,1)+1 -> 174 | AC16: Meringuer | AD16: =LARGE(AD5:AD15,1)+1 -> 228 | AE16: Refroidir | AF16: =LARGE(AF5:AF15,1)+1 -> 279 | AG16: Tremper | AH16: =LARGE(AH4:AH15,1)+1 -> 13 | AI16: assembler | AK16: =LARGE(AK4:AK15,1)+1 -> 69 | AL16: manier | AP16: – enduire un moule ou un ustensile de beurre afin d’empêcher les mets d’attacher au fond ou aux parois. | AR16: 10 | AS16: débarrasser les filets sur plat beurré
B17: =LARGE(B5:B16,1)+1 -> 11 | C17: Contrôler | E17: J | F17: =LARGE(F5:F16,1)+1 -> 43 | G17: Rectifier | I17: V | M17: C | N17: =LARGE(N5:N16,1)+1 -> 57 | O17: Ecosser | P17: =LARGE(P5:P16,1)+1 -> 100 | Q17: Manchonner | R17: =LARGE(R5:R16,1)+1 -> 141 | S17: Serrer | V17: =LARGE(V5:V16,1)+1 -> 13 | W17: Assaisonner | X17: =LARGE(X5:X16,1)+1 -> 68 | Y17: Délayer | Z17: =LARGE(Z5:Z16,1)+1 -> 125 | AA17: Foncer | AB17: =LARGE(AB5:AB16,1)+1 -> 175 | AC17: Mettre au point | AD17: =LARGE(AD5:AD16,1)+1 -> 229 | AE17: Régénérer | AF17: =LARGE(AF5:AF16,1)+1 -> 280 | AG17: Tronçonner | AH17: =LARGE(AH4:AH16,1)+1 -> 14 | AI17: attacher | AK17: =LARGE(AK4:AK16,1)+1 -> 70 | AL17: manœuvrer | AP17: – incorporer du beurre dans la détrempe d’une pâte feuilletée ou d’une pâte levée feuilletée, pour le tourage. | AR17: 11 | AS17: les tenir au chaud | AV17: 2 | AW17: Éventuellement, dessaler par trempage dans un grand volume d'eau.
C18: D | D18: =LARGE(D5:D17,1)+1 -> 25 | E18: Jeter | F18: =LARGE(F5:F17,1)+1 -> 44 | G18: Refroidir | H18: =LARGE(H5:H17,1)+1 -> 60 | I18: Vérifier la temp. | L18: =LARGE(L5:L17,1)+1 -> 12 | M18: Canneler | N18: =LARGE(N5:N17,1)+1 -> 58 | O18: Ecumer | P18: =LARGE(P5:P17,1)+1 -> 101 | Q18: Marbrer | R18: =LARGE(R5:R17,1)+1 -> 142 | S18: Singer | W18: B | X18: =LARGE(X5:X17,1)+1 -> 69 | Y18: Démouler | Z18: =LARGE(Z5:Z17,1)+1 -> 126 | AA18: Fondre | AB18: =LARGE(AB5:AB17,1)+1 -> 176 | AC18: Mettre en cuisson | AD18: =LARGE(AD5:AD17,1)+1 -> 230 | AE18: Réhydrater | AF18: =LARGE(AF5:AF17,1)+1 -> 281 | AG18: Trousser | AH18: =LARGE(AH4:AH17,1)+1 -> 15 | AI18: attribuer | AK18: =LARGE(AK4:AK17,1)+1 -> 71 | AL18: mesurer | AP18: Bain-marie : eau plus ou moins chaude dans laquelle on place des récipients contenant des préparations à cuire ou à tenir au chaud. | AR18: 12 | AS18: réduire la garniture presque à sec
B19: =LARGE(B5:B18,1)+1 -> 12 | C19: Décorer | E19: L | F19: =LARGE(F5:F18,1)+1 -> 45 | G19: Réhydrater | H19: =LARGE(H5:H18,1)+1 -> 61 | I19: Verser | L19: =LARGE(L5:L18,1)+1 -> 13 | M19: Caraméliser | N19: =LARGE(N5:N18,1)+1 -> 59 | O19: Effilandrer | P19: =LARGE(P5:P18,1)+1 -> 102 | Q19: Mariner | R19: =LARGE(R5:R18,1)+1 -> 143 | S19: Suer | V19: =LARGE(V5:V18,1)+1 -> 14 | W19: Barder | X19: =LARGE(X5:X18,1)+1 -> 70 | Y19: Dénerver | Z19: =LARGE(Z5:Z18,1)+1 -> 127 | AA19: Fouetter | AB19: =LARGE(AB5:AB18,1)+1 -> 177 | AC19: Mijoter | AD19: =LARGE(AD5:AD18,1)+1 -> 231 | AE19: Relâcher | AF19: =LARGE(AF5:AF18,1)+1 -> 282 | AG19: Turbiner | AH19: =LARGE(AH4:AH18,1)+1 -> 16 | AI19: brancher | AK19: =LARGE(AK4:AK18,1)+1 -> 72 | AL19: mettre | AP19: Battre : agiter vigoureusement une préparation à l’aide d’un fouet, pour la rendre homogène ou lui donner du volume (foisonnement). | AR19: 13 | AS19: monter au beurre | AV19: 3 | AW19: Plaquer les filets sur 5 bacs GN 1/1 H 25 perforés.
B20: =LARGE(B5:B19,1)+1 -> 13 | C20: Délayer | D20: =LARGE(D5:D19,1)+1 -> 26 | E20: Laver | F20: =LARGE(F5:F19,1)+1 -> 46 | G20: Remonter en température | L20: =LARGE(L5:L19,1)+1 -> 14 | M20: Châtrer | N20: =LARGE(N5:N19,1)+1 -> 60 | O20: Effiler | P20: =LARGE(P5:P19,1)+1 -> 103 | Q20: Masquer | S20: T | V20: =LARGE(V5:V19,1)+1 -> 15 | W20: Battre | X20: =LARGE(X5:X19,1)+1 -> 71 | Y20: Dénoyauter | Z20: =LARGE(Z5:Z19,1)+1 -> 128 | AA20: Fouler | AB20: =LARGE(AB5:AB19,1)+1 -> 178 | AC20: Mixer | AD20: =LARGE(AD5:AD19,1)+1 -> 232 | AE20: Relever | AH20: =LARGE(AH4:AH19,1)+1 -> 17 | AI20: calculer | AK20: =LARGE(AK4:AK19,1)+1 -> 73 | AL20: moderniser | AP20: Beurre clarifié : beurre fondu et décanté dont on a éliminé de la caséine et du petit lait. | AR20: 14 | AS20: napper les filets
B21: =LARGE(B5:B20,1)+1 -> 14 | C21: Disperser | E21: M | F21: =LARGE(F5:F20,1)+1 -> 47 | G21: Remplacer | L21: =LARGE(L5:L20,1)+1 -> 15 | M21: Chaufroiter | N21: =LARGE(N5:N20,1)+1 -> 61 | O21: Egermer | P21: =LARGE(P5:P20,1)+1 -> 104 | Q21: Masser | R21: =LARGE(R5:R20,1)+1 -> 144 | S21: Tailler | V21: =LARGE(V5:V20,1)+1 -> 16 | W21: Beurrer | X21: =LARGE(X5:X20,1)+1 -> 72 | Y21: Denteler | Z21: =LARGE(Z5:Z20,1)+1 -> 129 | AA21: Fourrer | AB21: =LARGE(AB5:AB20,1)+1 -> 179 | AC21: Modeler | AD21: =LARGE(AD5:AD20,1)+1 -> 233 | AE21: Remonter en température | AG21: U | AH21: =LARGE(AH4:AH20,1)+1 -> 18 | AI21: cataloguer | AK21: =LARGE(AK4:AK20,1)+1 -> 74 | AL21: monter | AP21: Beurre en pommade : beurre ramolli ayant la consistance d’une pommade. | AR21: 15 | AS21: servir sans attendre | AV21: 4 | AW21: Mettre les bacs sur l'échelle de four
B22: =LARGE(B5:B21,1)+1 -> 15 | C22: Disposer | D22: =LARGE(D5:D21,1)+1 -> 27 | E22: Maintenir en temp. sup à 63° | F22: =LARGE(F5:F21,1)+1 -> 48 | G22: Remuer | L22: =LARGE(L5:L21,1)+1 -> 16 | M22: Chemiser | N22: =LARGE(N5:N21,1)+1 -> 62 | O22: Egoutter | P22: =LARGE(P5:P21,1)+1 -> 105 | Q22: Meringuer | R22: =LARGE(R5:R21,1)+1 -> 145 | S22: Tamiser | V22: =LARGE(V5:V21,1)+1 -> 17 | W22: Blanchir | X22: =LARGE(X5:X21,1)+1 -> 73 | Y22: Dépouiller | Z22: =LARGE(Z5:Z21,1)+1 -> 130 | AA22: Fraiser | AB22: =LARGE(AB5:AB21,1)+1 -> 180 | AC22: Moiner | AD22: =LARGE(AD5:AD21,1)+1 -> 234 | AE22: Remplacer | AF22: =LARGE(AF5:AF21,1)+1 -> 283 | AG22: Upériser | AH22: =LARGE(AH4:AH21,1)+1 -> 19 | AI22: centraliser | AK22: =LARGE(AK4:AK21,1)+1 -> 75 | AL22: naviguer | AP22: Blanchiment : phénomène de déstabilisation d’une fabrication de chocolat, correspondants à la migration en surface des cristaux de sucre, liée à une conservation en atmosphère humide et/ou un travail du chocolat à des températures inadaptées. | AV22: 5 | AW22: et réserver au froid en attente de cuisson.
D23: =LARGE(D5:D22,1)+1 -> 28 | E23: Manipuler | F23: =LARGE(F5:F22,1)+1 -> 49 | G23: Répartir | L23: =LARGE(L5:L22,1)+1 -> 17 | M23: Chiqueter | N23: =LARGE(N5:N22,1)+1 -> 63 | O23: Egrapper | P23: =LARGE(P5:P22,1)+1 -> 106 | Q23: Mijoter | R23: =LARGE(R5:R22,1)+1 -> 146 | S23: Tamponner | V23: =LARGE(V5:V22,1)+1 -> 18 | W23: Blondir | X23: =LARGE(X5:X22,1)+1 -> 74 | Y23: Dérober | Z23: =LARGE(Z5:Z22,1)+1 -> 131 | AA23: Frapper | AB23: =LARGE(AB5:AB22,1)+1 -> 181 | AC23: Monder | AD23: =LARGE(AD5:AD22,1)+1 -> 235 | AE23: Remuer | AF23: =LARGE(AF5:AF22,1)+1 -> 284 | AG23: Utiliser | AH23: =LARGE(AH4:AH22,1)+1 -> 20 | AI23: chercher | AK23: =LARGE(AK4:AK22,1)+1 -> 76 | AL23: nettoyer | AP23: Blanchir : travailler ensemble le jaune d’œuf et le sucre au fouet jusqu’à ce que le mélange devienne mousseux. | AS23: source : Fiches techniques de cuisine Annette et Jean Pierre DOMERGUES | AV23: 6 | AW23: Au cutter, hacher finement l'ail. Réserver.
D24: =LARGE(D5:D23,1)+1 -> 29 | E24: Mélanger | F24: =LARGE(F5:F23,1)+1 -> 50 | G24: Repasser | L24: =LARGE(L5:L23,1)+1 -> 18 | M24: Ciseler | N24: =LARGE(N5:N23,1)+1 -> 64 | O24: Egrener | P24: =LARGE(P5:P23,1)+1 -> 107 | Q24: Monder | R24: =LARGE(R5:R23,1)+1 -> 147 | S24: Tapisser | V24: =LARGE(V5:V23,1)+1 -> 19 | W24: Bouler | X24: =LARGE(X5:X23,1)+1 -> 75 | Y24: Désosser | Z24: =LARGE(Z5:Z23,1)+1 -> 132 | AA24: Fraser | AB24: =LARGE(AB5:AB23,1)+1 -> 182 | AC24: Monter | AD24: =LARGE(AD5:AD23,1)+1 -> 236 | AE24: Répartir | AH24: =LARGE(AH4:AH23,1)+1 -> 21 | AI24: classifier | AK24: =LARGE(AK4:AK23,1)+1 -> 77 | AL24: optimiser | AP24: Bouler : façonner à la main une pâte pour lui donner la forme d’une boule. | AV24: 7 | AW24: Chauffer le lait et le maintenir au chaud.
D25: =LARGE(D5:D24,1)+1 -> 30 | E25: Mettre en cuisson | L25: =LARGE(L5:L24,1)+1 -> 19 | M25: Citronner | N25: =LARGE(N5:N24,1)+1 -> 65 | O25: Emincer | P25: =LARGE(P5:P24,1)+1 -> 108 | Q25: Monter | R25: =LARGE(R5:R24,1)+1 -> 148 | S25: Tourer | V25: =LARGE(V5:V24,1)+1 -> 20 | W25: Braiser | X25: =LARGE(X5:X24,1)+1 -> 76 | Y25: Dessécher | Z25: =LARGE(Z5:Z24,1)+1 -> 133 | AA25: Frémir | AB25: =LARGE(AB5:AB24,1)+1 -> 183 | AC25: Mortifier | AD25: =LARGE(AD5:AD24,1)+1 -> 237 | AE25: Repasser | AG25: V | AH25: =LARGE(AH4:AH24,1)+1 -> 22 | AI25: commander | AK25: =LARGE(AK4:AK24,1)+1 -> 78 | AL25: ordonnancer | AP25: Brunissement enzymatique : c’est le phénomène qui se produit au contact de l’air à la suite d’opérations ou de traitements de divers végétaux (épluchage, taille) lesquels dégradent la structure végétale externe. Le phénomène conduit à un changement de couleur brun caractéristique du fruit). | AS25: Editeur DOMERGUES 4 rue de la Bourie Rouge 45 000 ORLÉANS 1981 | AV25: 8 | AW25: Porter à ébullition la crème fraîche
D26: =LARGE(D5:D25,1)+1 -> 31 | E26: Mixer | L26: =LARGE(L5:L25,1)+1 -> 20 | M26: Clarifier | N26: =LARGE(N5:N25,1)+1 -> 66 | O26: Enrober | P26: =LARGE(P5:P25,1)+1 -> 109 | Q26: Mortifier | R26: =LARGE(R5:R25,1)+1 -> 149 | S26: Tourner | V26: =LARGE(V5:V25,1)+1 -> 21 | W26: Brider | X26: =LARGE(X5:X25,1)+1 -> 77 | Y26: Détailler | Z26: =LARGE(Z5:Z25,1)+1 -> 134 | AA26: Frire | AB26: =LARGE(AB5:AB25,1)+1 -> 184 | AC26: Mouiller | AD26: =LARGE(AD5:AD25,1)+1 -> 238 | AE26: Réserver | AF26: =LARGE(AF5:AF25,1)+1 -> 285 | AG26: Vanner | AH26: =LARGE(AH4:AH25,1)+1 -> 23 | AI26: compiler | AK26: =LARGE(AK4:AK25,1)+1 -> 79 | AL26: organiser | AP26: C | AV26: 9 | AW26: et la maintenir au chaud en attente d'utilisation
L27: =LARGE(L5:L26,1)+1 -> 21 | M27: Coller | N27: =LARGE(N5:N26,1)+1 -> 67 | O27: Eplucher | P27: =LARGE(P5:P26,1)+1 -> 110 | Q27: Mouiller | R27: =LARGE(R5:R26,1)+1 -> 150 | S27: Travailler | V27: =LARGE(V5:V26,1)+1 -> 22 | W27: Broyer | X27: =LARGE(X5:X26,1)+1 -> 78 | Y27: Détendre | AB27: =LARGE(AB5:AB26,1)+1 -> 185 | AC27: Mouler | AD27: =LARGE(AD5:AD26,1)+1 -> 239 | AE27: Respecter le délai de 2 H | AF27: =LARGE(AF5:AF26,1)+1 -> 286 | AG27: Vérifier la temp. | AH27: =LARGE(AH4:AH26,1)+1 -> 24 | AI27: compter | AK27: =LARGE(AK4:AK26,1)+1 -> 80 | AL27: planifier | AP27: Candir : technique qui consiste à immerger des confiseries, des décors, dans un sirop de sucre afin d’obtenir une cristallisation de sucre en surface. | AV27: 10 | AW27: Au pinceau, badigeonner de beurre 8 bacs GN 1/1 H 65
L28: =LARGE(L5:L27,1)+1 -> 22 | M28: Compoter | N28: =LARGE(N5:N27,1)+1 -> 68 | O28: Escaloper | Q28: N | R28: =LARGE(R5:R27,1)+1 -> 151 | S28: Tremper | V28: =LARGE(V5:V27,1)+1 -> 23 | W28: Brûler | X28: =LARGE(X5:X27,1)+1 -> 79 | Y28: Détremper | AA28: G | AB28: =LARGE(AB5:AB27,1)+1 -> 186 | AC28: Mousser | AD28: =LARGE(AD5:AD27,1)+1 -> 240 | AE28: Retirer | AF28: =LARGE(AF5:AF27,1)+1 -> 287 | AG28: Verser | AH28: =LARGE(AH4:AH27,1)+1 -> 25 | AI28: concevoir | AK28: =LARGE(AK4:AK27,1)+1 -> 81 | AL28: préparer | AP28: Canneler : c’est le fait de faire de petites cannelures peu profondes à l’aide d’un couteau à canneler (appelé aussi canneleur) sur la surface de certains fruits & légumes (oranges, citrons, carottes…) pour améliorer leur présentation.
L29: =LARGE(L5:L28,1)+1 -> 23 | M29: Concasser | N29: =LARGE(N5:N28,1)+1 -> 69 | O29: Etuver | P29: =LARGE(P5:P28,1)+1 -> 111 | Q29: Nacrer | R29: =LARGE(R5:R28,1)+1 -> 152 | S29: Tronçonner | X29: =LARGE(X5:X28,1)+1 -> 80 | Y29: Disperser | Z29: =LARGE(Z5:Z28,1)+1 -> 135 | AA29: Garnir | AC29: N | AD29: =LARGE(AD5:AD28,1)+1 -> 241 | AE29: Retomber | AF29: =LARGE(AF5:AF28,1)+1 -> 288 | AG29: Videler | AH29: =LARGE(AH4:AH28,1)+1 -> 26 | AI29: conduire | AK29: =LARGE(AK4:AK28,1)+1 -> 82 | AL29: présenter | AP29: Caramélisation : phénomène correspondant au changement de couleur consécutif à une dégradation du saccharose au contact d’une source de chaleur importante. C’est une réaction de brunissement non enzymatique.
L30: =LARGE(L5:L29,1)+1 -> 24 | M30: Confire | N30: =LARGE(N5:N29,1)+1 -> 70 | O30: Evider | P30: =LARGE(P5:P29,1)+1 -> 112 | Q30: Napper | R30: =LARGE(R5:R29,1)+1 -> 153 | S30: Trousser | W30: C | X30: =LARGE(X5:X29,1)+1 -> 81 | Y30: Disposer | Z30: =LARGE(Z5:Z29,1)+1 -> 136 | AA30: Gerber | AB30: =LARGE(AB5:AB29,1)+1 -> 187 | AC30: Nacrer | AD30: =LARGE(AD5:AD29,1)+1 -> 242 | AE30: Retourner | AF30: =LARGE(AF5:AF29,1)+1 -> 289 | AG30: Voiler | AH30: =LARGE(AH4:AH29,1)+1 -> 27 | AI30: consigner | AK30: =LARGE(AK4:AK29,1)+1 -> 83 | AL30: prévoir | AP30: Caraméliser : enduire un moule ou une pâtisserie de sucre cuit au caramel. | AV30: ❸ | AW30: Préparer la purée
L31: =LARGE(L5:L30,1)+1 -> 25 | M31: Contiser | N31: =LARGE(N5:N30,1)+1 -> 71 | O31: Exprimer | R31: =LARGE(R5:R30,1)+1 -> 154 | S31: Turbiner | V31: =LARGE(V5:V30,1)+1 -> 24 | W31: Candir | X31: =LARGE(X5:X30,1)+1 -> 82 | Y31: Dorer | Z31: =LARGE(Z5:Z30,1)+1 -> 137 | AA31: Glacer | AB31: =LARGE(AB5:AB30,1)+1 -> 188 | AC31: Napper | AD31: =LARGE(AD5:AD30,1)+1 -> 243 | AE31: Revenir | AH31: =LARGE(AH4:AH30,1)+1 -> 28 | AI31: constituer | AK31: =LARGE(AK4:AK30,1)+1 -> 84 | AL31: produire | AP31: Chablonner : appliquer du chocolat de couverture ou de la pâte à glacer à la base des entremets, petits gâteaux, des ganaches, pour faciliter leur manipulation avant leur montage ou découpage. | AR31: Lien > | AS31: Lexique en français de la boucherie Wiktionnaire | AV31: 1 | AW31: Préparer la purée déshydratée en suivant les indications du fabricant.
L32: =LARGE(L5:L31,1)+1 -> 26 | M32: Corner | O32: F | Q32: P | V32: =LARGE(V5:V31,1)+1 -> 25 | W32: Canneler | X32: =LARGE(X5:X31,1)+1 -> 83 | Y32: Doubler | Z32: =LARGE(Z5:Z31,1)+1 -> 138 | AA32: Gommer | AC32: P | AD32: =LARGE(AD5:AD31,1)+1 -> 244 | AE32: Rincer | AG32: Z | AH32: =LARGE(AH4:AH31,1)+1 -> 29 | AI32: construire | AK32: =LARGE(AK4:AK31,1)+1 -> 85 | AL32: programmer | AP32: Chemiser : appliquer contre la paroi intérieur d’un moule ou d’une caissette, une couche de pâte, de biscuit, de gelée, de chocolat, de glace, de farine etc…
L33: =LARGE(L5:L32,1)+1 -> 27 | M33: Corser | N33: =LARGE(N5:N32,1)+1 -> 72 | O33: Farcir | P33: =LARGE(P5:P32,1)+1 -> 113 | Q33: Paner | S33: V | V33: =LARGE(V5:V32,1)+1 -> 26 | W33: Caraméliser | X33: =LARGE(X5:X32,1)+1 -> 84 | Y33: Dresser | Z33: =LARGE(Z5:Z32,1)+1 -> 139 | AA33: Grainer | AB33: =LARGE(AB5:AB32,1)+1 -> 189 | AC33: Panacher | AD33: =LARGE(AD5:AD32,1)+1 -> 245 | AE33: Rioler | AF33: =LARGE(AF5:AF32,1)+1 -> 290 | AG33: Zester | AH33: =LARGE(AH4:AH32,1)+1 -> 30 | AI33: contrôler | AK33: =LARGE(AK4:AK32,1)+1 -> 86 | AL33: rebâtir | AP33: Chiqueter : tailler le tour d’une pièce de feuilletage avant la cuisson avec la lame d’un couteau pour lui donner un aspect particulier. | AR33: Lien > | AS33: Lexique en français de la cuisine Wiktionnaire | AV33: 2 | AW33: Mettre au point l'assaisonnement.
L34: =LARGE(L5:L33,1)+1 -> 28 | M34: Coucher | N34: =LARGE(N5:N33,1)+1 -> 73 | O34: Festonner | P34: =LARGE(P5:P33,1)+1 -> 114 | Q34: Papilloter | R34: =LARGE(R5:R33,1)+1 -> 155 | S34: Vanner | V34: =LARGE(V5:V33,1)+1 -> 27 | W34: Caraméliser | Z34: =LARGE(Z5:Z33,1)+1 -> 140 | AA34: Graisser | AB34: =LARGE(AB5:AB33,1)+1 -> 190 | AC34: Paner | AD34: =LARGE(AD5:AD33,1)+1 -> 246 | AE34: Rissoler | AH34: =LARGE(AH4:AH33,1)+1 -> 31 | AI34: couper | AK34: =LARGE(AK4:AK33,1)+1 -> 87 | AL34: réceptionner | AP34: Confire : remplacer l’eau de végétation des fruits par un sirop à la suite d’immersions multiples et répétées dans un sirop de sucre de plus en plus concentré. | AV34: 3 | AW34: Muscader légèrement.
L35: =LARGE(L5:L34,1)+1 -> 29 | M35: Coucher | N35: =LARGE(N5:N34,1)+1 -> 74 | O35: Flamber | P35: =LARGE(P5:P34,1)+1 -> 115 | Q35: Passer | R35: =LARGE(R5:R34,1)+1 -> 156 | S35: Videler | V35: =LARGE(V5:V34,1)+1 -> 28 | W35: Cerner | Y35: E | Z35: =LARGE(Z5:Z34,1)+1 -> 141 | AA35: Gratiner | AB35: =LARGE(AB5:AB34,1)+1 -> 191 | AC35: Papilloter | AD35: =LARGE(AD5:AD34,1)+1 -> 247 | AE35: Rompre | AH35: =LARGE(AH4:AH34,1)+1 -> 32 | AI35: créer | AK35: =LARGE(AK4:AK34,1)+1 -> 88 | AL35: reconstruire | AP35: Corner : utiliser une corne à l’intérieur d’un récipient pour récupérer le maximum d’appareil. | AR35: Lien > | AS35: Spécificités et usages du vocabulaire des "métiers de la bouche" | AV35: 4 | AW35: Réserver au chaud.
L36: =LARGE(L5:L35,1)+1 -> 30 | M36: Crémer | N36: =LARGE(N5:N35,1)+1 -> 75 | O36: Flanquer | P36: =LARGE(P5:P35,1)+1 -> 116 | Q36: Persiller | R36: =LARGE(R5:R35,1)+1 -> 157 | S36: Voiler | V36: =LARGE(V5:V35,1)+1 -> 29 | W36: Chablonner | X36: =LARGE(X5:X35,1)+1 -> 85 | Y36: Ebarber | Z36: =LARGE(Z5:Z35,1)+1 -> 142 | AA36: Griller | AB36: =LARGE(AB5:AB35,1)+1 -> 192 | AC36: Parer | AD36: =LARGE(AD5:AD35,1)+1 -> 248 | AE36: Rôtir | AH36: =LARGE(AH4:AH35,1)+1 -> 33 | AI36: creuser | AK36: =LARGE(AK4:AK35,1)+1 -> 89 | AL36: réduire | AP36: Corps : terme appliqué à une pâte pour désigner son élasticité, sa résistance après son pétrissage, résultant de la formation de gluten. | AW36: Ou marquer la cuisson des pommes de terre pour la réalisation de la purée fraîche.
L37: =LARGE(L5:L36,1)+1 -> 31 | M37: Crever | N37: =LARGE(N5:N36,1)+1 -> 76 | O37: Fleurer | P37: =LARGE(P5:P36,1)+1 -> 117 | Q37: Piler | V37: =LARGE(V5:V36,1)+1 -> 30 | W37: Châtrer | X37: =LARGE(X5:X36,1)+1 -> 86 | Y37: Ebaucher | Z37: =LARGE(Z5:Z36,1)+1 -> 143 | AA37: H | AB37: =LARGE(AB5:AB36,1)+1 -> 193 | AC37: Parfumer | AD37: =LARGE(AD5:AD36,1)+1 -> 249 | AE37: Rouler | AH37: =LARGE(AH4:AH36,1)+1 -> 34 | AI37: cultiver | AK37: =LARGE(AK4:AK36,1)+1 -> 90 | AL37: régler | AP37: Corser : donner de l’élasticité à une pâte en la pétrissant davantage.
L38: =LARGE(L5:L37,1)+1 -> 32 | M38: Cuire | N38: =LARGE(N5:N37,1)+1 -> 77 | O38: Foisonner | P38: =LARGE(P5:P37,1)+1 -> 118 | Q38: Pincer | S38: Z | V38: =LARGE(V5:V37,1)+1 -> 31 | W38: Chauffer | X38: =LARGE(X5:X37,1)+1 -> 87 | Y38: Ecailler | Z38: =LARGE(Z5:Z37,1)+1 -> 144 | AA38: Habiller | AB38: =LARGE(AB5:AB37,1)+1 -> 194 | AC38: Parsemer | AD38: =LARGE(AD5:AD37,1)+1 -> 250 | AE38: Roussir | AH38: =LARGE(AH4:AH37,1)+1 -> 35 | AI38: décentraliser | AK38: =LARGE(AK4:AK37,1)+1 -> 91 | AL38: réguler | AP38: Coucher (synonyme de dresser) : façonner à la poche à douille généralement sur plaque ou tapis anti-adhérant, papier sulfurisé des appareils mous (pâte à choux, biscuits, meringues). | AS38: Quelques expressions
M39: D | N39: =LARGE(N5:N38,1)+1 -> 78 | O39: Foncer | P39: =LARGE(P5:P38,1)+1 -> 119 | Q39: Piquer | R39: =LARGE(R5:R38,1)+1 -> 158 | S39: Zester | V39: =LARGE(V5:V38,1)+1 -> 32 | W39: Chaufroiter | X39: =LARGE(X5:X38,1)+1 -> 88 | Y39: Ecaler | Z39: =LARGE(Z5:Z38,1)+1 -> 145 | AA39: Hacher | AB39: =LARGE(AB5:AB38,1)+1 -> 195 | AC39: Passer | AH39: =LARGE(AH4:AH38,1)+1 -> 36 | AI39: décharger | AK39: =LARGE(AK4:AK38,1)+1 -> 92 | AL39: remodeler | AP39: Crémer : travailler une matière grasse seule ou avec du sucre, afin de lui donner la consistance d’une crème. | AV39: ❹ | AW39: Confectionner la brandade de morue
L40: =LARGE(L5:L39,1)+1 -> 33 | M40: Décanter | N40: =LARGE(N5:N39,1)+1 -> 79 | O40: Fondre | P40: =LARGE(P5:P39,1)+1 -> 120 | Q40: Pocher | V40: =LARGE(V5:V39,1)+1 -> 33 | W40: Chemiser | X40: =LARGE(X5:X39,1)+1 -> 89 | Y40: Echauder | Z40: =LARGE(Z5:Z39,1)+1 -> 146 | AA40: Historier | AB40: =LARGE(AB5:AB39,1)+1 -> 196 | AC40: Pasteuriser | AE40: S | AH40: =LARGE(AH4:AH39,1)+1 -> 37 | AI40: dessiner | AK40: =LARGE(AK4:AK39,1)+1 -> 93 | AL40: remplacer | AP40: Crouter : opération permettant de sécher à l’air ou en étuve une fabrication crue ou cuite afin d’obtenir une pellicule sèche et résistante à sa surface (biscuit cuillère, macarons…). | AR40: 1 | AS40: désinfecter le matériel | AV40: 1 | AW40: Préchauffer le four sur la position vapeur
L41: =LARGE(L5:L40,1)+1 -> 34 | M41: Décercler | N41: =LARGE(N5:N40,1)+1 -> 80 | O41: Fouler | P41: =LARGE(P5:P40,1)+1 -> 121 | Q41: Poêler | V41: =LARGE(V5:V40,1)+1 -> 34 | W41: Chevaucher | X41: =LARGE(X5:X40,1)+1 -> 90 | Y41: Ecorcher | Z41: =LARGE(Z5:Z40,1)+1 -> 147 | AA41: Huiler | AB41: =LARGE(AB5:AB40,1)+1 -> 197 | AC41: Peler | AD41: =LARGE(AD5:AD40,1)+1 -> 251 | AE41: Sabler | AH41: =LARGE(AH4:AH40,1)+1 -> 38 | AI41: documenter | AK41: =LARGE(AK4:AK40,1)+1 -> 94 | AL41: rénover | AP41: D | AR41: 2 | AS41: désinfecter le poste de travail | AV41: 2 | AW41: Cuire les filets à la vapeur 7 minutes environ
L42: =LARGE(L5:L41,1)+1 -> 35 | M42: Décortiquer | N42: =LARGE(N5:N41,1)+1 -> 81 | O42: Fraiser | P42: =LARGE(P5:P41,1)+1 -> 122 | Q42: Pousser | V42: =LARGE(V5:V41,1)+1 -> 35 | W42: Chiqueter | X42: =LARGE(X5:X41,1)+1 -> 91 | Y42: Ecosser | AB42: =LARGE(AB5:AB41,1)+1 -> 198 | AC42: Persiller | AD42: =LARGE(AD5:AD41,1)+1 -> 252 | AE42: Saigner | AH42: =LARGE(AH4:AH41,1)+1 -> 39 | AI42: écouler | AK42: =LARGE(AK4:AK41,1)+1 -> 95 | AL42: réorganiser | AP42: Décercler : retirer avec précaution le cercle d’un fond de tarte ou d’un entremet. | AR42: 3 | AS42: etager les bacs sur l'échelle de cuisson | AW42: Ne pas trop cuire au risque de retirer les propriétés gluantes de la morue
L43: =LARGE(L5:L42,1)+1 -> 36 | M43: Décuire | N43: =LARGE(N5:N42,1)+1 -> 82 | O43: Fileter | P43: =LARGE(P5:P42,1)+1 -> 123 | Q43: Puncher | V43: =LARGE(V5:V42,1)+1 -> 36 | W43: Ciseler | X43: =LARGE(X5:X42,1)+1 -> 92 | Y43: Ecumer | AA43: I | AB43: =LARGE(AB5:AB42,1)+1 -> 199 | AC43: Peser | AD43: =LARGE(AD5:AD42,1)+1 -> 253 | AE43: Saisir | AH43: =LARGE(AH4:AH42,1)+1 -> 40 | AI43: écrire | AK43: =LARGE(AK4:AK42,1)+1 -> 96 | AL43: réparer | AP43: Décoction : solution obtenue par l’action prolongée de l’eau bouillante sur une plante aromatique. | AR43: 4 | AS43: selectionner le matériel
L44: =LARGE(L5:L43,1)+1 -> 37 | M44: Déffilandrer | N44: =LARGE(N5:N43,1)+1 -> 83 | O44: Frapper | Q44: Q | V44: =LARGE(V5:V43,1)+1 -> 37 | W44: Citronner | X44: =LARGE(X5:X43,1)+1 -> 93 | Y44: Effilandrer | Z44: =LARGE(Z5:Z43,1)+1 -> 148 | AA44: Imbiber | AB44: =LARGE(AB5:AB43,1)+1 -> 200 | AC44: Pétrir | AD44: =LARGE(AD5:AD43,1)+1 -> 254 | AE44: Sangler | AH44: =LARGE(AH4:AH43,1)+1 -> 41 | AI44: édifier | AK44: =LARGE(AK4:AK43,1)+1 -> 97 | AL44: résoudre | AP44: Dessécher : déshydrater, faire évaporer l’excédent d’eau se trouvant dans une préparation en la chauffant sur feu doux dans une étuve ou dans un four (ex : pâte à choux) | AR44: 5 | AS44: suivre les protocoles | AV44: 3 | AW44: Effeuiller les filets de morue cuits.
L45: =LARGE(L5:L44,1)+1 -> 38 | M45: Déglacer | N45: =LARGE(N5:N44,1)+1 -> 84 | O45: Frémir | P45: =LARGE(P5:P44,1)+1 -> 124 | Q45: Quadriller | V45: =LARGE(V5:V44,1)+1 -> 38 | W45: Clarifier | X45: =LARGE(X5:X44,1)+1 -> 94 | Y45: Effiler | Z45: =LARGE(Z5:Z44,1)+1 -> 149 | AA45: Inciser | AB45: =LARGE(AB5:AB44,1)+1 -> 201 | AC45: Piler | AD45: =LARGE(AD5:AD44,1)+1 -> 255 | AE45: Saumurer | AH45: =LARGE(AH4:AH44,1)+1 -> 42 | AI45: effectuer | AK45: =LARGE(AK4:AK44,1)+1 -> 98 | AL45: réviser | AP45: Détailler : découper des morceaux de pâte de forme bien déterminée dans une abaisse de pâte, à l’aide d’un couteau ou d’un découpoir. | AV45: 4 | AW45: Dans une sauteuse, faire chauffer l'huile d'olive
L46: =LARGE(L5:L45,1)+1 -> 39 | M46: Dégorger | N46: =LARGE(N5:N45,1)+1 -> 85 | O46: Frire | V46: =LARGE(V5:V45,1)+1 -> 39 | W46: Clouter | X46: =LARGE(X5:X45,1)+1 -> 95 | Y46: Egermer | Z46: =LARGE(Z5:Z45,1)+1 -> 150 | AA46: Incorporer | AB46: =LARGE(AB5:AB45,1)+1 -> 202 | AC46: Pincer | AD46: =LARGE(AD5:AD45,1)+1 -> 256 | AE46: Saupoudrer | AH46: =LARGE(AH4:AH45,1)+1 -> 43 | AI46: élaborer | AK46: =LARGE(AK4:AK45,1)+1 -> 99 | AL46: revoir | AP46: Détrempe : mélange de farine, d’eau et de sel servant de base à la pâte feuilleté et à la pâte levée feuilleté. | AV46: 5 | AW46: ajouter la morue effeuillée et l'ail
L47: =LARGE(L5:L46,1)+1 -> 40 | M47: Dégourdir | O47: G | Q47: R | V47: =LARGE(V5:V46,1)+1 -> 40 | W47: Coller | X47: =LARGE(X5:X46,1)+1 -> 96 | Y47: Egoutter | Z47: =LARGE(Z5:Z46,1)+1 -> 151 | AA47: Indications packaging | AB47: =LARGE(AB5:AB46,1)+1 -> 203 | AC47: Piquer | AD47: =LARGE(AD5:AD46,1)+1 -> 257 | AE47: Sauter | AH47: =LARGE(AH4:AH46,1)+1 -> 44 | AI47: emplir | AK47: =LARGE(AK4:AK46,1)+1 -> 100 | AL47: sensibiliser | AP47: E | AR47: 1 | AS47: eplucher-laver-désinfecter | AV47: 6 | AW47: travailler à la spatule
L48: =LARGE(L5:L47,1)+1 -> 41 | M48: Dégraisser | N48: =LARGE(N5:N47,1)+1 -> 86 | O48: Glacer | P48: =LARGE(P5:P47,1)+1 -> 125 | Q48: Rabattre | V48: =LARGE(V5:V47,1)+1 -> 41 | W48: Compoter | X48: =LARGE(X5:X47,1)+1 -> 97 | Y48: Egrapper | Z48: =LARGE(Z5:Z47,1)+1 -> 152 | AA48: Infuser | AB48: =LARGE(AB5:AB47,1)+1 -> 204 | AC48: Plaquer | AD48: =LARGE(AD5:AD47,1)+1 -> 258 | AE48: Serrer | AH48: =LARGE(AH4:AH47,1)+1 -> 45 | AI48: employer | AK48: =LARGE(AK4:AK47,1)+1 -> 101 | AL48: simplifier | AP48: Écumer : c’est éliminer les impuretés qui se forment à la surface de cuisson de sucre, confitures, gelées à l’aide d’une écumoire. | AR48: 2 | AS48: faire tremper | AW48: (ou travailler directement la morue effeuillée dans la cuve du batteur).
L49: =LARGE(L5:L48,1)+1 -> 42 | M49: Déhousser | N49: =LARGE(N5:N48,1)+1 -> 87 | O49: Gommer | P49: =LARGE(P5:P48,1)+1 -> 126 | Q49: Rafraîchir | V49: =LARGE(V5:V48,1)+1 -> 42 | W49: Concasser | X49: =LARGE(X5:X48,1)+1 -> 98 | Y49: Egrener | AB49: =LARGE(AB5:AB48,1)+1 -> 205 | AC49: Pocher | AD49: =LARGE(AD5:AD48,1)+1 -> 259 | AE49: Servir | AH49: =LARGE(AH4:AH48,1)+1 -> 46 | AI49: enregistrer | AK49: =LARGE(AK4:AK48,1)+1 -> 102 | AL49: soulever | AP49: Émonder : retirer les peaux, pellicules et enveloppe de certains fruits ou légumes. | AR49: 3 | AS49: habiller les soles
L50: =LARGE(L5:L49,1)+1 -> 43 | M50: Dénerver | N50: =LARGE(N5:N49,1)+1 -> 88 | O50: Graisser | P50: =LARGE(P5:P49,1)+1 -> 127 | Q50: Raidir | V50: =LARGE(V5:V49,1)+1 -> 43 | W50: Confire | X50: =LARGE(X5:X49,1)+1 -> 99 | Y50: Eliminer | AA50: J | AB50: =LARGE(AB5:AB49,1)+1 -> 206 | AC50: Poêler | AD50: =LARGE(AD5:AD49,1)+1 -> 260 | AE50: Singer | AH50: =LARGE(AH4:AH49,1)+1 -> 47 | AI50: entretenir | AK50: =LARGE(AK4:AK49,1)+1 -> 103 | AL50: standardiser | AP50: Émulsionner : opération consistant à provoquer la dispersion d’un liquide dans un autre liquide ou d’une matière non miscible (ex : ganache). | AR50: 4 | AS50: hacher finement | AV50: 7 | AW50: Mettre la morue travaillée dans la grande cuve du batteur
L51: =LARGE(L5:L50,1)+1 -> 44 | M51: Dénoyauter | N51: =LARGE(N5:N50,1)+1 -> 89 | O51: Gratiner | P51: =LARGE(P5:P50,1)+1 -> 128 | Q51: Rassir | V51: =LARGE(V5:V50,1)+1 -> 44 | W51: Conserver | X51: =LARGE(X5:X50,1)+1 -> 100 | Y51: Emonder | Z51: =LARGE(Z5:Z50,1)+1 -> 153 | AA51: Jeter | AB51: =LARGE(AB5:AB50,1)+1 -> 207 | AC51: Porter à ébullition | AD51: =LARGE(AD5:AD50,1)+1 -> 261 | AE51: Siroper | AH51: =LARGE(AH4:AH50,1)+1 -> 48 | AI51: envoyer | AK51: =LARGE(AK4:AK50,1)+1 -> 104 | AL51: superviser | AP51: Évider : éliminer, extraire l’intérieur de certains fruits (ex : citrons, orange). | AR51: 5 | AS51: laver à grande eau
L52: =LARGE(L5:L51,1)+1 -> 45 | M52: Denteler | N52: =LARGE(N5:N51,1)+1 -> 90 | O52: Griller | P52: =LARGE(P5:P51,1)+1 -> 129 | Q52: Rayer | V52: =LARGE(V5:V51,1)+1 -> 45 | W52: Contiser | X52: =LARGE(X5:X51,1)+1 -> 101 | Y52: Émulsionner | AB52: =LARGE(AB5:AB51,1)+1 -> 208 | AC52: Poudrer | AD52: =LARGE(AD5:AD51,1)+1 -> 262 | AE52: Siroter | AH52: =LARGE(AH4:AH51,1)+1 -> 49 | AI52: ériger | AK52: =LARGE(AK4:AK51,1)+1 -> 105 | AL52: surveiller | AP52: F | AR52: 6 | AS52: peser les denrées | AV52: 8 | AW52: A la feuille en première vitesse, incorporer progressivement le lait et la crème
V53: =LARGE(V5:V52,1)+1 -> 46 | W53: Contrôler | X53: =LARGE(X5:X52,1)+1 -> 102 | Y53: Enfourner | AA53: L | AB53: =LARGE(AB5:AB52,1)+1 -> 209 | AC53: Pousser | AD53: =LARGE(AD5:AD52,1)+1 -> 263 | AE53: Snacker | AH53: =LARGE(AH4:AH52,1)+1 -> 50 | AI53: établir | AK53: =LARGE(AK4:AK52,1)+1 -> 106 | AL53: tester | AP53: Façonner : c’est donner une forme particulière à toute sortes de pâtes par un travail manuel ou mécanique avant cuisson. | AR53: 7 | AS53: trier et tremper
V54: =LARGE(V5:V53,1)+1 -> 47 | W54: Corner | X54: =LARGE(X5:X53,1)+1 -> 103 | Y54: Enrober | Z54: =LARGE(Z5:Z53,1)+1 -> 154 | AA54: Larder | AB54: =LARGE(AB5:AB53,1)+1 -> 210 | AC54: Praliner | AD54: =LARGE(AD5:AD53,1)+1 -> 264 | AE54: Sonder | AH54: =LARGE(AH4:AH53,1)+1 -> 51 | AI54: étendre | AK54: =LARGE(AK4:AK53,1)+1 -> 107 | AL54: transformer | AP54: Festonner : constituer des bordures décoratives ou des formes arrondies sur des pâtisseries (ex : pithiviers, tartelette…). | AR54: 8 | AS54: vérifier les DLC | AW54: Éventuellement, mettre au point la consistance en ajoutant du lait, de l'huile d'oli­ve ou de la crème
V55: =LARGE(V5:V54,1)+1 -> 48 | W55: Corser | X55: =LARGE(X5:X54,1)+1 -> 104 | Y55: Eplucher | Z55: =LARGE(Z5:Z54,1)+1 -> 155 | AA55: Laver | AB55: =LARGE(AB5:AB54,1)+1 -> 211 | AC55: Préchauffer | AD55: =LARGE(AD5:AD54,1)+1 -> 265 | AE55: Stériliser | AH55: =LARGE(AH4:AH54,1)+1 -> 52 | AI55: examiner | AK55: =LARGE(AK4:AK54,1)+1 -> 108 | AL55: trier | AP55: Fleurer : saupoudrer de farine un tour, une plaque ou un moule afin d’empêcher certaines préparations de coller.
V56: =LARGE(V5:V55,1)+1 -> 49 | W56: Coucher | X56: =LARGE(X5:X55,1)+1 -> 105 | Y56: Equeter | Z56: =LARGE(Z5:Z55,1)+1 -> 156 | AA56: Lever | AB56: =LARGE(AB5:AB55,1)+1 -> 212 | AC56: Prélever | AD56: =LARGE(AD5:AD55,1)+1 -> 266 | AE56: Suer | AH56: =LARGE(AH4:AH55,1)+1 -> 53 | AI56: exécuter | AK56: =LARGE(AK4:AK55,1)+1 -> 109 | AL56: utiliser | AP56: Foncer : tapisser l’intérieur d’un moule ou d’un cercle avec de la pâte, pour qu’elle épouse parfaitement sa forme. | AR56: 1 | AS56: ciseler finement | AW56: On doit obtenir une pâte homogène et compacte
V57: =LARGE(V5:V56,1)+1 -> 50 | W57: Craquer | X57: =LARGE(X5:X56,1)+1 -> 106 | Y57: Escaloper | Z57: =LARGE(Z5:Z56,1)+1 -> 157 | AA57: Lier | AB57: =LARGE(AB5:AB56,1)+1 -> 213 | AC57: Préparer | AD57: =LARGE(AD5:AD56,1)+1 -> 267 | AE57: Surgeler | AH57: =LARGE(AH4:AH56,1)+1 -> 54 | AI57: exploiter | AK57: =LARGE(AK4:AK56,1)+1 -> 110 | AL57: vaporiser | AP57: Fond : pâtisseries utilisée comme base de fabrication et constituant généralement la couche inférieure des gâteaux. | AR57: 2 | AS57: couper en 2 | AV57: 9 | AW57: Poivrer et muscader
V58: =LARGE(V5:V57,1)+1 -> 51 | W58: Crémer | X58: =LARGE(X5:X57,1)+1 -> 107 | Y58: Etaler | Z58: =LARGE(Z5:Z57,1)+1 -> 158 | AA58: Limoner | AB58: =LARGE(AB5:AB57,1)+1 -> 214 | AC58: Protéger | AH58: =LARGE(AH4:AH57,1)+1 -> 55 | AI58: extraire | AK58: =LARGE(AK4:AK57,1)+1 -> 111 | AL58: vérifier | AP58: Foisonnement: phénomène résultant d’une augmentation de volume d’une fabrication par incorporation de gaz. | AV58: 10 | AW58: Finir de lier la brandade en ajoutant la purée.
V59: =LARGE(V5:V58,1)+1 -> 52 | W59: Crever | X59: =LARGE(X5:X58,1)+1 -> 108 | Y59: Etoffer | Z59: =LARGE(Z5:Z58,1)+1 -> 159 | AA59: Lisser | AB59: =LARGE(AB5:AB58,1)+1 -> 215 | AC59: Puncher | AH59: =LARGE(AH4:AH58,1)+1 -> 56 | AI59: faire | AP59: Fraser : écraser les ingrédients d’une pâte pour les agglomérer soit sur le marbre avec la paume de la main en la poussant devant soi, soit au batteur en écrasant avec la paume de sa main sur les parois. | AV59: 11 | AW59: Travailler
V60: =LARGE(V5:V59,1)+1 -> 53 | W60: Crouter | X60: =LARGE(X5:X59,1)+1 -> 109 | Y60: Etouffer | Z60: =LARGE(Z5:Z59,1)+1 -> 160 | AA60: Lustrer | AP60: G | AR60: 1 | AS60: adjoindre de la creme | AV60: 12 | AW60: Rectifier la consistance
V61: =LARGE(V5:V60,1)+1 -> 54 | W61: Cuire | X61: =LARGE(X5:X60,1)+1 -> 110 | Y61: Etuver | Z61: =LARGE(Z5:Z60,1)+1 -> 161 | AA61: Luter | AC61: Q | AP61: Garnir : remplir avec une préparation de crème ou autres un fond de gâteau, un moule, une poche. | AR61: 2 | AS61: ajouter dans l'ordre les autres éléments
V62: =LARGE(V5:V61,1)+1 -> 55 | W62: Culotter | X62: =LARGE(X5:X61,1)+1 -> 111 | Y62: Evider | Z62: =LARGE(Z5:Z61,1)+1 -> 162 | AA62: Lyophiliser | AB62: =LARGE(AB5:AB61,1)+1 -> 216 | AC62: Quadriller | AP62: Glacer : | AR62: 3 | AS62: arroser de beurre noisette | AV62: ❺ | AW62: Décanter la préparation
X63: =LARGE(X5:X62,1)+1 -> 112 | Y63: Exprimer | AP63: – action de recouvrir partiellement ou entièrement la surface d’une pâtisserie avec un glaçage (ex : fondant) | AR63: 4 | AS63: arroser de liqueur | AV63: 1 | AW63: Dans les 8 bacs GN 1/1 beurrés, répartir la brandade Bénédictine
AP64: – rendre brillant la surface d’une pâtisserie avec du sirop avant le passage au four ou saupoudrer une pièce de sucre glace et la passer au four, le temps de caraméliser le sucre. | AR64: 5 | AS64: beurrer grassement
AP65: Grainage : phénomène résultant de la déstabilisation d’une mousse alimentaire (ex : blancs montés) ou d’une émulsion mousseuse (ex : crème fouettée) à la suite d’un battage prolongé. | AR65: 6 | AS65: blanchir-rafraichir-couper | AV65: 2 | AW65: Égaliser la surface
W66: Lien > | X66: Lexique en français de la boucherie | AP66: Graisser : enduire d’une couche de matière grasse à l’aide d’un pinceau ou d’une bombe à graisse les parois d’un moule ou une plaque. | AR66: 7 | AS66: crémer-réduire | AV66: 3 | AW66: Saupoudrer d'emmenthal râpé
W67: Lien > | X67: Le dictionnaire du boucher | AP67: I | AR67: 8 | AS67: passer la sauce | AV67: 4 | AW67: Parsemer de parcelles de beurre
W68: Verbes d'action Lien > | X68: https://www.unamur.be/services/sevrexe/prodoc/documents-mission-accompagnement-prodoc-AL/verbes-actions | AP68: Imbiber : c’est faire pénétrer un liquide (sirop, alcool, liqueur etc…) dans une préparation dans le but de la rendre moins sèche ou dans le but de la parfumer. | AR68: 9 | AS68: reviser l'assaisonnement | AV68: 5 | AW68: Étager les bacs sur l'échelle de cuisson
AP69: Infuser : opération consistant à placer une substance aromatique dans un liquide chauffé au préalable, pendant un temps déterminé et à couvert pour capter son arôme. | AR69: 10 | AS69: saler en cours de cuisson
AP70: L | AR70: 11 | AS70: saupoudrer légèrement | AV70: ❻ | AW70: Gratiner
AP71: Lisser : mélanger une préparation pour la rendre homogène. | AR71: 12 | AS71: vérifier la consistance | AV71: 1 | AW71: Passer au four en chaleur sèche à + 170 °C
AP72: Lustrer : recouvrir de nappage de gelée ou de beurre fondu, une préparation afin de lui donner un aspect brillant. | AV72: 2 | AW72: et gratiner légèrement la surface
AP73: M | AV73: 3 | AW73: Respecter la procédure de fin de cuisson
AP74: Macérer : opération consistant à faire tremper un corps dans un liquide froid pour en extraire les parties solubles ou un produit alimentaire pour le parfumer ou le conserver. | AR74: 1 | AS74: déglacer au vin blanc | AV74: 4 | AW74: Stocker en armoire chaude et maintenir à + 63 °C, en attente de consommation.
AP75: Marbrer : réaliser divers dessins sur des gâteaux glacés (au fondant, au nappage etc …) pour améliorer leur présentation. | AR75: 2 | AS75: dégraisser en partie
AP76: Masquer : recouvrir un entremets ou un fond de plat d’une légère couche de crème, de sauce ou de gelée. | AR76: 3 | AS76: égoutter et débarrasser
AP77: Monter : | AR77: 4 | AS77: étuver au beurre | AV77: ❼ | AW77: Dresser et servir
AP78: – battre au fouet une substance ou un appareil pour le rendre plus léger et en augmenter le volume (ex : blanc en neige). | AR78: 5 | AS78: faire sauter vivement | AV78: 1 | AW78: Détailler chaque bac GN en 12 portions
AP79: – assembler les différentes parties d’une pâtisserie pour en faire un gâteau plus ou moins important (monter un entremet, pièce montée). | AR79: 6 | AS79: faire suer | AV79: 2 | AW79: Servir une portion sur chaque assiette et garnir de toasts (facultatif)
AP80: Mouler : verser une substance ou une préparation liquide ou semi-liquide dans un moule pour en obtenir une reproduction de sa forme après solidification. | AR80: 7 | AS80: incorporer dans la sauce | AV80: 3
AP81: N | AR81: 8 | AS81: lier la cuisson
AP82: Napper : verser sur un met chaud ou froid une sauce, une gelée, ou une crème pour le recouvrir complètement. | AR82: 9 | AS82: lustrer à l'huie | AV82: ❽ | AW82: Commentaires
AP83: P | AR83: 10 | AS83: monter au beurre | AV83: Ⓐ | AW83: La brandade de morue n'est constituée que de poisson
AP84: Pasteuriser : action de soumettre une préparation à un traitement thermique (Température inférieure à 100°C), pendant un temps défini, afin de détruire d’éventuels germes pathogènes et de prolonger leur conservations. | AR84: 11 | AS84: mouiller au vin blanc
AP85: Passer : faire traverser un liquide dans un ustensile percé de trous pour en retenir en général les impuretés (ex : chinois, passoire, tamis). | AR85: 12 | AS85: napper de sauce | AV85: Ⓑ | AW85: C'est à tort que l'on appelle brandade celle additionnée de purée de pomme de terre
AP86: Pâton : nom donné à un morceau de pâte pesé et prêt à être façonné. | AR86: 13 | AS86: porter à ébullition
AP87: Piquer : percer de nombreux petits trous la surface d’une abaisse de pâte à l’aide d’une fourchette ou d’un pique vite, dans le but d’empêcher la formation de boursouflures durant la cuisson. | AR87: 14 | AS87: rafraichir et égoutter | AV87: Ⓒ | AW87: La brandade de morue peut être accompagnée
AP88: Pincer : faire un décor sur le pourtour d’une tarte à l’aide d’une pince spéciale. | AR88: 15 | AS88: réduire le vin | AV88: 1 | AW88: de pommes de terre à l'anglaise
AP89: Pocher : opération qui consiste à cuire une préparation ou des aliments dans un liquide (eau, sirop, etc…) à une température basse, généralement comprise entre 70° et 85°C. | AR89: 16 | AS89: sauter au beurre et à l'huile | AV89: 2 | AW89: en robe des champs
AP90: Pointage : technique survenant après le pétrissage d’une pâte levée, fermentée, permettant à la première fermentation de se réaliser et de développer des arômes caractéristiques, mais aussi de renforcer le corps de la pâte avant son façonnage. | AV90: 3 | AW90: ou de pommes purée à l'huile d'olive
AP91: Punch : mélange de sirop de sucre et d’un autre ingrédient (alcool, café, jus ou purée de fruits, vanille etc…). | AV91: 4 | AW91: et de croûtons frits
AP92: Puncher (synonyme d’imbiber): rayer avec la pointe de la lame d’un couteau d’office, inciser de raies parallèles la surface de certains gâteaux préalablement passée à la dorure afin de parfaire la présentation. | AR92: 1 | AS92: cuire à couvert
AP93: R | AR93: 2 | AS93: cuire à feu doux
AP94: Retomber : se dit d’une pâte, d’un appareil dont le volume diminue après avoir augmenté pendant le montage ou la cuisson. | AR94: 3 | AS94: cuire a feu vif | AW94: Cette Méthode de fabrication est citée à titre d'exemple
AP95: Rognures : chutes de pâtisseries provenant de découpes de pâtes, d’entremets. | AR95: 4 | AS95: cuire à four moyen
AP96: Rompre : actions manuelles consistant après un certain temps de pointage, a rabattre une pâte levée, fermentée, pour en chasser les gaz produits, avant le façonnage. | AR96: 5 | AS96: cuire à la vapeur | AW96: Je vous conseille de faire l'acquisition de l'excellent ouvrage de Michel Grossmann et Alain Le Franc
AP97: Ruban : préparation qui, après avoir été travaillé au fouet ou à la spatule, se glisse comme un ruban lorsqu’on la fait retomber de hauteur (ex : génoise). | AR97: 6 | AS97: cuire à l'eau salée
AP98: S | AR98: 7 | AS98: cuire légèrement croquant
AP99: Sabler : opération qui consiste à brasser de la farine et de la matière grasse jusqu’à l’obtention d’un mélange rappelant la texture du sable. | AR99: 8 | AS99: cuire sans coloration | AW99: LA CUISINE DE COLLECTIVITÉ
AP100: T | AR100: 9 | AS100: enfourner et cuire | AW100: Cuisine et Pâtisserie
AP101: Tabler : technique de pré-cristallisation du chocolat de couverture sur un marbre. | AR101: 10 | AS101: finir de cuire | AW101: 300 Fiches Techniques
AR102: 11 | AS102: griller et finir au four | AW102: Éditions BPI 2006
AP103: Tourer : action de plier en trois ou en quatre un pâton de pâte levée, feuilletée, après l’avoir allongée. | AR103: 12 | AS103: laisser cuire
AP104: Tremper : | AR104: 13 | AS104: passer au four très chaud
AP105: – imbiber une pièce de pâtisseries avec du sirop | AR105: 14 | AS105: piquer la sonde à cœur
AP106: – enrober des bonbons, des intérieurs, des fruits dans du chocolat de couverture ou du fondant. | AR106: 15 | AS106: préchauffer le four
AP107: V
AP108: Vanner : remuer une sauce ou une crème pendant son refroidissement pour la rendre homogène, limité son dessèchement en surface et accélérer sa descente en température.
AP109: Z | AR109: 1 | AS109: disperser au fouet
AP110: Zeste : peau découpée dans l’écorce des agrumes. | AR110: 2 | AS110: dresser à la poche
AP111: Zester : retirer la partie extérieure de l’écorce d’agrumes (citrons, oranges, pamplemousse….) à l’aide d’un zesteur ou d’une râpe. | AR111: 3 | AS111: dresser sur assiette
AR112: 4 | AS112: mélanger et porter à ébullition
AR113: 5 | AS113: mixer et passer au chinois
AO114: Lien > | AP114: https://www.passionpatisserie.fr/lexique | AR114: 6 | AS114: rectifier l'assaisonnement
AR115: 7 | AS115: rendre onctueux l'appareil
AO116: Lien > | AP116: http://devenir.patissier.free.fr/cours-CAP-vocabulaire-professionnel-eleve.pdf | AR116: 8 | AS116: répartir le fond de cuisson
AO118: Lien > | AP118: http://technologiepatisserie.blogspot.com/p/le-vocabulaire-professionnel-en.html
AR119: 1 | AS119: débarrasser dans un récipient
AO120: Lien > | AP120: https://devenirpatissier.fr/vocabulaire-professionnel/ | AR120: 2 | AS120: filmer et stocker en chambre froide
AR121: 3 | AS121: refroidir en cellule
AO122: Lien > | AP122: https://www.encoreungateau.com/pourquoi-un-blog-de-patisserie/vocabulaire-du-patissier/ | AR122: 4 | AS122: réserver au frais
AR123: 5 | AS123: réserver au froid
AR124: 6 | AS124: reserver dans des bacs
AR125: 7 | AS125: stocker en chambre froide
AR128: 1 | AS128: maintenir à température + 63°C
AR129: 2 | AS129: maintenir au bain marie + 65°C
AR130: 3 | AS130: maintenir au froid + 3°C maxi
AR131: 4 | AS131: servir tiède

Sheet Polices de Symboles
U2: Mise à jour du 14 Décembre 2021
U3: annule ou remplace les versions précédentes
A6: 0 | B6: COMMENT CHOISIR SA POLICE DE SYMBOLES UPRM 1991. Servez vous du pinceau pour reproduire les symboles que vous souhaitez utiliser.Attention saisissez la bonne lettre ou le bon chiffre pour la reproduction
B7: =CELL("nomfichier") -> E:\0-UPRT\1-UPRT.FR-SITE-WEB\ff-fiches-fabrications\ff-fiches-fabrication-maj-08-2020\[ff-4-collectivite-avec-macro.xlsm]Formats-Formules-Fonctions
B8: Saisir lettre ou nombre | D8: Correspondance | E8: Police Wingdins | O8: Saisir lettre ou nombre | Q8: Correspondance | R8: Police Wingdins 2
B9: 45 | C9: = | D9: =B9 -> 45 | E9: Copiez / collez le symbole sur votre document ou faites un imprim'écran | O9: Aa | P9: = | Q9: =O9 -> Aa | R9: Copiez / collez le symbole sur votre document ou faites un imprim'écran
AD10: PREMIERE RANGÉE DU CLAVIER | BE10: PREMIERE RANGÉE DU CLAVIER
B11: Majuscules | C11: correspondance | E11: Minuscules | F11: correspondance | H11: Chiffres | I11: correspondance | K11: nombres | L11: correspondance | O11: Majuscules | P11: correspondance | R11: Minuscules | S11: correspondance | U11: Chiffres | V11: correspondance | X11: nombres | Y11: correspondance
B12: A | C12: = | D12: A | E12: a | F12: = | G12: a | H12: 1 | I12: = | J12: 1 | K12: 27 | L12: = | M12: 27 | O12: A | P12: = | Q12: A | R12: a | S12: = | T12: a | U12: 1 | V12: = | W12: 1 | X12: 27 | Y12: = | Z12: 27 | AD12: Raccourcis | AE12: Alt + 0169 | AG12: ALT + 0171 | AI12: ALT + 0172 | AK12: ALT + 0174 | AM12: ALT + 0177 | AO12: ALT + 0179 | AQ12: ALT + 0182 | AS12: ALT + 0183 | AU12: ALT + 0185 | AW12: ALT + 0187 | AY12: ALT + 0188 | BA12: ALT + 0189 | BD12: Arial Narrow | BE12: 1 | BH12: 2 | BK12: 3 | BN12: 4 | BQ12: 5 | BT12: 6 | BW12: 7 | BZ12: 8 | CC12: 9 | CF12: 0 | CI12: ° | CL12: +
B13: B | C13: = | D13: B | E13: b | F13: = | G13: b | H13: 2 | I13: = | J13: 2 | K13: 28 | L13: = | M13: 28 | O13: B | P13: = | Q13: B | R13: b | S13: = | T13: b | U13: 2 | V13: = | W13: 2 | X13: 28 | Y13: = | Z13: 28 | BE13: & | BH13: é | BI13: ~ | BK13: " | BL13: # | BN13: ' | BO13: { | BQ13: ( | BR13: [ | BT13: - | BU13: | | BW13: è | BX13: ` | BZ13: _ | CA13: \ | CC13: ç | CD13: ^ | CF13: à | CG13: @ | CI13: ) | CJ13: ] | CL13: = | CM13: }
B14: C | C14: = | D14: C | E14: c | F14: = | G14: c | H14: 3 | I14: = | J14: 3 | K14: 29 | L14: = | M14: 29 | O14: C | P14: = | Q14: C | R14: c | S14: = | T14: c | U14: 3 | V14: = | W14: 3 | X14: 29 | Y14: = | Z14: 29 | AD14: Arial | AE14: © | AG14: « | AI14: ¬ | AK14: ® | AM14: ± | AO14: ³ | AQ14: ¶ | AS14: · | AU14: ¹ | AW14: » | AY14: ¼ | BA14: ½
B15: D | C15: = | D15: D | E15: d | F15: = | G15: d | H15: 4 | I15: = | J15: 4 | K15: 30 | L15: = | M15: 30 | O15: D | P15: = | Q15: D | R15: d | S15: = | T15: d | U15: 4 | V15: = | W15: 4 | X15: 30 | Y15: = | Z15: 30 | BD15: Webdings | BE15: 1 | BH15: 2 | BK15: 3 | BN15: 4 | BQ15: 5 | BT15: 6 | BW15: 7 | BZ15: 8 | CC15: 9 | CF15: 0 | CI15: ° | CL15: +
B16: E | C16: = | D16: E | E16: e | F16: = | G16: e | H16: 5 | I16: = | J16: 5 | K16: 31 | L16: = | M16: 31 | O16: E | P16: = | Q16: E | R16: e | S16: = | T16: e | U16: 5 | V16: = | W16: 5 | X16: 31 | Y16: = | Z16: 31 | AD16: Webdings | AE16: © | AF16: 0 | AG16: « | AH16: 0 | AI16: ¬ | AJ16: 0 | AK16: ® | AL16: 0 | AM16: ± | AN16: 0 | AO16: ³ | AP16: 0 | AQ16: ¶ | AR16: 0 | AS16: · | AT16: 0 | AU16: ¹ | AV16: 0 | AW16: » | AX16: 0 | AY16: ¼ | AZ16: 0 | BA16: ½ | BE16: & | BH16: é | BI16: ~ | BK16: " | BL16: # | BN16: ' | BO16: { | BQ16: ( | BR16: [ | BT16: - | BU16: | | BW16: è | BX16: ` | BZ16: _ | CA16: \ | CC16: ç | CD16: ^ | CF16: à | CG16: @ | CI16: ) | CJ16: ] | CL16: = | CM16: }
B17: F | C17: = | D17: F | E17: f | F17: = | G17: f | H17: 6 | I17: = | J17: 6 | K17: 32 | L17: = | M17: 32 | O17: F | P17: = | Q17: F | R17: f | S17: = | T17: f | U17: 6 | V17: = | W17: 6 | X17: 32 | Y17: = | Z17: 32
B18: G | C18: = | D18: G | E18: g | F18: = | G18: g | H18: 7 | I18: = | J18: 7 | K18: 33 | L18: = | M18: 33 | O18: G | P18: = | Q18: G | R18: g | S18: = | T18: g | U18: 7 | V18: = | W18: 7 | X18: 33 | Y18: = | Z18: 33 | AD18: Windgins | AE18: © | AF18: 0 | AG18: « | AH18: 0 | AI18: ¬ | AJ18: 0 | AK18: ® | AL18: 0 | AM18: ± | AN18: 0 | AO18: ³ | AP18: 0 | AQ18: ¶ | AR18: 0 | AS18: · | AT18: 0 | AU18: ¹ | AV18: 0 | AW18: » | AX18: 0 | AY18: ¼ | AZ18: 0 | BA18: ½ | BD18: Windgings | BE18: 1 | BH18: 2 | BK18: 3 | BN18: 4 | BQ18: 5 | BT18: 6 | BW18: 7 | BZ18: 8 | CC18: 9 | CF18: 0 | CI18: ° | CL18: +
B19: H | C19: = | D19: H | E19: h | F19: = | G19: h | H19: 8 | I19: = | J19: 8 | K19: 34 | L19: = | M19: 34 | O19: H | P19: = | Q19: H | R19: h | S19: = | T19: h | U19: 8 | V19: = | W19: 8 | X19: 34 | Y19: = | Z19: 34 | BE19: & | BH19: é | BI19: ~ | BK19: " | BL19: # | BN19: ' | BO19: { | BQ19: ( | BR19: [ | BT19: - | BU19: | | BW19: è | BX19: ` | BZ19: _ | CA19: \ | CC19: ç | CD19: ^ | CF19: à | CG19: @ | CI19: ) | CJ19: ] | CL19: = | CM19: }
B20: I | C20: = | D20: I | E20: i | F20: = | G20: i | H20: 9 | I20: = | J20: 9 | K20: 35 | L20: = | M20: 35 | O20: I | P20: = | Q20: I | R20: i | S20: = | T20: i | U20: 9 | V20: = | W20: 9 | X20: 35 | Y20: = | Z20: 35 | AD20: Windings 2 | AE20: © | AF20: 0 | AG20: « | AH20: 0 | AI20: ¬ | AJ20: 0 | AK20: ® | AL20: 0 | AM20: ± | AN20: 0 | AO20: ³ | AP20: 0 | AQ20: ¶ | AR20: 0 | AS20: · | AT20: 0 | AU20: ¹ | AV20: 0 | AW20: » | AX20: 0 | AY20: ¼ | AZ20: 0 | BA20: ½
B21: J | C21: = | D21: J | E21: j | F21: = | G21: j | H21: 10 | I21: = | J21: 10 | K21: 36 | L21: = | M21: 36 | O21: J | P21: = | Q21: J | R21: j | S21: = | T21: j | U21: 10 | V21: = | W21: 10 | X21: 36 | Y21: = | Z21: 36 | BD21: Windgings 2 | BE21: 1 | BH21: 2 | BK21: 3 | BN21: 4 | BQ21: 5 | BT21: 6 | BW21: 7 | BZ21: 8 | CC21: 9 | CF21: 0 | CI21: ° | CL21: +
B22: K | C22: = | D22: K | E22: k | F22: = | G22: k | H22: 11 | I22: = | J22: 11 | K22: 37 | L22: = | M22: 37 | O22: K | P22: = | Q22: K | R22: k | S22: = | T22: k | U22: 11 | V22: = | W22: 11 | X22: 37 | Y22: = | Z22: 37 | AD22: Windgings 3 | AE22: © | AF22: 0 | AG22: « | AH22: 0 | AI22: ¬ | AJ22: 0 | AK22: ® | AL22: 0 | AM22: ± | AN22: 0 | AO22: ³ | AP22: 0 | AQ22: ¶ | AR22: 0 | AS22: · | AT22: 0 | AU22: ¹ | AV22: 0 | AW22: » | AX22: 0 | AY22: ¼ | AZ22: 0 | BA22: ½ | BE22: & | BH22: é | BI22: ~ | BK22: " | BL22: # | BN22: ' | BO22: { | BQ22: ( | BR22: [ | BT22: - | BU22: | | BW22: è | BX22: ` | BZ22: _ | CA22: \ | CC22: ç | CD22: ^ | CF22: à | CG22: @ | CI22: ) | CJ22: ] | CL22: = | CM22: }
B23: L | C23: = | D23: L | E23: l | F23: = | G23: l | H23: 12 | I23: = | J23: 12 | K23: 38 | L23: = | M23: 38 | O23: L | P23: = | Q23: L | R23: l | S23: = | T23: l | U23: 12 | V23: = | W23: 12 | X23: 38 | Y23: = | Z23: 38
B24: M | C24: = | D24: M | E24: m | F24: = | G24: m | H24: 13 | I24: = | J24: 13 | K24: 39 | L24: = | M24: 39 | O24: M | P24: = | Q24: M | R24: m | S24: = | T24: m | U24: 13 | V24: = | W24: 13 | X24: 39 | Y24: = | Z24: 39 | AD24: ABSENT DU CLAVIER | BD24: Windgings 3 | BE24: 1 | BH24: 2 | BK24: 3 | BN24: 4 | BQ24: 5 | BT24: 6 | BW24: 7 | BZ24: 8 | CC24: 9 | CF24: 0 | CI24: ° | CL24: +
B25: N | C25: = | D25: N | E25: n | F25: = | G25: n | H25: 14 | I25: = | J25: 14 | K25: 40 | L25: = | M25: 40 | O25: N | P25: = | Q25: N | R25: n | S25: = | T25: n | U25: 14 | V25: = | W25: 14 | X25: 40 | Y25: = | Z25: 40 | AD25: Raccourcis | AE25: Alt + 0190 | AG25: Alt + 0191 | AI25: Alt + 0192 | AK25: Alt + 0194 | AM25: Alt + 0195 | AO25: Alt + 0196 | AQ25: Alt + 0197 | AS25: Alt + 0198 | AU25: Alt + 0199 | AW25: Alt + 0200 | AY25: Alt + 0201 | BA25: Alt + 0202 | BE25: & | BH25: é | BI25: ~ | BK25: " | BL25: # | BN25: ' | BO25: { | BQ25: ( | BR25: [ | BT25: - | BU25: | | BW25: è | BX25: ` | BZ25: _ | CA25: \ | CC25: ç | CD25: ^ | CF25: à | CG25: @ | CI25: ) | CJ25: ] | CL25: = | CM25: }
B26: O | C26: = | D26: O | E26: o | F26: = | G26: o | H26: 15 | I26: = | J26: 15 | K26: 41 | L26: = | M26: 41 | O26: O | P26: = | Q26: O | R26: o | S26: = | T26: o | U26: 15 | V26: = | W26: 15 | X26: 41 | Y26: = | Z26: 41
B27: P | C27: = | D27: P | E27: p | F27: = | G27: p | H27: 16 | I27: = | J27: 16 | K27: 42 | L27: = | M27: 42 | O27: P | P27: = | Q27: P | R27: p | S27: = | T27: p | U27: 16 | V27: = | W27: 16 | X27: 42 | Y27: = | Z27: 42 | AD27: Arial | AE27: ¾ | AG27: ¿ | AI27: À | AK27: Â | AM27: Ã | AO27: Ä | AQ27: Å | AS27: Æ | AU27: Ç | AW27: È | AY27: É | BA27: Ê | BE27: DEUXIÈME RANGÉE DU CLAVIER
B28: Q | C28: = | D28: Q | E28: q | F28: = | G28: q | H28: 17 | I28: = | J28: 17 | K28: 43 | L28: = | M28: 43 | O28: Q | P28: = | Q28: Q | R28: q | S28: = | T28: q | U28: 17 | V28: = | W28: 17 | X28: 43 | Y28: = | Z28: 43 | BD28: Arial Narrow | BE28: A | BH28: Z | BK28: E | BN28: R | BQ28: T | BT28: Y | BW28: U | BZ28: I | CC28: O | CF28: P | CI28: ¨ | CL28: £
B29: R | C29: = | D29: R | E29: r | F29: = | G29: r | H29: 18 | I29: = | J29: 18 | K29: 44 | L29: = | M29: 44 | O29: R | P29: = | Q29: R | R29: r | S29: = | T29: r | U29: 18 | V29: = | W29: 18 | X29: 44 | Y29: = | Z29: 44 | AD29: Webdings | AE29: ¾ | AF29: 0 | AG29: ¿ | AH29: 0 | AI29: À | AJ29: 0 | AK29: Â | AL29: 0 | AM29: Ã | AN29: 0 | AO29: Ä | AP29: 0 | AQ29: Å | AR29: 0 | AS29: Æ | AT29: 0 | AU29: Ç | AV29: 0 | AW29: È | AX29: 0 | AY29: É | AZ29: 0 | BA29: Ê | BE29: a | BH29: z | BK29: e | BN29: r | BQ29: t | BT29: y | BW29: u | BZ29: i | CC29: o | CF29: p | CI29: ^ | CM29: ¤
B30: S | C30: = | D30: S | E30: s | F30: = | G30: s | H30: 19 | I30: = | J30: 19 | K30: 45 | L30: = | M30: 45 | O30: S | P30: = | Q30: S | R30: s | S30: = | T30: s | U30: 19 | V30: = | W30: 19 | X30: 45 | Y30: = | Z30: 45
B31: T | C31: = | D31: T | E31: t | F31: = | G31: t | H31: 20 | I31: = | J31: 20 | K31: 46 | L31: = | M31: 46 | O31: T | P31: = | Q31: T | R31: t | S31: = | T31: t | U31: 20 | V31: = | W31: 20 | X31: 46 | Y31: = | Z31: 46 | AD31: Windgins | AE31: ¾ | AF31: 0 | AG31: ¿ | AH31: 0 | AI31: À | AJ31: 0 | AK31: Â | AL31: 0 | AM31: Ã | AN31: 0 | AO31: Ä | AP31: 0 | AQ31: Å | AR31: 0 | AS31: Æ | AT31: 0 | AU31: Ç | AV31: 0 | AW31: È | AX31: 0 | AY31: É | AZ31: 0 | BA31: Ê | BD31: Webdings | BE31: A | BH31: Z | BK31: E | BN31: R | BQ31: T | BT31: Y | BW31: U | BZ31: I | CC31: O | CF31: P | CI31: ¨ | CL31: £
B32: U | C32: = | D32: U | E32: u | F32: = | G32: u | H32: 21 | I32: = | J32: 21 | K32: 47 | L32: = | M32: 47 | O32: U | P32: = | Q32: U | R32: u | S32: = | T32: u | U32: 21 | V32: = | W32: 21 | X32: 47 | Y32: = | Z32: 47 | BE32: a | BH32: z | BK32: e | BN32: r | BQ32: t | BT32: y | BW32: u | BZ32: i | CC32: o | CF32: p | CI32: ^ | CM32: ¤
B33: V | C33: = | D33: V | E33: v | F33: = | G33: v | H33: 22 | I33: = | J33: 22 | K33: 48 | L33: = | M33: 48 | O33: V | P33: = | Q33: V | R33: v | S33: = | T33: v | U33: 22 | V33: = | W33: 22 | X33: 48 | Y33: = | Z33: 48 | AD33: Windings 2 | AE33: ¾ | AF33: 0 | AG33: ¿ | AH33: 0 | AI33: À | AJ33: 0 | AK33: Â | AL33: 0 | AM33: Ã | AN33: 0 | AO33: Ä | AP33: 0 | AQ33: Å | AR33: 0 | AS33: Æ | AT33: 0 | AU33: Ç | AV33: 0 | AW33: È | AX33: 0 | AY33: É | AZ33: 0 | BA33: Ê
B34: W | C34: = | D34: W | E34: w | F34: = | G34: w | H34: 23 | I34: = | J34: 23 | K34: 49 | L34: = | M34: 49 | O34: W | P34: = | Q34: W | R34: w | S34: = | T34: w | U34: 23 | V34: = | W34: 23 | X34: 49 | Y34: = | Z34: 49 | BD34: Windgings | BE34: A | BH34: Z | BK34: E | BN34: R | BQ34: T | BT34: Y | BW34: U | BZ34: I | CC34: O | CF34: P | CI34: ¨ | CL34: £
B35: X | C35: = | D35: X | E35: x | F35: = | G35: x | H35: 24 | I35: = | J35: 24 | K35: 50 | L35: = | M35: 50 | O35: X | P35: = | Q35: X | R35: x | S35: = | T35: x | U35: 24 | V35: = | W35: 24 | X35: 50 | Y35: = | Z35: 50 | AD35: Windgings 3 | AE35: ¾ | AF35: 0 | AG35: ¿ | AH35: 0 | AI35: À | AJ35: 0 | AK35: Â | AL35: 0 | AM35: Ã | AN35: 0 | AO35: Ä | AP35: 0 | AQ35: Å | AR35: 0 | AS35: Æ | AT35: 0 | AU35: Ç | AV35: 0 | AW35: È | AX35: 0 | AY35: É | AZ35: 0 | BA35: Ê | BE35: a | BH35: z | BK35: e | BN35: r | BQ35: t | BT35: y | BW35: u | BZ35: i | CC35: o | CF35: p | CI35: ^ | CM35: ¤
B36: Y | C36: = | D36: Y | E36: y | F36: = | G36: y | H36: 25 | I36: = | J36: 25 | K36: 51 | L36: = | M36: 51 | O36: Y | P36: = | Q36: Y | R36: y | S36: = | T36: y | U36: 25 | V36: = | W36: 25 | X36: 51 | Y36: = | Z36: 51
B37: Z | C37: = | D37: Z | E37: z | F37: = | G37: z | H37: 26 | I37: = | J37: 26 | K37: 52 | L37: = | M37: 52 | O37: Z | P37: = | Q37: Z | R37: z | S37: = | T37: z | U37: 26 | V37: = | W37: 26 | X37: 52 | Y37: = | Z37: 52 | AD37: ABSENT DU CLAVIER | BD37: Windgings 2 | BE37: A | BH37: Z | BK37: E | BN37: R | BQ37: T | BT37: Y | BW37: U | BZ37: I | CC37: O | CF37: P | CI37: ¨ | CL37: £
B38: & | C38: = | D38: & | E38: % | F38: = | G38: % | H38: £ | I38: = | J38: £ | K38: ; | L38: = | M38: ; | O38: & | P38: = | Q38: & | R38: % | S38: = | T38: % | U38: £ | V38: = | W38: £ | X38: ; | Y38: = | Z38: ; | AD38: Raccourcis | AE38: Alt + 0203 | AG38: Alt + 0204 | AI38: Alt + 0205 | AK38: Alt + 0206 | AM38: Alt + 0207 | AO38: Alt + 0209 | AQ38: Alt + 0212 | AS38: Alt + 0214 | AU38: Alt + 0215 | AW38: Alt + 0216 | AY38: Alt + 0217 | BA38: Alt + 0219 | BE38: a | BH38: z | BK38: e | BN38: r | BQ38: t | BT38: y | BW38: u | BZ38: i | CC38: o | CF38: p | CI38: ^ | CM38: ¤
B39: é | C39: = | D39: é | E39: # | F39: = | G39: # | H39: @ | I39: = | J39: @ | K39: : | L39: = | M39: : | O39: é | P39: = | Q39: é | R39: # | S39: = | T39: # | U39: @ | V39: = | W39: @ | X39: : | Y39: = | Z39: :
B40: è | C40: = | D40: è | E40: ( | F40: = | G40: ( | H40: ! | I40: = | J40: ! | K40: - | L40: = | M40: - | O40: è | P40: = | Q40: è | R40: ( | S40: = | T40: ( | U40: ! | V40: = | W40: ! | X40: - | Y40: = | Z40: - | AD40: Arial | AE40: Ë | AG40: Ì | AI40: Í | AK40: Î | AM40: Ï | AO40: Ñ | AQ40: Ô | AS40: Ö | AU40: × | AW40: Ø | AY40: Ù | BA40: Û | BD40: Windgings 3 | BE40: A | BH40: Z | BK40: E | BN40: R | BQ40: T | BT40: Y | BW40: U | BZ40: I | CC40: O | CF40: P | CI40: ¨ | CL40: £
B41: ù | C41: = | D41: ù | E41: ) | F41: = | G41: ) | H41: ? | I41: = | J41: ? | K41: . | L41: = | M41: . | O41: ù | P41: = | Q41: ù | R41: ) | S41: = | T41: ) | U41: ? | V41: = | W41: ? | X41: . | Y41: = | Z41: . | BE41: a | BH41: z | BK41: e | BN41: r | BQ41: t | BT41: y | BW41: u | BZ41: i | CC41: o | CF41: p | CI41: ^ | CM41: ¤
B42: ç | C42: = | D42: ç | E42: [ | F42: = | G42: [ | H42: > | I42: = | J42: > | K42: ~ | L42: = | M42: ~ | O42: ç | P42: = | Q42: ç | R42: [ | S42: = | T42: [ | U42: > | V42: = | W42: > | X42: ~ | Y42: = | Z42: ~ | AD42: Webdings | AE42: Ë | AF42: 0 | AG42: Ì | AH42: 0 | AI42: Í | AJ42: 0 | AK42: Î | AL42: 0 | AM42: Ï | AN42: 0 | AO42: Ñ | AP42: 0 | AQ42: Ô | AR42: 0 | AS42: Ö | AT42: 0 | AU42: × | AV42: 0 | AW42: Ø | AX42: 0 | AY42: Ù | AZ42: 0 | BA42: Û
B43: à | C43: = | D43: à | E43: ] | F43: = | G43: ] | H43: < | I43: = | J43: < | K43: " | L43: = | M43: " | O43: à | P43: = | Q43: à | R43: ] | S43: = | T43: ] | U43: < | V43: = | W43: < | X43: " | Y43: = | Z43: " | BE43: TROISIÈME RANGÉE
B44: µ | C44: = | D44: µ | E44: { | F44: = | G44: { | H44: \ | I44: = | J44: \ | K44: * | L44: = | M44: * | O44: µ | P44: = | Q44: µ | R44: { | S44: = | T44: { | U44: \ | V44: = | W44: \ | X44: * | Y44: = | Z44: * | AD44: Windgins | AE44: Ë | AF44: 0 | AG44: Ì | AH44: 0 | AI44: Í | AJ44: 0 | AK44: Î | AL44: 0 | AM44: Ï | AN44: 0 | AO44: Ñ | AP44: 0 | AQ44: Ô | AR44: 0 | AS44: Ö | AT44: 0 | AU44: × | AV44: 0 | AW44: Ø | AX44: 0 | AY44: Ù | AZ44: 0 | BA44: Û | BD44: Arial Narrow | BE44: Q | BH44: S | BK44: D | BN44: F | BQ44: G | BT44: H | BW44: J | BZ44: K | CC44: L | CF44: M | CI44: % | CL44: µ
B45: § | C45: = | D45: § | E45: } | F45: = | G45: } | H45: / | I45: = | J45: / | K45: , | L45: = | M45: , | O45: § | P45: = | Q45: § | R45: } | S45: = | T45: } | U45: / | V45: = | W45: / | X45: , | Y45: = | Z45: , | BE45: q | BH45: s | BK45: d | BN45: f | BQ45: g | BT45: h | BW45: j | BZ45: k | CC45: l | CF45: m | CI45: ù | CL45: *
C46: = | E46: | | F46: = | G46: | | H46: _ | I46: = | J46: _ | L46: = | P46: = | R46: | | S46: = | T46: | | U46: _ | V46: = | W46: _ | Y46: = | AD46: Windings 2 | AE46: Ë | AF46: 0 | AG46: Ì | AH46: 0 | AI46: Í | AJ46: 0 | AK46: Î | AL46: 0 | AM46: Ï | AN46: 0 | AO46: Ñ | AP46: 0 | AQ46: Ô | AR46: 0 | AS46: Ö | AT46: 0 | AU46: × | AV46: 0 | AW46: Ø | AX46: 0 | AY46: Ù | AZ46: 0 | BA46: Û
BD47: Webdings | BE47: Q | BH47: S | BK47: D | BN47: F | BQ47: G | BT47: H | BW47: J | BZ47: K | CC47: L | CF47: M | CI47: % | CL47: µ
AD48: Windgings 3 | AE48: Ë | AF48: 0 | AG48: Ì | AH48: 0 | AI48: Í | AJ48: 0 | AK48: Î | AL48: 0 | AM48: Ï | AN48: 0 | AO48: Ñ | AP48: 0 | AQ48: Ô | AR48: 0 | AS48: Ö | AT48: 0 | AU48: × | AV48: 0 | AW48: Ø | AX48: 0 | AY48: Ù | AZ48: 0 | BA48: Û | BE48: q | BH48: s | BK48: d | BN48: f | BQ48: g | BT48: h | BW48: j | BZ48: k | CC48: l | CF48: m | CI48: ù | CL48: *
B50: Saisir lettre ou nombre | D50: Correspondance | E50: Police Wending 3 | O50: Saisir lettre ou nombre | Q50: Correspondance | R50: Police Webdings | AD50: ABSENT DU CLAVIER | BD50: Windgings | BE50: Q | BH50: S | BK50: D | BN50: F | BQ50: G | BT50: H | BW50: J | BZ50: K | CC50: L | CF50: M | CI50: % | CL50: µ
B51: Aa | C51: = | D51: =B51 -> Aa | E51: Copiez / collez le symbole sur votre document ou faites un imprim'écran | O51: Aa | P51: = | Q51: =O51 -> Aa | R51: Copiez / collez le symbole sur votre document ou faites un imprim'écran | AD51: Raccourcis | AE51: Alt + 0220 | AG51: Alt + 0223 | AI51: Alt + 0230 | AK51: Alt + 0237 | AM51: Alt + 0247 | AO51: Alt + 0140 | AQ51: Alt + 0156 | AS51: Alt + 11 | AU51: Alt + 12 | AW51: Alt + 13 | AY51: Alt + 14 | BA51: Alt + 6 | BE51: q | BH51: s | BK51: d | BN51: f | BQ51: g | BT51: h | BW51: j | BZ51: k | CC51: l | CF51: m | CI51: ù | CL51: *
B53: Majuscules | C53: correspondance | E53: Minuscules | F53: correspondance | H53: Chiffres | I53: correspondance | K53: nombres | L53: correspondance | O53: Majuscules | P53: correspondance | R53: Minuscules | S53: correspondance | U53: Chiffres | V53: correspondance | X53: nombres | Y53: correspondance | AD53: Arial | AE53: Ü | AG53: ß | AI53: æ | AK53: í | AM53: ÷ | AO53: Œ | AQ53: œ | AS53: ♂ | AU53: ♀ | AW53: ♪ | AY53: ♫ | BA53: ♠ | BD53: Windgings 2 | BE53: Q | BH53: S | BK53: D | BN53: F | BQ53: G | BT53: H | BW53: J | BZ53: K | CC53: L | CF53: M | CI53: % | CL53: µ
B54: A | C54: = | D54: A | E54: a | F54: = | G54: a | H54: 1 | I54: = | J54: 1 | K54: 27 | L54: = | M54: 27 | O54: A | P54: = | Q54: A | R54: a | S54: = | T54: a | U54: 1 | V54: = | W54: 1 | X54: 27 | Y54: = | Z54: 27 | BE54: q | BH54: s | BK54: d | BN54: f | BQ54: g | BT54: h | BW54: j | BZ54: k | CC54: l | CF54: m | CI54: ù | CL54: *
B55: B | C55: = | D55: B | E55: b | F55: = | G55: b | H55: 2 | I55: = | J55: 2 | K55: 28 | L55: = | M55: 28 | O55: B | P55: = | Q55: B | R55: b | S55: = | T55: b | U55: 2 | V55: = | W55: 2 | X55: 28 | Y55: = | Z55: 28 | AD55: Webdings | AE55: Ü | AF55: 0 | AG55: ß | AH55: 0 | AI55: æ | AJ55: 0 | AK55: í | AL55: 0 | AM55: ÷ | AN55: 0 | AO55: Œ | AP55: 0 | AQ55: œ | AR55: 0 | AS55: ♂ | AT55: 0 | AU55: ♀ | AV55: 0 | AW55: ♪ | AX55: 0 | AY55: ♫ | AZ55: 0 | BA55: ♠
B56: C | C56: = | D56: C | E56: c | F56: = | G56: c | H56: 3 | I56: = | J56: 3 | K56: 29 | L56: = | M56: 29 | O56: C | P56: = | Q56: C | R56: c | S56: = | T56: c | U56: 3 | V56: = | W56: 3 | X56: 29 | Y56: = | Z56: 29 | BD56: Windgings 3 | BE56: Q | BH56: S | BK56: D | BN56: F | BQ56: G | BT56: H | BW56: J | BZ56: K | CC56: L | CF56: M | CI56: % | CL56: µ
B57: D | C57: = | D57: D | E57: d | F57: = | G57: d | H57: 4 | I57: = | J57: 4 | K57: 30 | L57: = | M57: 30 | O57: D | P57: = | Q57: D | R57: d | S57: = | T57: d | U57: 4 | V57: = | W57: 4 | X57: 30 | Y57: = | Z57: 30 | AD57: Windgins | AE57: Ü | AF57: 0 | AG57: ß | AH57: 0 | AI57: æ | AJ57: 0 | AK57: í | AL57: 0 | AM57: ÷ | AN57: 0 | AO57: Œ | AP57: 0 | AQ57: œ | AR57: 0 | AS57: ♂ | AT57: 0 | AU57: ♀ | AV57: 0 | AW57: ♪ | AX57: 0 | AY57: ♫ | AZ57: 0 | BA57: ♠ | BE57: q | BH57: s | BK57: d | BN57: f | BQ57: g | BT57: h | BW57: j | BZ57: k | CC57: l | CF57: m | CI57: ù | CL57: *
B58: E | C58: = | D58: E | E58: e | F58: = | G58: e | H58: 5 | I58: = | J58: 5 | K58: 31 | L58: = | M58: 31 | O58: E | P58: = | Q58: E | R58: e | S58: = | T58: e | U58: 5 | V58: = | W58: 5 | X58: 31 | Y58: = | Z58: 31
B59: F | C59: = | D59: F | E59: f | F59: = | G59: f | H59: 6 | I59: = | J59: 6 | K59: 32 | L59: = | M59: 32 | O59: F | P59: = | Q59: F | R59: f | S59: = | T59: f | U59: 6 | V59: = | W59: 6 | X59: 32 | Y59: = | Z59: 32 | AD59: Windings 2 | AE59: Ü | AF59: 0 | AG59: ß | AH59: 0 | AI59: æ | AJ59: 0 | AK59: í | AL59: 0 | AM59: ÷ | AN59: 0 | AO59: Œ | AP59: 0 | AQ59: œ | AR59: 0 | AS59: ♂ | AT59: 0 | AU59: ♀ | AV59: 0 | AW59: ♪ | AX59: 0 | AY59: ♫ | AZ59: 0 | BA59: ♠ | BE59: QUATRIÈME RANGÉE
B60: G | C60: = | D60: G | E60: g | F60: = | G60: g | H60: 7 | I60: = | J60: 7 | K60: 33 | L60: = | M60: 33 | O60: G | P60: = | Q60: G | R60: g | S60: = | T60: g | U60: 7 | V60: = | W60: 7 | X60: 33 | Y60: = | Z60: 33 | BD60: Arial Narrow | BE60: < | BH60: W | BK60: X | BN60: C | BQ60: V | BT60: B | BW60: N | BZ60: ? | CC60: . | CF60: / | CI60: §
B61: H | C61: = | D61: H | E61: h | F61: = | G61: h | H61: 8 | I61: = | J61: 8 | K61: 34 | L61: = | M61: 34 | O61: H | P61: = | Q61: H | R61: h | S61: = | T61: h | U61: 8 | V61: = | W61: 8 | X61: 34 | Y61: = | Z61: 34 | AD61: Windgings 3 | AE61: Ü | AF61: 0 | AG61: ß | AH61: 0 | AI61: æ | AJ61: 0 | AK61: í | AL61: 0 | AM61: ÷ | AN61: 0 | AO61: Œ | AP61: 0 | AQ61: œ | AR61: 0 | AS61: ♂ | AT61: 0 | AU61: ♀ | AV61: 0 | AW61: ♪ | AX61: 0 | AY61: ♫ | AZ61: 0 | BA61: ♠ | BE61: < | BH61: w | BK61: x | BN61: c | BQ61: v | BT61: b | BW61: n | BZ61: , | CC61: ; | CF61: : | CI61: !
B62: I | C62: = | D62: I | E62: i | F62: = | G62: i | H62: 9 | I62: = | J62: 9 | K62: 35 | L62: = | M62: 35 | O62: I | P62: = | Q62: I | R62: i | S62: = | T62: i | U62: 9 | V62: = | W62: 9 | X62: 35 | Y62: = | Z62: 35
B63: J | C63: = | D63: J | E63: j | F63: = | G63: j | H63: 10 | I63: = | J63: 10 | K63: 36 | L63: = | M63: 36 | O63: J | P63: = | Q63: J | R63: j | S63: = | T63: j | U63: 10 | V63: = | W63: 10 | X63: 36 | Y63: = | Z63: 36 | AE63: Pour la couleur de numérotation cliquez sur Couleur de police et choisissez la couleur qui vous convient | BD63: Webdings | BE63: < | BH63: W | BK63: X | BN63: C | BQ63: V | BT63: B | BW63: N | BZ63: ? | CC63: . | CF63: / | CI63: §
B64: K | C64: = | D64: K | E64: k | F64: = | G64: k | H64: 11 | I64: = | J64: 11 | K64: 37 | L64: = | M64: 37 | O64: K | P64: = | Q64: K | R64: k | S64: = | T64: k | U64: 11 | V64: = | W64: 11 | X64: 37 | Y64: = | Z64: 37 | BE64: < | BH64: w | BK64: x | BN64: c | BQ64: v | BT64: b | BW64: n | BZ64: , | CC64: ; | CF64: : | CI64: !
B65: L | C65: = | D65: L | E65: l | F65: = | G65: l | H65: 12 | I65: = | J65: 12 | K65: 38 | L65: = | M65: 38 | O65: L | P65: = | Q65: L | R65: l | S65: = | T65: l | U65: 12 | V65: = | W65: 12 | X65: 38 | Y65: = | Z65: 38
B66: M | C66: = | D66: M | E66: m | F66: = | G66: m | H66: 13 | I66: = | J66: 13 | K66: 39 | L66: = | M66: 39 | O66: M | P66: = | Q66: M | R66: m | S66: = | T66: m | U66: 13 | V66: = | W66: 13 | X66: 39 | Y66: = | Z66: 39 | AE66: Polices de caractèes utilisées : ARIAL et CALIBRI en fonction de la largeur de colonne | AS66: ARIAL | AU66: CALIBRI | BD66: Windgings | BE66: < | BH66: W | BK66: X | BN66: C | BQ66: V | BT66: B | BW66: N | BZ66: ? | CC66: . | CF66: / | CI66: §
B67: N | C67: = | D67: N | E67: n | F67: = | G67: n | H67: 14 | I67: = | J67: 14 | K67: 40 | L67: = | M67: 40 | O67: N | P67: = | Q67: N | R67: n | S67: = | T67: n | U67: 14 | V67: = | W67: 14 | X67: 40 | Y67: = | Z67: 40 | AS67: arial | AU67: calibri | BE67: < | BH67: w | BK67: x | BN67: c | BQ67: v | BT67: b | BW67: n | BZ67: , | CC67: ; | CF67: : | CI67: !
B68: O | C68: = | D68: O | E68: o | F68: = | G68: o | H68: 15 | I68: = | J68: 15 | K68: 41 | L68: = | M68: 41 | O68: O | P68: = | Q68: O | R68: o | S68: = | T68: o | U68: 15 | V68: = | W68: 15 | X68: 41 | Y68: = | Z68: 41
B69: P | C69: = | D69: P | E69: p | F69: = | G69: p | H69: 16 | I69: = | J69: 16 | K69: 42 | L69: = | M69: 42 | O69: P | P69: = | Q69: P | R69: p | S69: = | T69: p | U69: 16 | V69: = | W69: 16 | X69: 42 | Y69: = | Z69: 42 | BD69: Windgings 2 | BE69: < | BH69: W | BK69: X | BN69: C | BQ69: V | BT69: B | BW69: N | BZ69: ? | CC69: . | CF69: / | CI69: §
B70: Q | C70: = | D70: Q | E70: q | F70: = | G70: q | H70: 17 | I70: = | J70: 17 | K70: 43 | L70: = | M70: 43 | O70: Q | P70: = | Q70: Q | R70: q | S70: = | T70: q | U70: 17 | V70: = | W70: 17 | X70: 43 | Y70: = | Z70: 43 | AG70: Copiez / Collez les N° dans vos fiches | BE70: < | BH70: w | BK70: x | BN70: c | BQ70: v | BT70: b | BW70: n | BZ70: , | CC70: ; | CF70: : | CI70: !
B71: R | C71: = | D71: R | E71: r | F71: = | G71: r | H71: 18 | I71: = | J71: 18 | K71: 44 | L71: = | M71: 44 | O71: R | P71: = | Q71: R | R71: r | S71: = | T71: r | U71: 18 | V71: = | W71: 18 | X71: 44 | Y71: = | Z71: 44
B72: S | C72: = | D72: S | E72: s | F72: = | G72: s | H72: 19 | I72: = | J72: 19 | K72: 45 | L72: = | M72: 45 | O72: S | P72: = | Q72: S | R72: s | S72: = | T72: s | U72: 19 | V72: = | W72: 19 | X72: 45 | Y72: = | Z72: 45 | AG72: ❶ | AI72: ① | AK72: ❶ | AM72: ① | AO72: ① | AQ72: ❶ | AS72: ❶ | AU72: ❶ | BD72: Windgings 3 | BE72: < | BH72: W | BK72: X | BN72: C | BQ72: V | BT72: B | BW72: N | BZ72: ? | CC72: . | CF72: / | CI72: §
B73: T | C73: = | D73: T | E73: t | F73: = | G73: t | H73: 20 | I73: = | J73: 20 | K73: 46 | L73: = | M73: 46 | O73: T | P73: = | Q73: T | R73: t | S73: = | T73: t | U73: 20 | V73: = | W73: 20 | X73: 46 | Y73: = | Z73: 46 | AG73: ❷ | AI73: ③ | AK73: ❷ | AM73: ② | AO73: ③ | AQ73: ❷ | AS73: ❷ | AU73: ❷ | BE73: < | BH73: w | BK73: x | BN73: c | BQ73: v | BT73: b | BW73: n | BZ73: , | CC73: ; | CF73: : | CI73: !
B74: U | C74: = | D74: U | E74: u | F74: = | G74: u | H74: 21 | I74: = | J74: 21 | K74: 47 | L74: = | M74: 47 | O74: U | P74: = | Q74: U | R74: u | S74: = | T74: u | U74: 21 | V74: = | W74: 21 | X74: 47 | Y74: = | Z74: 47 | AG74: ❸ | AI74: ② | AK74: ❸ | AM74: ③ | AQ74: ❸ | AS74: ❸ | AU74: ❸
B75: V | C75: = | D75: V | E75: v | F75: = | G75: v | H75: 22 | I75: = | J75: 22 | K75: 48 | L75: = | M75: 48 | O75: V | P75: = | Q75: V | R75: v | S75: = | T75: v | U75: 22 | V75: = | W75: 22 | X75: 48 | Y75: = | Z75: 48 | AG75: ❹ | AI75: ④ | AK75: ❹ | AM75: ④ | AO75: ② | AQ75: ❹ | AS75: ❹ | AU75: ❹
B76: W | C76: = | D76: W | E76: w | F76: = | G76: w | H76: 23 | I76: = | J76: 23 | K76: 49 | L76: = | M76: 49 | O76: W | P76: = | Q76: W | R76: w | S76: = | T76: w | U76: 23 | V76: = | W76: 23 | X76: 49 | Y76: = | Z76: 49 | AG76: ❺ | AI76: ⑤ | AK76: ❺ | AM76: ⑤ | AO76: ④ | AQ76: ❺ | AS76: ❺ | AU76: ❺
B77: X | C77: = | D77: X | E77: x | F77: = | G77: x | H77: 24 | I77: = | J77: 24 | K77: 50 | L77: = | M77: 50 | O77: X | P77: = | Q77: X | R77: x | S77: = | T77: x | U77: 24 | V77: = | W77: 24 | X77: 50 | Y77: = | Z77: 50 | AG77: ❻ | AI77: ⑥ | AK77: ❻ | AM77: ⑥ | AO77: ⑤ | AQ77: ❻ | AS77: ❻ | AU77: ❻
B78: Y | C78: = | D78: Y | E78: y | F78: = | G78: y | H78: 25 | I78: = | J78: 25 | K78: 51 | L78: = | M78: 51 | O78: Y | P78: = | Q78: Y | R78: y | S78: = | T78: y | U78: 25 | V78: = | W78: 25 | X78: 51 | Y78: = | Z78: 51 | AG78: ❼ | AI78: ⑦ | AK78: ❼ | AM78: ⑦ | AO78: ⑥ | AQ78: ❼ | AS78: ❼ | AU78: ❼
B79: Z | C79: = | D79: Z | E79: z | F79: = | G79: z | H79: 26 | I79: = | J79: 26 | K79: 52 | L79: = | M79: 52 | O79: Z | P79: = | Q79: Z | R79: z | S79: = | T79: z | U79: 26 | V79: = | W79: 26 | X79: 52 | Y79: = | Z79: 52 | AG79: ❽ | AI79: ⑧ | AK79: ❽ | AM79: ⑧ | AO79: ⑦ | AQ79: ❽ | AS79: ❽ | AU79: ❽
B80: & | C80: = | D80: & | E80: % | F80: = | G80: % | H80: £ | I80: = | J80: £ | K80: ; | L80: = | M80: ; | O80: & | P80: = | Q80: & | R80: % | S80: = | T80: % | U80: £ | V80: = | W80: £ | X80: ; | Y80: = | Z80: ; | AG80: ❾ | AI80: ⑨ | AK80: ❾ | AM80: ⑨ | AO80: ⑧ | AQ80: ❾ | AS80: ❾ | AU80: ❾
B81: é | C81: = | D81: é | E81: # | F81: = | G81: # | H81: @ | I81: = | J81: @ | K81: : | L81: = | M81: : | O81: é | P81: = | Q81: é | R81: # | S81: = | T81: # | U81: @ | V81: = | W81: @ | X81: : | Y81: = | Z81: : | AG81: ❿ | AI81: ⑩ | AK81: ❿ | AM81: ⑩ | AO81: ⑨ | AQ81: ❿ | AS81: ❿ | AU81: ❿
B82: è | C82: = | D82: è | E82: ( | F82: = | G82: ( | H82: ! | I82: = | J82: ! | K82: - | L82: = | M82: - | O82: è | P82: = | Q82: è | R82: ( | S82: = | T82: ( | U82: ! | V82: = | W82: ! | X82: - | Y82: = | Z82: - | AG82: ⓫ | AI82: ⑪ | AK82: ⓫ | AM82: ⑪ | AQ82: ⓫ | AS82: ⓫ | AU82: ⓫
B83: ù | C83: = | D83: ù | E83: ) | F83: = | G83: ) | H83: ? | I83: = | J83: ? | K83: . | L83: = | M83: . | O83: ù | P83: = | Q83: ù | R83: ) | S83: = | T83: ) | U83: ? | V83: = | W83: ? | X83: . | Y83: = | Z83: . | AG83: ⓬ | AI83: ⑫ | AK83: ⓬ | AM83: ⑫ | AQ83: ⓬ | AS83: ⓬ | AU83: ⓬
B84: ç | C84: = | D84: ç | E84: [ | F84: = | G84: [ | H84: > | I84: = | J84: > | K84: ~ | L84: = | M84: ~ | O84: ç | P84: = | Q84: ç | R84: [ | S84: = | T84: [ | U84: > | V84: = | W84: > | X84: ~ | Y84: = | Z84: ~ | AG84: ⓭ | AI84: ⑬ | AK84: ⓭ | AM84: ⑬ | AQ84: ⓭ | AS84: ⓭ | AU84: ⓭
B85: à | C85: = | D85: à | E85: ] | F85: = | G85: ] | H85: < | I85: = | J85: < | K85: " | L85: = | M85: " | O85: à | P85: = | Q85: à | R85: ] | S85: = | T85: ] | U85: < | V85: = | W85: < | X85: " | Y85: = | Z85: " | AG85: ⓮ | AI85: ⑭ | AK85: ⓮ | AM85: ⑭ | AQ85: ⓮ | AS85: ⓮ | AU85: ⓮
B86: µ | C86: = | D86: µ | E86: { | F86: = | G86: { | H86: \ | I86: = | J86: \ | K86: * | L86: = | M86: * | O86: µ | P86: = | Q86: µ | R86: { | S86: = | T86: { | U86: \ | V86: = | W86: \ | X86: * | Y86: = | Z86: * | AG86: ⓯ | AI86: ⑮ | AK86: ⓯ | AM86: ⑮ | AQ86: ⓯ | AS86: ⓯ | AU86: ⓯
B87: § | C87: = | D87: § | E87: } | F87: = | G87: } | H87: / | I87: = | J87: / | K87: , | L87: = | M87: , | O87: § | P87: = | Q87: § | R87: } | S87: = | T87: } | U87: / | V87: = | W87: / | X87: , | Y87: = | Z87: , | AG87: ⓰ | AI87: ⑯ | AK87: ⓰ | AM87: ⑯ | AQ87: ⓰ | AS87: ⓰ | AU87: ⓰
C88: = | E88: | | F88: = | G88: | | H88: _ | I88: = | J88: _ | L88: = | P88: = | R88: | | S88: = | T88: | | U88: _ | V88: = | W88: _ | Y88: = | AG88: ⓱ | AI88: ⑰ | AK88: ⓱ | AM88: ⑰ | AQ88: ⓱ | AS88: ⓱ | AU88: ⓱
AG89: ⓲ | AI89: ⑱ | AK89: ⓲ | AM89: ⑱ | AQ89: ⓲ | AS89: ⓲ | AU89: ⓲
AG90: ⓳ | AI90: ⑲ | AK90: ⓳ | AM90: ⑲ | AQ90: ⓳ | AS90: ⓳ | AU90: ⓳
AG91: ⓴ | AI91: ⑳ | AK91: ⓴ | AQ91: ⓴ | AS91: ⓴ | AU91: ⓴
B92: Saisir lettre ou nombre | D92: Correspondance | E92: Police ZDingbats | O92: Saisir lettre ou nombre | Q92: Correspondance | R92: Police Marlett
B93: Aa | C93: = | D93: =B93 -> Aa | E93: Pour reproduire la police de caractère vous pouvez utiliser le pinceau | O93: Aa | P93: = | Q93: =O93 -> Aa | R93: Copiez / collez le symbole sur votre document ou faites un imprim'écran
B95: Majuscules | C95: correspondance | E95: Minuscules | F95: correspondance | H95: Chiffres | I95: correspondance | K95: nombres | L95: correspondance | O95: Majuscules | P95: correspondance | R95: Minuscules | S95: correspondance | U95: Chiffres | V95: correspondance | X95: nombres | Y95: correspondance
B96: A | C96: = | D96: A | E96: a | F96: = | G96: a | H96: 1 | I96: = | J96: 1 | K96: 27 | L96: = | M96: 27 | O96: A | P96: = | Q96: A | R96: a | S96: = | T96: a | U96: 1 | V96: = | W96: 1 | X96: 27 | Y96: = | Z96: 27
B97: B | C97: = | D97: B | E97: b | F97: = | G97: b | H97: 2 | I97: = | J97: 2 | K97: 28 | L97: = | M97: 28 | O97: B | P97: = | Q97: B | R97: b | S97: = | T97: b | U97: 2 | V97: = | W97: 2 | X97: 28 | Y97: = | Z97: 28
B98: C | C98: = | D98: C | E98: c | F98: = | G98: c | H98: 3 | I98: = | J98: 3 | K98: 29 | L98: = | M98: 29 | O98: C | P98: = | Q98: C | R98: c | S98: = | T98: c | U98: 3 | V98: = | W98: 3 | X98: 29 | Y98: = | Z98: 29
B99: D | C99: = | D99: D | E99: d | F99: = | G99: d | H99: 4 | I99: = | J99: 4 | K99: 30 | L99: = | M99: 30 | O99: D | P99: = | Q99: D | R99: d | S99: = | T99: d | U99: 4 | V99: = | W99: 4 | X99: 30 | Y99: = | Z99: 30
B100: E | C100: = | D100: E | E100: e | F100: = | G100: e | H100: 5 | I100: = | J100: 5 | K100: 31 | L100: = | M100: 31 | O100: E | P100: = | Q100: E | R100: e | S100: = | T100: e | U100: 5 | V100: = | W100: 5 | X100: 31 | Y100: = | Z100: 31
B101: F | C101: = | D101: F | E101: f | F101: = | G101: f | H101: 6 | I101: = | J101: 6 | K101: 32 | L101: = | M101: 32 | O101: F | P101: = | Q101: F | R101: f | S101: = | T101: f | U101: 6 | V101: = | W101: 6 | X101: 32 | Y101: = | Z101: 32
B102: G | C102: = | D102: G | E102: g | F102: = | G102: g | H102: 7 | I102: = | J102: 7 | K102: 33 | L102: = | M102: 33 | O102: G | P102: = | Q102: G | R102: g | S102: = | T102: g | U102: 7 | V102: = | W102: 7 | X102: 33 | Y102: = | Z102: 33
B103: H | C103: = | D103: H | E103: h | F103: = | G103: h | H103: 8 | I103: = | J103: 8 | K103: 34 | L103: = | M103: 34 | O103: H | P103: = | Q103: H | R103: h | S103: = | T103: h | U103: 8 | V103: = | W103: 8 | X103: 34 | Y103: = | Z103: 34
B104: I | C104: = | D104: I | E104: i | F104: = | G104: i | H104: 9 | I104: = | J104: 9 | K104: 35 | L104: = | M104: 35 | O104: I | P104: = | Q104: I | R104: i | S104: = | T104: i | U104: 9 | V104: = | W104: 9 | X104: 35 | Y104: = | Z104: 35
B105: J | C105: = | D105: J | E105: j | F105: = | G105: j | H105: 10 | I105: = | J105: 10 | K105: 36 | L105: = | M105: 36 | O105: J | P105: = | Q105: J | R105: j | S105: = | T105: j | U105: 10 | V105: = | W105: 10 | X105: 36 | Y105: = | Z105: 36
B106: K | C106: = | D106: K | E106: k | F106: = | G106: k | H106: 11 | I106: = | J106: 11 | K106: 37 | L106: = | M106: 37 | O106: K | P106: = | Q106: K | R106: k | S106: = | T106: k | U106: 11 | V106: = | W106: 11 | X106: 37 | Y106: = | Z106: 37
B107: L | C107: = | D107: L | E107: l | F107: = | G107: l | H107: 12 | I107: = | J107: 12 | K107: 38 | L107: = | M107: 38 | O107: L | P107: = | Q107: L | R107: l | S107: = | T107: l | U107: 12 | V107: = | W107: 12 | X107: 38 | Y107: = | Z107: 38
B108: M | C108: = | D108: M | E108: m | F108: = | G108: m | H108: 13 | I108: = | J108: 13 | K108: 39 | L108: = | M108: 39 | O108: M | P108: = | Q108: M | R108: m | S108: = | T108: m | U108: 13 | V108: = | W108: 13 | X108: 39 | Y108: = | Z108: 39
B109: N | C109: = | D109: N | E109: n | F109: = | G109: n | H109: 14 | I109: = | J109: 14 | K109: 40 | L109: = | M109: 40 | O109: N | P109: = | Q109: N | R109: n | S109: = | T109: n | U109: 14 | V109: = | W109: 14 | X109: 40 | Y109: = | Z109: 40
B110: O | C110: = | D110: O | E110: o | F110: = | G110: o | H110: 15 | I110: = | J110: 15 | K110: 41 | L110: = | M110: 41 | O110: O | P110: = | Q110: O | R110: o | S110: = | T110: o | U110: 15 | V110: = | W110: 15 | X110: 41 | Y110: = | Z110: 41
B111: P | C111: = | D111: P | E111: p | F111: = | G111: p | H111: 16 | I111: = | J111: 16 | K111: 42 | L111: = | M111: 42 | O111: P | P111: = | Q111: P | R111: p | S111: = | T111: p | U111: 16 | V111: = | W111: 16 | X111: 42 | Y111: = | Z111: 42
B112: Q | C112: = | D112: Q | E112: q | F112: = | G112: q | H112: 17 | I112: = | J112: 17 | K112: 43 | L112: = | M112: 43 | O112: Q | P112: = | Q112: Q | R112: q | S112: = | T112: q | U112: 17 | V112: = | W112: 17 | X112: 43 | Y112: = | Z112: 43
B113: R | C113: = | D113: R | E113: r | F113: = | G113: r | H113: 18 | I113: = | J113: 18 | K113: 44 | L113: = | M113: 44 | O113: R | P113: = | Q113: R | R113: r | S113: = | T113: r | U113: 18 | V113: = | W113: 18 | X113: 44 | Y113: = | Z113: 44
B114: S | C114: = | D114: S | E114: s | F114: = | G114: s | H114: 19 | I114: = | J114: 19 | K114: 45 | L114: = | M114: 45 | O114: S | P114: = | Q114: S | R114: s | S114: = | T114: s | U114: 19 | V114: = | W114: 19 | X114: 45 | Y114: = | Z114: 45
B115: T | C115: = | D115: T | E115: t | F115: = | G115: t | H115: 20 | I115: = | J115: 20 | K115: 46 | L115: = | M115: 46 | O115: T | P115: = | Q115: T | R115: t | S115: = | T115: t | U115: 20 | V115: = | W115: 20 | X115: 46 | Y115: = | Z115: 46
B116: U | C116: = | D116: U | E116: u | F116: = | G116: u | H116: 21 | I116: = | J116: 21 | K116: 47 | L116: = | M116: 47 | O116: U | P116: = | Q116: U | R116: u | S116: = | T116: u | U116: 21 | V116: = | W116: 21 | X116: 47 | Y116: = | Z116: 47
B117: V | C117: = | D117: V | E117: v | F117: = | G117: v | H117: 22 | I117: = | J117: 22 | K117: 48 | L117: = | M117: 48 | O117: V | P117: = | Q117: V | R117: v | S117: = | T117: v | U117: 22 | V117: = | W117: 22 | X117: 48 | Y117: = | Z117: 48
B118: W | C118: = | D118: W | E118: w | F118: = | G118: w | H118: 23 | I118: = | J118: 23 | K118: 49 | L118: = | M118: 49 | O118: W | P118: = | Q118: W | R118: w | S118: = | T118: w | U118: 23 | V118: = | W118: 23 | X118: 49 | Y118: = | Z118: 49
B119: X | C119: = | D119: X | E119: x | F119: = | G119: x | H119: 24 | I119: = | J119: 24 | K119: 50 | L119: = | M119: 50 | O119: X | P119: = | Q119: X | R119: x | S119: = | T119: x | U119: 24 | V119: = | W119: 24 | X119: 50 | Y119: = | Z119: 50
B120: Y | C120: = | D120: Y | E120: y | F120: = | G120: y | H120: 25 | I120: = | J120: 25 | K120: 51 | L120: = | M120: 51 | O120: Y | P120: = | Q120: Y | R120: y | S120: = | T120: y | U120: 25 | V120: = | W120: 25 | X120: 51 | Y120: = | Z120: 51
B121: Z | C121: = | D121: Z | E121: z | F121: = | G121: z | H121: 26 | I121: = | J121: 26 | K121: 52 | L121: = | M121: 52 | O121: Z | P121: = | Q121: Z | R121: z | S121: = | T121: z | U121: 26 | V121: = | W121: 26 | X121: 52 | Y121: = | Z121: 52
B122: & | C122: = | D122: & | E122: % | F122: = | G122: % | H122: £ | I122: = | J122: £ | K122: ; | L122: = | M122: ; | O122: & | P122: = | Q122: & | R122: % | S122: = | T122: % | U122: £ | V122: = | W122: £ | X122: ; | Y122: = | Z122: ;
B123: é | C123: = | D123: é | E123: # | F123: = | G123: # | H123: @ | I123: = | J123: @ | K123: : | L123: = | M123: : | O123: é | P123: = | Q123: é | R123: # | S123: = | T123: # | U123: @ | V123: = | W123: @ | X123: : | Y123: = | Z123: :
B124: è | C124: = | D124: è | E124: ( | F124: = | G124: ( | H124: ! | I124: = | J124: ! | K124: - | L124: = | M124: - | O124: è | P124: = | Q124: è | R124: ( | S124: = | T124: ( | U124: ! | V124: = | W124: ! | X124: - | Y124: = | Z124: -
B125: ù | C125: = | D125: ù | E125: ) | F125: = | G125: ) | H125: ? | I125: = | J125: ? | K125: . | L125: = | M125: . | O125: ù | P125: = | Q125: ù | R125: ) | S125: = | T125: ) | U125: ? | V125: = | W125: ? | X125: . | Y125: = | Z125: .
B126: ç | C126: = | D126: ç | E126: [ | F126: = | G126: [ | H126: > | I126: = | J126: > | K126: ~ | L126: = | M126: ~ | O126: ç | P126: = | Q126: ç | R126: [ | S126: = | T126: [ | U126: > | V126: = | W126: > | X126: ~ | Y126: = | Z126: ~
B127: à | C127: = | D127: à | E127: ] | F127: = | G127: ] | H127: < | I127: = | J127: < | K127: " | L127: = | M127: " | O127: à | P127: = | Q127: à | R127: ] | S127: = | T127: ] | U127: < | V127: = | W127: < | X127: " | Y127: = | Z127: "
B128: µ | C128: = | D128: µ | E128: { | F128: = | G128: { | H128: \ | I128: = | J128: \ | K128: * | L128: = | M128: * | O128: µ | P128: = | Q128: µ | R128: { | S128: = | T128: { | U128: \ | V128: = | W128: \ | X128: * | Y128: = | Z128: *
B129: § | C129: = | D129: § | E129: } | F129: = | G129: } | H129: / | I129: = | J129: / | K129: , | L129: = | M129: , | O129: § | P129: = | Q129: § | R129: } | S129: = | T129: } | U129: / | V129: = | W129: / | X129: , | Y129: = | Z129: ,
C130: = | E130: | | F130: = | G130: | | H130: _ | I130: = | J130: _ | L130: = | P130: = | R130: | | S130: = | T130: | | U130: _ | V130: = | W130: _ | Y130: =
B134: Saisir lettre ou nombre | D134: Correspondance | E134: Police MT Extra | O134: Saisir lettre ou nombre | Q134: Correspondance | R134: Police Symbol
B135: Aa | C135: = | D135: =B135 -> Aa | E135: Copiez / collez le symbole sur votre document ou faites un imprim'écran | O135: Aa | P135: = | Q135: =O135 -> Aa | R135: Copiez / collez le symbole sur votre document ou faites un imprim'écran
B137: Majuscules | C137: correspondance | E137: Minuscules | F137: correspondance | H137: Chiffres | I137: correspondance | K137: nombres | L137: correspondance | O137: Majuscules | P137: correspondance | R137: Minuscules | S137: correspondance | U137: Chiffres | V137: correspondance | X137: nombres | Y137: correspondance
B138: A | C138: = | D138: A | E138: a | F138: = | G138: a | H138: 1 | I138: = | J138: 1 | K138: 27 | L138: = | M138: 27 | O138: A | P138: = | Q138: A | R138: a | S138: = | T138: a | U138: 1 | V138: = | W138: 1 | X138: 27 | Y138: = | Z138: 27
B139: B | C139: = | D139: B | E139: b | F139: = | G139: b | H139: 2 | I139: = | J139: 2 | K139: 28 | L139: = | M139: 28 | O139: B | P139: = | Q139: B | R139: b | S139: = | T139: b | U139: 2 | V139: = | W139: 2 | X139: 28 | Y139: = | Z139: 28
B140: C | C140: = | D140: C | E140: c | F140: = | G140: c | H140: 3 | I140: = | J140: 3 | K140: 29 | L140: = | M140: 29 | O140: C | P140: = | Q140: C | R140: c | S140: = | T140: c | U140: 3 | V140: = | W140: 3 | X140: 29 | Y140: = | Z140: 29
B141: D | C141: = | D141: D | E141: d | F141: = | G141: d | H141: 4 | I141: = | J141: 4 | K141: 30 | L141: = | M141: 30 | O141: D | P141: = | Q141: D | R141: d | S141: = | T141: d | U141: 4 | V141: = | W141: 4 | X141: 30 | Y141: = | Z141: 30
B142: E | C142: = | D142: E | E142: e | F142: = | G142: e | H142: 5 | I142: = | J142: 5 | K142: 31 | L142: = | M142: 31 | O142: E | P142: = | Q142: E | R142: e | S142: = | T142: e | U142: 5 | V142: = | W142: 5 | X142: 31 | Y142: = | Z142: 31
B143: F | C143: = | D143: F | E143: f | F143: = | G143: f | H143: 6 | I143: = | J143: 6 | K143: 32 | L143: = | M143: 32 | O143: F | P143: = | Q143: F | R143: f | S143: = | T143: f | U143: 6 | V143: = | W143: 6 | X143: 32 | Y143: = | Z143: 32
B144: G | C144: = | D144: G | E144: g | F144: = | G144: g | H144: 7 | I144: = | J144: 7 | K144: 33 | L144: = | M144: 33 | O144: G | P144: = | Q144: G | R144: g | S144: = | T144: g | U144: 7 | V144: = | W144: 7 | X144: 33 | Y144: = | Z144: 33
B145: H | C145: = | D145: H | E145: h | F145: = | G145: h | H145: 8 | I145: = | J145: 8 | K145: 34 | L145: = | M145: 34 | O145: H | P145: = | Q145: H | R145: h | S145: = | T145: h | U145: 8 | V145: = | W145: 8 | X145: 34 | Y145: = | Z145: 34
B146: I | C146: = | D146: I | E146: i | F146: = | G146: i | H146: 9 | I146: = | J146: 9 | K146: 35 | L146: = | M146: 35 | O146: I | P146: = | Q146: I | R146: i | S146: = | T146: i | U146: 9 | V146: = | W146: 9 | X146: 35 | Y146: = | Z146: 35
B147: J | C147: = | D147: J | E147: j | F147: = | G147: j | H147: 10 | I147: = | J147: 10 | K147: 36 | L147: = | M147: 36 | O147: J | P147: = | Q147: J | R147: j | S147: = | T147: j | U147: 10 | V147: = | W147: 10 | X147: 36 | Y147: = | Z147: 36
B148: K | C148: = | D148: K | E148: k | F148: = | G148: k | H148: 11 | I148: = | J148: 11 | K148: 37 | L148: = | M148: 37 | O148: K | P148: = | Q148: K | R148: k | S148: = | T148: k | U148: 11 | V148: = | W148: 11 | X148: 37 | Y148: = | Z148: 37
B149: L | C149: = | D149: L | E149: l | F149: = | G149: l | H149: 12 | I149: = | J149: 12 | K149: 38 | L149: = | M149: 38 | O149: L | P149: = | Q149: L | R149: l | S149: = | T149: l | U149: 12 | V149: = | W149: 12 | X149: 38 | Y149: = | Z149: 38
B150: M | C150: = | D150: M | E150: m | F150: = | G150: m | H150: 13 | I150: = | J150: 13 | K150: 39 | L150: = | M150: 39 | O150: M | P150: = | Q150: M | R150: m | S150: = | T150: m | U150: 13 | V150: = | W150: 13 | X150: 39 | Y150: = | Z150: 39
B151: N | C151: = | D151: N | E151: n | F151: = | G151: n | H151: 14 | I151: = | J151: 14 | K151: 40 | L151: = | M151: 40 | O151: N | P151: = | Q151: N | R151: n | S151: = | T151: n | U151: 14 | V151: = | W151: 14 | X151: 40 | Y151: = | Z151: 40
B152: O | C152: = | D152: O | E152: o | F152: = | G152: o | H152: 15 | I152: = | J152: 15 | K152: 41 | L152: = | M152: 41 | O152: O | P152: = | Q152: O | R152: o | S152: = | T152: o | U152: 15 | V152: = | W152: 15 | X152: 41 | Y152: = | Z152: 41
B153: P | C153: = | D153: P | E153: p | F153: = | G153: p | H153: 16 | I153: = | J153: 16 | K153: 42 | L153: = | M153: 42 | O153: P | P153: = | Q153: P | R153: p | S153: = | T153: p | U153: 16 | V153: = | W153: 16 | X153: 42 | Y153: = | Z153: 42
B154: Q | C154: = | D154: Q | E154: q | F154: = | G154: q | H154: 17 | I154: = | J154: 17 | K154: 43 | L154: = | M154: 43 | O154: Q | P154: = | Q154: Q | R154: q | S154: = | T154: q | U154: 17 | V154: = | W154: 17 | X154: 43 | Y154: = | Z154: 43
B155: R | C155: = | D155: R | E155: r | F155: = | G155: r | H155: 18 | I155: = | J155: 18 | K155: 44 | L155: = | M155: 44 | O155: R | P155: = | Q155: R | R155: r | S155: = | T155: r | U155: 18 | V155: = | W155: 18 | X155: 44 | Y155: = | Z155: 44
B156: S | C156: = | D156: S | E156: s | F156: = | G156: s | H156: 19 | I156: = | J156: 19 | K156: 45 | L156: = | M156: 45 | O156: S | P156: = | Q156: S | R156: s | S156: = | T156: s | U156: 19 | V156: = | W156: 19 | X156: 45 | Y156: = | Z156: 45
B157: T | C157: = | D157: T | E157: t | F157: = | G157: t | H157: 20 | I157: = | J157: 20 | K157: 46 | L157: = | M157: 46 | O157: T | P157: = | Q157: T | R157: t | S157: = | T157: t | U157: 20 | V157: = | W157: 20 | X157: 46 | Y157: = | Z157: 46
B158: U | C158: = | D158: U | E158: u | F158: = | G158: u | H158: 21 | I158: = | J158: 21 | K158: 47 | L158: = | M158: 47 | O158: U | P158: = | Q158: U | R158: u | S158: = | T158: u | U158: 21 | V158: = | W158: 21 | X158: 47 | Y158: = | Z158: 47
B159: V | C159: = | D159: V | E159: v | F159: = | G159: v | H159: 22 | I159: = | J159: 22 | K159: 48 | L159: = | M159: 48 | O159: V | P159: = | Q159: V | R159: v | S159: = | T159: v | U159: 22 | V159: = | W159: 22 | X159: 48 | Y159: = | Z159: 48
B160: W | C160: = | D160: W | E160: w | F160: = | G160: w | H160: 23 | I160: = | J160: 23 | K160: 49 | L160: = | M160: 49 | O160: W | P160: = | Q160: W | R160: w | S160: = | T160: w | U160: 23 | V160: = | W160: 23 | X160: 49 | Y160: = | Z160: 49
B161: X | C161: = | D161: X | E161: x | F161: = | G161: x | H161: 24 | I161: = | J161: 24 | K161: 50 | L161: = | M161: 50 | O161: X | P161: = | Q161: X | R161: x | S161: = | T161: x | U161: 24 | V161: = | W161: 24 | X161: 50 | Y161: = | Z161: 50
B162: Y | C162: = | D162: Y | E162: y | F162: = | G162: y | H162: 25 | I162: = | J162: 25 | K162: 51 | L162: = | M162: 51 | O162: Y | P162: = | Q162: Y | R162: y | S162: = | T162: y | U162: 25 | V162: = | W162: 25 | X162: 51 | Y162: = | Z162: 51
B163: Z | C163: = | D163: Z | E163: z | F163: = | G163: z | H163: 26 | I163: = | J163: 26 | K163: 52 | L163: = | M163: 52 | O163: Z | P163: = | Q163: Z | R163: z | S163: = | T163: z | U163: 26 | V163: = | W163: 26 | X163: 52 | Y163: = | Z163: 52
B164: & | C164: = | D164: & | E164: % | F164: = | G164: % | H164: £ | I164: = | J164: £ | K164: ; | L164: = | M164: ; | O164: & | P164: = | Q164: & | R164: % | S164: = | T164: % | U164: £ | V164: = | W164: £ | X164: ; | Y164: = | Z164: ;
B165: é | C165: = | D165: é | E165: # | F165: = | G165: # | H165: @ | I165: = | J165: @ | K165: : | L165: = | M165: : | O165: é | P165: = | Q165: é | R165: # | S165: = | T165: # | U165: @ | V165: = | W165: @ | X165: : | Y165: = | Z165: :
B166: è | C166: = | D166: è | E166: ( | F166: = | G166: ( | H166: ! | I166: = | J166: ! | K166: - | L166: = | M166: - | O166: è | P166: = | Q166: è | R166: ( | S166: = | T166: ( | U166: ! | V166: = | W166: ! | X166: - | Y166: = | Z166: -
B167: ù | C167: = | D167: ù | E167: ) | F167: = | G167: ) | H167: ? | I167: = | J167: ? | K167: . | L167: = | M167: . | O167: ù | P167: = | Q167: ù | R167: ) | S167: = | T167: ) | U167: ? | V167: = | W167: ? | X167: . | Y167: = | Z167: .
B168: ç | C168: = | D168: ç | E168: [ | F168: = | G168: [ | H168: > | I168: = | J168: > | K168: ~ | L168: = | M168: ~ | O168: ç | P168: = | Q168: ç | R168: [ | S168: = | T168: [ | U168: > | V168: = | W168: > | X168: ~ | Y168: = | Z168: ~
B169: à | C169: = | D169: à | E169: ] | F169: = | G169: ] | H169: < | I169: = | J169: < | K169: " | L169: = | M169: " | O169: à | P169: = | Q169: à | R169: ] | S169: = | T169: ] | U169: < | V169: = | W169: < | X169: " | Y169: = | Z169: "
B170: µ | C170: = | D170: µ | E170: { | F170: = | G170: { | H170: \ | I170: = | J170: \ | K170: * | L170: = | M170: * | O170: µ | P170: = | Q170: µ | R170: { | S170: = | T170: { | U170: \ | V170: = | W170: \ | X170: * | Y170: = | Z170: *
B171: § | C171: = | D171: § | E171: } | F171: = | G171: } | H171: / | I171: = | J171: / | K171: , | L171: = | M171: , | O171: § | P171: = | Q171: § | R171: } | S171: = | T171: } | U171: / | V171: = | W171: / | X171: , | Y171: = | Z171: ,
C172: = | E172: | | F172: = | G172: | | H172: _ | I172: = | J172: _ | L172: = | P172: = | R172: | | S172: = | T172: | | U172: _ | V172: = | W172: _ | Y172: =

Sheet Emoticones
A1: Copiez/Collez des émoticones dans vos documents | V1: Mise à jour du 14 Décembre 2021 | AB1: ="Page "&_xlfn.SHEET()&" sur "&_xlfn.SHEETS() -> Page 16 sur 18
C3: Insérer des émojis dans Excel
C4: Lien> | D4: https://www.excel-exercice.com/ajouter-des-emojis-emoticones-dans-vos-formules-feuilles-graphiques/ | N4: Lien> | O4: https://emojis.wiki/fr/ | T4: Lien> | U4: https://fr.emojiguide.com/nourriture-boissons/ | Z4: Lien> | AA4: https://www.facebook.com/GetEmoji/
C6: Lien> | D6: https://emojiterra.com/fr/liste-fr/ | N6: Lien> | O6: https://www.emojiall.com/fr/all-emojis | T6: Lien> | U6: https://emojiguide.org/fr/ | Z6: Lien> | AA6: http://www.get-emoji.com/
C8: Lien> | D8: https://wprock.fr/t/emoji/ | N8: Lien> | O8: https://www.caracteres-speciaux.org/ | T8: Lien> | U8: https://emojipedia.org/ | Z8: Lien> | AA8: https://emojipedia.org/food-drink/
C10: Police > Segoe UI Emoji | D10: 🍏 🍎 🍐 🍊 🍋 🍌 🍉 🍇 🍓 🫐 🍈 🍒 🍑 🥭 🍍 🥥 🥝 🍅 🍆 🥑 🥦 🥬 🥒 🌶 🫑 🌽 🥕 🫒 🧄 🧅 🥔 🍠 🥐 🥯 🍞 🥖 🥨 🧀 🥚 🍳 🧈 🥞 🧇 🥓 🥩 🍗 🍖 🦴 🌭 🍔 🍟 🍕 🫓 🥪 🥙 🧆 🌮 🌯 🫔 🥗 🥘 🫕 🥫 🍝 🍜 🍲 🍛 🍣 🍱 🥟 🦪 🍤 🍙 🍚 🍘 🍥 🥠 🥮 🍢 🍡 🍧 🍨 🍦 🥧 🧁 🍰 🎂 🍮 🍭 🍬 🍫 🍿 🍩 🍪 🌰 🥜 🍯 🥛 🍼 🫖 ☕️ 🍵 🧃 🥤 🧋 🍶 🍺 🍻 🥂 🍷 🥃 🍸 🍹 🧉 🍾 🧊 🥄 🍴 🍽 🥣 🥡 🥢 🧂
C12: Police > Segoe UI Emoji | D12: 🚾 ♿️ 🅿️ 🛗 🈳 🈂️ 🛂 🛃 🛄 🛅 🚹 🚺 🚼 ⚧ 🚻 🚮 🎦 📶 🈁 🔣 ℹ️ 🔤 🔡 🔠 🆖 🆗 🆙 🆒 🆕 🆓 0️⃣ 1️⃣ 2️⃣ 3️⃣ 4️⃣ 5️⃣ 6️⃣ 7️⃣ 8️⃣ 9️⃣ 🔟 🔢 #️⃣ *️⃣ ⏏️ ▶️ ⏸ ⏯ ⏹ ⏺ ⏭ ⏮ ⏩ ⏪ ⏫ ⏬ ◀️ 🔼 🔽 ➡️ ⬅️ ⬆️ ⬇️ ↗️ ↘️ ↙️ ↖️ ↕️ ↔️ ↪️ ↩️ ⤴️ ⤵️ 🔀 🔁 🔂 🔄 🔃 🎵 🎶 ➕ ➖ ➗ ✖️
D14: 🤢 | E14: 🥴 | H14: 🥱 | I14: 😁 | J14: 😃 | M14: 😂 | N14: 🤓 | P14: 😴 | X14: 👨‍🍳 | AB14: < images
A16: 1 | B16: 26BD | C16: ⚽ | D16: ballon de football | F16: 325 | G16: 1F37E | H16: 🍾 | I16: bouteille avec bouchon éclatant | K16: 649 | L16: 1F4CF | M16: 📏 | N16: règle droite | P16: 973 | Q16: 1F6BA | R16: 🚺 | S16: chambre des femmes | U16: Comment insérer des émojis avec la formule UNICAR() d’Excel
A17: 2 | B17: 26BE | C17: ⚾ | D17: base-ball | F17: 326 | G17: 1F37F | H17: 🍿 | I17: pop-corn | K17: 650 | L17: 1F4D0 | M17: 📐 | N17: règle triangulaire | P17: 974 | Q17: 1F6BB | R17: 🚻 | S17: toilettes | U17: Lien> | V17: https://www.youtube.com/watch?v=6YvO8zQjX6Y
A18: 3 | B18: 23F8 | C18: ⏸ | D18: bouton pause | F18: 327 | G18: 1F380 | H18: 🎀 | I18: ruban | K18: 651 | L18: 1F4D1 | M18: 📑 | N18: onglets de signets | P18: 975 | Q18: 1F6BC | R18: 🚼 | S18: symbole bébé | U18: Insérer des émojis dans Excel
A19: 4 | B19: 23F9 | C19: ⏹ | D19: bouton d’arrêt | F19: 328 | G19: 1F381 | H19: 🎁 | I19: cadeau emballé | K19: 652 | L19: 1F4D2 | M19: 📒 | N19: grand livre | P19: 976 | Q19: 1F6BD | R19: 🚽 | S19: toilette | U19: Lien> | V19: https://www.excel-exercice.com/ajouter-des-emojis-emoticones-dans-vos-formules-feuilles-graphiques/
A20: 5 | B20: 23FA | C20: ⏺ | D20: bouton d’enregistrement | F20: 329 | G20: 1F382 | H20: 🎂 | I20: gâteau d'anniversaire | K20: 653 | L20: 1F4D3 | M20: 📓 | N20: carnet de notes | P20: 977 | Q20: 1F6BE | R20: 🚾 | S20: WC | V20: Le plus simple c'est d'utiliser le clavier virtuel ou visuel de Windows 10.
A21: 6 | B21: 2795 | C21: ➕ | D21: plus | F21: 330 | G21: 1F383 | H21: 🎃 | I21: jack-o-lantern | K21: 654 | L21: 1F4D4 | M21: 📔 | N21: carnet avec couverture décorative | P21: 978 | Q21: 1F6BF | R21: 🚿 | S21: douche
A22: 7 | B22: 2796 | C22: ➖ | D22: moins | F22: 331 | G22: 1F384 | H22: 🎄 | I22: Arbre de Noël | K22: 655 | L22: 1F4D5 | M22: 📕 | N22: livre fermé | P22: 979 | Q22: 1F6C0 | R22: 🛀 | S22: personne prenant un bain
A23: 8 | B23: 2797 | C23: ➗ | D23: diviser | F23: 332 | G23: 1F385 | H23: 🎅 | I23: Père Noël | K23: 656 | L23: 1F4D6 | M23: 📖 | N23: livre ouvert | P23: 980 | Q23: 1F6C1 | R23: 🛁 | S23: baignoire | U23: Comment utiliser les émoticônes sur Windows 10
A24: 9 | B24: 27B0 | C24: ➰ | D24: boucle bouclée | F24: 333 | G24: 1F386 | H24: 🎆 | I24: feu d’artifice | K24: 657 | L24: 1F4D7 | M24: 📗 | N24: livre vert | P24: 981 | Q24: 1F6C2 | R24: 🛂 | S24: contrôle des passeports | U24: . Appuyez sur l'un de ces raccourcis clavier :
A25: 10 | B25: 27BF | C25: ➿ | F25: 334 | G25: 1F387 | H25: 🎇 | I25: Cierge | K25: 658 | L25: 1F4D8 | M25: 📘 | N25: livre bleu | P25: 982 | Q25: 1F6C3 | R25: 🛃 | S25: douane | V25: Touche Windows et point/touche d'arrêt ( . )
A26: 11 | B26: FE0F | C26: ️ | F26: 335 | G26: 1F388 | H26: 🎈 | I26: ballon | K26: 659 | L26: 1F4D9 | M26: 📙 | N26: livre orange | P26: 983 | Q26: 1F6C4 | R26: 🛄 | S26: Bagages | V26: ou Touche Windows et touche point-virgule ( ; )
A27: 12 | B27: 3030 | C27: 〰 | F27: 336 | G27: 1F389 | H27: 🎉 | I27: popper de fête | K27: 660 | L27: 1F4DA | M27: 📚 | N27: Livres | P27: 984 | Q27: 1F6C5 | R27: 🛅 | S27: consigne à bagages
A28: 13 | B28: 303D | C28: 〽 | F28: 337 | G28: 1F38A | H28: 🎊 | I28: boule de confettis | K28: 661 | L28: 1F4DB | M28: 📛 | N28: badge nominatif | P28: 985 | Q28: 1F6CB | R28: 🛋 | S28: canapé et lampe
A29: 14 | B29: 203C | C29: ‼ | F29: 338 | G29: 1F38B | H29: 🎋 | I29: arbre tanabata | K29: 662 | L29: 1F4DC | M29: 📜 | N29: faire défiler | P29: 986 | Q29: 1F6CC | R29: 🛌 | S29: personne au lit
A30: 15 | B30: 2049 | C30: ⁉ | F30: 339 | G30: 1F38C | H30: 🎌 | I30: drapeaux croisés | K30: 663 | L30: 1F4DD | M30: 📝 | N30: mémo | P30: 987 | Q30: 1F6CD | R30: 🛍 | S30: sacs à provisions
A31: 16 | B31: 2B1B | C31: ⬛ | F31: 340 | G31: 1F38D | H31: 🎍 | I31: décoration en pin | K31: 664 | L31: 1F4DE | M31: 📞 | N31: récepteur téléphonique | P31: 988 | Q31: 1F6CE | R31: 🛎 | S31: cloche
A32: 17 | B32: 2B1C | C32: ⬜ | F32: 341 | G32: 1F38E | H32: 🎎 | I32: Poupées japonaises | K32: 665 | L32: 1F4DF | M32: 📟 | N32: téléavertisseur | P32: 989 | Q32: 1F6CF | R32: 🛏 | S32: lit
A33: 18 | B33: 23EA | C33: ⏪ | F33: 342 | G33: 1F38F | H33: 🎏 | I33: streamer de carpes | K33: 666 | L33: 1F4E0 | M33: 📠 | N33: télécopieur | P33: 990 | Q33: 1F6D0 | R33: 🛐 | S33: lieu de culte
A34: 19 | B34: 23EB | C34: ⏫ | F34: 343 | G34: 1F390 | H34: 🎐 | I34: carillon éolien | K34: 667 | L34: 1F4E1 | M34: 📡 | N34: antenne satellite | P34: 991 | Q34: 1F6D1 | R34: 🛑 | S34: Panneau stop
A35: 20 | B35: 23EC | C35: ⏬ | F35: 344 | G35: 1F391 | H35: 🎑 | I35: cérémonie d’observation de la lune | K35: 668 | L35: 1F4E2 | M35: 📢 | N35: haut-parleur | P35: 992 | Q35: 1F6D2 | R35: 🛒 | S35: caddie
A36: 21 | B36: 23ED | C36: ⏭ | F36: 345 | G36: 1F392 | H36: 🎒 | I36: sac à dos | K36: 669 | L36: 1F4E3 | M36: 📣 | N36: mégaphone | P36: 993 | Q36: 1F6D5 | R36: 🛕 | S36: temple hindou
A37: 22 | B37: 23EE | C37: ⏮ | F37: 346 | G37: 1F393 | H37: 🎓 | I37: casquette de graduation | K37: 670 | L37: 1F4E4 | M37: 📤 | N37: bac d’envoi | P37: 994 | Q37: 1F6D6 | R37: 🛖 | S37: hutte
